{"text_format":"1","workbook":"xlsx","n_sheets":37,"sheets":["Control Cambios_p_public_ V (2)","Indice Archivos","CtrlCambios_vrs_ 6","BITACORA_vrs 3","INDICE_inventario","BITACORA_vrs 2","OBSERVACIONES","Listas","TABLAS","TIPO_MONEDA","TIPO_COLATERAL_REAL","TIPO_COLATERAL_FINANCIERO","EQUIV_CALIF_AGENCIA_CALIFICADOR","01_Generalidades_Estructura","01_Generalidades_Campos","01_Generalidades_Validaciones","5201_Polizas_Estructura","5201_Polizas Descripcion","5201_Polizas Validaciones","5202_Cartas Credito_Estructura","5202_Cartas Credito_Descripcion","5202_Cartas Credito_Validac ","5203_Cedidas_Estructura","5203_Cedidas_Descripcion","5203_Cedidas_Validaciones","5204_Fiduciarias_Estructura","5204_Fiduciarias_Descripcion","5204_Fiduciarias_Validaciones","5205_Reales_Estructura","5205_Reales_Estructura (nueva)","5205_Reales_Descripcion","5205_Reales_Descripcion (nueva)","5205_Reales_Validaciones","5206_Valores Estructura","5206_Valores_Descripcion","5206_Valores_Validaciones","5206_Valores_Validaciones_nulo"],"not_rendered":{"charts":0,"images":8,"macros":1,"external_links":1,"defined_names":73,"comments":5,"pivot_tables":0},"unopened":[],"bounds":{"document_bytes":16777216,"sheet_cells":100000,"rows_first":2000,"rows_last":500,"rows_between":2000,"halvings":0,"cell_chars":16384,"cell_head_chars":4096},"cells_cut":0,"cells_raw":0,"read":"whole","date_system":"1900"}

{"sheet":"Control Cambios_p_public_ V (2)","index":0,"n_rows":41,"n_cols":12,"rows_kept":41,"cut":false,"hidden":true,"merged":[]}
[]
["Recopilación de cambios al documento publicado el 30 de junio, 2022."]
[]
["Fecha","Nombre del Archivo","Cambio en:","Descripción del cambio","Número de validación cuando aplique","Validación anterior","Nueva validación."]
["2022-09-27","5202_Garantias_Polizas","Descripción","A la descripción de (los) campo(s)  \"TipoPersonaBeneficiario \" se le agrega el siguiente texto: (, y éste solo solo puede ser: 1 ó 2 ó 3 ó 4 ó 5 ó 6 ó 13.)","no aplica","no aplica","no aplica",null,null,null,null,"Descripción"]
["2022-09-27","5203_GarantiasCartasCredito","Descripción","A la descripción de (los) campo(s)  \"TipoPersona\" se le agrega el siguiente texto: (, y éste solo solo puede ser: 1 ó 2 ó 3 ó 4 ó 5 ó 6 ó 13.)","no aplica","no aplica","no aplica",null,null,null,null,"Validaciones"]
["2022-09-27","5204_GarantiasFacturadasCedidas","Descripción","A la descripción de (los) campo(s)  \"TipoPersona\" se le agrega el siguiente texto: (, y éste solo solo puede ser: 1 ó 2 ó 3 ó 4 ó 5 ó 6 ó 13.)","no aplica","no aplica","no aplica",null,null,null,null,"Validaciones"]
["2022-09-27","5205_GarantiasFiduciarias","Descripción","A la descripción de (los) campo(s)  \"TipoPersona\" se le agrega el siguiente texto: (, y éste solo solo puede ser: 1 ó 2 ó 3 ó 4 ó 5 ó 6 ó 13.)","no aplica","no aplica","no aplica",null,"Revisar con Rodolfo.",null,null,"Validaciones"]
["2022-09-27","5206_GarantiasReales","Descripción","A la descripción de (los) campo(s)  \"TipoPersonaTasador, TipoPersonaEmpresaTasadora\" se le agrega el siguiente texto: (, y éste solo solo puede ser: 1 ó 2 ó 3 ó 4 ó 5 ó 6 ó 13.)","no aplica","no aplica","no aplica",null,null,null,null,"Validaciones"]
["2022-09-27","5207_GarantiasValores","Descripción","A la descripción de (los) campo(s)  \"TipoPersona\" se le agrega el siguiente texto: (, y éste solo solo puede ser: 1 ó 2 ó 3 ó 4 ó 5 ó 6 ó 13.)","no aplica","no aplica","no aplica",null,null,null,null,"Validaciones"]
["2022-09-27","5203_GarantiasCartasCredito","Validación","Se eliminan las validaciones de la (6 a la 91); aplica la validación general número 3.","De la 6 a la 91","se eliminan","Prevalece la validación núnero 3.",null,null,null,null,"Validaciones"]
["2022-09-27","5204_GarantiasFacturadasCedidas","Validación","Se eliminan las validaciones de la (2 a la 95)","De la 2a la 95","se eliminan","Prevalece la validación núnero 4."]
["2022-09-27","5206_GarantiasReales","Validación","Se eliminan las validaciones de (14, 15, 16, 17, 18); aplica la validación general número 11.","De la 14 a la 18.","se eliminan","Prevalece la validación núnero 11.",null,null,null,null,"Validaciones"]
["2022-09-27","5207_GarantiasValores","Validación","Se eliminan las validaciones de la (110 a 150); aplica la validación general número 22.","De la 110 a la 150.","se eliminan","Prevalece la validación núnero 11.",null,null,null,null,"Validaciones"]
["2022-09-27","5207_GarantiasValores","Validación","Se eliminan las validaciones de la (24 a 109); aplica la validación general número 14.","De la 24 a 109.",null,null,null,null,null,null,"Validaciones"]
["2022-09-27","5203_GarantiasCartasCredito","Validación","Se eliminan las validaciones de la (6 a 91); aplica la validación general número 3.","De la 6 a la 91.",null,null,null,null,null,null,"Validaciones"]
["2022-10-28","5205_GarantiasFiduciarias","Validación","Se modifica validación, se le integra Id para identificar el Fondo Fodemypime.",1,"Los campos “TipoPersona” y “\"IdFiador\"” deben corresponder con el padrón de personas de la SUGEF, excepto cuando el \"IdFiador\" corresponde a FODEMIPYME. Los valores del campo “TipoPersona” deben corresponder con los códigos indicados en la Tabla “Tipo_Persona”.","Los campos “TipoPersona” y “\"IdFiador\"” deben corresponder con el padrón de personas de la SUGEF, excepto cuando el \"IdFiador\" corresponde a FODEMIPYME (4000042152). Los valores del campo “TipoPersona” deben corresponder con los códigos indicados en la Tabla “Tipo_Persona”.",null,null,null,null,"Validaciones"]
["2022-10-28","5206_GarantiasReales","Validación","Se elimina la validación.  El control se integró a nivel del XSD.",2,null,null,null,null,null,null,"Validaciones"]
["2022-10-28","5205_GarantiasFiduciarias","Validación","Se eliminan las validaciones del archivo de Garantías Fiduciarias y se se trasladan al archivo de Garantías de Operaciones.","7; 8; 9; 10 y 11","no aplica","no aplica",null,null,null,null,"Validaciones"]
["2022-10-28","5206_GarantiasReales","Validación","Se eliminan la validaciones del archivo de Garantías Reales  y se traslada al archivo de Garantías de Operaciones.",4,"no aplica","no aplica",null,null,null,null,"Validaciones"]
["2022-10-28","5207_GarantiasValores","Validación","Se eliminan la validaciones del archivo de Garantías Valores  y se traslada al archivo de Garantías de Operaciones.",23,"no aplica","no aplica",null,null,null,null,"Validaciones"]
["2022-11-15","5202_Garantias_Polizas","Validación","Se modifica nombre de uno de los campos que hace referencia la validación",1,"El \"IdGarantia\" de este archivo, debe existir en el campo \"IdGarantiaReal\" y  tener una \"S\" en el campo \"PolizaGarantiaReal\" del Archivo Garantías Reales.","El \"IdGarantia\" de este archivo, debe existir en el campo \"IdGarantiaReal\" y  tener una \"S\" en el campo \"IndicadorPolizaGarantiaReal\" del Archivo Garantías Reales.",null,null,null,null,"Validaciones"]
["2022-11-22","5203_GarantiasCartasCredito","Validación","Se modifica la validación,se le agrega texto.",3,"Los campos “CodigoCalificacionRiesgo”, “CodigoEmpresaCalificadora” y “CategoriaCalificacion” deben corresponder con los valores de la tabla \"Equivalencia_Calificaciones_Agencias_Calificadoras\".","Los campos “CodigoCalificacionRiesgo”, “CodigoEmpresaCalificadora” y “CategoriaCalificacion” deben corresponder con los valores de la tabla \"Equivalencia_Calificaciones_Agencias_Calificadoras\" y estos VALORES deben estar activos.",null,null,null,null,"Estructura"]
["2022-11-22","5207_GarantiasValores","Validación","Se elimina la validación número 3; ya esta considerado en la validación número 1.",3,"Se elimina la validación."]
[]
["2022-12-06","5205_GarantiasFiduciarias","Estructura, Descripción y Validaciones"," a) En  \"Estructura\" Se eliman los siguientes campos: <TipoAsignacionCalificacion/>,      <CategoriaCalificacion/>,      <CodigoCalificacionRiesgo/>,      <CodigoEmpresaCalificadora/>.\nb) En estructura, al  campo \"PorcentajeAjusteRc\", en la columna \"Obligatirio\" se  mofica de \"No\" a \"Si\",  y se modifica la redacción de la descripción. \nc)   En validaciones, se eliminan las validaciones relacionadas a estos campos, validaciones 2, 3, 4 y 16..","2, 3, 4 y 16","Se eliminan validaciones","no aplica"]
["2023-01-09","5204_GarantiasFacturadasCedidas","Validación","Se incluye nueva validación",96,null,"El valor del campo \"PorcentajeAjusteRc\" debe ser 40% "]
["2023-01-09",null,null," ",null,"Se descarga el archivo para efecto de publicación."]
[null,null,null," ",null,"+"]
[null,null,null," "]
[null,null,null," "]
[null,null,null," "]
[null,null,null," "]
[null,null,null," "]
[null,null,null," "]
[null,null,null," "]
[null,null,null," "]
[null,null,null," "]
[null,null,null," "]
[null,null,null," "]
[null,null,null," "]

{"sheet":"Indice Archivos","index":1,"n_rows":12,"n_cols":7,"rows_kept":12,"cut":false,"hidden":false,"merged":[[1,2,1,6],[4,3,4,6]]}
[]
[null,null,"Detalle Archivos de la Clase de Datos Crediticia"]
[]
[null,null,"Código Archivo","Nombre del Archivo","Estructura","Descripción","Validaciones"]
[null,null,null,"Detalle de Control de Cambios respecto a la publicación del 30 de junio 2022"]
[null,null,null,"Generalidades",{"$f":"CONCATENATE(\"Ir a estructura\")","v":"Ir a estructura"},{"$f":"CONCATENATE(\"Ir a descripción\")","v":"Ir a descripción"},{"$f":"CONCATENATE(\"Ir a validaciones\")","v":"Ir a validaciones"}]
[null,null,5201,"NEC2024_Garantias_Polizas",{"$f":"CONCATENATE(\"Ir a estructura\")","v":"Ir a estructura"},{"$f":"CONCATENATE(\"Ir a descripción\")","v":"Ir a descripción"},{"$f":"CONCATENATE(\"Ir a validaciones\")","v":"Ir a validaciones"}]
[null,null,5202,"NEC2024_GarantiasCartasCredito",{"$f":"CONCATENATE(\"Ir a estructura\")","v":"Ir a estructura"},{"$f":"CONCATENATE(\"Ir a descripción\")","v":"Ir a descripción"},{"$f":"CONCATENATE(\"Ir a validaciones\")","v":"Ir a validaciones"}]
[null,null,5203,"NEC2024_GarantiasFacturasCedidas","Ir a estructura","Ir a descripción","Ir a validaciones"]
[null,null,5204,"NEC2024_GarantiasFiduciarias","Ir a estructura","Ir a descripción","Ir a validaciones"]
[null,null,5205,"NEC2024_GarantiasReales","Ir a estructura","Ir a descripción","Ir a validaciones"]
[null,null,5206,"NEC2024_GarantiasValores","Ir a estructura","Ir a descripción","Ir a validaciones"]

{"sheet":"CtrlCambios_vrs_ 6","index":2,"n_rows":4,"n_cols":7,"rows_kept":4,"cut":false,"hidden":false,"merged":[[1,0,1,2]]}
[]
["Recopilación de cambios al documento publicado el 29 setiembre 2023 versión 4.\n\nSon aplicables para la versión 5"]
[]
["Fecha","Nombre del Archivo","Cambio en:","Descripción del cambio","Número de validación \ncuando aplique.\nNota: En cada hoja de validaciones, las marcadas en rojo y con el texto tachado, corresponde a validaciones eliminadas","Validación anterior","Nueva validación."]

{"sheet":"BITACORA_vrs 3","index":3,"n_rows":26,"n_cols":9,"rows_kept":26,"cut":false,"hidden":true,"merged":[[1,1,1,7],[2,1,2,8]]}
[]
[null,"Favor de incluir los comentario a los documentos"]
[null,"Detalle de observaciones de cambios a los archivos para la versión 3, al 26 de julio 2023"]
[null,"Fecha","Detalle de la observación","Nombre del archivo","Cambio en:","Número de validación","Quién realiza la observación","Indicar el estado\nPendiente; atendida; ","Quién atiende la observación"]
[null,"19/4/2023","Falta agregar al Doc Publicado la siguiente validacion de GARANTIAS CARTAS CREDITO: \n\nValidación de Control de Integridad: No es permitido remitir datos para periodos anteriores a Enero 2024.\n\nCometario SICVECA 24 abr 2023:  Se considera observación.  Se incluye la validación.","5202 / GarantiasCartasCredi","Validación",95,"Bryan","Atendida SICVECA"]
[null,"19/4/2023","Falta agregar al Doc Publicado la siguiente validacion de GARANTIAS CEDIDAS: \n\nValidación de Control de Integridad: No es permitido remitir datos para periodos anteriores a Enero 2024\n\nComentario SICVEC 24 abr 2023:  Se atiende observación,  Se incluye la validación.","5203 / GarantiasFacturasCed","Validación",97,"Bryan","Atendida SICVECA"]
[null,"19/4/2023","Falta agregar al Doc Publicado la siguiente validacion de GARANTIAS REALES: \n\nValidación de Control de Integridad: No es permitido remitir datos para periodos anteriores a Enero 2024.\n\nComentario SICVEC 24 abr 2023:  Se atiende observación,  Se incluye la validación.","5205 / GarantiasReales","Validación",25,"Bryan","Atendida SICVECA"]
[null,"19/4/2023","Falta agregar al Doc Publicado la siguiente validacion de GARANTIAS VALORES: \n\nValidación de Control de Integridad: No es permitido remitir datos para periodos anteriores a Enero 2024.\n\n2024.\n\nComentario SICVEC 24 abr 2023:  Se atiende observación,  Se incluye la validación.","5206 / GarantiasValores","Validación",150,"Bryan","Atendida SICVECA"]
[null,"2023-04-24","Se modifica la validación,  ya que un bien puede reportar más de una póliza.  Para solventarlo, se le incluye a la validación que considere la fecha de vencimiento.\nSe modifica además en la estructura, la definición de los campos llave; se le incluye además el campo \"FechaVencimiento\"\n\nNota interna:  Se consultó a BCT el caso de que un bien tenga mas de dos pólizas, comentó que se pueden presentar casos que la aseguradora emita una póliza general por el bien  y otra póliza por la maquinaria.  Entonces presentará dos pólizas;  se plantea la fecha, se corre el riesgo de que las emita con la misma fecha, no se tiene en número de póliza.\nTI-9-5-23: Se ajusta campo en BD para que sea PK y se ajusta Validacion.","5201 / Garantias_Polizas","Validación y Estructura",7,"Leonel","Atendida T.I."]
[null,"2023-04-25","\nCon respecto a la validación 11 de Garantías Reales; el objetivo es validar el valor del campo \"Tiempo\".  De acuerdo a la de dicho campo,  se estableció con dos enteros y dos decimales.\n\nPodrían revisar la  fórmula de cálculo de la validación,  para determinar si esta comparando el resultado de la  fórmula aritmetica ( con todos los decimales) ó esta redondeando.\n\nSi esta aplicando la totalidad de decimales,  se solicita que  el redondeo a dos digitos (al superior).\n\nEstamos valorando incluirle una tolerancia,  lo estaremos comunicando\nTI-BMQ-25-4-23: Se ajusta según recomendaciones.","5205 / GarantiasReales","Validación",11,"Leonel","Atendida T.I."]
[null,"2023-04-27","Hay que corregir el texto de la validación en BD. Si esta programada de acuerdo al campo.\n\nEl dato del campo \"PorcentajeAjusteRc\" debe corresponde al valor indicado en la tabla \"TipoColateralFinanciero\";  según \"Colateral Financiero y otros derechos de cobro\" y \"Calificación Instrumento\".\n\nEl dato del campo \"PorcentajeAjusteRc\" debe corresponde al valor indicado en la tabla \"TipoColateralFinanciero\";  según \"Colateral Financiero y otros derechos de cobro\" y \"Clasificación Instrumento\".","5206 / GarantiasValores","Validación",22,"Leonel","Atendida T.I."]
[null,"2023-05-04","Se modifica la obligatoriedad de la descripción del campo\"PorcentajeAjusteRc\".  Se modifica de \"No\" a \"Si\".\nTI-5-5-23: SE REALIZA AJUSTE FALTA CERTIFICACION QA.","5206 / GarantiasValores","Descripción","no aplica","Leonel","Atendida T.I."]
[null,"2023-03-05","El campo PorcentajeAjusteRc debe ser requerido debido al ajuste que se realizó en la matriz TIPOCOLATERALFINANCIERO\n\nTI-5-5-23: SE REALIZA AJUSTE FALTA CERTIFICACION QA.","5206 / GarantiasValores","Estructura","n/a","Bryan","Atendida T.I."]
[null,"2023-11-05","Valorar corregir descripcion de validaciones 10 y anexas(11...) ya que no es clara acorde a las solicitudes de corrección.\n\nEXPLICACION DE CAROLINA:\nDEBEN COINCIDIR TODOS(si alguno de A hasta G no coincide tira error si se cumple que): \n  \n·                 C_TIPO_CLASIFICACION_INSTRUMENTO = 1,2,3 o 4 y BONO\n·                 C_TIPO_CLASIFICACION_INSTRUMENTO = 0 y PREMIO TIENE VALOR y PAIS DIFERENTE A 'CR' \n·                 C_TIPO_CLASIFICACION_INSTRUMENTO = 0 y PREMIO NO TIENE VALOR y PAIS IGUAL 'CR' \n·                 C_TIPO_CLASIFICACION_INSTRUMENTO = 0 y PREMIO NOTIENE VALOR y PAIS DIFERENTE 'CR' \n  \n  \nCASO EN EL QUE NO DEBE COINDICIR CAMPOS DE A a la G: \n·       C_TIPO_CLASIFICACION_INSTRUMENTO = 0 y PREMIO TIENE VALOR y PAIS IGUAL CR \nTI:16/5/2023: Se programan en caliente segun escensarios de Comision debido a descripcion compleja y no se va a modificar la DESCRIPCION DE LA VALIDACION, pendiente Documentar en BD para que quede evidencia de referencia de escenarios.","5206 / GarantiasValores","Descripción",11,"Bryan","Atendida T.I."]
[null,"2023-05-30","Se solicita revisar el nombre del campo \"IdGarantiaCartaCredito\", del Archivo Cartas de Credito  con respecto al nombre que se indica en el XML y XSD.  En el XML y XSD se indica IdGarantia.","5202 / GarantiasCartasCredi","Estructura","no aplica","Leonel","Atendida T.I."]
[null,"31/5/2023","Revisar redacción en VALIDACION #3: La tabla correcta se debe llamar \"TIPO_CALIFICACION_RIESGO\" no Equivalencia_Calificaciones_Agencias_Calificadoras.\nLos campos “CodigoCalificacionRiesgo”, “CodigoEmpresaCalificadora” y “CategoriaCalificacion” deben corresponder con los valores de la tabla \"\"Equivalencia_Calificaciones_Agencias_Calificadoras\"\" TIPO_ASIGNACION_CALIFICACION y y estos VALORES deben estar activos.\n**************TAMBIEN REVISAR REDACCIONES DE CAMPOS QUE ASI LO INDICAN**********\n\nComentario SICVECA Leo (01 junio 2023):  De acuerdo a lo conversado con Bryan y Carlos, se va a mantener el nombre de tabla porque es como esta en la normativa,  a nivel de la programación, se le va a incluir en el \"código\", la aclaración de la nombre de la tabla).\n   Se agrega a la validación el texto recomendado. .","5202 / GarantiasCartasCredi","Descripción",3,"Bryan","Atendida SICVECA","Leonel"]
[null,"31/5/2023","Revisar redacción en VALIDACION #14: La tabla correcta se debe llamar \"TIPO_CALIFICACION_RIESGO\" no Equivalencia_Calificaciones_Agencias_Calificadoras.\nLos campos “CodigoCalificacionRiesgo”, “CodigoEmpresaCalificadora” y “CategoriaCalificacion” deben corresponder con los valores de la tabla Equivalencia_Calificaciones_Agencias_Calificadoras.\nADEMAS SE SUGIERE AGREGAR A LA DESCRIPCION LA FRASE \"Y ESTOS VALORES DEBEN ESTAR CON ESTADO ACTIVO\"\n**************TAMBIEN REVISAR REDACCIONES DE CAMPOS QUE ASI LO INDICAN**********\n\nComentario SICVECA Leo (01 junio 2023):  De acuerdo a lo conversado con Bryan y Carlos, se va a mantener el nombre de tabla porque es como esta en la normativa,  a nivel de la programación, se le va a incluir en el \"código\", la aclaración de la nombre de la tabla).\n   Se agrega a la validación el texto recomendado. .","5206 / GarantiasValores","Descripción",14,"Bryan","Atendida SICVECA","Leonel"]
[null,"2023-06-01","Se cambia el acrónimo \"BPCD\" por \"BPDC\" en las validaciones 11 y 12. de Garantías Valores\nTI-5-6-2023-: SE AJUSTA","5206 / GarantiasValores","Validación","11 y 12","Leonel","Atendida T.I."]
[null,"2023-06-08","Se modifican las validaciones 10 y 11 del Archivo de Garantías Reales.\nJustificante: Para que la validación no se aplique para las operaciones amparadas al acuerdo SUGEF 15-16, Banca para el Desarrollo.  Atendiendo observación del Banco Popular recibida en CRM´s 2023_8362 (2023_8752)\nTI-16-6-23: ATENDIDA.\n\nSICVECA_ 22 JUNIO 2023:  Se conversa con Bryan sobre la validación 10.   Se acuerda, dejar la validación como estaba antes;  ya que se aplica la combinación de 0,0,0\"  a la matriz de la tabla Tipo Colateralk Real.\n\nParala validación 11, se mantiene, se hará una nueva para requerir que cuando sea tipo colateral 0, el timpo debe ser 1.\n\nTI-22-6-23: Se modifica validacion #10 en progra y descripcion","5205 / GarantiasReales","Validación","10 y 11","Leonel","Atendida T.I."]
[null,"2023-06-08","Se modifican las validaciones 22 del Archivo de Garantías Valores.\nJustificante: Para que la validación no se aplique para las operaciones amparadas al acuerdo SUGEF 15-16, Banca para el Desarrollo.  Atendiendo observación del Banco Popular recibida en CRM´s 2023_8362 (2023_8752)\nTI-16-6-23: ATENDIDA. \n\nSICVECA 22 JUNIO 2023. Se conversa con Bryan, respecto a la matriz de la tabla Tipo Calateral, expresamente para el código CERO que se crea para operaciones  \"Calificación instrumento\" para que se a1.\n   Por lo que la validación vuelve a su estado original.  No es neceario el cambio solicitado.\nTI: 22-6-2023: SE AJUSTA A VALIDACION INICIAL","5206 / GarantiasValores","Validación",22,"Leonel","Atendida T.I."]
[null,"2023-06-09","Se modifica la validación del archivo de Facturas Cedidas, validación 96.   \nJustificación: Para operaciones no amparadas a 14-21, no se les debe exigir el 40%.  Atendiendo observación del Banco Popular recibida en CRM´s 2023_8362 (2023_8752)\n\nTI-16-6-23: COMISION VA AJUSTAR NUEVAMENTE REDACCION PARA QUE QUEDE CLARA! SE QUEDA A LA ESPERA\nTI:20-6-23","5204 / GarantiasFiduciarias","Validación",96,"Leonel","Atendida T.I."]
[null,"2023-12-06","Cambiar el rango de  5 a 30 en el CodigoCalificacionRiesgo de GARANTIA_CARTAS_CREDITO debido a que el catalogo de BD se indica tal cual y deben coincidir.  En VALORES Y DEUDORES SE ENCUENTRA EN RANGO DE 30\n\nVALORAR QUE SEAN LOS 3 CAMPOS REQUERIDOS. (Categoria Calificacion, Calificacion Riesgo, EmpresaCalificadora): De ser asi ajustar en DEUDORES, GARANTIAS VALORES y GARANTIAS CARTAS CREDITO.\n\nRespuesta SICVECA CREDITICIA:  13 junio 2023: Se ajusta en descripción el \"tamaño formato\" del campo \"CalificacionRiesgo\", pasa de 0 a 5 a de 0 a 30. \nCon respecto a que los tres campos sean requerido.  Aplicaría solo para Cartas de Credito,  para Deudores y Valores no; ya que no todo deudor o emisión va a estar calificada.  Para cartas de crédito.\n  En el caso de Cartas de Crédito, por la validación 3 se esta requiriendo el valor en los campo, para que se requiera el valor.\n\nSe modifica la validación 3  y se elimina la validación 4; se fusiona la validación 3 con la 4.\nTI: NO HA CAMBIADO RANGO EN CARTAS REVISAR DOC QUE EVIDENCIE CAMBIO!\nTI-15-6-23: AJUSTADA","5202 / GarantiasCartasCredi","Descripción",null,"Bryan","Atendida SICVECA"]
[null,"2023-06-13","Se modifica la validación 5  y se elimina la validación número 14; del archivo de Garantías Valores\nTI-15-6-23: AJUSTADA","5206 / GarantiasValores","Validación","05( se modifica)\n14 (se elimina)","Leonel","Atendida T.I."]
[null,"2023-06-22"," Se crea la siguiente validación (complemento de la 11 de Garantias Reales: \n \"(…)Cuando el \"TipoColateralReal\" es  igual a \"0\" el valor del campo \"Tiempo\" debe ser UNO.(..)\"\n\nTI-22-6-2023: Se crea nueva validacion","5205 / GarantiasReales","Validación",26,"Leonel","Atendida T.I."]
[null,"2023-06-29","T.I. agrega tres nuevas validaciones al archivo de Garantías Valores, \n151-  Validación de Control de Integridad: El campo \"TipoClasificacionInstrumento\" debe existir en la tabla \"TIPO_COLATERAL_FINANCIERO_CALIFICACION_INSTRUMENTO_NEC2024\"\n152. El campo \"TipoMonedaValorFacial\" debe existir en la tabla \"TIPO_MONEDA\"\n153. El campo \"TipoMonedaValorMercado\" debe existir en la tabla \"TIPO_MONEDA\"\n\nEstán pendientes de probar.\n","5206 / GarantiasValores","Validación","151, 152 y 153","Carlos Alberto","Atendida SICVECA"]
[null,"2023-06-29","T.I. agrega tres nuevas validaciones al archivo de Garantías Facturas Cedidas, \nT.I. agrega tres nuevas validaciones al archivo de Garantías Valores, \n\nPendiente de probar\n","5203 / GarantiasFacturasCed","Validación",98,"Carlos Alberto","Atendida T.I."]

{"sheet":"INDICE_inventario","index":4,"n_rows":28,"n_cols":11,"rows_kept":28,"cut":false,"hidden":true,"merged":[]}
[]
[]
[]
[null,null,null,null,null,null,"Total\n validaciones",null,"Total validaciones nuevas"]
[null,null,null,null,null,null,{"$f":"SUM(F:F)","v":{"$error":"#REF!"}},null,{"$f":"SUM(H:H)","v":0}]
[null,null,null,"ÍNDICE",null,"Total validaciones por archivo",null,"Total validaciones nuevas"]
[null,null,null,"COMENTARIOS"]
[null,null,null,"01_Generalidades_Estructura"]
[null,null,null,"01_Generalidades_Campos"]
[null,null,null,"01_Generalidades_Validaciones",null,13,null,null,null,null,"Por revisarlas"]
[null,null,null,"02_Fiduciarias_Estructura"]
[null,null,null,"02_Fiduciarias_Descripcion"]
[null,null,null,"02_Fiduciarias_Validaciones",null,{"$f":"'5204_Fiduciarias_Validaciones'!#REF!","v":{"$error":"#REF!"}},null,{"$f":"COUNT('5204_Fiduciarias_Validaciones'!#REF!)","v":0}]
[null,null,null,"03_Reales_Estructura"]
[null,null,null,"03_Reales_Descripcion"]
[null,null,null,"03_Reales_Validaciones",null,{"$f":"'5205_Reales_Validaciones'!#REF!","v":{"$error":"#REF!"}},null,{"$f":"COUNT('5205_Reales_Validaciones'!#REF!)","v":0}]
[null,null,null,"04_Valores Estructura"]
[null,null,null,"04_Valores_Descripcion"]
[null,null,null,"04_Valores_Validaciones",null,{"$f":"'5206_Valores_Validaciones_nulo'!#REF!","v":{"$error":"#REF!"}},null,{"$f":"COUNT('5206_Valores_Validaciones_nulo'!#REF!)","v":0}]
[null,null,null,"05_Cartas Credito_Estructura"]
[null,null,null,"05_Cartas Credito_Descripcion"]
[null,null,null,"05_Cartas Credito_Validaciones ",null,{"$f":"'5202_Cartas Credito_Validac '!#REF!","v":{"$error":"#REF!"}},null,{"$f":"COUNT('5202_Cartas Credito_Validac '!#REF!)","v":0}]
[null,null,null,"06_Cedidas_Estructura"]
[null,null,null,"06_Cedidas_Descripcion"]
[null,null,null,"06_Cedidas_Validaciones",null,{"$f":"'5203_Cedidas_Validaciones'!#REF!","v":{"$error":"#REF!"}},null,{"$f":"COUNT('5203_Cedidas_Validaciones'!#REF!)","v":0}]
[null,null,null,"07_Polizas_Estructura"]
[null,null,null,"07_Polizas Descripcion"]
[null,null,null,"07_Polizas Validaciones",null,{"$f":"'5201_Polizas Validaciones'!#REF!","v":{"$error":"#REF!"}},null,{"$f":"COUNT('5201_Polizas Validaciones'!#REF!)","v":0}]

{"sheet":"BITACORA_vrs 2","index":5,"n_rows":69,"n_cols":9,"rows_kept":69,"cut":false,"hidden":true,"merged":[[1,1,1,7]]}
[]
[null,"Favor de incluir los comentario a los documentos"]
[]
[null,"Fecha","Detalle de la observación","Nombre del archivo","Cambio en:","Número de validación","Quién realiza la observación","Indicar el estado\nPendiente; atendida; ","Quién atiende la observación"]
[null,"2022-06-03","Cambiar el número de versión a 2.0  en el encabezado de los XML.","Generalidades"]
[null,"2022-06-03","Consulta de Popular.\nSe modifica la validación número 8 de Fiduciarias y avales, se le incluye el código 19 a la descripción de la validación.","Fiduciarias",8,null,"Leonel","Atendida","Leonel"]
[null,"2022-06-03","Consulta de Popular.\nSe modifica la validación número 9, por el número de cédula de FONADE, dado por la entidad.","Fiduciarias",9,null,"Leonel","Atendida","Leonel"]
[null,"2022-06-03","Se modifica la validación 10, se le excluye el nombre de Fodemyoime y se incluye el número de cédula del Banco Popular","Fiduciarias",10,null,"Leonel","Atendida","Leonel"]
[null,"2022-06-03","Se modifica la validación 120, se le excluye los números de cédula de FONADE  Y FODEMYPIME:","Fiduciarias",12,null,"Leonel","Atendida","Leonel"]
[null,"2022-06-03","Se le excluye conjunción \"y\" a la validación.","Reales",2,null,"Leonel","Atendida","Leonel"]
[null,"2021-06-03","Se modica el número de validación al al numero 13. ( había 2 validaciones con el número 2)","Reales",13,null,"Leonel","Atendida","Leonel"]
[null,"2022-06-03","Se modifica la validación 5, de valores.  Una palabra repectida en el nombre del campo,  de forma. ","valores",5,null,"Leonel","Atendida","Leonel"]
[null,"2022-06-13","Se traspasan las validaciones de la MATRIZ de Empresas calificadoras al achivo de Garantías valores.  Validaciones de la 24 a la 109","valores","24  a 109",null,"Leonel","Atendida","Leonel"]
[null,"2022-06-13","Se trasladan las validaciones de la matriz de \"Tipo Colateral Real\", 5 validaciones de la 14 a la 18. ","Reales","14 a 18",null,"Leonel","Atendida","Leonel"]
[null,"2022-06-13","Se traslada validaciones de la matriz Tipo colateral financiero:  Tipo colateral código del instrumento.","valores","110 a 154",null,"Leonel","Atendida","Leonel"]
[null,"2022-06-20","Se cambia a no obligatorio el campo  \"PorcentajeAjusteRc\"","Valores, descripcipon de campos\n\nPorcentajeAjusteRc","Valores descripción",null,"Leonel","Atendida"]
[null,"2022-06-24","El campo \"Código Calificación Riesgo\" debe ser rango 5 debido a que exiisten códigos con esta cantidad de caracteres: Ver comentario en campo\n\nRespuesta:  Se cambia a \"5\"","Garantías Cartas Credito y   Garantías Facturas Cedidas","Campo",null,"Bryan","Atendida","Leonel"]
[null,"2022-06-24","En las validaciones del Archivo \"Garantias Facturas Cedidas\" se requiere el campo \"TIPOCOLATERALFINANCIERO\" pero en la descripcion del Archivo no lo posee, como sugerencia sería adecuado que lo agreguen.\n\nRespuesta:  Todos los registros que remitan en \"Cedidas van a ser facturas.  Lo que va a corresponder es eliminar la validación 7 y 8. de  Cedidas.","  Garantías Facturas Cedidas\n\nSe eliminará las validaciones 7 y 8.\n\nEn las validaciones 44 y 45 del Archivo de Garantias de operaciones hacen este función.","Campo",null,"Bryan","Atendida","Leonel"]
[null,"2022-06-24","Con el fin de homologar los nombres de los campos de valores y cedidas,  se modifica el nombre del campo \"CalificacionRiesgo\"  por \"CodigoCalificacionRiesgo\".\n\nPara nuestros efectos, vamos a ajustar las decripción de los campos.","valores:\nen estructura y desrcipcion","campo CodigoCalificacionRiesgo",null,"Leonel","Atendida"]
[null,"2022-06-24","Como recomendación el Campo \"Código Calificación Riesgo\" debe ser requerido u OBLIGATORIO  en Garantias Cartas Credito y Garantias Facturas Cedidas, debido a que en la tabla EQUIVALENCIA_CALIFICACIONES_AGENCIAS_CALIFICADORAS forma parte de la llaves principales de la tabla matriz que se esta realizando. Si eventualmente consideran necesario que el campo no sea OBLIGATORIO favor indicarlo. No obstante la combinacion de los campos: CategoriaCalificacion\nCodigoCalificacionRiesgo \nCodigoEmpresaCalificadora  estos 3 campos deben siempre corresponder a la tabla matriz(VER IMAGEN ADJUNTA)\n\nComentario:  Respuestas:  Bryan,  ya hice la revisión de los tres campos en facturas cedidas y cartas de crédito,  ahí están los campos,  al igual que en valores.  Favor de revisar.                                                                                                                                                                  Comentario Bryan: REVISAR NUEVAMENTE no se comprendió la duda original. Ver imagen adjunta o favor llamar para aclarar la duda.","Garantías Cartas Credito (5203) y   Garantías Facturas Cedidas (5204).\n\nAhora te llamamos. Mejor","Campo",null,"Bryan","Atendida","Leonel"]
[null,"2022-06-24","La combinación de estos dos campos: CodigoCalificacionInstrumento, POrcentageAjusteRC deben ser siempre equivalentes(deben coincidir) a la tabla Matriz(TIPO_COLATERAL_FINANCIERO)?  .... No visualizo validaciones de la nueva matriz TIPO COLATERAL_FINANCIERO para el \"Archivo Garantias Facturas Cedidas\". \n\nRespuesta;   Se incluyeron validaciones de la 8 a la 11 ne Facturas Cedidas,  estas cuatro validaciones estaban en Garantias Valores, se trasladaron."," Garantías Facturas Cedidas","Campo/Duda",null,"Bryan","Atendida","Leonel"]
[null,"2022-06-24","Se incluye los campos llave para el Archivo Polizas:\nIdGarantia, TipoGarantia,TipoBienGarantia, TipoPoliza.","Garantias Polizas","estructura ",null,"Leonel","Atendida","Leonel"]
[null,"2022-06-28","el campo Coberturas Póliza debería renombrarse a \"IndicadorCoberturasPo\nliza\" por favor valorar y ajustar para seguir el estándar de campos de tipo indicador.\n\nRespuesta:  Se modifica el nombre del campo.","Garantias Polizas","Campo",null,"Bryan","Atendida","Leonel"]
[null,"2022-06-29","Este documento se descarga el día de hoy (29 de junio a las 08:00 a.m.) de One Drive,  para efectos de publicación.\n\nSe les solicita, que toda observación, cambio de campos, ajuste a validaciones quede descrita en esta hoja \"Bitácora\"",null,null,null,"Leonel"]
[null,"2022-01-07","En el XML Garantias Cartas de Crédito hay una LISTA GARANTIA DOCUMENTO CARTA CREDITO IMPORTACION POLIZA, pero en el mapeo del excel no la pusieron.\n\nEn el historico anterior muestra que se debe guardar la información de:   Cartas de Crédito de Importación y Cartas de Crédito Importación Pólizas.\n\nLa consulta es que va a pasar con eso, va o no va?   Si se debe contemplar o no.\n\nRespuesta:  Con respecto a la información del Archivo DocumentosCartasCreditoImportación,  al no estar considerado este \"instrumento de comercio internacional\" cómo mitigador para efectos de la nueva normativa; no esta entre la información que ingresaría a partir de enero 2024. Ninguna de a información que contiene los campos del referido XML.  \nPodría verse la opción de posterior a enero 2024, esta información se pueda consultar, considerando que ya no recibirá. \n","Garantias Cartas de Crédito","estructura ",null,null,"Atendida","Leonel"]
[null,"2022-01-07","El archivo 1507 Fideicomisos de garantías del todo no está en el archivo de Garantías, ya no se va a remitir del todo?\n\n\nEn el historico anterior muestra que se debe guardar la información de:   Garantía Fideicomitida y Gravamen Fideicomitido \nLa consulta es que va a pasar con eso, va o no va?   Si se debe contemplar o no.\n\nRespuesta:\n    La información del Archivo de Garantías de Fideicomiso ya no se recibirá en Garantías.   Se hizo un cambio,  Prácticamente lo campos llave de este XML ( que se recibe en este momento en Garantías), se va a recibir en el XML de Fideicomisos  de \"Operaciones\".\n\nEn este caso, si debe haber continuidad de la información.","Garantías Fideicomisos","estructura ",null,"Rodolfo","Pendiente","Rodolfo"]
[null,"17/08/2022","En la tabla historica de GARANTIA_REAL hay un campo que se llama C_BIEN pero dicho campo no esta mapeado en el excel de la nueva normativa. Dicho campo ya no aplica para la nueva normativa?\n\nRespuesta SICVECA 17 agosto 2022:  Se atiende la consulta vía telefónica con Georffrey, se revisó la estructura de los campos actuales del XML de Garantías Reales,  la cual no tiene dicho campo.  Este campo no viaja en el actualidad y no va a viajar para NEC.","Garantia Real","estructura ",null,"Georffrey","Atendida SICVECA","Leonel"]
[]
[null,"2022-09-27","A la descripción de (los) campo(s)  \"TipoPersonaBeneficiario \" se le agrega el siguiente texto: (, y éste solo solo puede ser: 1 ó 2 ó 3 ó 4 ó 5 ó 6 ó 13.)","5201 / Garantias_Polizas","Descripción",null,"Leonel","Pendiente T.I."]
[null,"2022-09-27","A la descripción de (los) campo(s)  \"TipoPersona\" se le agrega el siguiente texto: (, y éste solo solo puede ser: 1 ó 2 ó 3 ó 4 ó 5 ó 6 ó 13.)","5202 / GarantiasCartasCredi","Descripción",null,"Leonel","Pendiente T.I."]
[null,"2022-09-27","A la descripción de (los) campo(s)  \"TipoPersona\" se le agrega el siguiente texto: (, y éste solo solo puede ser: 1 ó 2 ó 3 ó 4 ó 5 ó 6 ó 13.)","5203 / GarantiasFacturasCed","Descripción",null,"Leonel","Pendiente T.I."]
[null,"2022-09-27","A la descripción de (los) campo(s)  \"TipoPersona\" se le agrega el siguiente texto: (, y éste solo solo puede ser: 1 ó 2 ó 3 ó 4 ó 5 ó 6 ó 13.)","5204 / GarantiasFiduciarias","Descripción",null,"Leonel","Pendiente T.I."]
[null,"2022-09-27","A la descripción de (los) campo(s)  \"TipoPersonaTasador, TipoPersonaEmpresaTasadora\" se le agrega el siguiente texto: (, y éste solo solo puede ser: 1 ó 2 ó 3 ó 4 ó 5 ó 6 ó 13.)","5205 / GarantiasReales","Descripción",null,"Leonel","Pendiente T.I."]
[null,"2022-09-27","A la descripción de (los) campo(s)  \"TipoPersona\" se le agrega el siguiente texto: (, y éste solo solo puede ser: 1 ó 2 ó 3 ó 4 ó 5 ó 6 ó 13.)","5206 / GarantiasValores","Descripción",null,"Leonel","Pendiente T.I."]
[null,"2022-09-27","Se eliminan las validaciones de la (6 a la 91); aplica la validación general número 3.\n\n  Al hacer referencia a la Tabla de matrices de agencias calificadora, se dejará en el documento la validación general.","5202 / GarantiasCartasCredi","Validación",null,"Leonel","Atendida T.I.","Eddy"]
[null,"2022-09-27","Se eliminan las validaciones de la (10 a la 95); aplica la validación general número 4.\n\n  Al hacer referencia a la Tabla de matrices de agencias calificadora, se dejará en el documento la validación general.","5203 / GarantiasFacturasCed","Validación",null,"Leonel","Atendida T.I."]
[null,"2022-09-27","Se eliminan las validaciones de la (14, 15, 16, 17, 18); aplica la validación general número 11.\n\n  Al hacer referencia a la Tabla de matrices de Tipo Colateral Real, se dejará en el documento la validación general  11","5205 / GarantiasReales","Validación",null,"Leonel","Atendida T.I."]
[null,"2022-09-27","Se eliminan las validaciones de la (110 a la 150); aplica la validación general número 22.\n\n  Al hacer referencia a la Tabla de matrices de Tipo Colateral Financiero, se dejará en el documento la validación general  22","5206 / GarantiasValores","Validación",null,"Leonel","Atendida T.I."]
[null,"2022-09-27","Se eliminan las validaciones de la (24  a la 109); aplica la validación general número 14.\n\n  Al hacer referencia a la Tabla  Equivalencia Agencia Calificadora, se dejará en el documento la validación general  22","5206 / GarantiasValores","Validación",null,"Leonel","Atendida T.I."]
[null,"2022-09-27","Se eliminan las validaciones de la (6  a la 91); aplica la validación general número 3.\n\n  Al hacer referencia a la Tabla  Equivalencia Agencia Calificadora, se dejará en el documento la validación general  3","5202 / GarantiasCartasCredi","Validación",null,"Leonel","Atendida T.I.","Eddy"]
[null,"2022-09-27","Se eliminan las validaciones de la (10  a la 95); aplica la validación general número 4.\n\n  Al hacer referencia a la Tabla  Equivalencia Agencia Calificadora, se dejará en el documento la validación general  3","5203 / GarantiasFacturasCed","Validación",null,"Leonel","Atendida T.I."]
[null,"2022-10-28","Se hace ajuste en la validación,  se le incluye id a la par de Fodempyme.   La cédula corresponde al Banco Popular, que es quién administra el fondo.","5204 / GarantiasFiduciarias","Validación",1,"Leonel","Atendida T.I.","Eddy"]
[null,"2022-10-28","La tabla catalogo TIPO_ASIGNACION_CALIFICACION tiene los codigos 0,1,2. Pero la validación dice que solo se permite 0 y 2. Solo quiero validar si es que el 1 no va a ser permitido en este archivo. \n\nRespuesta SICVECA: 28 oct. 2022.\n      Para los efectos de la validación,  es correcto que liminte a los códigos 0 y 2.    El código 1 es \"Emisor\" y siempre son personas jurícas las que hacen emisión.","5204 / GarantiasFiduciarias","Validación",4,"Eddy","Atendida SICVECA","Leonel"]
[null," 28/10/22","VALORAR: agregar en descripción lo marcado en negrita:  Los valores de los campos “TipoPersonaTasador”, “TipoPersonaEmpresaTasadora” deben corresponder con los códigos indicados en la Tabla “Tipo_Persona”  y deben estar activos.\n\nComentario SICVECA:  Leo.\n  Esta validación que hace referencia a la tabla  TipoPersona,  se integró a nivel de XSD la restricción de los campos que debe usar.  Conforme a lo conversado en reunión de trabajo anterior, estas validaciones se eliminarían.\n\n  En atención a lo anterior,  se elimina la validaci´pon 2.","5205 / GarantiasReales","Validación",2,"Bryan","Atendida SICVECA","Leonel"]
[null,"2022-10-28","Para la validación # 7 dice: Cuando el “SalarioNetoFiador” tiene valor, el “TipoMitigador” del archivo “GarantíasOperaciones” debe ser 17.\n\nConsiderar que en ese momento no va a estar cargado en historico el archivo de Garantías Operaciones por lo que no va a ver datos contra que comparar. Considerar plantearla en el archivo de garantías operaciones.\n\nRespuesta SICVECA:  28 octubre, 2022\n\n    La validación será trasladada al archivo de  Operaciones","5204 / GarantiasFiduciarias","Validación",7,"Eddy","Pendiente SICVECA","Eddy"]
[null,"2022-10-28","Las validaciones #8, 9, 10, 11 hacen referencia al archivo de Grantías operaciones. La clase de datos de garantías se carga primero que la de crédito por lo que en este punto cargado el archivo de Garantías Operaciones por lo que no va a ver datos contra que comparar. Considerar plantearla en el archivo de garantías operaciones.\n\nRespuesta SICVECA:  28 octubre, 2022\n\n    Las validaciones  serán trasladadas al archivo de  Operaciones","5204 / GarantiasFiduciarias","Validación","8,9,10,11","Eddy","Pendiente SICVECA","Eddy"]
[null,"2022-10-28","Se trasladará la validación a garantías de operaciones.","5205 / GarantiasReales","Validación",4,"Leonel","Atendida T.I."]
[null,"2022-10-28","Se trasladará la validación a garantías de operaciones.","5206 / GarantiasValores","Validación",23,"Leonel","Atendida T.I."]
[null,"2022-03-11","Valorar corregir redacción de VALIDACION #1 agregandola palabra sugerida EN NEGRITA:\nEl \"\"IdGarantia\"\" de este archivo, debe existir en el campo \"\"IdGarantiaReal\"\" y  tener una \"\"S\"\" en el campo \"\"INDICADORPolizaGarantiaReal\"\" del Archivo Garantías Reales.\n\n\nTI: Esto debido a que en el XML y Descripcion de este documento el campo se encuentra distinto como INDICADORPOLIZAGARANTIAREAL\n\nSICVECA 15 nov 2022:  Se hace el cambio en la varlidación.\nTI(DEV-BMQ-18-11-2022): Se ajusta descripcion en ambiente desarrollo\n","5201 / Garantias_Polizas","Descripción",1,"Bryan","Atendida SICVECA","Leonel"]
[null,"2022-08-11","Valorar corregir redacción de VALIDACION #3 agregando lo sugerido en  NEGRITA:\nLos campos “CodigoCalificacionRiesgo”, “CodigoEmpresaCalificadora” y “CategoriaCalificacion” deben corresponder con los valores de la tabla \"\"Equivalencia_Calificaciones_Agencias_Calificadoras\" y estos VALORES deben estar ACTIVOS\n\nSICVECA 15-11-2022:  La recomendación  hace referencia a \"registros\", la validación hace referencia a los valores que se deben de indicar en los tres campos.  Me parece que se refiere a los \"valores\",  podrían confirmar?\nTI-BMQ-16-11-22: Correcto, valores. \n\nSICVECA 22-11-2022\n  Se le agrega el texto a la validación.\nTI-BMQ-23-11-22: Listo en SUGEF falta aplicar en NEC\nTI-CFR-23-11-22:  Ya se aplicó el ajuste en el ambiente NEC2024","5202 / GarantiasCartasCredi","Descripción",3,"Bryan","Atendida SICVECA","Leonel"]
[null,"11/8/2022+B51:I51","Indicar en la descripción cuál es el campo de relación entre las talas indicadas.\nFavor evaluar la opción de agergar un nuevo campo como llave para la tabla Tipo_Colateral_Financiero.\n\nRespuesta SICVECA  (Leo)  22 noviembre 2022.\n   La validación hace referencia a la tabla  indicada (Tipo_Colateral_Financiero).  Para esta tabla, en el archivo Excel de  tablas matrices, estan las validaciones de esta tabla.  Tal como la hemos definico en otros archivos, en el documento se publicación la validación general, que en este caso sería la  la validación número 6. \n    Me parece que con esto se atiende el comentario,  cualquier cosa, por favor me llaman.  De acuerdo?\n\nTI-BMQ-23-11-22: No se responde la consulta inicial si el campo TIPO_COLATERAL_FINANCIERO debería incorporarse como nuevo campo? Para evaluar lo que plantea la validación se requieren los 3 campos que posee la matriz los cuales son: \"TipoColateralFinanciero\",\t\"CodigoCalificacionInstrumento\",\t\"PorcentajeAjusteRc\"=>> Estos dos últimos si se encuentran en la tabla NEC2024_Garantias_facturas_Cedidas, pero no el primero TIPO_COLATERAL_FINANCIERO el cual se sugiere agregarlo para evaluar el PorcentajeAjusteRc. Favor indicar si procede el ajuste.\n    \n\nSICVECA: 24 noviembre, 2022: Leo.\n    Conforme a lo conversado el 24 nov. con Bryan; se va a eliminar la validación número 6,  ya que las validacionew 8 y 9  \"atajan\" lo que se busca.  el campo \"Tipo_Colateral_Financiero\" no se incorpora al Archivo de Facturas Cedidas, ya que en este archivo solo va a viajar \"facturas  y en la matriz solo hay un código pera el  \"tipo colateral\" para facturas.\n\nSe elimina la validación 6.\n     ","5203 / GarantiasFacturasCed","Descripción",6,"Lanfor","Pendiente SICVECA"]
[null,"2022-09-11","Favor reenumerar los id de los archivos indicados en la pestaña Listas_control cambio ya que se había pasado un archivo a la clase de datos de Operaciones, este cambio de numeración ya fue aplicado a nivel de base de datos.\n\nSICVECA 16 nov 2022: Pendiente de conversar con Lanfor\nTI: Se atendió en la línea #25",null,null,null,"Lanfor","Atendida SICVECA"]
[null,"14/11/2022","Esta validación es equivalente a la número 1\n \nRespueta SUGEF 16 noviembre 2022:  Se revisa la validación 1 y 3 .  Se procederá a eliminar la validación número 3. (PENDIENTE DE APLICAR HASTA QUE  TI actualice).\n\nRespuetas CONASSIF 22 noviembre 2022:  Se elimina la validación 3 por ser redundante con la número 1.  La número 1  tiene mayor espectro, que la 1.\nTI-BMQ-23-11-22: Se procedee a revisar y efectivamente ya se habia eliminado en BD por TI y en el documento por SUGEF. No hace falta aplicar ajuste aun en NEC ya que no se ha pasado aún.","5206 / GarantiasValores","Validación",3,"Lanfor","Atendida SICVECA","BRYAN"]
[null,"14/11/2022","Las validaciones son contradictorias entre si.\n\nSICVECA 22 noviembre 2022 (Leo): Se analizaron las validaciones 19 y 20.  Si bien las dos hacen referencia al campo \"TipoClasificacionInstrumento\", los disparadores son diferentes en cada una de ellas. La 19 hace referencia al campo \"TipoInstrumento\"  y la 20 al campo \"IdInstrumento\".  Estos  dos últimos campos son excluyentes entre si. Por lo que se determina que no son contradictorias.","5206 / GarantiasValores","Validación","19 y 20","Lanfor","Atendida SICVECA"]
[null,"14/11/2022","La columna de porcentaje no existe en la tabla TIPO_COLATERAL_FINANCIERO_NEC2024.\n\nRespuesta SICVECA: La validación 22 (para los efectos) se denominó como la validación \"General\" del grupo de validaciones que están en el libro de tablas de matrices.  Dependiendo del tipo de colateral y la clasificación instrumento, va a ser el porcentaje.  Se solicita ver las validaciones \"matriz\" de esta tabla.\n \n\n\nTI-BMQ-23-11-22: La tabla es TIPO_COLATERAL_FINANCIERO_CALIFICACION_INSTRUMENTO_NEC2024. Pendiente programar.\nTI-BMQ-29-11-22: se programa, pendiente revisión TI.","5206 / GarantiasValores","Validación",22,"Lanfor","Atendida T.I."]
[null,"16/11/2022","Revisar el nombre de las pestañas, no coincide elnumero del archivo con el nombre del archivo, ejemplo: 5206 Reales Validaciones, el archivo es el 5205.\n\nRespuesta SICVECA:  22 noviembre 2022 (Leo):\n    Hice una revisión de los nombres de los archivos, de acuerdo a la numeración de los XML y XSD que estan colgados en la carpeta de viejos y nuevos.  La numeración entre estas dos versiones es diferente.\n\n Favor de confirmar, si la numeración varió, ya que hay que modifcarla en los documentos.  Si es así, nos podrían pasar la nueva  descripcion para cada número.\nTI-BMQ-23-11-22:Efectivamente la numeración había cambiado desde que se solicitó por parte de Comisión que el Archivo Garantias Mobiliarias se eliminara de la Clase 52 y se trasladara a la Clase 51. Numeración Actual:\n5201\tNEC2024_Garantias_Polizas\n5202\tNEC2024_GarantiasCartasCredito\n5203\tNEC2024_GarantiasFacturasCedidas\n5204\tNEC2024_GarantiasFiduciarias\n5205\tNEC2024_GarantiasReales\n5206\tNEC2024_GarantiasValores\n\nSICVECA 24 noviembre 2022:  Se ajustó la numeración de los archivos en la hoja de estructura de cada archivo .  Re ajustó el número de archivo en cada una de las pestañas de hojas correspondiente.  Se ajusta la \"lista desplegable\".","5205 / GarantiasReales","Descripción",null,"Deyma","Atendida T.I."]
[null,"16/11/2022","Revisar la redaccion de la validación 10 en base de datos del archivo de garantias valores contra el excel de pablo porque está diferente a el maestro\n\nSICVECA 22 noviembre 2022:  Para conversar con el Grupo SICVECA.","5206 / GarantiasValores","Validación","10,11,12,13","Deyma","Pendiente SICVECA"]
[null,"22/11/2022","Las validaciones #2 y #7 se pueden eliminar ya que se validan desde el xsd, no es necesario las validaciones\n\nSICVECA 22 noviembre 2022:  Leo.  Se eliminan las validaciones 2 y 7, ello  de acuerdo a lo recomendado por TI.\nTI-BMQ-23-11-22: se elimna de BD de desarrollo. La #7 no se habia programado debido al acuerdo anterior de no programar las validaciones de negativos por lo tanto no procede el ajuste.","5203 / GarantiasFacturasCed","Validación","2 y 7","Carlos Alberto","Atendida T.I."]
[null,"23/11/2022","TI-BMQ-23-11-22: SUGERENCIA: Eliminar validacion #23 de Garantias Valores, segun acuerdo ya que a nivel de XSD se realiza la restriccion\nSICVECA:  24 noviembre 2022.   Se elimina la validación 23  ( es renumerada).  Control a nivel de XSD\nLos campos  \"ValorFacial\"  y \" ValorMercado\" No deben permitir datos negativos..","5206 / GarantiasValores","Validación",23,"Bryan","Atendida SICVECA"]
[null,"24-11-2022","TI-BMQ-24-11-22: El campo PorcentajeAjusteRC mencionado en la validacion #8 es no requerido, no obstante en la Matriz \"TipoColateralFinanciero\" cuando el TIPO_COLATERAL es 8 muestra un valor de 0 en el campo PorcentajeAjusteRC por lo tanto no son equivalentes a nivel de datos(NULO VERSUS 0).  \nSolución #1: sería que en la matriz en vez de tener valores con 0 se sustituyan por NULO y de esta forma los campos de la matriz y la tabla garantias tendrian valores equivalentes.\nSolución #2: El campo PorcentajeAjusteRC en la tabla NEC2024_GARANTIAS_FACTURAS_CEDIDAS debe ser requerido. Ademas modificar la validación #8 para que indique que en los casos que la CalificacionInstrumento es 2,3,4,5 el campo PORC_AJUSTE_RC debe ser 0. (en vez de no requerido).De esta manera los datos serán estrictamente iguales a la TABLA matriz contra la tabla de GARANTIAS.\n\nTI-25-11-22: Pendiente Comisión lo converse con Pablo.***\n\nSICVECA:  28 noviembre 2022.  Pendiente de revisar en grupo SICVECA.  \n\nSICVECA (Leo) 9 enero 2023:  Se  aplica la solución 2, se modifica la descripción del campo y se pone obligatorio.","5203 / GarantiasFacturasCed","Descripción",8,"Bryan","Pendiente SICVECA"]
[null,"2022-11-24","SICVECA  24 NOV. 2022:   Leo. Ver los campos que hacen referencia a calificadoras, ya que no se acepta como mitigadores a empresas privadas.  Por valorar si se deben eliminar,  ESTA EN ANALISIS  Se le hizo consulta a Elvis.\n 06 dic 2022:  Se eliminan los campos,  ver anotación del 06 dic.\n\n","5204 / GarantiasFiduciarias","Estructura y Descripción",null,"Leonel","Atendida SICVECA","Leonel"]
[null,"2022-11-30","SICVECA 30 11 2022:  Los campos que hacen referencia a  Calificación riesgo, se van a eliminar. Además eliminar las  validaciones.  En atención a CRM LAFISE 13280_2022. \n\n  06 dic 2022:  Se eliminan los campos,  ver anotación del 06 dic.","5204 / GarantiasFiduciarias","Estructura y Descripción",null,"Leonel","Atendida SICVECA","Leonel"]
[null,"2022-12-06","Se eliman los siguientes campos del Archivo de  Garantías Fiduciarias<TipoAsignacionCalificacion/>,      <CategoriaCalificacion/>,      <CodigoCalificacionRiesgo/>,      <CodigoEmpresaCalificadora/>.  Se sustenta en consulta efectuada a los Directores Generales.  \n   Además se eliminan las validaciones relacionadas a estos campos.","5204 / GarantiasFiduciarias","Estructura, Descripción y Validaciones","2, 3, 4 y 16","Leonel","Atendida T.I.","Eddy"]
[null,"2022-12-06","Se eliman los siguientes campos del Archivo de  Garantías Fiduciarias  <TipoAsignacionCalificacion/>, <CategoriaCalificacion/>, <CodigoCalificacionRiesgo/>, <CodigoEmpresaCalificadora/>, <CodigoCalificacionInstrumento  />.  Se sustenta en consulta efectuada a los Directores Generales.  \n   Además se eliminan las validaciones relacionadas a estos campos.","5203 / GarantiasFacturasCed","Estructura, Descripción y Validaciones","3, 5 y 4","Leonel","Atendida T.I.","Eddy"]
[null,"2022-12-08","Al eliminar el campo CodigoCalificacionInstrumento, las validaciones #8 y #9 de facturas cedidas, hacen referencia a este campo, para que la tomen en cuenta.\n\nComentario SICVECA:  9 enero 2023.  se elimina las validaciones  8 y 9.","5204 / GarantiasFacturasCed","Estructura, Descripción y Validaciones","8 y 9","Eddy","Atendida SICVECA"]
[null,"2023-01-09","Se incluye una nueva validación.  \"  El valor del campo \"PorcentajeAjusteRc\" debe ser 40% \"","5203 / GarantiasFacturasCed","Validación",96,"Leonel","Pendiente T.I."]
[null,"2023-01-09","Se descarga el archivo para efecto de publicación"]
[null,"2023-01-17","Se incluyen las validaciones 92, 93 y 94.","5202 / GarantiasCartasCredi","Validación","92, 93 y 94","Leonel","Pendiente SICVECA"]
[null,null,"                   "]

{"sheet":"OBSERVACIONES","index":6,"n_rows":19,"n_cols":5,"rows_kept":19,"cut":false,"hidden":true,"merged":[[1,0,1,4]]}
["Nombre Entidad","Banco de Costa Rica"]
["Se solicita remitir los comentarios a los documentos en consulta, a través de la siguiente plantilla.\n   Para las colmnas de \"Nombre Entidad, \"Clase de Dato\", \"Nombre del Archivo\" o \"Nombre de la Tabla\", se detalla una lista de selección"]
[]
["Indicar\n a que Clase Dato Corresponde","Indicar el nombre del\n Archivo\n\"Crediticio ó Garantías\"\n\"cuando corresponda\"","Indicar el nombre de la \nTabla\n\"cuando corresponda\"","Si comentario corresponde a una \"validación\"; indicar en número de validación","Comentario"]
["Indicar la clase Dato","  -indicar cuando corresponda-","  -indicar cuando corresponda-"]
["Indicar la clase Dato","  -indicar cuando corresponda-","  -indicar cuando corresponda-"]
["Indicar la clase Dato","  -indicar cuando corresponda-","  -indicar cuando corresponda-"]
["Indicar la clase Dato","  -indicar cuando corresponda-","  -indicar cuando corresponda-"]
["Indicar la clase Dato","  -indicar cuando corresponda-","  -indicar cuando corresponda-"]
["Indicar la clase Dato","  -indicar cuando corresponda-","  -indicar cuando corresponda-"]
["Indicar la clase Dato","  -indicar cuando corresponda-","  -indicar cuando corresponda-"]
["Indicar la clase Dato","  -indicar cuando corresponda-","  -indicar cuando corresponda-"]
["Indicar la clase Dato","  -indicar cuando corresponda-","  -indicar cuando corresponda-"]
["Indicar la clase Dato","  -indicar cuando corresponda-","  -indicar cuando corresponda-"]
["Indicar la clase Dato","  -indicar cuando corresponda-","  -indicar cuando corresponda-"]
["Indicar la clase Dato","  -indicar cuando corresponda-","  -indicar cuando corresponda-"]
["Indicar la clase Dato","  -indicar cuando corresponda-","  -indicar cuando corresponda-"]
["Indicar la clase Dato","  -indicar cuando corresponda-","  -indicar cuando corresponda-"]
["Indicar la clase Dato","  -indicar cuando corresponda-","  -indicar cuando corresponda-"]

{"sheet":"Listas","index":7,"n_rows":63,"n_cols":4,"rows_kept":63,"cut":false,"hidden":true,"merged":[]}
[]
[]
[]
["Lista Clase de Datos","Archivos Clase Datos Crediticio","Detalle de Tablas","ENTIDADES FINANCIERAS"]
["Indicar la clase Dato","  -indicar cuando corresponda-","  -indicar cuando corresponda-","Banco de Costa Rica"]
["Crediticio","Crediticio / 1_ GENERALIDADES","ARCHIVO","Banco Nacional de Costa Rica"]
["Garantías","Crediticio / 2_ DEUDORES","CLASE_DATO","Banco Hipotecario de la Vivienda   "]
["Tablas","Crediticio / 3_ INGRESO_DEUDORES","COMPORTAMIENTO_PAGO_SBD","Banco Popular y de Desarrollo Comunal"]
["Otros","Crediticio / 4_ OPERACIONES","ETAPA","Banco BAC San José S.A."]
[null,"Crediticio / 5_  ACTIVIDAD_ECONOMICA","SECTOR_ECONOMICO","Banco BCTS.A."]
[null,"Crediticio / 6_ NATURALEZA GASTO","TIPO_ACTIVIDAD_ECONOMICA","Banco Cathay de Costa Rica S.A."]
[null,"Crediticio / 7_ CUENTAS POR COBRAR","TIPO_ACTIVIDADES_CAMBIO_CLIMATICO","Banco CMB (Costa Rica) S.A."]
[null,"Crediticio / 8_ ORIGEN RECURSOS","TIPO_ADQUISICION_BIEN","Banco Davivienda (Costa Rica) S.A."]
[null,"Crediticio / 9_ CREDITOS SINDICADOS","TIPO_AMBITO_CAMBIO_CLIMATICO","Banco General (Costa Rica) S.A."]
[null,"Crediticio / 10_ CODEUDORES","TIPO_ASIGNACION_CALIFICACION","Banco Improsa S.A."]
[null,"Crediticio / 11_ MODIFICACIONES","TIPO_BENEFICIARIO_SBD","Banco Lafise S.A."]
[null,"Crediticio / 12_ OPERACIONES CANCELADAS","TIPO_BIEN","Banco Promérica de Costa Rica S.A."]
[null,"Crediticio / 13_ GARANTIAS OPERACIONES","TIPO_CANTON","Prival Bank (Costa Rica) S.A."]
[null,"Crediticio / 14.1 OPERACIONES BIENES REALIZABLES","TIPO_CAPACIDAD_PAGO","Scotiabank de Costa Rica S.A."]
[null,"Crediticio / 14.2 BIENES REALIZABLES","TIPO_CARGA_CLASE_DATO","Financiera Cafsa S.A."]
[null,"Crediticio / 14.3 BIENES REALIZABLES NO REPORTADOS","TIPO_CARTERA","Financiera Comeca S.A."]
[null,"Crediticio / 15_ FIDEICOMISOS","TIPO_CATALOGO","Financiera Monge S.A. (Antes Financiera Credilat S.A.) ES-6"]
[null,"Crediticio / 16_ CAMBIO CLIMATICO","TIPO_CATEGORIA_RIESGO_MICROCREDITO_SBD","Financiera Desyfin S.A."]
[null,"Crediticio / 17_  GRAVAMENES","TIPO_CATEGORIA_RIESGO_SBD","Financiera Gente S.A."]
[null,"Crediticio / 18.  CUENTAS POR COBRAR NO ASOCIADAS","TIPO_CLASIFICACION_INSTRUMENTO","Coocique R.L."]
[null,"Crediticio / 19.  CUOTAS ATRASADAS","TIPO_COMPORTAMIENTO_PAGO","Coopavegra R.L."]
[null,"Crediticio / 20.  OPERACIONES NO REPORTADAS","TIPO_CONDICIONES_ESPECIALES_DEUDOR","Coopealianza R.L."]
[null,"Garantía / Generalidades","TIPO_CUOTA","Coopeamistad R.L."]
[null,"Garantía / Fiduciarias","TIPO_CUOTA_PRINCIPAL","Coopeande No.1 R.L."]
[null,"Garantía / Reles","TIPO_DEPENDENCIA","Coopeaya R.L."]
[null,"Garantía / Valores","TIPO_DEUDOR_SFN","Coopebanpo R.L."]
[null,"Garantía / Cartas Crédito","TIPO_DISTRITO","Coopecaja R.L."]
[null,"Garantía / Cedidas","TIPO_DOCUMENTO_LEGAL","Coopecar R.L."]
[null,"Garantía / Mobiliarias","TIPO_ENFOQUE","Coopefyl R.L."]
[null,"Garantía / Pólizas","TIPO_ESTADO_OPERACION","Coopegrecia R.L."]
[null,null,"TIPO_FUENTE_FINANCIAMIENTO","Coopejudicial R.L."]
[null,null,"TIPO_FUENTE_FINANCIAMIENTO_CAMBIO_CLIMATICO","Coopelecheros R.L."]
[null,null,"TIPO_GARANTIA","Coopemédicos R.L."]
[null,null,"TIPO_GRADO_GRAVAMENES","Coopemep R.L."]
[null,null,"TIPO_INDICADOR_GENERADOR_DIVISAS","Coopenae R.L."]
[null,null,"TIPO_INDICADOR_GENERADOR_DIVISAS_SBD","Coopesanmarcos R.L."]
[null,null,"TIPO_INDICADOR_INSCRIPCION","Coopesanramón R.L."]
[null,null,"TIPO_INGRESO_DEUDOR","Coopeservidores R.L."]
[null,null,"TIPO_INTERES_REFERENCIA_TASA_VARIABLE","Coopeuna R.L."]
[null,null,"TIPO_MITIGADOR_RIESGO","Credecoop R.L."]
[null,null,"TIPO_MODALIDAD_FUENTE_FINANCIAMIENTO","Grupo Mutual Alajuela – La Vivienda de Ahorro y Préstamo"]
[null,null,"TIPO_MODIFICACION_OPERACION","Mutual Cartago de Ahorro y Préstamo"]
[null,null,"TIPO_MOTIVO_BIEN_REALIZABLE_NO_REPORTADO","Caja de Ahorro y Préstamos de la ANDE"]
[null,null,"TIPO_MOTIVO_OPERACION_ESPECIAL","Banca para el Desarrollo"]
[null,null,"TIPO_NATURALEZA_GASTO"]
[null,null,"TIPO_OPERACION"]
[null,null,"TIPO_OPERACION_SFN"]
[null,null,"TIPO_ORIGEN_RECURSOS"]
[null,null,"TIPO_PERIODICIDAD"]
[null,null,"TIPO_PERSONA"]
[null,null,"TIPO_POLIZA"]
[null,null,"TIPO_PROGRAMA_AUTORIZADO_SBD"]
[null,null,"TIPO_PROVINCIA"]
[null,null,"TIPO_RIESGO_CAMBIARIO_DEUDOR"]
[null,null,"TIPO_SECTOR_PRIORITARIO_DEUDOR_SBD"]
[null,null,"TIPO_SEGMENTO"]
[null,null,"TIPO_SUBTEMAS_CAMBIO_CLIMATICO"]
[null,null,"TIPO_TEMA_CAMBIO_CLIMÁTICO"]

{"sheet":"TABLAS","index":8,"n_rows":1920,"n_cols":6,"rows_kept":1920,"cut":false,"hidden":true,"merged":[]}
["INDICE"]
["TABLAS"]
[]
[]
[null,"TABLA","CODIGO","DESCRIPCION","ACTIVO","OBSERVACIONES"]
[null,"CLASE_DATO",1,"Registro y Control"]
[null,"CLASE_DATO",2,"Contable"]
[null,"CLASE_DATO",3,"Operaciones Crediticias "]
[null,"CLASE_DATO",4,"Encaje Legal y Art. 59"]
[null,"CLASE_DATO",5,"Grupos y Conglomerados Financieros"]
[null,"CLASE_DATO",6,"Legitimación de Capitales"]
[null,"CLASE_DATO",7,"Información para el BCCR"]
[null,"CLASE_DATO",8,"Cualitativo"]
[null,"CLASE_DATO",9,"Crediticio Grupos y Conglomerados"]
[null,"CLASE_DATO",10,"Registro y Control  Grupos Financieros y Conglomerados"]
[null,"CLASE_DATO",12,"Hechos Relevantes Registro y Control "]
[null,"CLASE_DATO",13,"Flujos Proyectados"]
[null,"CLASE_DATO",14,"Personas"]
[null,"CLASE_DATO",15,"Garantías"]
[null,"CLASE_DATO",16,"Centro de Información Crediticia"]
[null,"CLASE_DATO",17,"Inversiones y Depósitos"]
[null,"CLASE_DATO",18,"Padrón"]
[null,"CLASE_DATO",20,"Articulo 15 Ley 8204"]
[null,"CLASE_DATO",21,"Derivados"]
[null,"CLASE_DATO",22,"Financiero"]
[null,"CLASE_DATO",23,"Información Complementaria de Grupos y Conglomerados Financieros"]
[null,"CLASE_DATO",24,"Perfil Tecnológico Reglamento Reglamento TI"]
[null,"CLASE_DATO",25,"Auditoria Externa Reglamento 14-09"]
[null,"CLASE_DATO",26,"Plan Correctivo Preventivo Reglamento 14-09"]
[null,"CLASE_DATO",27,"Pasivos"]
[null,"CLASE_DATO",28,"Legitimación con base en riesgos"]
[null,"CLASE_DATO",30,"Documentación Evidencias Inversiones"]
[null,"CLASE_DATO",32,"Calce de plazos semanal"]
[null,"CLASE_DATO",33,"Indicador de Cobertura de Liquidez - ICL"]
[null,"CLASE_DATO",34,"Indicadores Financieros"]
[null,"CLASE_DATO",35,"Crediticio SBD No Regulados"]
[null,"CLASE_DATO",36,"Riesgo Operativo"]
[null,"CLASE_DATO",50,"Legitimación de Capitales 12-21"]
[null,"ARCHIVO",101,"Capital Social","1"]
[null,"ARCHIVO",102,"Dependencias","1"]
[null,"ARCHIVO",103,"Direccion para notificaciones","1"]
[null,"ARCHIVO",104,"Junta Directiva","1"]
[null,"ARCHIVO",105,"Accionistas","1"]
[null,"ARCHIVO",106,"Auditoria Interna","1"]
[null,"ARCHIVO",107,"Bancos Corresponsales","1"]
[null,"ARCHIVO",108,"Consejo de Administracion","1"]
[null,"ARCHIVO",109,"Facultad Puestos","1"]
[null,"ARCHIVO",110,"Asociados","1"]
[null,"ARCHIVO",111,"Socios","1"]
[null,"ARCHIVO",112,"Personas Puestos Externos","1"]
[null,"ARCHIVO",113,"Puestos Ejecutivos","1"]
[null,"ARCHIVO",114,"Puestos de Comites","1"]
[null,"ARCHIVO",115,"Tabla de Puestos","1"]
[null,"ARCHIVO",116,"Afinidad y Consanguinidad","1"]
[null,"ARCHIVO",117,"Registro y Control para grupos financieros","1"]
[null,"ARCHIVO",201,"Estados Contables Mensuales","1"]
[null,"ARCHIVO",202,"Datos Adicionales","1"]
[null,"ARCHIVO",203,"Flujo Efectivo Real","1"]
[null,"ARCHIVO",204,"Calce de plazos","1"]
[null,"ARCHIVO",205,"Informacion de brechas","1"]
[null,"ARCHIVO",206,"Flujo Efectivo Proyectado","1"]
[null,"ARCHIVO",207,"Estados Contables de Cierre","1"]
[null,"ARCHIVO",208,"Recuperacion de creditos","1"]
[null,"ARCHIVO",209,"Fideicomisos administrados","1"]
[null,"ARCHIVO",210,"N mayores acreedores","1"]
[null,"ARCHIVO",301,"Personas","0"]
[null,"ARCHIVO",302,"Deudores","1"]
[null,"ARCHIVO",303,"Operaciones Directas e Indirectas","1"]
[null,"ARCHIVO",304,"Cuotas Atrasadas","1"]
[null,"ARCHIVO",305,"Garantías de Operaciones","1"]
[null,"ARCHIVO",306,"Operaciones No Reportadas","1"]
[null,"ARCHIVO",307,"Inversiones en Instrumentos Financieros y Depósitos","1"]
[null,"ARCHIVO",308,"Bienes Realizables","1"]
[null,"ARCHIVO",309,"Bienes Realizables No Reportados","1"]
[null,"ARCHIVO",310,"Cuentas por Cobrar No Asociadas a Operaciones Crediticias","1"]
[null,"ARCHIVO",312,"Credito Moneda Extrajera Estructura y plazo","1"]
[null,"ARCHIVO",313,"Información de Operaciones de Financiamiento Climático","1"]
[null,"ARCHIVO",401,"EncajeLegal","1"]
[null,"ARCHIVO",402,"Encaje Legal BCCR","1"]
[null,"ARCHIVO",501,"Estados Contables Trimestrales","1"]
[null,"ARCHIVO",502,"Asientos de Ajuste y Eliminacion","1"]
[null,"ARCHIVO",503,"Estados Contables Consolidados","1"]
[null,"ARCHIVO",504,"Estados Contables Extranjeros","1"]
[null,"ARCHIVO",505,"Informacion Complementaria Adicional","1"]
[null,"ARCHIVO",506,"Informacion Complementaria Adicional Consolidada","1"]
[null,"ARCHIVO",507,"Informacion Complementaria Adicional Bancos Extranjeros","1"]
[null,"ARCHIVO",508,"Informacion Calculo de Suficiencia","1"]
[null,"ARCHIVO",601,"Operaciones en efectivo","1"]
[null,"ARCHIVO",602,"Enviadas Exterior","1"]
[null,"ARCHIVO",603,"Recibidas Exterior","1"]
[null,"ARCHIVO",701,"Pasivos","1"]
[null,"ARCHIVO",702,"Pasivos Externos","1"]
[null,"ARCHIVO",901,"Detalle de transacciones intragrupo","1"]
[null,"ARCHIVO",902,"Detalle de operaciones activas","1"]
[null,"ARCHIVO",903,"Credito moneda extranjera generadores de ingreso grupo financiero","1"]
[null,"ARCHIVO",1401,"Personas","1"]
[null,"ARCHIVO",1501,"Garantías Fiduciarias","1"]
[null,"ARCHIVO",1502,"Garantías Reales","1"]
[null,"ARCHIVO",1503,"Garantías Valores","1"]
[null,"ARCHIVO",1504,"Garantías Cartas de Crédito","1"]
[null,"ARCHIVO",1505,"Garantías Documentos de Cartas de Crédito de Importación","1"]
[null,"ARCHIVO",1506,"Garantías Facturas Cedidas","1"]
[null,"ARCHIVO",1507,"Fideicomisos de Garantía","1"]
[null,"ARCHIVO",1508,"Garantías Mobiliarias","1"]
[null,"ARCHIVO",1801,"Padron","1"]
[null,"ARCHIVO",2001,"Operaciones Efectivo","1"]
[null,"ARCHIVO",2002,"Operaciones Custodia Fideicomiso","1"]
[null,"ARCHIVO",2003,"Legitimacion Remesas","1"]
[null,"ARCHIVO",2101,"Derivados","1"]
[null,"ARCHIVO",2401,"Datos de identificación","1"]
[null,"ARCHIVO",2402,"Procesos del marco para la gestión de TI","1"]
[null,"ARCHIVO",2403,"Procesos y subprocesos del negocio","1"]
[null,"ARCHIVO",2404,"Organigrama entidad","1"]
[null,"ARCHIVO",2405,"Comité TI","1"]
[null,"ARCHIVO",2406,"Proveedores de TI","1"]
[null,"ARCHIVO",2407,"Servicios de TI","1"]
[null,"ARCHIVO",2408,"Documentos de TI","1"]
[null,"ARCHIVO",2409,"Centros de Cómputo","1"]
[null,"ARCHIVO",2410,"Equipos que soportan los servicios de TI","1"]
[null,"ARCHIVO",2411,"Sistemas de Información","1"]
[null,"ARCHIVO",2412,"Software de la entidad","1"]
[null,"ARCHIVO",2413,"Proyectos TI","1"]
[null,"ARCHIVO",2414,"Planes de adquisición TI","1"]
[null,"ARCHIVO",2415,"Servicios Electrónicos","1"]
[null,"ARCHIVO",2416,"Riesgos de TI","1"]
[null,"ARCHIVO",2417,"Justificaciones Perfil Tecnológico","1"]
[null,"ARCHIVO",2501,"Auditoria Externa Reglamento 14-09","1"]
[null,"ARCHIVO",2601,"Plan Correctivo Preventivo Reglamento 14-09","1"]
[null,"ARCHIVO",2701,"Pasivos_Cuentas_Contables_220_230_260_270_280","1"]
[null,"ARCHIVO",2702,"Pasivos Cuentas Contables 210","1"]
[null,"ARCHIVO",2703,"Pasivos Tabla Vencimiento Obligaciones","1"]
[null,"ARCHIVO",2704,"Pasivos Relacion Comercial","1"]
[null,"ARCHIVO",2801,"Legitimacion Base Riesgos Archivo Clientes","1"]
[null,"ARCHIVO",2802,"Legitimacion Base Riesgos Productos Servicios","1"]
[null,"ARCHIVO",2803,"Legitimacion Base Riesgos Canales Distribucion","1"]
[null,"ARCHIVO",2804,"Legitimacion Base Riesgos Zona Geografica","1"]
[null,"ARCHIVO",2805,"Legitimacion Base Riesgos Monitoreo","1"]
[null,"ARCHIVO",2806,"Legitimacion Base Riesgos Clientes Riesgo Alto","1"]
[null,"ARCHIVO",3001,"DocumentacionEvidencia","1"]
[null,"ARCHIVO",3201,"Calce de Plazos Semanal","1"]
[null,"ARCHIVO",3301,"ICL","1"]
[null,"ARCHIVO",3401,"SuficienciaPatrimonialEF","1"]
[null,"ARCHIVO",3402,"SuficienciaPatrimonialMutuales","1"]
[null,"ARCHIVO",3403,"IndicadoresFinancieros","1"]
[null,"ARCHIVO",3502,"Crediticio SBD No Regulados Deudores","1"]
[null,"ARCHIVO",3503,"Crediticio SBD No Regulados Operaciones Directas Indirectas","1"]
[null,"ARCHIVO",3505,"Crediticio SBD No Regulados Garantias Operaciones","1"]
[null,"ARCHIVO",3506,"Crediticio SBD No Regulados Informacion Operaciones No Reportadas","1"]
[null,"ARCHIVO",3601,"Incidencias Riesgo Operativo","1"]
[null,"ARCHIVO",3602,"Eventos Potenciales","1"]
[null,"ARCHIVO",3701,"Datos BUST","1"]
[null,"ARCHIVO",3801,"PUI Garantia Operacion","1"]
[null,"ARCHIVO",3901,"Datos Modificaciones Credito Emergencia COVID19","1"]
[null,"ARCHIVO",4001,"Reportes APNFD Comerciantes de metales y piedras preciosas Ley 7786 ","1"]
[null,"ARCHIVO",4101,"Reportes APNFD Casas de Empeño Ley 7786","1"]
[null,"ARCHIVO",4201,"Reportes APNFD Organizaciones sin fines de lucro Ley 7786 ","1"]
[null,"ARCHIVO",4301,"Reportes APNFD Casinos Ley 7786 ","1"]
[null,"ARCHIVO",4401,"Reportes APNFD Administración de Dinero Ley 7786 ","1"]
[null,"ARCHIVO",4501,"Reportes APNFD RemesasTransferencias y Op. sist. sust. Ley 7786","1"]
[null,"ARCHIVO",4601,"Reportes APNFD La emisión y/o la operación de tarjetas de crédito Ley 7786","1"]
[null,"ARCHIVO",4701,"Reportes APNFD Facilidades Crediticias Ley 7786","1"]
[null,"ARCHIVO",4801,"Reportes APNFD Proveedores de servicios fiduciarios Ley 7786","1"]
[null,"ARCHIVO",4901,"Reportes APNFD Compra y venta de bienes inmuebles Ley 7786","1"]
[null,"ARCHIVO",5001,"Operaciones en Efectivo Legitimación Acuerdo Sugef 12.21","1"]
[null,"ARCHIVO",5002,"Transferencias Enviadas Exterior Legitimación Acuerdo Sugef 12.21","1"]
[null,"ARCHIVO",5003,"Transferencias Recibidas Exterior Legitimación Acuerdo Sugef 12.21","1"]
[null,"TIPO_CARGA_CLASE_DATO",1,"Carga Nueva","1"]
[null,"TIPO_CARGA_CLASE_DATO",2,"Prórroga","0"]
[null,"TIPO_CARGA_CLASE_DATO",3,"Sustitución","0"]
[null,"TIPO_CARGA_CLASE_DATO",4,"Cambio","0"]
[null,"TIPO_CARGA_CLASE_DATO",5,"FormulariosDinamicos","1"]
[null,"TIPO_PERSONA",1,"Persona Fisica Nacional",1]
[null,"TIPO_PERSONA",2,"Persona Jurídica Nacional",1]
[null,"TIPO_PERSONA",3,"Extranjero Residente",1]
[null,"TIPO_PERSONA",4,"Entidad Financiera Extranjera",1]
[null,"TIPO_PERSONA",5,"Otra Persona Extranjera",1]
[null,"TIPO_PERSONA",6,"Empresa Extranjera No Financiera",1]
[null,"TIPO_PERSONA",13,"Fideicomisos",1]
[null,"TIPO_PERSONA",14,"Fondos De Inversión (1)",1]
[null,"TIPO_PERSONA",15,"Ahorro Obligatorio",1]
[null,"SECTOR_ECONOMICO",102,"Banco Central de Costa Rica",1]
[null,"SECTOR_ECONOMICO",104,"Bancos públicos  (incluye estatales y de derecho público) (no incluye al BANHVI)",1]
[null,"SECTOR_ECONOMICO",106,"Bancos privados",1]
[null,"SECTOR_ECONOMICO",108,"Bancos extraterritoriales  (Banca  Offshore de  grupos  financieros)",1]
[null,"SECTOR_ECONOMICO",110,"Sociedades  privadas financieras  no bancarias  (sólo financieras)",1]
[null,"SECTOR_ECONOMICO",112,"Mutuales de ahorro y préstamo",1]
[null,"SECTOR_ECONOMICO",114,"Cooperativas de ahorro y crédito  (supervisadas por SUGEF)",1]
[null,"SECTOR_ECONOMICO",116,"Cooperativas de ahorro y crédito  ( NO supervisadas por SUGEF)",1]
[null,"SECTOR_ECONOMICO",118,"Asociaciones  solidaristas (supervisadas por SUGEF)",1]
[null,"SECTOR_ECONOMICO",120,"Asociaciones  solidaristas (NO supervisadas por SUGEF)",1]
[null,"SECTOR_ECONOMICO",122,"Sociedades de  seguros ",1]
[null,"SECTOR_ECONOMICO",124,"Instituciones  públicas  financieras  no  bancarias ",1]
[null,"SECTOR_ECONOMICO",128,"Otras entidades  privadas financieras no bancarias ( Caja de ANDE  y otras)",1]
[null,"SECTOR_ECONOMICO",140,"Sociedades  administradoras de  fondos de  inversión",1]
[null,"SECTOR_ECONOMICO",142,"Sociedades  administradoras de  fondos de  pensión",1]
[null,"SECTOR_ECONOMICO",144,"Puestos de bolsa",1]
[null,"SECTOR_ECONOMICO",146,"Casas  de cambio",1]
[null,"SECTOR_ECONOMICO",150,"Otros  auxiliares  financieros",1]
[null,"SECTOR_ECONOMICO",202,"Gobierno  Central",1]
[null,"SECTOR_ECONOMICO",206,"Municipalidades",1]
[null,"SECTOR_ECONOMICO",204,"Instituciones  públicas descentralizadas",1]
[null,"SECTOR_ECONOMICO",208,"Fondos de  la seguridad social  (C.C.S.S.)",1]
[null,"SECTOR_ECONOMICO",210,"Resto  de instituciones  públicas  no financieras",1]
[null,"SECTOR_ECONOMICO",302,"Hogares (personas físicas)",1]
[null,"SECTOR_ECONOMICO",304,"Sociedades (empresas)  privadas  no  financieras",1]
[null,"SECTOR_ECONOMICO",306,"Instituciones  sin fines de lucro (sólo  aquellas que sirven a los  hogares)",1]
[null,"SECTOR_ECONOMICO",402,"Gobiernos  extranjeros",1]
[null,"SECTOR_ECONOMICO",404,"Entidades  públicas no financieras  extranjeras",1]
[null,"SECTOR_ECONOMICO",406,"Autoridades monetarias extranjeras",1]
[null,"SECTOR_ECONOMICO",408,"Entidades  financieras extranjeras (no incluye banca offshore ni  organismos  internacionales)",1]
[null,"SECTOR_ECONOMICO",410,"Organismos  internacionales",1]
[null,"SECTOR_ECONOMICO",412,"Sector privado no financiero  extranjero (personas físicas y jurídicas)",1]
[null,"SECTOR_ECONOMICO",902,"Sector no identificado en venta de títulos con pacto de recompra",1]
[null,"SECTOR_ECONOMICO",904,"Sector no identificado en  compra de títulos con pacto de reventa",1]
[null,"TIPO_CATEGORIA_RIESGO_MICROCREDITO_SBD",1,"Deudores al dia o con morosidad de hasta 30 días en la entidad.",1]
[null,"TIPO_CATEGORIA_RIESGO_MICROCREDITO_SBD",2,"Deudores con morosidad mayor a 30 días y hasta 60 días en la entidad.",1]
[null,"TIPO_CATEGORIA_RIESGO_MICROCREDITO_SBD",3,"Deudores con morosidad mayor a 60 días y hasta 90 días en la entidad.",1]
[null,"TIPO_CATEGORIA_RIESGO_MICROCREDITO_SBD",4,"Deudores con morosidad mayor a 90 días y hasta 120 días en la entidad.",1]
[null,"TIPO_CATEGORIA_RIESGO_MICROCREDITO_SBD",5,"Deudores con morosidad mayor a 120 días y hasta 180 días en la entidad.",1]
[null,"TIPO_CATEGORIA_RIESGO_MICROCREDITO_SBD",6,"Deudores con morosidad mayor a 180 días en la entidad.",1]
[null,"TIPO_CATEGORIA_RIESGO_SBD",1,"Deudores al dia o con morosidad de hasta 30 días en la entidad.",1]
[null,"TIPO_CATEGORIA_RIESGO_SBD",2,"Deudores con morosidad mayor a 30 días y hasta 60 días en la entidad.",1]
[null,"TIPO_CATEGORIA_RIESGO_SBD",3,"Deudores con morosidad:\nmayor a 60 días y hasta 90 días en la entidad, o\nmenor a 60 días en la entidad, y que hayan presentado morosidad con el SBD mayor a 90 días en los últimos 12 meses, o\nmenor a 60 días en la entidad, y al menos ha sido objeto de una restructuración en cualquiera de sus operaciones con la entidad en los últimos 12 meses.",1]
[null,"TIPO_CATEGORIA_RIESGO_SBD",4,"Deudores con morosidad:\nmayor a 90 días y hasta 120 días en la entidad.\nmenor a 90 días en la entidad y que hayan  presentado morosidad con el SBD mayor a 120 días en los últimos 12 meses, o\nmenor a 90 días, y al menos ha sido objeto de dos restructuraciones en cualquiera de sus operaciones con la entidad en los últimos 12 meses.",1]
[null,"TIPO_CATEGORIA_RIESGO_SBD",5,"Deudores con morosidad mayor a 120 días y hasta 180 días en la entidad.",1]
[null,"TIPO_CATEGORIA_RIESGO_SBD",6,"Deudores con morosidad mayor a 180 días en la entidad.",1]
[null,"TIPO_CAPACIDAD_PAGO",1,"Nivel 1",1]
[null,"TIPO_CAPACIDAD_PAGO",2,"Nivel 2",1]
[null,"TIPO_CAPACIDAD_PAGO",3,"Nivel 3",1]
[null,"TIPO_CAPACIDAD_PAGO",4,"Nivel 4",1]
[null,"TIPO_CONDICIONES_ESPECIALES_DEUDOR",1,"Deudor en estado quiebra",1]
[null,"TIPO_CONDICIONES_ESPECIALES_DEUDOR",4,"Deudor en concurso de acreedores",1,"Las operaciones de los titulares que estén declarados o se constate que se van a declarar en concurso de acreedores sin petición de liquidación."]
[null,"TIPO_CONDICIONES_ESPECIALES_DEUDOR",5,"Deudor declarado o por declarar en liquidación, o con deterioro irrecuperable de solvencia",1,"Las operaciones respaldadas con garantías concedidas o avalados declarados en concurso de acreedores para los que conste que se haya declarado o se vaya a declarar la fase de liquidación, o sufran un deterioro notorio e irrecuperable de su solvencia, aun cuando el beneficiario del aval no haya reclamado su pago."]
[null,"TIPO_INDICADOR_GENERADOR_DIVISAS",0,"Aplica otra normativa.",1,"Cuando el deudor solo presente operaciones que le aplica la normativas SUGEF 15-16, se debe indicar el código “0”."]
[null,"TIPO_INDICADOR_GENERADOR_DIVISAS",1,"Es generador",1,"Generador de moneda extranjera"]
[null,"TIPO_INDICADOR_GENERADOR_DIVISAS",2,"Es No generador de bajo riesgo",1,"No Generador de moneda extranjera de bajo riesgo"]
[null,"TIPO_INDICADOR_GENERADOR_DIVISAS",3,"Es No generador de alto riesgo",1,"No Generador de moneda extranjera de alto riesgo"]
[null,"TIPO_INDICADOR_GENERADOR_DIVISAS",4,"No Aplica",1,"Se podrá utilizar únicamente para las operaciones formalizadas antes de la entrada en vigencia de los nuevos cambios al ACUERDO SUGEF 1-05.\nSe debe aplicar el concepto anterior a la modificación del Acuerdo SUGEF 1-05 (publicada en el Alcance 100 Diario Oficial La Gaceta del 17 de junio 2016, vigente a partir del 17 de setiembre )  para aquellos deudores que tienen operaciones vigentes otorgadas con la normativa SUGEF 1-05  y SUGEF 15-10"]
[null,"TIPO_ASIGNACION_CALIFICACION",0,"No tiene calificación",1]
[null,"TIPO_ASIGNACION_CALIFICACION",1,"Emisión",1]
[null,"TIPO_ASIGNACION_CALIFICACION",2,"Emisor/Deudor/Fiador/Avalista/Obligado/Entidad emisora carta crédito ",1]
[null,"TIPO_COMPORTAMIENTO_PAGO",0,"Aplica otra normativa.",1]
[null,"TIPO_COMPORTAMIENTO_PAGO",1,"Nivel 1",1]
[null,"TIPO_COMPORTAMIENTO_PAGO",2,"Nivel 2",1]
[null,"TIPO_COMPORTAMIENTO_PAGO",3,"Nivel 3",1]
[null,"TIPO_ACTIVIDAD_ECONOMICA","A","Agricultura, ganadería, caza y actividades de servicios conexas",1,"NIVEL 1"]
[null,"TIPO_ACTIVIDAD_ECONOMICA","A02","Agricultura",1,"NIVEL 2"]
[null,"TIPO_ACTIVIDAD_ECONOMICA","A021","Cultivo de cosechas",1,"NIVEL 3"]
[null,"TIPO_ACTIVIDAD_ECONOMICA","A0211","Cultivo de  granos comestibles  y  verduras",1,"NIVEL 4"]
[null,"TIPO_ACTIVIDAD_ECONOMICA","A021101","Arroz",1,"NIVEL 5"]
[null,"TIPO_ACTIVIDAD_ECONOMICA","A021102","Café",1,"NIVEL 5"]
[null,"TIPO_ACTIVIDAD_ECONOMICA","A021103","Maíz",1,"NIVEL 5"]
[null,"TIPO_ACTIVIDAD_ECONOMICA","A021104","Frijol",1,"NIVEL 5"]
[null,"TIPO_ACTIVIDAD_ECONOMICA","A021105","Sorgo",1,"NIVEL 5"]
[null,"TIPO_ACTIVIDAD_ECONOMICA","A021106","Soya",1,"NIVEL 5"]
[null,"TIPO_ACTIVIDAD_ECONOMICA","A021107","Macadamia",1,"NIVEL 5"]
[null,"TIPO_ACTIVIDAD_ECONOMICA","A021151","Papa",1,"NIVEL 5"]
[null,"TIPO_ACTIVIDAD_ECONOMICA","A021152","Yuca",1,"NIVEL 5"]
[null,"TIPO_ACTIVIDAD_ECONOMICA","A021153","Camote",1,"NIVEL 5"]
[null,"TIPO_ACTIVIDAD_ECONOMICA","A021154","Ñame, ñampí y tiquizque",1,"NIVEL 5"]
[null,"TIPO_ACTIVIDAD_ECONOMICA","A021190","Otros  granos  comestibles y verduras",1,"NIVEL 5"]
[null,"TIPO_ACTIVIDAD_ECONOMICA","A0212","Cultivo de vegetales, hortalizas, legumbres  y especialidades horticulturas",1,"NIVEL 4"]
[null,"TIPO_ACTIVIDAD_ECONOMICA","A021201","Cultivo de vegetales",1,"NIVEL 5"]
[null,"TIPO_ACTIVIDAD_ECONOMICA","A021202","Cultivo de hortalizas, legumbres y especialidades  hortícolas",1,"NIVEL 5"]
[null,"TIPO_ACTIVIDAD_ECONOMICA","A0213","Cultivo de frutas, especies  y plantas  utilizables  para  preparar bebidas",1,"NIVEL 4"]
[null,"TIPO_ACTIVIDAD_ECONOMICA","A02131","Cultivo de frutas",1,"NIVEL 5"]
[null,"TIPO_ACTIVIDAD_ECONOMICA","A0213101","Melón",1,"NIVEL 6"]
[null,"TIPO_ACTIVIDAD_ECONOMICA","A0213102","Banano",1,"NIVEL 6"]
[null,"TIPO_ACTIVIDAD_ECONOMICA","A0213103","Piña",1,"NIVEL 6"]
[null,"TIPO_ACTIVIDAD_ECONOMICA","A0213104","Sandía",1,"NIVEL 6"]
[null,"TIPO_ACTIVIDAD_ECONOMICA","A0213190","Otras frutas",1,"NIVEL 6"]
[null,"TIPO_ACTIVIDAD_ECONOMICA","A02132","Cultivo de especias",1,"NIVEL 5"]
[null,"TIPO_ACTIVIDAD_ECONOMICA","A02133","Cultivo de plantas utilizables para preparar bebidas  y alimentos",1,"NIVEL 5"]
[null,"TIPO_ACTIVIDAD_ECONOMICA","A0213301","Caña  de azúcar",1,"NIVEL 6"]
[null,"TIPO_ACTIVIDAD_ECONOMICA","A0213302","Palma aceitera",1,"NIVEL 6"]
[null,"TIPO_ACTIVIDAD_ECONOMICA","A0213303","Palmito",1,"NIVEL 6"]
[null,"TIPO_ACTIVIDAD_ECONOMICA","A0213390","Otras plantas utilizables para preparar bebidas y alimentos",1,"NIVEL 6"]
[null,"TIPO_ACTIVIDAD_ECONOMICA","A0214","Cultivo de flores,  productos de vivero y de  semillero",1,"NIVEL 4"]
[null,"TIPO_ACTIVIDAD_ECONOMICA","A02141","Cultivo de flores y plantas ornamentales  para vivero  (no para exportación)",1,"NIVEL 5"]
[null,"TIPO_ACTIVIDAD_ECONOMICA","A02142","Cultivo de flores y plantas ornamentales  para vivero  (para exportación)",1,"NIVEL 5"]
[null,"TIPO_ACTIVIDAD_ECONOMICA","A02143","Cultivo y elaboración de  otros productos de vivero",1,"NIVEL 5"]
[null,"TIPO_ACTIVIDAD_ECONOMICA","A02144","Cultivo de productos de semillero.",1,"NIVEL 5"]
[null,"TIPO_ACTIVIDAD_ECONOMICA","A02149","Cultivo de  otras plantas  y actividades  conexas",1,"NIVEL 5"]
[null,"TIPO_ACTIVIDAD_ECONOMICA","A0218","Otros cultivos",1,"NIVEL 4"]
[null,"TIPO_ACTIVIDAD_ECONOMICA","A02181","Algodón",1,"NIVEL 5"]
[null,"TIPO_ACTIVIDAD_ECONOMICA","A02182","Tabaco",1,"NIVEL 5"]
[null,"TIPO_ACTIVIDAD_ECONOMICA","A02189","Otros cultivos",1,"NIVEL 5"]
[null,"TIPO_ACTIVIDAD_ECONOMICA","A029","Operaciones  de  la anterior  clasificación de  Agricultura no identificables en esta clasificación",1,"NIVEL 3"]
[null,"TIPO_ACTIVIDAD_ECONOMICA","A0291","Reparación de maquinaria agrícola",1,"NIVEL 4"]
[null,"TIPO_ACTIVIDAD_ECONOMICA","A0292","Pequeño agricultor",1,"NIVEL 4"]
[null,"TIPO_ACTIVIDAD_ECONOMICA","A0293","Adecuación agrícola",1,"NIVEL 4"]
[null,"TIPO_ACTIVIDAD_ECONOMICA","A0299","Resto de Operaciones  de  la anterior  clasificación de  Agricultura no identificables en esta clasificación",1,"NIVEL 4"]
[null,"TIPO_ACTIVIDAD_ECONOMICA","A04","Ganadería",1,"NIVEL 2"]
[null,"TIPO_ACTIVIDAD_ECONOMICA","A041","Cría  de animales",1,"NIVEL 3"]
[null,"TIPO_ACTIVIDAD_ECONOMICA","A0411","Cría, desarrollo y engorde de ganado vacuno",1,"NIVEL 4"]
[null,"TIPO_ACTIVIDAD_ECONOMICA","A0412","Cría y desarrollo de ganado lechero",1,"NIVEL 4"]
[null,"TIPO_ACTIVIDAD_ECONOMICA","A0413","Cría de aves",1,"NIVEL 4"]
[null,"TIPO_ACTIVIDAD_ECONOMICA","A0414","Cría de cabras y ovejas",1,"NIVEL 4"]
[null,"TIPO_ACTIVIDAD_ECONOMICA","A0418","Cría y desarrollo de ganado doble propósito (carne/leche)",1,"NIVEL 4"]
[null,"TIPO_ACTIVIDAD_ECONOMICA","A0419","Cría de otros animales",1,"NIVEL 4"]
[null,"TIPO_ACTIVIDAD_ECONOMICA","A049","Operaciones  de  la anterior  clasificación de  Ganadería  no identificables en esta clasificación",1,"NIVEL 3"]
[null,"TIPO_ACTIVIDAD_ECONOMICA","A0491","Pequeño productor ganadero",1,"NIVEL 4"]
[null,"TIPO_ACTIVIDAD_ECONOMICA","A0499","Resto de Operaciones  de  la anterior  clasificación de  Ganadería  no identificables en esta clasificación",1,"NIVEL 4"]
[null,"TIPO_ACTIVIDAD_ECONOMICA","A06","Agropecuario",1,"NIVEL 2"]
[null,"TIPO_ACTIVIDAD_ECONOMICA","A061","Cultivo de productos agrícolas en combinación con la cría de animales",1,"NIVEL 3"]
[null,"TIPO_ACTIVIDAD_ECONOMICA","A0611","Cultivo de productos agrícolas en combinación con la cría de animales (explotación mixta)",1,"NIVEL 4"]
[null,"TIPO_ACTIVIDAD_ECONOMICA","A0619","Actividades conexas de servicios agropecuarios, excepto las actividades  veterinarias",1,"NIVEL 4"]
[null,"TIPO_ACTIVIDAD_ECONOMICA","A069","Operaciones  de  la anterior  clasificación de  Agropecuario  no identificables en esta clasificación",1,"NIVEL 3"]
[null,"TIPO_ACTIVIDAD_ECONOMICA","A08","Caza",1,"NIVEL 2"]
[null,"TIPO_ACTIVIDAD_ECONOMICA","A081","Caza, pieles y repoblación de animales de caza, incluyendo actividades  conexas",1,"NIVEL 3"]
[null,"TIPO_ACTIVIDAD_ECONOMICA","A10","Silvicultura, extracción de madera  y  actividades de servicio conexas",1,"NIVEL 2"]
[null,"TIPO_ACTIVIDAD_ECONOMICA","A101","Silvicultura (reforestación) y actividades de servicio conexas",1,"NIVEL 3"]
[null,"TIPO_ACTIVIDAD_ECONOMICA","A102","Extracción de madera y actividades de servicio conexas",1,"NIVEL 3"]
[null,"TIPO_ACTIVIDAD_ECONOMICA","A99999","Actividades de la anterior clasificación reportadas en un nivel superior de A",1,"NIVEL 2"]
[null,"TIPO_ACTIVIDAD_ECONOMICA","B","Pesca y  acuacultura",1,"NIVEL 1"]
[null,"TIPO_ACTIVIDAD_ECONOMICA","B02","Pesca y  actividades  conexas (Global)",1,"NIVEL 2"]
[null,"TIPO_ACTIVIDAD_ECONOMICA","B04","Acuacultura y actividades de servicio conexas",1,"NIVEL 2"]
[null,"TIPO_ACTIVIDAD_ECONOMICA","B06","Pesca (detallado)",1,"NIVEL 2"]
[null,"TIPO_ACTIVIDAD_ECONOMICA","B061","Atún",1,"NIVEL 3"]
[null,"TIPO_ACTIVIDAD_ECONOMICA","B062","Camarones",1,"NIVEL 3"]
[null,"TIPO_ACTIVIDAD_ECONOMICA","B063","Tilapia",1,"NIVEL 3"]
[null,"TIPO_ACTIVIDAD_ECONOMICA","B064","Escama y tuburón",1,"NIVEL 3"]
[null,"TIPO_ACTIVIDAD_ECONOMICA","B068","Pesca de otros animales",1,"NIVEL 3"]
[null,"TIPO_ACTIVIDAD_ECONOMICA","B069","Actividades conexas de pesca",1,"NIVEL 3"]
[null,"TIPO_ACTIVIDAD_ECONOMICA","B92","Operaciones  de  la anterior  clasificación de  Pesca  no identificables en esta",1,"NIVEL 2"]
[null,"TIPO_ACTIVIDAD_ECONOMICA","B921","Pequeño pescador",1,"NIVEL 3"]
[null,"TIPO_ACTIVIDAD_ECONOMICA","B929","Resto de Operaciones  de  la anterior  clasificación de  Pesca  no identificables en esta clasificación",1,"NIVEL 3"]
[null,"TIPO_ACTIVIDAD_ECONOMICA","B99999","Actividades de la anterior clasificación reportadas en un nivel superior de B",1,"NIVEL 2"]
[null,"TIPO_ACTIVIDAD_ECONOMICA","C","Explotación de  minas y canteras",1,"NIVEL 1"]
[null,"TIPO_ACTIVIDAD_ECONOMICA","C02","Extracción de petróleo crudo y gas natural y actividades de servicio conexas",1,"NIVEL 2"]
[null,"TIPO_ACTIVIDAD_ECONOMICA","C04","Extracción de otras minas y canteras  y actividades de servicios conexas",1,"NIVEL 2"]
[null,"TIPO_ACTIVIDAD_ECONOMICA","C06","Preparación y enriquecimiento de minerales y actividades de servicios conexas",1,"NIVEL 2"]
[null,"TIPO_ACTIVIDAD_ECONOMICA","C99999","Actividades de la anterior clasificación reportadas en un nivel superior de C",1,"NIVEL 2"]
[null,"TIPO_ACTIVIDAD_ECONOMICA","D","Industria Manufacturera",1,"NIVEL 1"]
[null,"TIPO_ACTIVIDAD_ECONOMICA","D02","Elaboración de productos alimenticios (excepto bebidas)",1,"NIVEL 2"]
[null,"TIPO_ACTIVIDAD_ECONOMICA","D021","Producción, procesamiento y conservación de carnes, excepto pescado",1,"NIVEL 3"]
[null,"TIPO_ACTIVIDAD_ECONOMICA","D0211","Producción, procesamiento y conservación de carne de ganado vacuno",1,"NIVEL 4"]
[null,"TIPO_ACTIVIDAD_ECONOMICA","D0212","Producción, procesamiento y conservación de carne de ganado porcino",1,"NIVEL 4"]
[null,"TIPO_ACTIVIDAD_ECONOMICA","D0213","Producción, procesamiento y conservación de carne de pollo",1,"NIVEL 4"]
[null,"TIPO_ACTIVIDAD_ECONOMICA","D0214","Producción, procesamiento y conservación de carne de otro tipo de animales",1,"NIVEL 4"]
[null,"TIPO_ACTIVIDAD_ECONOMICA","D0215","Elaboración de embutidos",1,"NIVEL 4"]
[null,"TIPO_ACTIVIDAD_ECONOMICA","D022","Elaboración y conservación de pescado  y productos de pescado",1,"NIVEL 3"]
[null,"TIPO_ACTIVIDAD_ECONOMICA","D023","Elaboración de productos lácteos",1,"NIVEL 3"]
[null,"TIPO_ACTIVIDAD_ECONOMICA","D024","Elaboración de productos alimenticios a base de frutas, legumbres y hortalizas",1,"NIVEL 3"]
[null,"TIPO_ACTIVIDAD_ECONOMICA","D025","Elaboración de productos de molinería",1,"NIVEL 3"]
[null,"TIPO_ACTIVIDAD_ECONOMICA","D0251","Beneficio de arroz",1,"NIVEL 4"]
[null,"TIPO_ACTIVIDAD_ECONOMICA","D0252","Beneficio de café",1,"NIVEL 4"]
[null,"TIPO_ACTIVIDAD_ECONOMICA","D0259","Otros productos de molinería",1,"NIVEL 4"]
[null,"TIPO_ACTIVIDAD_ECONOMICA","D026","Elaboración de bebidas",1,"NIVEL 3"]
[null,"TIPO_ACTIVIDAD_ECONOMICA","D029","Manufactura de otros productos alimenticios",1,"NIVEL 3"]
[null,"TIPO_ACTIVIDAD_ECONOMICA","D04","Manufactura de   productos de tabaco",1,"NIVEL 2"]
[null,"TIPO_ACTIVIDAD_ECONOMICA","D06","Manufactura de productos textiles",1,"NIVEL 2"]
[null,"TIPO_ACTIVIDAD_ECONOMICA","D08","Manufactura de productos de vestir",1,"NIVEL 2"]
[null,"TIPO_ACTIVIDAD_ECONOMICA","D10","Curtido y adobo de cueros y  pieles; fabricación de maletas, bolsos de mano, artículos de talabartería y guarnicionería (excepto calzado)",1,"NIVEL 2"]
[null,"TIPO_ACTIVIDAD_ECONOMICA","D12","Elaboración de calzado",1,"NIVEL 2"]
[null,"TIPO_ACTIVIDAD_ECONOMICA","D14","Producción de madera y fabricación de productos de madera y corcho, excepto muebles",1,"NIVEL 2"]
[null,"TIPO_ACTIVIDAD_ECONOMICA","D16","Manufactura de muebles",1,"NIVEL 2"]
[null,"TIPO_ACTIVIDAD_ECONOMICA","D18","Producción de artículos de paja y de materiales trenzables",1,"NIVEL 2"]
[null,"TIPO_ACTIVIDAD_ECONOMICA","D20","Actividades de edición e impresión y de reproducción de grabaciones",1,"NIVEL 2"]
[null,"TIPO_ACTIVIDAD_ECONOMICA","D22","Refinamiento de petróleo, combustible nuclear y fabricación de coque.",1,"NIVEL 2"]
[null,"TIPO_ACTIVIDAD_ECONOMICA","D24","Fabricación de sustancias y productos químicos",1,"NIVEL 2"]
[null,"TIPO_ACTIVIDAD_ECONOMICA","D26","Manufactura de caucho y  productos plásticos",1,"NIVEL 2"]
[null,"TIPO_ACTIVIDAD_ECONOMICA","D28","Manufactura de otros productos minerales no metálicos.",1,"NIVEL 2"]
[null,"TIPO_ACTIVIDAD_ECONOMICA","D30","Manufactura de metales comunes",1,"NIVEL 2"]
[null,"TIPO_ACTIVIDAD_ECONOMICA","D32","Manufactura de productos metálicos, excepto maquinaria y equipo",1,"NIVEL 2"]
[null,"TIPO_ACTIVIDAD_ECONOMICA","D34","Manufactura de maquinaria y equipo de producción",1,"NIVEL 2"]
[null,"TIPO_ACTIVIDAD_ECONOMICA","D36","Manufactura de equipo de oficina, contabilidad e informática",1,"NIVEL 2"]
[null,"TIPO_ACTIVIDAD_ECONOMICA","D38","Manufactura de equipo y aparatos de radio, televisión y comunicaciones",1,"NIVEL 2"]
[null,"TIPO_ACTIVIDAD_ECONOMICA","D40","Manufactura de  otros aparatos eléctricos",1,"NIVEL 2"]
[null,"TIPO_ACTIVIDAD_ECONOMICA","D42","Manufactura de instrumentos médicos, de precisión,   ópticos y otros",1,"NIVEL 2"]
[null,"TIPO_ACTIVIDAD_ECONOMICA","D44","Manufactura de vehículos automotores, remolques y semirremolques",1,"NIVEL 2"]
[null,"TIPO_ACTIVIDAD_ECONOMICA","D46","Manufactura de otros tipo de equipos de transporte",1,"NIVEL 2"]
[null,"TIPO_ACTIVIDAD_ECONOMICA","D48","Manufactura de papel y productos de papel",1,"NIVEL 2"]
[null,"TIPO_ACTIVIDAD_ECONOMICA","D50","Manufactura de instrumentos musicales",1,"NIVEL 2"]
[null,"TIPO_ACTIVIDAD_ECONOMICA","D52","Reciclaje",1,"NIVEL 2"]
[null,"TIPO_ACTIVIDAD_ECONOMICA","D80","Manufactura de otros productos",1,"NIVEL 2"]
[null,"TIPO_ACTIVIDAD_ECONOMICA","D92","Operaciones  de  la anterior  clasificación de  Industria  no identificables en esta clasificación",1,"NIVEL 2"]
[null,"TIPO_ACTIVIDAD_ECONOMICA","D921","Adecuación industria",1,"NIVEL 3"]
[null,"TIPO_ACTIVIDAD_ECONOMICA","D929","Resto de Operaciones  de  la anterior  clasificación de  Industria  no identificables en esta clasificación",1,"NIVEL 3"]
[null,"TIPO_ACTIVIDAD_ECONOMICA","D99999","Actividades de la anterior clasificación reportadas en un nivel superior de D",1,"NIVEL 2"]
[null,"TIPO_ACTIVIDAD_ECONOMICA","E","Electricidad, telecomunicaciones,  gas y agua",1,"NIVEL 1"]
[null,"TIPO_ACTIVIDAD_ECONOMICA","E02","Producción y suministro de electricidad y actividades de servicios conexas",1,"NIVEL 2"]
[null,"TIPO_ACTIVIDAD_ECONOMICA","E04","Producción y suministro de   gas, vapor y agua caliente y actividades de servicios conexas",1,"NIVEL 2"]
[null,"TIPO_ACTIVIDAD_ECONOMICA","E06","Recolección, purificación y distribución de agua  y actividades de servicios conexas",1,"NIVEL 2"]
[null,"TIPO_ACTIVIDAD_ECONOMICA","E08","Telecomunicaciones y actividades de servicios conexas",1,"NIVEL 2"]
[null,"TIPO_ACTIVIDAD_ECONOMICA","E92","Operaciones  de  la anterior  clasificación de  Electricidad  no identificables en esta clasificación",1,"NIVEL 2"]
[null,"TIPO_ACTIVIDAD_ECONOMICA","E921","Adecuaciones Electricidad",1,"NIVEL 3"]
[null,"TIPO_ACTIVIDAD_ECONOMICA","E929","Resto de Operaciones  de  la anterior  clasificación de  Electricidad  no identificables en esta clasificación",1,"NIVEL 3"]
[null,"TIPO_ACTIVIDAD_ECONOMICA","E99999","Actividades de la anterior clasificación reportadas en un nivel superior de E",1,"NIVEL 2"]
[null,"TIPO_ACTIVIDAD_ECONOMICA","F","Construcción, compra  y reparación de inmuebles",1,"NIVEL 1"]
[null,"TIPO_ACTIVIDAD_ECONOMICA","F02","Construcción y reparación de inmuebles (el deudor ofrece este servicio)",1,"NIVEL 2"]
[null,"TIPO_ACTIVIDAD_ECONOMICA","F021","Compra y mejora  de inmuebles con fines comerciales",1,"NIVEL 3"]
[null,"TIPO_ACTIVIDAD_ECONOMICA","F0211","Compra de terreno con fines comerciales",1,"NIVEL 4"]
[null,"TIPO_ACTIVIDAD_ECONOMICA","F0212","Compra de inmueble nuevo con fines comerciales",1,"NIVEL 4"]
[null,"TIPO_ACTIVIDAD_ECONOMICA","F0213","Compra de inmueble usado con fines comerciales",1,"NIVEL 4"]
[null,"TIPO_ACTIVIDAD_ECONOMICA","F0214","Compra y mejora  de inmueble con fines comerciales",1,"NIVEL 4"]
[null,"TIPO_ACTIVIDAD_ECONOMICA","F0215","Mejora de  inmueble con fines comerciales",1,"NIVEL 4"]
[null,"TIPO_ACTIVIDAD_ECONOMICA","F022","Construcción de inmuebles",1,"NIVEL 3"]
[null,"TIPO_ACTIVIDAD_ECONOMICA","F0221","Construcción de casas y/o  edificios",1,"NIVEL 4"]
[null,"TIPO_ACTIVIDAD_ECONOMICA","F0226","Construcción de otros edificios comerciales",1,"NIVEL 4"]
[null,"TIPO_ACTIVIDAD_ECONOMICA","F0229","Construcción  de otros inmuebles",1,"NIVEL 4"]
[null,"TIPO_ACTIVIDAD_ECONOMICA","F024","Reparación de inmuebles",1,"NIVEL 3"]
[null,"TIPO_ACTIVIDAD_ECONOMICA","F04","Construcción, compra y reparación de inmuebles con fines no comerciales  (para uso del deudor o uso no comercial de terceros)",1,"NIVEL 2"]
[null,"TIPO_ACTIVIDAD_ECONOMICA","F041","Compra y reparación  de inmuebles con fines no comerciales",1,"NIVEL 3"]
[null,"TIPO_ACTIVIDAD_ECONOMICA","F0411","Compra de terreno para vivienda  (no incluye construcción)",1,"NIVEL 4"]
[null,"TIPO_ACTIVIDAD_ECONOMICA","F0412","Compra de vivienda nueva",1,"NIVEL 4"]
[null,"TIPO_ACTIVIDAD_ECONOMICA","F0413","Compra de vivienda usada",1,"NIVEL 4"]
[null,"TIPO_ACTIVIDAD_ECONOMICA","F0414","Compra y reparación de vivienda",1,"NIVEL 4"]
[null,"TIPO_ACTIVIDAD_ECONOMICA","F0415","Reparación de  vivienda",1,"NIVEL 4"]
[null,"TIPO_ACTIVIDAD_ECONOMICA","F042","Construcción de inmuebles con fines no comerciales",1,"NIVEL 3"]
[null,"TIPO_ACTIVIDAD_ECONOMICA","F0421","Construcción de vivienda para uso del deudor",1,"NIVEL 4"]
[null,"TIPO_ACTIVIDAD_ECONOMICA","F0422","Construcción de vivienda para uso no comercial de terceros",1,"NIVEL 4"]
[null,"TIPO_ACTIVIDAD_ECONOMICA","F0429","Construcción de otros inmuebles con fines no comerciales",1,"NIVEL 4"]
[null,"TIPO_ACTIVIDAD_ECONOMICA","F92","Operaciones  de  la anterior  clasificación de  Construcción  no identificables en esta clasificación",1,"NIVEL 2"]
[null,"TIPO_ACTIVIDAD_ECONOMICA","F921","Construcción",1,"NIVEL 3"]
[null,"TIPO_ACTIVIDAD_ECONOMICA","F922","Adecuaciones construcción",1,"NIVEL 3"]
[null,"TIPO_ACTIVIDAD_ECONOMICA","F923","Otros construcción",1,"NIVEL 3"]
[null,"TIPO_ACTIVIDAD_ECONOMICA","F94","Operaciones  de  la anterior  clasificación de  Vivienda  no identificables en esta clasificación",1,"NIVEL 2"]
[null,"TIPO_ACTIVIDAD_ECONOMICA","F941","Vivienda",1,"NIVEL 3"]
[null,"TIPO_ACTIVIDAD_ECONOMICA","F942","Adecuaciones vivienda",1,"NIVEL 3"]
[null,"TIPO_ACTIVIDAD_ECONOMICA","F943","Otros vivienda",1,"NIVEL 3"]
[null,"TIPO_ACTIVIDAD_ECONOMICA","F99999","Actividades de la anterior clasificación reportadas en un nivel superior de F",1,"NIVEL 2"]
[null,"TIPO_ACTIVIDAD_ECONOMICA","G","Comercio",1,"NIVEL 1"]
[null,"TIPO_ACTIVIDAD_ECONOMICA","G02","Comercio de vehículos de motor y motocicletas; venta al detalle de combustible automotriz",1,"NIVEL 2"]
[null,"TIPO_ACTIVIDAD_ECONOMICA","G04","Comercio al por mayor y  por comisión, excepto de vehículos de motor y  motocicletas",1,"NIVEL 2"]
[null,"TIPO_ACTIVIDAD_ECONOMICA","G06","Comercio al por menor, excepto de vehículos de motor, motocicletas y combustible automotriz",1,"NIVEL 2"]
[null,"TIPO_ACTIVIDAD_ECONOMICA","G08","Venta al detalle de combustible automotriz",1,"NIVEL 2"]
[null,"TIPO_ACTIVIDAD_ECONOMICA","G90","Otros de comercio",1,"NIVEL 2"]
[null,"TIPO_ACTIVIDAD_ECONOMICA","G92","Operaciones  de  la anterior  clasificación de  Comercio  no identificables en esta clasificación",1,"NIVEL 2"]
[null,"TIPO_ACTIVIDAD_ECONOMICA","G921","Comercio",1,"NIVEL 3"]
[null,"TIPO_ACTIVIDAD_ECONOMICA","G922","Adecuaciones comercio",1,"NIVEL 3"]
[null,"TIPO_ACTIVIDAD_ECONOMICA","G923","Otros comercio",1,"NIVEL 3"]
[null,"TIPO_ACTIVIDAD_ECONOMICA","G99999","Actividades de la anterior clasificación reportadas en un nivel superior de G",1,"NIVEL 2"]
[null,"TIPO_ACTIVIDAD_ECONOMICA","H","Hotel  y restaurante",1,"NIVEL 1"]
[null,"TIPO_ACTIVIDAD_ECONOMICA","H02","Hotel",1,"NIVEL 2"]
[null,"TIPO_ACTIVIDAD_ECONOMICA","H04","Restaurante",1,"NIVEL 2"]
[null,"TIPO_ACTIVIDAD_ECONOMICA","H06","Hotel y restaurante",1,"NIVEL 2"]
[null,"TIPO_ACTIVIDAD_ECONOMICA","H99999","Actividades de la anterior clasificación reportadas en un nivel superior de H",1,"NIVEL 2"]
[null,"TIPO_ACTIVIDAD_ECONOMICA","I","Transporte",1,"NIVEL 1"]
[null,"TIPO_ACTIVIDAD_ECONOMICA","I02","Transporte terrestre automotor",1,"NIVEL 2"]
[null,"TIPO_ACTIVIDAD_ECONOMICA","I021","Transporte de carga",1,"NIVEL 3"]
[null,"TIPO_ACTIVIDAD_ECONOMICA","I022","Transporte de estudiantes",1,"NIVEL 3"]
[null,"TIPO_ACTIVIDAD_ECONOMICA","I023","Transporte  de turistas",1,"NIVEL 3"]
[null,"TIPO_ACTIVIDAD_ECONOMICA","I0231","Alquiler de autos (a turistas)",1,"NIVEL 4"]
[null,"TIPO_ACTIVIDAD_ECONOMICA","I0232","Otras actividades de transporte de turistas",1,"NIVEL 4"]
[null,"TIPO_ACTIVIDAD_ECONOMICA","I024","Transporte público (Taxi)",1,"NIVEL 3"]
[null,"TIPO_ACTIVIDAD_ECONOMICA","I025","Transporte público (Autobús)",1,"NIVEL 3"]
[null,"TIPO_ACTIVIDAD_ECONOMICA","I029","Otro tipo de transporte automotor",1,"NIVEL 3"]
[null,"TIPO_ACTIVIDAD_ECONOMICA","I04","Transporte marítimo y de cabotaje",1,"NIVEL 2"]
[null,"TIPO_ACTIVIDAD_ECONOMICA","I06","Transporte aéreo",1,"NIVEL 2"]
[null,"TIPO_ACTIVIDAD_ECONOMICA","I08","Transporte  ferroviario",1,"NIVEL 2"]
[null,"TIPO_ACTIVIDAD_ECONOMICA","I10","Agencias de viaje",1,"NIVEL 2"]
[null,"TIPO_ACTIVIDAD_ECONOMICA","I12","Transporte de turistas (por cualquier medio)",1,"NIVEL 2"]
[null,"TIPO_ACTIVIDAD_ECONOMICA","I90","Actividades conexas  del servicio de transporte",1,"NIVEL 2"]
[null,"TIPO_ACTIVIDAD_ECONOMICA","I99","Operaciones  de  la anterior  clasificación de  Transporte  no identificables en esta clasificación",1,"NIVEL 2"]
[null,"TIPO_ACTIVIDAD_ECONOMICA","I99999","Actividades de la anterior clasificación reportadas en un nivel superior de I",1,"NIVEL 2"]
[null,"TIPO_ACTIVIDAD_ECONOMICA","J","Actividad  financiera y bursátil",1,"NIVEL 1"]
[null,"TIPO_ACTIVIDAD_ECONOMICA","J02","Intermediación financiera, excepto seguros, pensiones y fondos de inversión",1,"NIVEL 2"]
[null,"TIPO_ACTIVIDAD_ECONOMICA","J04","Operativa de Seguros",1,"NIVEL 2"]
[null,"TIPO_ACTIVIDAD_ECONOMICA","J06","Operativa  de fondos de inversión",1,"NIVEL 2"]
[null,"TIPO_ACTIVIDAD_ECONOMICA","J08","Operativa de planes de pensión",1,"NIVEL 2"]
[null,"TIPO_ACTIVIDAD_ECONOMICA","J10","Actividades auxiliares de intermediación financiera",1,"NIVEL 2"]
[null,"TIPO_ACTIVIDAD_ECONOMICA","J101","Actividad bursátil",1,"NIVEL 3"]
[null,"TIPO_ACTIVIDAD_ECONOMICA","J109","Resto de actividades auxiliares de intermediación financiera",1,"NIVEL 3"]
[null,"TIPO_ACTIVIDAD_ECONOMICA","J99999","Actividades de la anterior clasificación reportadas en un nivel superior de J",1,"NIVEL 2"]
[null,"TIPO_ACTIVIDAD_ECONOMICA","K","Actividades inmobiliarias, empresariales y de alquiler",1,"NIVEL 1"]
[null,"TIPO_ACTIVIDAD_ECONOMICA","K02","Actividades inmobiliarias",1,"NIVEL 2"]
[null,"TIPO_ACTIVIDAD_ECONOMICA","K04","Alquiler de bienes no contemplados en otras actividades",1,"NIVEL 2"]
[null,"TIPO_ACTIVIDAD_ECONOMICA","K06","Investigación y Desarrollo",1,"NIVEL 2"]
[null,"TIPO_ACTIVIDAD_ECONOMICA","K90","Otras actividades empresariales",1,"NIVEL 2"]
[null,"TIPO_ACTIVIDAD_ECONOMICA","K99999","Actividades de la anterior clasificación reportadas en un nivel superior de K",1,"NIVEL 2"]
[null,"TIPO_ACTIVIDAD_ECONOMICA","M","Enseñanza  (El deudor ofrece este servicio)",1,"NIVEL 1"]
[null,"TIPO_ACTIVIDAD_ECONOMICA","M02","Enseñanza Preescolar",1,"NIVEL 2"]
[null,"TIPO_ACTIVIDAD_ECONOMICA","M04","Enseñanza primaria",1,"NIVEL 2"]
[null,"TIPO_ACTIVIDAD_ECONOMICA","M06","Enseñanza primaria y secundaria",1,"NIVEL 2"]
[null,"TIPO_ACTIVIDAD_ECONOMICA","M08","Enseñanza universitaria y/o parauniversitaria",1,"NIVEL 2"]
[null,"TIPO_ACTIVIDAD_ECONOMICA","M10","Servicios de apoyo a la educación",1,"NIVEL 2"]
[null,"TIPO_ACTIVIDAD_ECONOMICA","M12","Enseñanza Técnica",1,"NIVEL 2"]
[null,"TIPO_ACTIVIDAD_ECONOMICA","M90","Otros servicios de enseñanza y actividades conexas",1,"NIVEL 2"]
[null,"TIPO_ACTIVIDAD_ECONOMICA","M99999","Actividades de la anterior clasificación reportadas en un nivel superior de M",1,"NIVEL 2"]
[null,"TIPO_ACTIVIDAD_ECONOMICA","R","Servicios  (El deudor ofrece este servicio)",1,"NIVEL 1"]
[null,"TIPO_ACTIVIDAD_ECONOMICA","R02","Reparación de bienes",1,"NIVEL 2"]
[null,"TIPO_ACTIVIDAD_ECONOMICA","R021","Reparación de vehículos de motor y motocicletas",1,"NIVEL 3"]
[null,"TIPO_ACTIVIDAD_ECONOMICA","R022","Reparación de electrodomésticos",1,"NIVEL 3"]
[null,"TIPO_ACTIVIDAD_ECONOMICA","R029","Reparación de otros  bienes",1,"NIVEL 3"]
[null,"TIPO_ACTIVIDAD_ECONOMICA","R04","Salud y trabajo social",1,"NIVEL 2"]
[null,"TIPO_ACTIVIDAD_ECONOMICA","R041","Clínica y hospital",1,"NIVEL 3"]
[null,"TIPO_ACTIVIDAD_ECONOMICA","R042","Laboratorio clínico (no incluidos en hospital)",1,"NIVEL 3"]
[null,"TIPO_ACTIVIDAD_ECONOMICA","R043","Trabajo social",1,"NIVEL 3"]
[null,"TIPO_ACTIVIDAD_ECONOMICA","R044","Servicio clínico veterinario y actividades conexas",1,"NIVEL 3"]
[null,"TIPO_ACTIVIDAD_ECONOMICA","R049","Otros servicios de  salud",1,"NIVEL 3"]
[null,"TIPO_ACTIVIDAD_ECONOMICA","R06","Almacenamiento",1,"NIVEL 2"]
[null,"TIPO_ACTIVIDAD_ECONOMICA","R08","Correo",1,"NIVEL 2"]
[null,"TIPO_ACTIVIDAD_ECONOMICA","R10","Drenaje, eliminación de desperdicios y aguas residuales, saneamiento y actividades similares",1,"NIVEL 2"]
[null,"TIPO_ACTIVIDAD_ECONOMICA","R12","Alquiler de maquinaria y equipo",1,"NIVEL 2"]
[null,"TIPO_ACTIVIDAD_ECONOMICA","R14","Publicidad",1,"NIVEL 2"]
[null,"TIPO_ACTIVIDAD_ECONOMICA","R16","Peluquería, maquillaje y  actividades  conexas",1,"NIVEL 2"]
[null,"TIPO_ACTIVIDAD_ECONOMICA","R18","Lavandería",1,"NIVEL 2"]
[null,"TIPO_ACTIVIDAD_ECONOMICA","R20","Vigilancia y seguridad",1,"NIVEL 2"]
[null,"TIPO_ACTIVIDAD_ECONOMICA","R22","Servicio y consultoría informática",1,"NIVEL 2"]
[null,"TIPO_ACTIVIDAD_ECONOMICA","R221","Servicio de internet",1,"NIVEL 3"]
[null,"TIPO_ACTIVIDAD_ECONOMICA","R222","Asesoría informática",1,"NIVEL 3"]
[null,"TIPO_ACTIVIDAD_ECONOMICA","R223","Desarrollo de  software",1,"NIVEL 3"]
[null,"TIPO_ACTIVIDAD_ECONOMICA","R229","Otras actividades conexas a servicio y asesoría de informática",1,"NIVEL 3"]
[null,"TIPO_ACTIVIDAD_ECONOMICA","R24","Actividades culturales,  deportivas y otras actividades de esparcimiento",1,"NIVEL 2"]
[null,"TIPO_ACTIVIDAD_ECONOMICA","R26","Cinematografía, ratio, televisión y otras actividades de entretenimiento",1,"NIVEL 2"]
[null,"TIPO_ACTIVIDAD_ECONOMICA","R28","Agencias de viaje e información  turística",1,"NIVEL 2"]
[null,"TIPO_ACTIVIDAD_ECONOMICA","R30","Alquiler de autos",1,"NIVEL 2"]
[null,"TIPO_ACTIVIDAD_ECONOMICA","R32","Actividades vinculadas al  turismo y no contempladas en otras otras actividades",1,"NIVEL 2"]
[null,"TIPO_ACTIVIDAD_ECONOMICA","R90","Otros  servicios",1,"NIVEL 2"]
[null,"TIPO_ACTIVIDAD_ECONOMICA","R99","Operaciones  de  la anterior  clasificación de  Servicios  no identificables en esta clasificación",1,"NIVEL 2"]
[null,"TIPO_ACTIVIDAD_ECONOMICA","R99999","Actividades de la anterior clasificación reportadas en un nivel superior de R",1,"NIVEL 2"]
[null,"TIPO_ACTIVIDAD_ECONOMICA","S","Consumo  (el deudor consume el bien o servicio)",1,"NIVEL 1"]
[null,"TIPO_ACTIVIDAD_ECONOMICA","S02","Tarjetas de crédito",1,"NIVEL 2"]
[null,"TIPO_ACTIVIDAD_ECONOMICA","S04","Compra de vehículos",1,"NIVEL 2"]
[null,"TIPO_ACTIVIDAD_ECONOMICA","S06","Reparación de vehículos",1,"NIVEL 2"]
[null,"TIPO_ACTIVIDAD_ECONOMICA","S08","Compra de menaje de casa",1,"NIVEL 2"]
[null,"TIPO_ACTIVIDAD_ECONOMICA","S10","Préstamos para  educación parauniversitaria",1,"NIVEL 2"]
[null,"TIPO_ACTIVIDAD_ECONOMICA","S12","Préstamos para eduación universitaria",1,"NIVEL 2"]
[null,"TIPO_ACTIVIDAD_ECONOMICA","S14","Préstamos para otras modalidades de educación o capacitación",1,"NIVEL 2"]
[null,"TIPO_ACTIVIDAD_ECONOMICA","S16","Servicios médicos",1,"NIVEL 2"]
[null,"TIPO_ACTIVIDAD_ECONOMICA","S18","Viaje",1,"NIVEL 2"]
[null,"TIPO_ACTIVIDAD_ECONOMICA","S90","Otros rubros de consumo",1,"NIVEL 2"]
[null,"TIPO_ACTIVIDAD_ECONOMICA","S99","Operaciones  de  la anterior  clasificación de Consumo no identificables en esta clasificación",1,"NIVEL 2"]
[null,"TIPO_ACTIVIDAD_ECONOMICA","S99999","Actividades de la anterior clasificación reportadas en un nivel superior de S",1,"NIVEL 2"]
[null,"TIPO_ACTIVIDAD_ECONOMICA","X","Otras actividades del sector privado no financiero",1,"NIVEL 1"]
[null,"TIPO_ACTIVIDAD_ECONOMICA","X02","Otras actividades",1,"NIVEL 2"]
[null,"TIPO_ACTIVIDAD_ECONOMICA","X04","Actividades productivas sin fines de lucro",1,"NIVEL 2"]
[null,"TIPO_ACTIVIDAD_ECONOMICA","X90","Actividades no contempladas en ninguna otra actividad",1,"NIVEL 2"]
[null,"TIPO_ACTIVIDAD_ECONOMICA","X99","Operaciones  de  la anterior  clasificación de  Otras Actividades  no identificables en esta clasificación",1,"NIVEL 2"]
[null,"TIPO_ACTIVIDAD_ECONOMICA","X99999","Actividades de la anterior clasificación reportadas en un nivel superior de X",1,"NIVEL 2"]
[null,"TIPO_ACTIVIDAD_ECONOMICA","Y","Administración pública",1,"NIVEL 1"]
[null,"TIPO_ACTIVIDAD_ECONOMICA","Y02","Salud",1,"NIVEL 2"]
[null,"TIPO_ACTIVIDAD_ECONOMICA","Y04","Enseñanza",1,"NIVEL 2"]
[null,"TIPO_ACTIVIDAD_ECONOMICA","Y06","Transporte",1,"NIVEL 2"]
[null,"TIPO_ACTIVIDAD_ECONOMICA","Y08","Seguridad",1,"NIVEL 2"]
[null,"TIPO_ACTIVIDAD_ECONOMICA","Y10","Electricidad",1,"NIVEL 2"]
[null,"TIPO_ACTIVIDAD_ECONOMICA","Y12","Telecomunicaciones",1,"NIVEL 2"]
[null,"TIPO_ACTIVIDAD_ECONOMICA","Y14","Hidrocarburos",1,"NIVEL 2"]
[null,"TIPO_ACTIVIDAD_ECONOMICA","Y16","Explotación de  minas y canteras",1,"NIVEL 2"]
[null,"TIPO_ACTIVIDAD_ECONOMICA","Y18","Intermediación financiera, excepto seguros, pensiones y fondos de inversión",1,"NIVEL 2"]
[null,"TIPO_ACTIVIDAD_ECONOMICA","Y20","Operativa de Seguros",1,"NIVEL 2"]
[null,"TIPO_ACTIVIDAD_ECONOMICA","Y22","Operativa de fondos de inversión y de pensión",1,"NIVEL 2"]
[null,"TIPO_ACTIVIDAD_ECONOMICA","Y24","Otras actividades de asistencia social",1,"NIVEL 2"]
[null,"TIPO_ACTIVIDAD_ECONOMICA","Y26","Conservación ambiental",1,"NIVEL 2"]
[null,"TIPO_ACTIVIDAD_ECONOMICA","Y28","Construcción, administración y mantenimiento de infraestructura",1,"NIVEL 2"]
[null,"TIPO_ACTIVIDAD_ECONOMICA","Y30","Turismo",1,"NIVEL 2"]
[null,"TIPO_ACTIVIDAD_ECONOMICA","Y32","Cultura",1,"NIVEL 2"]
[null,"TIPO_ACTIVIDAD_ECONOMICA","Y34","Deportes",1,"NIVEL 2"]
[null,"TIPO_ACTIVIDAD_ECONOMICA","Y90","Otras actividades de la Administración Pública",1,"NIVEL 2"]
[null,"TIPO_ACTIVIDAD_ECONOMICA","Y901","Gestión Legislativa",1,"NIVEL 3"]
[null,"TIPO_ACTIVIDAD_ECONOMICA","Y902","Hacienda Pública",1,"NIVEL 3"]
[null,"TIPO_ACTIVIDAD_ECONOMICA","Y903","Gestión Judicial",1,"NIVEL 3"]
[null,"TIPO_ACTIVIDAD_ECONOMICA","Y904","Gestión Electoral",1,"NIVEL 3"]
[null,"TIPO_ACTIVIDAD_ECONOMICA","Y909","Otras actividades de la Administración Pública no contempladas en las anteriores",1,"NIVEL 3"]
[null,"TIPO_ACTIVIDAD_ECONOMICA","Y99999","Actividades de la anterior clasificación reportadas en un nivel superior de Y",1,"NIVEL 2"]
[null,"TIPO_ACTIVIDAD_ECONOMICA","Z","Actividades de entidades y órganos  extraterritoriales",1,"NIVEL 1"]
[null,"TIPO_ACTIVIDAD_ECONOMICA","Z02","Actividades del sector público externo",1,"NIVEL 2"]
[null,"TIPO_ACTIVIDAD_ECONOMICA","Z04","Actividades del sector privado externo",1,"NIVEL 2"]
[null,"TIPO_ACTIVIDAD_ECONOMICA","Z99999","Actividades de la anterior clasificación reportadas en un nivel superior de Z",1,"NIVEL 2"]
[null,"COMPORTAMIENTO_PAGO_SBD",0,"Aplica otra normativa.",1]
[null,"COMPORTAMIENTO_PAGO_SBD",1,"Nivel 1 : Igual o menor a 2.33",1]
[null,"COMPORTAMIENTO_PAGO_SBD",2,"Nivel 2 : Mayor a 2.33 e igual o menor a 3.66",1]
[null,"COMPORTAMIENTO_PAGO_SBD",3,"Nivel 3: Mayor a 3.66",1]
[null,"TIPO_BENEFICIARIO_SBD",0,"No es beneficiario SBD",1]
[null,"TIPO_BENEFICIARIO_SBD",1,"Micro Empresa ",1]
[null,"TIPO_BENEFICIARIO_SBD",2,"Pequeña Empresa ",1]
[null,"TIPO_BENEFICIARIO_SBD",3,"Mediana Empresa",1]
[null,"TIPO_BENEFICIARIO_SBD",4,"Emprendedor Persona física por iniciar una actividad económica ",1]
[null,"TIPO_BENEFICIARIO_SBD",5,"Emprendedor Persona jurídica por iniciar una actividad económica ",1]
[null,"TIPO_BENEFICIARIO_SBD",6,"Micro productor agropecuario",1]
[null,"TIPO_BENEFICIARIO_SBD",7,"Pequeño productor agropecuario ",1]
[null,"TIPO_BENEFICIARIO_SBD",8,"Mediano productor agropecuario",1]
[null,"TIPO_BENEFICIARIO_SBD",9,"Modelos asociativos empresariales",1]
[null,"TIPO_BENEFICIARIO_SBD",10,"Micro empresa Industrial",1]
[null,"TIPO_BENEFICIARIO_SBD",11,"Pequeña empresa Industrial",1]
[null,"TIPO_BENEFICIARIO_SBD",12,"Mediana empresa Industrial",1]
[null,"TIPO_BENEFICIARIO_SBD",13,"Micro empresa Tecnología",1]
[null,"TIPO_BENEFICIARIO_SBD",14,"Pequeña empresa Tecnología",1]
[null,"TIPO_BENEFICIARIO_SBD",15,"Mediana empresa Tecnología",1]
[null,"TIPO_BENEFICIARIO_SBD",16,"Gran Empresa",1]
[null,"TIPO_BENEFICIARIO_SBD",17,"Emprendedor de Subsistencia",1]
[null,"TIPO_BENEFICIARIO_SBD",18,"Emprendedor de Oportunidad de Mercado (Dinámico)",1]
[null,"TIPO_BENEFICIARIO_SBD",19,"Emprendedor de Alto Impacto",1]
[null,"TIPO_BENEFICIARIO_SBD",20,"Emprendedor Tradicional",1]
[null,"TIPO_RIESGO_CAMBIARIO_DEUDOR",0,"No Aplica",1]
[null,"TIPO_RIESGO_CAMBIARIO_DEUDOR",1,"Deudor con bajo riesgo cambiario del crédito",1]
[null,"TIPO_RIESGO_CAMBIARIO_DEUDOR",2,"Deudor con alto riesgo cambiario del crédito",1]
[null,"TIPO_INGRESO_DEUDOR",1,"Trabajo Independiente",1,"El ingreso bruto mensual del deudor, estimado por la entidad según sus metodologías para la evaluación de la capacidad de los deudores, las cuales deben estar aprobadas por Junta Directiva o autoridad equivalente. \nEn este sentido, la entidad, por ejemplo, podría requerir la presentación de: de la declaración jurada del impuesto de la renta, ó  una certificación de ingresos expedida por un tercero (CPA, CPI por ejemplo), ó una declaración jurada de ingresos"]
[null,"TIPO_INGRESO_DEUDOR",2,"Trabajo Asalariado",1,"El ingreso bruto mensual del deudor, estimado por la entidad según sus metodologías para la evaluación de la capacidad de los deudores, las cuales deben estar aprobadas por Junta Directiva o autoridad equivalente. \nEn este sentido, la entidad, por ejemplo, podría requerir la presentación de: orden patronal expedida por la CCSS."]
[null,"TIPO_INGRESO_DEUDOR",3,"Régimen Contributivo IVM",1,"Corresponde al ingreso percibido por pensiones del Régimen Contributivo por Invalidez, Vejez o Muerte;"]
[null,"TIPO_INGRESO_DEUDOR",4,"Régimen No Contributivo",1,"Corresponde al ingreso percibido por pensiones del Régimen no Contributivo."]
[null,"TIPO_INGRESO_DEUDOR",5,"Pensiones Alimenticias Judiciales",1,"Corresponde al ingreso percibido por las pensiones respaldadas por un fallo judicial."]
[null,"TIPO_INGRESO_DEUDOR",6,"Pensiones Alimenticias no Judiciales.",1,"Corresponde al ingreso percibido por las pensiones provenientes pero no respaldadas por un fallo judicial."]
[null,"TIPO_INGRESO_DEUDOR",7,"Jubilación del exterior",1,"Corresponde al ingreso de personas retiradas proveniente de países del exterior"]
[null,"TIPO_INGRESO_DEUDOR",8,"Pensiones del Exterior",1,"Corresponde al ingreso de personas  proveniente de una pensión proveniente de países del exterior"]
[null,"TIPO_INGRESO_DEUDOR",9,"Alquileres",1,"Corresponde al ingreso percibido por por alquileres de (bienes raíces en general) viviendas, apartamentos, condominios, terrenos o vehículos o maquinaria"]
[null,"TIPO_INGRESO_DEUDOR",10,"Instrumentos Financieros",1,"Corresponde al ingreso percibido por intereses de depósitos a plazos"]
[null,"TIPO_INGRESO_DEUDOR",11,"Crédito",1,"Corresponde al ingreso percibido por la realización de operaciones crediticias contraídas con terceras personas."]
[null,"TIPO_INGRESO_DEUDOR",12,"Dividendos",1,"Corresponde al ingreso percibido por los dividendos de las acciones de empresas. (puede que no trabaje en ella)"]
[null,"TIPO_INGRESO_DEUDOR",13,"Beneficios Asociación Solidarista",1,"Corresponde al ingreso percibido por las retribuciones como miembro de una asociación solidarista"]
[null,"TIPO_INGRESO_DEUDOR",14,"Beneficios Sector Cooperativo",1,"Corresponde al ingreso percibido por las retribuciones como miembro de una cooperativa de cualquier clase."]
[null,"TIPO_INGRESO_DEUDOR",15,"Remesas",1,"Corresponde al ingreso percibido por remesas del exterior recibidas a nombre propio."]
[null,"TIPO_INGRESO_DEUDOR",16,"Transferencias Internas",1,"Corresponde al ingreso percibido por transferencias de dinero de terceros en el territorio nacional."]
[null,"TIPO_INGRESO_DEUDOR",17,"Sin Ingreso Demostrado",1,"Corresponde a la tasación del 50% del salario base mensual definido por el Poder Judicial, debido a que la entidad no cuenta con el sustento requerido en los párrafos anteriores, previa verificación de que el deudor realiza una actividad económica"]
[null,"TIPO_INGRESO_DEUDOR",18,"Dietas",1,"Ingresos percibidos por dietas"]
[null,"TIPO_INGRESO_DEUDOR",19,"Sin Ingreso",1,"La entidad no reporta ingreso\nEn caso de que el deudor reporte alguna actividad económica, pero la entidad no cuente con la información sobre el ingreso bruto del deudor, se tomará como referencia de ingreso bruto el 50% del salario base mensual, definido por el Poder Judicial."]
[null,"TIPO_ENFOQUE",0,"Deudor exclusivo de SBD.",1,"Deudor exclusivo del Sistema de Banca para el Desarrollo."]
[null,"TIPO_ENFOQUE",1,"Enfoque Operación.",1,"Segmentos indicados en los incisos del a) al d), y el numeral 3 del inciso e) del Reglamento sobre cálculo de estimaciones crediticias. "]
[null,"TIPO_ENFOQUE",2,"Enfoque Deudor.",1,"Segmentos Indicads en los numerales 1 y 2 del inciso e) del Reglamento sobre cálculo de estimaciones crediticias."]
[null,"TIPO_SEGMENTO",0,"SBD (N/A)",1,"No Aplica"]
[null,"TIPO_SEGMENTO",1,"Revolutivos",1,"Segmento Créditos revolutivos de consumo aplicable a personas físicas"]
[null,"TIPO_SEGMENTO",2,"Vehículos",1,"Créditos para vehículos aplicables a personas físicas y personas jurídicas,"]
[null,"TIPO_SEGMENTO",3,"Consumo Regular",1,"Créditos de consumo regular "]
[null,"TIPO_SEGMENTO",4,"Vivienda",1,"Segmento Créditos para vivienda aplicables a personas físicas y personas jurídicas"]
[null,"TIPO_SEGMENTO",5,"Empresarial 1",1,"Segmentos Empresarial 1, Personas jurídicas y físicas"]
[null,"TIPO_SEGMENTO",6,"Empresarial 2",1,"Empresarial 2, Personas jurídicas y físicas"]
[null,"TIPO_SEGMENTO",7,"Empresarial 3",1,"Segmento Empresarial 3: Personas jurídicas y físicas"]
[null,"ETAPA",1,"Etapa 1",1]
[null,"ETAPA",2,"Etapa 2",1]
[null,"ETAPA",3,"Etapa 3",1]
[null,"TIPO_OPERACION",1,"Directa",1,"R: No debe reportar “SaldoPendienteUtilizacionSinCompromiso” y el “SaldoPrincipalConDepositoPrevio” debe ser cero.\n\nO1: Al menos uno de los siguientes saldos debe tener un valor mayor que cero: “SaldoPrincipal” (cuenta contable 130) o “SaldoPorDesembolsarConCompromiso” (cuenta contable 619.01).  \n\nO2: Puede tener con valor mayor que cero los saldos “SaldoProductos”, “SaldoComisiones” y “SaldoCuentasCobrarAsociadasOperacion”.\n\nO3: Este tipo de operaciones se utilizan para créditos con desembolsos por tractos, una vez desembolsado la totalidad del monto autorizado, se debe reportar como una operación crediticia directa (Tipo 1)."]
[null,"TIPO_OPERACION",2,"Créditos con obligación de desembolso",1,"R: No debe reportar “SaldoPendienteUtilizacionSinCompromiso” y el “SaldoPrincipalConDepositoPrevio” debe ser cero.\n\nO1: El registro para el que el campo “IdOperacionCredito” es igual al campo “IdLineaCredito”, se debe reportar con los campos “SaldoPrincipal” y “SaldoProductos” en cero.\n\nEl registro para el que el campo “IdOperacionCredito” es igual al campo “IdLineaCredito” debe registrar en el campo “MontoOperaciónAutorizado” el importe correspondiente al indicado en el contrato de crédito (mostrar saldo mayor a cero) y el campo “SaldoPorDesembolsarConCompromiso” (cuenta contable 615.02) puede registrase con un valor igual o mayor que cero.  "]
[null,"TIPO_OPERACION",3,"Tarjetas de crédito ",1,"El registro para el que el campo “IdOperacionCredito” es diferente al campo “IdLineaCredito”, el campo “SaldoPrincipal” debe ser mayor que cero y los campos “SaldoPorDesembolsarConCompromiso” y “MontoOperacionAutorizado” deben ser cero.\n\nO2: Puede tener “SaldoProductos”, “SaldoComisiones” y “SaldoCuentasCobrarAsociadasOperacion”.\nEste tipo de operaciones crediticias deben reportarse según el ejemplo que se muestra en el Excel adjunto. \n \nO3: Con este código se deben reportar las operaciones de líneas de crédito, que se formalizan con un identificador de operación (IdOperacionCredito) igual al identificador de la línea de crédito (IdLineaCredito), durante el tiempo que la operación esté vigente. \n\nO4: Para el registro cuyo campo “IdOperacionCredito” es igual al campo ”IdLineaCredito”, los siguientes campos no deben reportarse: “Frecuencia Pago Actual Principal”, “Frecuencia Pago Actual Intereses”, “Fecha Vencimiento Periodo Gracia Principal”, “Tasa Interés Nominal Vigente”, “Tipo Tasa”, “Factor De Tiempo”, “Forma Pago Vigente Principal”, “Forma Pago Vigente Intereses”, “Fecha Corte Operación”, “Fecha Próximo Pago Principal”, “Fecha Próximo Pago Interés”, “Fecha Amortización Hasta”, “Fecha Interés Hasta”, “Fecha Pago Pactado Principal”, “Fecha Pago Pactado Intereses”, “Tipo Cuota Principal”, “Monto Cuota Principal Actual”, “Monto Cuota Intereses Actual”"]
[null,"TIPO_OPERACION",4,"Líneas de utilización automática excepto tarjetas de crédito",1,"R: No debe reportar: “SaldoPendienteUtilizacionSinCompromiso”, y los campos “SaldoPrincipalConDepositoPrevio”, “Saldo Principal y “Saldo Productos” deben ser cero.\nO1: Puede tener con saldo mayor que cero los saldos “SaldoPorDesembolsarConCompromiso”, “Saldo Comisiones” y “SaldoCuentasCobrarAsociadasOperacion”.    \n\nO2:  Puede darse el caso que ninguno de los campos mencionados en la observación O1  tenga saldo, por ejemplo cuando en una línea de crédito se ha desembolsado la totalidad del monto autorizado. En este caso debe reportarse la línea para efectos de reportarse la garantía.   Además en estos casos las operaciones directas de esta línea (desembolsos) deben indicar el “Porcentaje Responsabilidad” de la garantía de la línea de crédito y el campo “IdLineaCredito”\n\n O3: Con este código se deben reportar en la cuenta contable 615, excepto 615.02, las operaciones de líneas de crédito que se formalizan con un identificador de operación (IdOperacionCredito) igual al identificador de la línea de crédito (IdLineaCredito).\n\nO4: Para el registro cuyo campo “IdOperacionCredito” es igual al campo “IdLineaCredito” y el “Saldo Principal” es cero, los siguientes campos no deben reportarse: “Frecuencia Pago Actual Principal”, “Frecuencia Pago Actual Intereses”, “Fecha Vencimiento Periodo Gracia Principal”, “Tasa Interés Nominal Vigente”, “Tipo Tasa”, “Factor De Tiempo”, “Forma Pago Vigente Principal”, “Forma Pago Vigente Intereses”, “Fecha Corte Operación”, “Fecha Próximo Pago Principal”, “Fecha Próximo Pago Interés”, “Fecha Amortización Hasta”, “Fecha Interés Hasta”, “Fecha Pago Pactado Principal”, “Fecha Pago Pactado Intereses”, “Tipo Cuota Principal”, “Monto Cuota Principal Actual”, “Monto Cuota Intereses Actual”."]
[null,"TIPO_OPERACION",5,"Línea de crédito con compromiso de desembolsar",1,"R: No debe reportar “SaldoPendienteUtilizacionSinCompromiso”. Además los saldos “SaldoPrincipal”, “SaldoProductos” y “SaldoPrincipalConDepositoPrevio” deben ser cero.\nO1: Puede tener con saldo mayor que cero los saldos “SaldoPorDesembolsarConCompromiso”, “SaldoComisiones” y “SaldoCuentasCobrar AsociadasOperacion”.\n\nO2: Ver O2 del código 4.\n\nO3: Con este código se deben reportaren la cuenta contable 619, las operaciones de líneas de crédito que se formalizan con un identificador de operación igual al identificador de la línea de crédito."]
[null,"TIPO_OPERACION",6,"Líneas de crédito u operaciones crediticias otorgadas pendientes de utilización ",1,"R: Los campos “SaldoPrincipalConDepositoPrevio”,  “SaldoPorDesembolsarConCompromiso”, “SaldoComisiones”, “Saldo Principal” y “Saldo Productos” deben ser cero.\n\nO1: Puede tener con saldo mayor que cero los saldos, “Saldo Pendiente Utilización Sin Compromiso”, “SaldoCuentasCobrarAsociadasOperacion” y “Saldo Comisiones”. \n   \nO2: Para las líneas de crédito, ver O2 del código 4.\n\nO3: Con este código se deben reportar en la cuenta contable 814, las operaciones de líneas de crédito que se formalizan con un identificador de operación (IdOperacionCredito) igual al identificador de la línea de crédito (IdLineaCredito).\n\nO4: Los siguientes campos no deben reportarse: “Frecuencia Pago Actual Principal”, “Frecuencia Pago Actual Intereses”, “Fecha Vencimiento Periodo Gracia Principal”, “Tasa Interés Nominal Vigente”, “Tipo Tasa”, “Factor De Tiempo”, “Forma Pago Vigente Principal”, “Forma Pago Vigente Intereses”, “Fecha Corte Operación”, “Fecha Próximo Pago Principal”, “Fecha Próximo Pago Interés”, “Fecha Amortización Hasta”, “Fecha Interés Hasta”, “Fecha Pago Pactado Principal”, “Fecha Pago Pactado Intereses”, “Tipo Cuota Principal”, “Monto Cuota Principal Actual”, “Monto Cuota Intereses Actual”\n\nO5: Cuando se trate de operaciones crediticias (no de líneas de crédito) el campo “Id LíneaCredito” debe estar vacío. \n\nO6: En el caso de las operaciones crediticias, se deberá desembolsar mediante un único tracto, el cual se debe registrar como operación crediticia directa (Tipo 1), eliminando la operación tipo 6 mediante el código 24 de la Tabla “Tipo Motivo Operación No Reportada”."]
[null,"TIPO_OPERACION",7,"Contingencias crediticias",1,"R: Los campos “SaldoPorDesembolsarConCompromiso” y “SaldoProductos” deben reportarse en cero.  Además, el campo el “SaldoPendienteUtilizacionSinCompromiso” no debe reportarse.\nO1: Debe tener con saldo mayor que cero el “SaldoPrincipal” (cuenta contable 611, 612, 613, 616, 617) y puede tener con valor mayor que cero los saldos “SaldoComisiones” y “SaldoPrincipalConDepositoPrevio”.\nO2: Puede tener con saldo mayor que cero el “SaldoCuentasCobrarAsociadasOperacion”."]
[null,"TIPO_OPERACION",8,"Cartas de Crédito negociadas",1,"En este tipo de operación se debe de utilizar únicamente para las operaciones de cartas de crédito negociadas que de conformidad en el Plan RIF, se registran en las cuentas contables 131.33.2.06. 131.34.2.06, 132.33.2.06. 132.34.2.06, 133.33.2.06. 133.34.2.06.\n\nR1:  El saldos principal siempre de be ser mayor a cero.\n\nR2:  Obligatoriamente siempre deben reportarse los siguientes campos:\na.\t“PaisDestinoCredito”\nb.\t“TipoEstadoOperacionCrediticia”\n \nEl fin es poder identificar las cartas de crédito negociadas, puede ser parte de una línea de crédito. Considerar que una vez formalizada la operación,  debe reportarse como una operación directa con el código 1."]
[null,"TIPO_OPERACION",9,"Crédito Salvamento ",1,"R: Los campos “SaldoPorDesembolsarConCompromiso”, “SaldoComisiones” y “SaldoPrincipalConDepositoPrevio” deben reportarse en cero. Además, el campo “SaldoPendienteUtilizacionSinCompromiso” no debe reportarse. \n\nO1: Debe tener “SaldoPrincipal” mayor a cero, puede tener con saldo mayor que cero los saldos de los campos “SaldoProductos” y “SaldoCuentasCobrarAsociadasOperacion”.\n\nO2: Las operaciones con este código no deben reportar el campo “IdLineaCredito”. \n\nNota: Código creado en atención a la Directriz N°059-H, “Creación del Programa de Crédito de Salvamento para personas sobreendeudadas”.\n_ _ _ __ _ _ __ _ _ __ _ _ __ _ _ __ _ _ _\nNOTA: Nota:  Mediante Circular 3960_2019 del 23 de diciembre de 2019 se crea en la tabla Tipo Operación, el código 9 “Crédito Salvamento” amparado en la Directriz N°059-H  de la Presidencia de la República y el Ministerio de Hacienda del 15 de octubre de 2019, el cual queda utilizable por parte de las entidades a partir del cierre de diciembre 2019."]
[null,"TIPO_CATALOGO",1,"Cuentas SUGEF",1,"Cuentas SUGEF para vaciados de estados contables."]
[null,"TIPO_CATALOGO",2,"Datos Adicionales",1,"Datos Adicionales"]
[null,"TIPO_CATALOGO",3,"Flujos de Efectivo",1,"Flujos de Efectivo"]
[null,"TIPO_CATALOGO",4,"Calce de Plazos",1,"Calce de Plazos"]
[null,"TIPO_CATALOGO",5,"Brechas",1,"Brechas"]
[null,"TIPO_CATALOGO",6,"Catálogo Encaje Legal",1,"Catálogo Encaje Legal"]
[null,"TIPO_CATALOGO",7,"Informacion Complementaria Adicional de Grupos y Conglomerados",1,"Información Complementaria Adicional de Grupos y Conglomerados"]
[null,"TIPO_CATALOGO",8,"Datos Adicionales para Suficiencia de Grupos y conglomerados",1,"Datos Adicionales para Suficiencia de Grupos y conglomerados"]
[null,"TIPO_CATALOGO",14,"Catálogo Contable 2008",1,"Catálogo de cuentas contables 2008"]
[null,"TIPO_CATALOGO",33,"Catalogo ICL",1,"Catalogo ICL"]
[null,"TIPO_CATALOGO",34,"Catalogo Suficiencia Patrimonial",1,"Catalogo Suficiencia Patrimonial"]
[null,"TIPO_CATALOGO",35,"Catalogo Indicadores Financieros",1,"Catalogo Indicadores Financieros"]
[null,"TIPO_ESTADO_OPERACION",1,"VIGENTE",1,"Operaciones sin atraso "]
[null,"TIPO_ESTADO_OPERACION",2,"VENCIDA MENOR O IGUAL A 90 DIAS",1,"Operacion con atraso menor a 91 dias"]
[null,"TIPO_ESTADO_OPERACION",3,"VENCIDA A MAS DE 90 DIAS Y MENOR O IGUAL A 180 DIAS",1,"Operacion con atraso menor a 181 dias"]
[null,"TIPO_ESTADO_OPERACION",4,"VENCIDA A MAS DE 180 DIAS",1,"Operacion con atraso mayor a 180 dias"]
[null,"TIPO_ESTADO_OPERACION",5,"COBRO JUDICIAL",1,"Las operaciones con saldos sobre los que se haya exigido judicialmente su reembolso mediante la ejecución de la garantía, aunque estén garantizados, así como las operaciones sobre las que el deudor haya suscitado litigio de cuya resolución dependa su cobro."]
[null,"TIPO_ESTADO_OPERACION",6,"PROCESO EJECUCION GARANTIA",1,"Las operaciones en las que se haya iniciado el proceso de ejecución de la garantía real, incluyendo las operaciones de arrendamiento financiero en las que la entidad haya decidido rescindir el contrato para recuperar la posesión del bien"]
[null,"TIPO_PERIODICIDAD",0,"Pagos irregulares",1]
[null,"TIPO_PERIODICIDAD",1,"Diario",1]
[null,"TIPO_PERIODICIDAD",2,"Semanal",1]
[null,"TIPO_PERIODICIDAD",3,"Quincenal",1]
[null,"TIPO_PERIODICIDAD",4,"Mensual",1]
[null,"TIPO_PERIODICIDAD",5,"Bimestral  ",1]
[null,"TIPO_PERIODICIDAD",6,"Trimestral",1]
[null,"TIPO_PERIODICIDAD",7,"Cuatrimestral",1]
[null,"TIPO_PERIODICIDAD",8,"Semestral ",1]
[null,"TIPO_PERIODICIDAD",9,"Anual",1]
[null,"TIPO_PERIODICIDAD",10,"Al vencimiento ",1]
[null,"TIPO_PERIODICIDAD",11,"Bisemanal",1]
[null,"TIPO_PERIODICIDAD",12,"Octomensual",1]
[null,"TIPO_CUOTA_PRINCIPAL",1,"Principal según cuota nivelada",1]
[null,"TIPO_CUOTA_PRINCIPAL",2,"Principal constante",1]
[null,"TIPO_CUOTA_PRINCIPAL",3,"Principal constante con incrementos periódicos",1]
[null,"TIPO_CUOTA_PRINCIPAL",4,"Principal pactado a fechas específicas",1]
[null,"TIPO_CUOTA_PRINCIPAL",5,"Principal al vencimiento",1]
[null,"TIPO_INTERES_REFERENCIA_TASA_VARIABLE",1,"Libor 3 meses",1]
[null,"TIPO_INTERES_REFERENCIA_TASA_VARIABLE",2,"Libor 6 meses",1]
[null,"TIPO_INTERES_REFERENCIA_TASA_VARIABLE",3,"Prime Rate",1]
[null,"TIPO_INTERES_REFERENCIA_TASA_VARIABLE",4,"Tasa Básica Pasiva BCCR",1]
[null,"TIPO_INTERES_REFERENCIA_TASA_VARIABLE",5,"Tasa Política Monetaria CR",1]
[null,"TIPO_INTERES_REFERENCIA_TASA_VARIABLE",6,"Tasa Redescuento BCCR",1]
[null,"TIPO_INTERES_REFERENCIA_TASA_VARIABLE",7,"Otra",1]
[null,"TIPO_INTERES_REFERENCIA_TASA_VARIABLE",8,"Sin tasa de referencia",1]
[null,"TIPO_INTERES_REFERENCIA_TASA_VARIABLE",9,"Tasa SOFR",1]
[null,"TIPO_INTERES_REFERENCIA_TASA_VARIABLE",10,"TRI 1 SEMANA",1]
[null,"TIPO_INTERES_REFERENCIA_TASA_VARIABLE",11,"TRI 1 MES",1]
[null,"TIPO_INTERES_REFERENCIA_TASA_VARIABLE",12,"TRI 3 MESES",1]
[null,"TIPO_INTERES_REFERENCIA_TASA_VARIABLE",13,"TRI 6 MESES",1]
[null,"TIPO_INTERES_REFERENCIA_TASA_VARIABLE",14,"TRI 9 MESES",1]
[null,"TIPO_INTERES_REFERENCIA_TASA_VARIABLE",15,"TRI 12 MESES",1]
[null,"TIPO_INTERES_REFERENCIA_TASA_VARIABLE",16,"TRI 24 MESES",1]
[null,"TIPO_INTERES_REFERENCIA_TASA_VARIABLE",17,"TRI 36 MESES",1]
[null,"TIPO_INTERES_REFERENCIA_TASA_VARIABLE",18,"TRI 60 MESES",1]
[null,"TIPO_PROGRAMA_AUTORIZADO_SBD",0,"No aplica",1]
[null,"TIPO_PROGRAMA_AUTORIZADO_SBD",30001,"Adelante mujeres",1]
[null,"TIPO_PROGRAMA_AUTORIZADO_SBD",30002,"Arrendamiento financiero del SBD",1]
[null,"TIPO_PROGRAMA_AUTORIZADO_SBD",30003,"Atención de emergencias nacionales",1]
[null,"TIPO_PROGRAMA_AUTORIZADO_SBD",30004,"Créditos verdes del SBD",1]
[null,"TIPO_PROGRAMA_AUTORIZADO_SBD",30005,"Financiamiento de los sectores industria, comercio y servicios",1]
[null,"TIPO_PROGRAMA_AUTORIZADO_SBD",30006,"Financiamiento del sector agropecuario - agrícola",1]
[null,"TIPO_PROGRAMA_AUTORIZADO_SBD",30007,"Financiamiento del sector agropecuario ganadería mayor y ganadería menor",1]
[null,"TIPO_PROGRAMA_AUTORIZADO_SBD",30008,"Financiamiento para emprendedurismo del SBD",1]
[null,"TIPO_PROGRAMA_AUTORIZADO_SBD",30009,"Financiamiento para la aceleración de empresas del SBD",1]
[null,"TIPO_PROGRAMA_AUTORIZADO_SBD",30010,"Fomento para la asociatividad",1]
[null,"TIPO_PROGRAMA_AUTORIZADO_SBD",30011,"Fortalecimiento Pequeña Empresa mandato (esquema 3re piso)",1]
[null,"TIPO_PROGRAMA_AUTORIZADO_SBD",30012,"INCOPESCA",1]
[null,"TIPO_PROGRAMA_AUTORIZADO_SBD",30013,"MAG-PIPA",1]
[null,"TIPO_PROGRAMA_AUTORIZADO_SBD",30014,"PPZN",1]
[null,"TIPO_PROGRAMA_AUTORIZADO_SBD",30015,"Prazas",1]
[null,"TIPO_PROGRAMA_AUTORIZADO_SBD",30016,"Reconversión productiva",1]
[null,"TIPO_PROGRAMA_AUTORIZADO_SBD",30017,"FIDAGRO",1]
[null,"TIPO_PROGRAMA_AUTORIZADO_SBD",30018,"Capital semilla",1]
[null,"TIPO_PROGRAMA_AUTORIZADO_SBD",30019,"Créditos avalados por el Finade (Avales Individuales)",1]
[null,"TIPO_PROGRAMA_AUTORIZADO_SBD",30020,"Créditos avalados por el Finade (Avales de Cartera)",1]
[null,"TIPO_PROGRAMA_AUTORIZADO_SBD",30021,"Créditos avalados por el Finade (Avales con Contragarantías)",1]
[null,"TIPO_PROGRAMA_AUTORIZADO_SBD",30022,"Programa de financiamiento para el fortalecimiento de las pymes y encadenamientos turísticos.",1]
[null,"TIPO_PROGRAMA_AUTORIZADO_SBD",30023,"Programa de renovación para la transformación y competitividad del sector cafetalero.",1]
[null,"TIPO_PROGRAMA_AUTORIZADO_SBD",30024,"Programa para el fortalecimiento y competitividad del sector cacaotero.",1]
[null,"TIPO_PROGRAMA_AUTORIZADO_SBD",30025,"Programa Sectorial de Financiamiento, Fomento y Encadenamiento productivo del sector ganadero. IICA-SBD",1]
[null,"TIPO_PROGRAMA_AUTORIZADO_SBD",30026,"Programa de Financiamiento para Mipymes Exportadoras",1]
[null,"TIPO_PROGRAMA_AUTORIZADO_SBD",30027,"Programa Capital de Riesgo",1]
[null,"TIPO_PROGRAMA_AUTORIZADO_SBD",30028,"Tarjeta de Crédito MIPYMES",1]
[null,"TIPO_SECTOR_PRIORITARIO_DEUDOR_SBD",0,"No aplica (operación no es SBD)",1]
[null,"TIPO_SECTOR_PRIORITARIO_DEUDOR_SBD",1,"Adulto Mayor",1]
[null,"TIPO_SECTOR_PRIORITARIO_DEUDOR_SBD",2,"Asociación de Desarrollo",1]
[null,"TIPO_SECTOR_PRIORITARIO_DEUDOR_SBD",3,"Cooperativas",1]
[null,"TIPO_SECTOR_PRIORITARIO_DEUDOR_SBD",4,"Jóvenes Emprendedores",1]
[null,"TIPO_SECTOR_PRIORITARIO_DEUDOR_SBD",5,"Microcréditos atendidos por Microfinancieras",1]
[null,"TIPO_SECTOR_PRIORITARIO_DEUDOR_SBD",6,"Minorías Étnicas",1]
[null,"TIPO_SECTOR_PRIORITARIO_DEUDOR_SBD",7,"Mujeres",1]
[null,"TIPO_SECTOR_PRIORITARIO_DEUDOR_SBD",8,"Persona con discapacidad",1]
[null,"TIPO_SECTOR_PRIORITARIO_DEUDOR_SBD",9,"Producción más limpia",1]
[null,"TIPO_SECTOR_PRIORITARIO_DEUDOR_SBD",10,"Zona de menor desarrollo",1]
[null,"TIPO_SECTOR_PRIORITARIO_DEUDOR_SBD",11,"No atiende Sector Prioritario",1]
[null,"TIPO_SECTOR_PRIORITARIO_DEUDOR_SBD",12,"Consorcios Pyme",1]
[null,"TIPO_SECTOR_PRIORITARIO_DEUDOR_SBD",13,"Sector Creativo y Cultural",1]
[null,"TIPO_OPERACION_SFN",1,"Operación que le aplica normativa SUGEF 1-05",1,"Se usa en crediticio"]
[null,"TIPO_OPERACION_SFN",2,"Operación que le aplica normativa SUGEF 15-10",0,"Se usa en crediticio"]
[null,"TIPO_OPERACION_SFN",3,"Operación que le aplica normativa SUGEF 15-16, Deudor Beneficiario de Banca para el Desarrollo",1,"Se usa en crediticio"]
[null,"TIPO_OPERACION_SFN",4,"Operación que le aplica normativa SUGEF 15-16, Deudor Beneficiario de Microcrédito",1,"Se usa en crediticio"]
[null,"TIPO_OPERACION_SFN",5,"Opereación otorgada por Operadores No Regulados",1,"Se usa en crediticio SBD"]
[null,"TIPO_DEUDOR_SFN",1,"Deudor con todas sus operaciones amparadas a Acuerdo 1-05",1]
[null,"TIPO_DEUDOR_SFN",2,"Deudor con todas sus operaciones amparadas a Acuerdo 15-10",0]
[null,"TIPO_DEUDOR_SFN",3,"Deudor con todas sus operaciones amparadas a Acuerdo 1-05 y 15-10",0]
[null,"TIPO_DEUDOR_SFN",4,"Deudor Beneficiario de Microcrédito",1]
[null,"TIPO_DEUDOR_SFN",5,"Deudor Beneficiario de Banca para el Desarrollo (Todos los beneficiarios del SBD excepto los del Articulo 6, incisos f), Ley 9274).",1]
[null,"TIPO_DEUDOR_SFN",6,"Deudor presenta una combinación de operaciones del Acuerdo 1-05 y operaciones de Banca para el Desarrollo, Beneficiario de Microcrédito.",1]
[null,"TIPO_DEUDOR_SFN",7,"Deudor presenta una combinación de operaciones del Acuerdo 1-05 y operaciones de Banca para el Desarrollo, Beneficiario del SBD (Excepto los del Artículo 6, inciso f), Ley 9274",1]
[null,"TIPO_DEUDOR_SFN",8,"Deudor presenta una combinación de operaciones del Acuerdo 15-10 y operaciones de Banca para el Desarrollo, Beneficiario de Microcrédito",0]
[null,"TIPO_DEUDOR_SFN",9,"Deudor presenta una combinación de operaciones del Acuerdo 15-10 y operaciones de Banca para el Desarrollo, Beneficiario del SBD (Excepto los del Artículo 6, inciso f), Ley 9274",0]
[null,"TIPO_DEUDOR_SFN",10,"Deudor presenta una combinación de operaciones del acuerdo 1-05, acuerdo 15-10 y operac. Banca Desarrollo, Beneficiario del SBD (Excepto los articulos 6, insiso f) Ley 9274 (Tipo Operaciones 1-2-3)",0]
[null,"TIPO_DEUDOR_SFN",11,"Deudor presenta una combinación de operaciones del acuerdo 1-05, acuerdo 15-10 y operaciones de Banca para el Desarrollo, Beneficiario de microcrédito. (Tipo de Operaciones 1-2-4)",0]
[null,"TIPO_DEUDOR_SFN",12,"Deudor de Operadores No Regulados",1]
[null,"TIPO_NATURALEZA_GASTO",102,"Compra de terreno para la actividad productiva",1]
[null,"TIPO_NATURALEZA_GASTO",104,"Compra de inmueble nuevo para la actividad productiva",1]
[null,"TIPO_NATURALEZA_GASTO",106,"Compra de inmueble usado para la actividad productiva",1]
[null,"TIPO_NATURALEZA_GASTO",108,"Compra y reparación de inmueble para la actividad productiva",1]
[null,"TIPO_NATURALEZA_GASTO",110,"Reparación de inmueble para la actividad productiva",1]
[null,"TIPO_NATURALEZA_GASTO",112,"Construcción de inmueble para la actividad productiva",1]
[null,"TIPO_NATURALEZA_GASTO",114,"Compra de maquinaria y equipo para la actividad productiva",1]
[null,"TIPO_NATURALEZA_GASTO",116,"Construcción de vía  de transporte y/o puente",1]
[null,"TIPO_NATURALEZA_GASTO",118,"Construcción de puerto (aéreo o marítimo)",1]
[null,"TIPO_NATURALEZA_GASTO",120,"Reparación  de maquinaria y equipo para la actividad productiva",1]
[null,"TIPO_NATURALEZA_GASTO",125,"Compra de activos biológicos y capital para llevarlos a la etapa productiva (Renovación) SBD",1]
[null,"TIPO_NATURALEZA_GASTO",126,"Compra de activos biológicos y capital para la actividad productiva (Reactivación) SBD",1]
[null,"TIPO_NATURALEZA_GASTO",127,"Compra de activos biológicos y capital para la actividad productiva (Reconversión) SBD",1]
[null,"TIPO_NATURALEZA_GASTO",190,"Otros gastos de capital para la actividad productiva",1]
[null,"TIPO_NATURALEZA_GASTO",202,"Capital de trabajo",1]
[null,"TIPO_NATURALEZA_GASTO",203,"Capital de Asistencia SBD",1]
[null,"TIPO_NATURALEZA_GASTO",204,"Cancelación de deudas",1]
[null,"TIPO_NATURALEZA_GASTO",280,"Gestión de regulación de precios según inciso 5) del Art. 61 de la LOSBN",1]
[null,"TIPO_NATURALEZA_GASTO",281,"Articulo 61 Ley 1644 Operaciones activas Instituto Costarricense Acueductos y Alcantarillados (ICAA)",1]
[null,"TIPO_NATURALEZA_GASTO",282,"Articulo 61 Ley 1644 Operaciones activas Caja Costarricense de Seguro Social (CCSS)",1]
[null,"TIPO_NATURALEZA_GASTO",283,"Artículo 61, inciso 5) Ley 1644, Operaciones activas Municipalidades",1]
[null,"TIPO_NATURALEZA_GASTO",284,"Artículo 61, inciso 5) Ley 1644, Operaciones activas Instituto Costarricense de Electricidad",1]
[null,"TIPO_NATURALEZA_GASTO",285,"Artículo 135, Operaciones activas Fideicomisos de Obra Pública",1]
[null,"TIPO_NATURALEZA_GASTO",286,"Artículo 135, Operaciones activas Instituto Costarricense de Electricidad",1]
[null,"TIPO_NATURALEZA_GASTO",290,"Otros gastos de operación para la actividad productiva",1]
[null,"TIPO_NATURALEZA_GASTO",302,"Compra de terreno para construcción de vivienda del deudor",1]
[null,"TIPO_NATURALEZA_GASTO",304,"Compra de terreno para construcción de vivienda de terceros sin fines comerciales",1]
[null,"TIPO_NATURALEZA_GASTO",306,"Construcción de vivienda para el deudor",1]
[null,"TIPO_NATURALEZA_GASTO",308,"Construcción de vivienda para terceros sin fines comerciales",1]
[null,"TIPO_NATURALEZA_GASTO",310,"Compra y/o reparación de vivienda para el deudor",1]
[null,"TIPO_NATURALEZA_GASTO",312,"Compra y/o reparación de vivienda para terceros, sin fines comerciales",1]
[null,"TIPO_NATURALEZA_GASTO",313,"Ampliación y mejora de vivienda del deudor",1]
[null,"TIPO_NATURALEZA_GASTO",314,"Viaje",1]
[null,"TIPO_NATURALEZA_GASTO",316,"Compra y/o reparación de vehículos",1]
[null,"TIPO_NATURALEZA_GASTO",318,"Educación de deudor o terceros",1]
[null,"TIPO_NATURALEZA_GASTO",320,"Compra de menaje de casa",1]
[null,"TIPO_NATURALEZA_GASTO",322,"Servicios médicos",1]
[null,"TIPO_NATURALEZA_GASTO",390,"Otros destinos de gasto no lucrativo",1]
[null,"TIPO_ORIGEN_RECURSOS",102,"RECURSOS EXTERNOS, EN MONEDA NACIONAL, CANALIZADOS POR EL BANCO CENTRAL",1]
[null,"TIPO_ORIGEN_RECURSOS",104,"RECURSOS EXTERNOS, EN MONEDA EXTRANJERA, CANALIZADOS POR EL BANCO CENTRAL",1]
[null,"TIPO_ORIGEN_RECURSOS",106,"RECURSOS EXTERNOS CONTRATADOS EN MONEDA NACIONAL MEDIANTE CREDITOS DIRECTOS",1]
[null,"TIPO_ORIGEN_RECURSOS",108,"RECURSOS EXTERNOS CONTRATADOS EN MONEDA EXTRANJERA MEDIANTE CREDITOS DIRECTOS",1]
[null,"TIPO_ORIGEN_RECURSOS",110,"RECURSOS EXTERNOS CONTRATADOS EN MONEDA NACIONAL MEDIANTE LINEAS DE CREDITO",1]
[null,"TIPO_ORIGEN_RECURSOS",112,"RECURSOS EXTERNOS CONTRATADOS EN MONEDA EXTRANJERA MEDIANTE LINEAS DE CREDITO",1]
[null,"TIPO_ORIGEN_RECURSOS",114,"RECURSOS EXTERNOS CAPTADOS MEDIANTE EMISION DE DEUDA EN EL EXTERIOR",1]
[null,"TIPO_ORIGEN_RECURSOS",116,"OTRA FUENTES DE RECURSOS EXTERNOS EN MONEDA NACIONAL",1]
[null,"TIPO_ORIGEN_RECURSOS",118,"OTRAS FUENTES DE RECURSOS EXTERNOS EN MONEDA EXTRANJERA",1]
[null,"TIPO_ORIGEN_RECURSOS",119,"RECURSOS DEL FONDO DE CREDITO PARA EL DESARROLLO (Ley 8634).",0]
[null,"TIPO_ORIGEN_RECURSOS",120,"RECURSOS DEL FONDO DE FINANCIAMIENTO PARA EL DESARROLLO (Ley 8634).",0]
[null,"TIPO_ORIGEN_RECURSOS",121,"Otras fuentes de recursos con avales del Fondo de Avales o Garantías del Fideicomiso Nacional para el Desarrollo (FINADE)",0]
[null,"TIPO_ORIGEN_RECURSOS",122,"Recursos provenientes depósitos y captaciones que se utilicen para financiar créditos vivienda largo plazo(ART.62bis y 62ter,Ley7558 LeyOrgánicaBCCR)",1]
[null,"TIPO_ORIGEN_RECURSOS",123,"Recursos ODP (operaciones diferidas a pazo) BCCR",0]
[null,"TIPO_ORIGEN_RECURSOS",190,"OTRAS FUENTES DE RECURSOS",1]
[null,"TIPO_ORIGEN_RECURSOS",201,"Recursos del art 59 inciso i Ley 1644 préstamo a la Banca Estatal",1]
[null,"TIPO_ORIGEN_RECURSOS",211,"Recursos del FCD art 59 inciso i Ley 1644 dirigido a Beneficiario Final",1]
[null,"TIPO_ORIGEN_RECURSOS",212,"Recursos del FCD art 59 inciso i Ley 1644 dirigido a Operador Financiero Regulado Autorizado SBD No Bancos Privados",1]
[null,"TIPO_ORIGEN_RECURSOS",213,"Recursos del FCD art 59 inciso i Ley 1644 dirigido a Operador Financiero No Regulado Autorizado SBD",1]
[null,"TIPO_ORIGEN_RECURSOS",214,"Recursos del FCD art 59 inciso i Ley 1644 dirigido a FINADE",1]
[null,"TIPO_ORIGEN_RECURSOS",215,"Recursos del FCD art 59 inciso iiLey 1644 dirigido a Operador Financiero Regulado Segundo Piso  (No Bancos Públicos o Privados) a Beneficiario Final",1]
[null,"TIPO_ORIGEN_RECURSOS",216,"Recursos del FCD art 59 inciso ii Ley 1644 dirigido a Operador Financiero No Regulado Segundo Piso  a Beneficiario Final",1]
[null,"TIPO_ORIGEN_RECURSOS",221,"Recursos del FCD art 59 inciso ii Ley 1644 dirigido a Beneficiario Final",1]
[null,"TIPO_ORIGEN_RECURSOS",222,"Recursos art 59 inciso ii Ley 1644 dirigido a Operador Financiero Regulado No Bancos Públicos o Privados",1]
[null,"TIPO_ORIGEN_RECURSOS",223,"Recursos art 59 inciso ii Ley 1644 dirigido a Operador Financiero No Regulado",1]
[null,"TIPO_ORIGEN_RECURSOS",225,"Recursos art 59 inciso ii Ley 1644 Operador Financiero Regulado Segundo Piso (No Bancos Públicos o Privados) dirigido a Beneficiario Final",1]
[null,"TIPO_ORIGEN_RECURSOS",226,"Recursos art 59 inciso ii Ley 1644 Operador Financiero No Regulado Segundo Piso dirigido a Beneficiario Final",1]
[null,"TIPO_ORIGEN_RECURSOS",301,"Recursos del FOFIDE Operador Primer Piso Dirigido a Beneficiario Final",1]
[null,"TIPO_ORIGEN_RECURSOS",302,"Recursos del FOFIDE Dirigido a Operador financiero regulado No Bancos Públicos",1]
[null,"TIPO_ORIGEN_RECURSOS",303,"Recursos del FOFIDE Dirigido a Operador Financiero No Regulado",1]
[null,"TIPO_ORIGEN_RECURSOS",305,"Recursos del FOFIDE Operador Financiero Regulado Segundo Piso (No bancos Públicos) dirigido a Beneficiario Final",1]
[null,"TIPO_ORIGEN_RECURSOS",306,"Recursos del FOFIDE Operador Financiero No Regulado Segundo Piso dirigido a Beneficiario Final",1]
[null,"TIPO_ORIGEN_RECURSOS",401,"Recursos del FINADE: Fondo de Financiamiento Dirigido a Beneficiario Final",1]
[null,"TIPO_ORIGEN_RECURSOS",402,"Recursos del FINADE: Banca Segundo Piso Operadores Financieros Regulados",1]
[null,"TIPO_ORIGEN_RECURSOS",403,"Recursos del FINADE: Banca Segundo Piso Operadores Financieros No Regulados",1]
[null,"TIPO_ORIGEN_RECURSOS",405,"Recursos del FINADE Operador Financiero Regulado Segundo Piso dirigido a Beneficiario Final",1]
[null,"TIPO_ORIGEN_RECURSOS",406,"Recursos del FINADE Operador Financiero No Regulado Segundo Piso dirigido a Beneficiario Final",1]
[null,"TIPO_ORIGEN_RECURSOS",432,"Recursos del FINADE: Fondo de Servicios no Financieros y Desarrollo Empresarial",1]
[null,"TIPO_ORIGEN_RECURSOS",433,"Recursos del FINADE: Fondo de Capital Semilla y Capital de Riesgo",1]
[null,"TIPO_ORIGEN_RECURSOS",434,"Recursos del FINADE: Fondo de Financiamiento de primas sector agropecuario",1]
[null,"TIPO_ORIGEN_RECURSOS",435,"Otras Fuentes de Recursos (diferentes a las de SBD) garantizados con fondo de avales y garantías del FINADE.",1]
[null,"TIPO_ORIGEN_RECURSOS",501,"Recursos del Fondo de Garantías del Fondo especial para el desarrollo de las micros, pequeñas y medianas empresas (FODEMIPYME)",1]
[null,"TIPO_MODIFICACION_OPERACION",0,"Prórroga",1]
[null,"TIPO_MODIFICACION_OPERACION",1,"Modificación de la Identificación del deudor: Sea por Novación o por Otra situación",1]
[null,"TIPO_MODIFICACION_OPERACION",2,"Compra",1]
[null,"TIPO_MODIFICACION_OPERACION",3,"Refinanciamiento total",1]
[null,"TIPO_MODIFICACION_OPERACION",4,"Refinanciamiento parcial",1]
[null,"TIPO_MODIFICACION_OPERACION",5,"Readecuada",1]
[null,"TIPO_MODIFICACION_OPERACION",6,"Operación castigada reactivada",0]
[null,"TIPO_MODIFICACION_OPERACION",7,"Cambio físico tarjeta de crédito",1]
[null,"TIPO_MODIFICACION_OPERACION",8,"Variación del “MontoOperaciónAutorizado” por tipo de cambio",1]
[null,"TIPO_MODIFICACION_OPERACION",9,"Restructuración por la ampliación o reforzamiento de garantías",1,"Aplica solo para deudores que reciben recursos de la cartera de banca de desarrollo ( TipoOperacionSFN 3 y 4 otorgadas a partir del 1 de octubre 2016) y se debe utilizar cuando la entidad financiera reporta valor en el campo OperacionesRestructuradasSBD del Archivo de Deudores.\nAcuerdo SUGEF 15-16, Artículo 3 inciso o)). "]
[null,"TIPO_MODIFICACION_OPERACION",10,"Restructuración reducción en la tasa de interés",1,"Aplica solo para deudores que reciben recursos de la cartera de banca de desarrollo ( TipoOperacionSFN 3 y 4 otorgadas a partir del 1 de octubre 2016) y se debe utilizar cuando la entidad financiera reporta valor en el campo OperacionesRestructuradasSBD del Archivo de Deudores.\nAcuerdo SUGEF 15-16, Artículo 3 inciso o)."]
[null,"TIPO_MODIFICACION_OPERACION",11,"Restructuración ampliación del plazo",1,"Aplica solo para deudores que reciben recursos de la cartera de banca de desarrollo ( TipoOperacionSFN 3 y 4 otorgadas a partir del 1 de octubre 2016) y se debe utilizar cuando la entidad financiera reporta valor en el campo OperacionesRestructuradasSBD del Archivo de Deudores.\nAcuerdo SUGEF 15-16, Artículo 3 inciso o)."]
[null,"TIPO_MODIFICACION_OPERACION",12,"Restructuración concesión de un periodo de gracia",1,"Aplica solo para deudores que reciben recursos de la cartera de banca de desarrollo ( TipoOperacionSFN 3 y 4 otorgadas a partir del 1 de octubre 2016) y se debe utilizar cuando la entidad financiera reporta valor en el campo OperacionesRestructuradasSBD del Archivo de Deudores.\nAcuerdo SUGEF 15-16, Artículo 3 inciso o)."]
[null,"TIPO_MODIFICACION_OPERACION",13,"Restructuración ampliación de un periodo de gracia",1,"Aplica solo para deudores que reciben recursos de la cartera de banca de desarrollo ( TipoOperacionSFN 3 y 4 otorgadas a partir del 1 de octubre 2016) y se debe utilizar cuando la entidad financiera reporta valor en el campo OperacionesRestructuradasSBD del Archivo de Deudores.\nAcuerdo SUGEF 15-16, Artículo 3 inciso o)."]
[null,"TIPO_MODIFICACION_OPERACION",14,"Variación del \"MontoOperaciónAutorizado\" por sobregiro en tarjeta de crédito",1]
[null,"TIPO_MODIFICACION_OPERACION",15,"Prórroga por Emergencia Nacional COVID19",1]
[null,"TIPO_MODIFICACION_OPERACION",16,"Readecuación por Emergencia Nacional COVID19",1]
[null,"TIPO_MODIFICACION_OPERACION",17,"Refinanciamiento Parcial por Emergencia Nacional COVID19",1]
[null,"TIPO_MODIFICACION_OPERACION",18,"Refinanciamiento Total por Emergencia Nacional COVID19",1]
[null,"TIPO_MODIFICACION_OPERACION",19,"Readecuación por afectación Ley 9859",1]
[null,"TIPO_MODIFICACION_OPERACION",20,"Refinanciamiento Parcial por afectación Ley 9859",1]
[null,"TIPO_MODIFICACION_OPERACION",21,"Refinanciamiento Total por afectación Ley 9859",1]
[null,"TIPO_MODIFICACION_OPERACION",22,"Prórroga ODP (operaciones diferidas a plazo).",0]
[null,"TIPO_MODIFICACION_OPERACION",23,"Readecuación ODP (operaciones diferidas a plazo).",0]
[null,"TIPO_MODIFICACION_OPERACION",24,"Refinanciamiento Parcial ODP (operaciones diferidas a plazo).",0]
[null,"TIPO_GARANTIA",0,"No Mitigadora",0,"Codigo para reportar una operación que en periodos anteriores se les reportó una garantía pero que en el periodo actual dejó de tenerla o la garantía ya no mitiga.  "]
[null,"TIPO_GARANTIA",1,"Garantía Fiduciaria",1]
[null,"TIPO_GARANTIA",2,"Garantía Real",1]
[null,"TIPO_GARANTIA",3,"Garantía Valores",1]
[null,"TIPO_GARANTIA",4,"Garantía Carta de Crédito ",1]
[null,"TIPO_GARANTIA",5,"Garantía Documentos de Cartas de Crédito de Importación",1]
[null,"TIPO_GARANTIA",6,"Garantía Factura Cedida",1]
[null,"TIPO_GARANTIA",7,"Fideicomiso de Garantía",1]
[null,"TIPO_GARANTIA",8,"Operaciones crediticias otorgadas por una entidad supervisada por la SUGEF.",1,"Este tipo de garantía no tiene archivo específico ya que la información de esta garantía la reporta la entidad financiera supervisada por la SUGEF que cede la operación como garantía."]
[null,"TIPO_GARANTIA",9,"Garantías Mobiliarias",1]
[null,"TIPO_INDICADOR_INSCRIPCION",0,"No Aplica"]
[null,"TIPO_INDICADOR_INSCRIPCION",1,"No anotada/No inscrita",1]
[null,"TIPO_INDICADOR_INSCRIPCION",2,"Anotada",1]
[null,"TIPO_INDICADOR_INSCRIPCION",3,"Inscrita",1]
[null,"TIPO_ADQUISICION_BIEN",1,"Dación de pago",1]
[null,"TIPO_ADQUISICION_BIEN",2,"Adjudicados en remate judicial",1]
[null,"TIPO_ADQUISICION_BIEN",3,"Bienes adquiridos para ser entregados en arrendamiento financiero",1]
[null,"TIPO_ADQUISICION_BIEN",4,"Bienes adquiridos o producidos para la venta",1]
[null,"TIPO_ADQUISICION_BIEN",5,"Propiedad planta y equipo fuera del uso",1]
[null,"TIPO_ADQUISICION_BIEN",6,"Otros bienes realizables",1]
[null,"TIPO_ADQUISICION_BIEN",7,"Bienes realizables entregados en fideicomiso ",1]
[null,"TIPO_BIEN",1,"Terrenos (lotes y fincas)",1]
[null,"TIPO_BIEN",2,"Edificaciones (viviendas, edificios, condominios, maquinaria fijada permanentemente al terreno y otros)",1]
[null,"TIPO_BIEN",3,"Vehículos ( Automóviles, camiones, equipo pesado rodante, motores y otros)",1]
[null,"TIPO_BIEN",4,"Maquinaria y Equipo (Excepto equipo cómputo)",1]
[null,"TIPO_BIEN",5,"Equipo Cómputo",1]
[null,"TIPO_BIEN",6,"Materias Primas (excepto maderas, animales, cultivos y frutos)",1]
[null,"TIPO_BIEN",7,"Mobiliario",1]
[null,"TIPO_BIEN",8,"Maderas",1]
[null,"TIPO_BIEN",9,"Aeronaves",1]
[null,"TIPO_BIEN",10,"Buques (Barcos, Lanchas y Otros) ",1]
[null,"TIPO_BIEN",11,"Animales (Semovientes y Otros)",1]
[null,"TIPO_BIEN",12,"Cultivos y frutos ",1]
[null,"TIPO_BIEN",13,"Alhajas y joyas",1]
[null,"TIPO_BIEN",14,"Otros tipos de bienes",1]
[null,"TIPO_MOTIVO_BIEN_REALIZABLE_NO_REPORTADO",1,"Venta total",1]
[null,"TIPO_MOTIVO_BIEN_REALIZABLE_NO_REPORTADO",2,"Venta parcial",1]
[null,"TIPO_MOTIVO_BIEN_REALIZABLE_NO_REPORTADO",3,"Venta total financiada por la misma entidad ",1]
[null,"TIPO_MOTIVO_BIEN_REALIZABLE_NO_REPORTADO",4,"Venta parcial financiada por la misma entidad ",1]
[null,"TIPO_MOTIVO_BIEN_REALIZABLE_NO_REPORTADO",5,"Donación total",1]
[null,"TIPO_MOTIVO_BIEN_REALIZABLE_NO_REPORTADO",6,"Donación parcial",1]
[null,"TIPO_MOTIVO_BIEN_REALIZABLE_NO_REPORTADO",7,"Deterioro total",1]
[null,"TIPO_MOTIVO_BIEN_REALIZABLE_NO_REPORTADO",8,"Deterioro parcial",1]
[null,"TIPO_MOTIVO_BIEN_REALIZABLE_NO_REPORTADO",9,"Obsolescencia parcial",1]
[null,"TIPO_MOTIVO_BIEN_REALIZABLE_NO_REPORTADO",10,"Obsolescencia total",1]
[null,"TIPO_MOTIVO_BIEN_REALIZABLE_NO_REPORTADO",11,"Siniestro, robo o hurto, parcial.",1]
[null,"TIPO_MOTIVO_BIEN_REALIZABLE_NO_REPORTADO",12,"Siniestro, robo o hurto, total.",1]
[null,"TIPO_TEMA_CAMBIO_CLIMÁTICO",0,"No Aplica.",1]
[null,"TIPO_TEMA_CAMBIO_CLIMÁTICO",1,"Transporte.",1]
[null,"TIPO_TEMA_CAMBIO_CLIMÁTICO",2,"Energía.  ",1]
[null,"TIPO_TEMA_CAMBIO_CLIMÁTICO",3,"Desarrollo Urbano y Ordenamiento Territorial.",1]
[null,"TIPO_TEMA_CAMBIO_CLIMÁTICO",4,"Infraestructura. ",1]
[null,"TIPO_TEMA_CAMBIO_CLIMÁTICO",5,"Industria.",1]
[null,"TIPO_TEMA_CAMBIO_CLIMÁTICO",6,"Residuos.",1]
[null,"TIPO_TEMA_CAMBIO_CLIMÁTICO",7,"Agropecuario.",1]
[null,"TIPO_TEMA_CAMBIO_CLIMÁTICO",8,"Ambiente.",1]
[null,"TIPO_TEMA_CAMBIO_CLIMÁTICO",9,"Salud.",1]
[null,"TIPO_TEMA_CAMBIO_CLIMÁTICO",10,"Turismo.",1]
[null,"TIPO_TEMA_CAMBIO_CLIMÁTICO",11,"Gestión del riesgo y atención de desastres.",1]
[null,"TIPO_TEMA_CAMBIO_CLIMÁTICO",12,"Transversal.",1]
[null,"TIPO_SUBTEMAS_CAMBIO_CLIMATICO",1,"Transporte público y privado.",1]
[null,"TIPO_SUBTEMAS_CAMBIO_CLIMATICO",2,"Transporte de carga.",1]
[null,"TIPO_SUBTEMAS_CAMBIO_CLIMATICO",3,"Movilidad sostenible.",1]
[null,"TIPO_SUBTEMAS_CAMBIO_CLIMATICO",4,"Electrificación del transporte.",1]
[null,"TIPO_SUBTEMAS_CAMBIO_CLIMATICO",5,"Tecnologías cero emisiones.",1]
[null,"TIPO_SUBTEMAS_CAMBIO_CLIMATICO",6,"Mejoramiento de Combustibles.",1]
[null,"TIPO_SUBTEMAS_CAMBIO_CLIMATICO",7,"Energías renovables.",1]
[null,"TIPO_SUBTEMAS_CAMBIO_CLIMATICO",8,"Eficiencia energética.",1]
[null,"TIPO_SUBTEMAS_CAMBIO_CLIMATICO",9,"Políticas, leyes e investigación para la transición energética.",1]
[null,"TIPO_SUBTEMAS_CAMBIO_CLIMATICO",10,"Mejoramiento y sustitución de combustibles.",1]
[null,"TIPO_SUBTEMAS_CAMBIO_CLIMATICO",11,"Planeación, ordenamiento y desarrollo territorial con consideraciones de cambio climático.",1]
[null,"TIPO_SUBTEMAS_CAMBIO_CLIMATICO",12,"Construcción sostenible y saneamiento básico.",1]
[null,"TIPO_SUBTEMAS_CAMBIO_CLIMATICO",13,"Infraestructura resiliente.",1]
[null,"TIPO_SUBTEMAS_CAMBIO_CLIMATICO",14,"Procesos Industriales.",1]
[null,"TIPO_SUBTEMAS_CAMBIO_CLIMATICO",15,"Aprovechamiento, reúso y gestión de residuos.",1]
[null,"TIPO_SUBTEMAS_CAMBIO_CLIMATICO",16,"Agricultura.",1]
[null,"TIPO_SUBTEMAS_CAMBIO_CLIMATICO",17,"Ganadería.",1]
[null,"TIPO_SUBTEMAS_CAMBIO_CLIMATICO",18,"Biodiversidad y Ecosistemas.",1]
[null,"TIPO_SUBTEMAS_CAMBIO_CLIMATICO",19,"Manejo Forestal.",1]
[null,"TIPO_SUBTEMAS_CAMBIO_CLIMATICO",20,"Recursos hídricos.",1]
[null,"TIPO_SUBTEMAS_CAMBIO_CLIMATICO",21,"Saneamiento de aguas.",1]
[null,"TIPO_SUBTEMAS_CAMBIO_CLIMATICO",22,"Atención y control de enfermedades.",1]
[null,"TIPO_SUBTEMAS_CAMBIO_CLIMATICO",23,"Edificación eficiente en el sector salud.",1]
[null,"TIPO_SUBTEMAS_CAMBIO_CLIMATICO",24,"Vigilancia de la salud.",1]
[null,"TIPO_SUBTEMAS_CAMBIO_CLIMATICO",25,"Turismo resiliente.",1]
[null,"TIPO_SUBTEMAS_CAMBIO_CLIMATICO",26,"Prevención de riesgos asociados a cambio climático.",1]
[null,"TIPO_SUBTEMAS_CAMBIO_CLIMATICO",27,"Gestión del riesgo asociado a desastres.",1]
[null,"TIPO_SUBTEMAS_CAMBIO_CLIMATICO",28,"Protección y promoción de modos de vida.",1]
[null,"TIPO_SUBTEMAS_CAMBIO_CLIMATICO",29,"Planificación y gobernanza.",1]
[null,"TIPO_SUBTEMAS_CAMBIO_CLIMATICO",30,"Investigación, educación y fortalecimiento de capacidades para el desarrollo bajo en carbono y resiliente al clima.",1]
[null,"TIPO_SUBTEMAS_CAMBIO_CLIMATICO",31,"Financiamiento y herramientas de mercado.",1]
[null,"TIPO_SUBTEMAS_CAMBIO_CLIMATICO",32,"Marco de transparencia.",1]
[null,"TIPO_ACTIVIDADES_CAMBIO_CLIMATICO",1,"Diseñar e implementar estrategias o acciones para constituir un Sistema Integrado de Transporte Público.",1]
[null,"TIPO_ACTIVIDADES_CAMBIO_CLIMATICO",2,"Establecer carriles exclusivos para vehículos de transporte público modalidad autobús.",1]
[null,"TIPO_ACTIVIDADES_CAMBIO_CLIMATICO",3,"Mejorar la calidad, eficiencia del transporte público.",1]
[null,"TIPO_ACTIVIDADES_CAMBIO_CLIMATICO",4,"Diseñar e implementar sistemas de transporte público masivo.",1]
[null,"TIPO_ACTIVIDADES_CAMBIO_CLIMATICO",5,"Diseñar e implementar estrategias que promuevan la intermodalidad en el transporte.",1]
[null,"TIPO_ACTIVIDADES_CAMBIO_CLIMATICO",6,"Diseñar e implementar medidas de control de la demanda del transporte privado.",1]
[null,"TIPO_ACTIVIDADES_CAMBIO_CLIMATICO",7,"Diseñar e implementar esquemas de incentivos para fomentar el uso del transporte público y la movilidad no motorizada.",1]
[null,"TIPO_ACTIVIDADES_CAMBIO_CLIMATICO",8,"Renovar la flotilla de buses por vehículos más eficientes y promoción de la disminución en su número.",1]
[null,"TIPO_ACTIVIDADES_CAMBIO_CLIMATICO",9,"Diseñar e implementar sistemas de monitoreo de transporte, como sistemas MRV.",1]
[null,"TIPO_ACTIVIDADES_CAMBIO_CLIMATICO",10,"Promover programas de verificación vehicular ambiental (revisión vehicular y revisión de límites de emisiones).",1]
[null,"TIPO_ACTIVIDADES_CAMBIO_CLIMATICO",11,"Promover programas de chatarrización y desintegración vehicular.",1]
[null,"TIPO_ACTIVIDADES_CAMBIO_CLIMATICO",12,"Optimizar el uso de taxis (Distribución geográfica de los taxis, bahías de parqueo).",1]
[null,"TIPO_ACTIVIDADES_CAMBIO_CLIMATICO",13,"Construir infraestructura vial baja en emisiones de GEI y resiliente a los impactos del cambio climático.",1]
[null,"TIPO_ACTIVIDADES_CAMBIO_CLIMATICO",14,"Optimizar tecnologías convencionales y de conversión a motores alternativos en el sector de transporte.",1]
[null,"TIPO_ACTIVIDADES_CAMBIO_CLIMATICO",15,"Diseño y optimización de sistemas y acciones de logística de carga urbana.",1]
[null,"TIPO_ACTIVIDADES_CAMBIO_CLIMATICO",16,"Diseñar e implementar sistemas de movilización masiva de carga que vuelvan más eficiente su gestión, como por ejemplo trenes de carga. ",1]
[null,"TIPO_ACTIVIDADES_CAMBIO_CLIMATICO",17,"Implementar prácticas que mejoren la eficiencia energética en el transporte de carga.",1]
[null,"TIPO_ACTIVIDADES_CAMBIO_CLIMATICO",18,"Realizar mejoras tecnológicas en transporte de carga, por ejemplo, vehículos de carga eléctricos. ",1]
[null,"TIPO_ACTIVIDADES_CAMBIO_CLIMATICO",19,"Diseñar e implementar planes de movilidad sostenible que consideren los efectos adversos del cambio climático.",1]
[null,"TIPO_ACTIVIDADES_CAMBIO_CLIMATICO",20,"Diseñar y construir infraestructura para promover la movilidad no motorizada (movilización en bicicleta y caminando).",1]
[null,"TIPO_ACTIVIDADES_CAMBIO_CLIMATICO",21,"Diseñar y establecer reglamentación, políticas y esquemas de incentivos que promuevan la movilidad no motorizada.",1]
[null,"TIPO_ACTIVIDADES_CAMBIO_CLIMATICO",22,"Intervenciones de mejora urbana para impulsar capacidad de las ciudades.",1]
[null,"TIPO_ACTIVIDADES_CAMBIO_CLIMATICO",23,"Diseñar e implementar infraestructura de transporte con consideraciones de adaptación al cambio climático.",1]
[null,"TIPO_ACTIVIDADES_CAMBIO_CLIMATICO",24,"Diseñar e implementar estrategias para promover la movilidad eléctrica.",1]
[null,"TIPO_ACTIVIDADES_CAMBIO_CLIMATICO",25,"Desarrollar infraestructura de recarga y otras que generen condiciones habilitadoras para la movilidad eléctrica.",1]
[null,"TIPO_ACTIVIDADES_CAMBIO_CLIMATICO",26,"Diseño e implementación de pilotos de electrificación de flotas, especialmente asociadas con transporte público.",1]
[null,"TIPO_ACTIVIDADES_CAMBIO_CLIMATICO",27,"Electrificación de flotas de vehículos privados y utilizados para el transporte público. ",1]
[null,"TIPO_ACTIVIDADES_CAMBIO_CLIMATICO",28,"Diseño e implementación de sistemas masivos de transporte público eléctricos, como por ejemplo tren eléctrico.",1]
[null,"TIPO_ACTIVIDADES_CAMBIO_CLIMATICO",29,"Diseñar e implementar estrategias para fomentar el uso del hidrógeno u otras tecnologías cero emisiones en el sector transporte.",1]
[null,"TIPO_ACTIVIDADES_CAMBIO_CLIMATICO",30,"Robustecer la normatividad y legislación sobre la calidad de combustibles, de manera que se reduzcan las emisiones generadas por su combustión.",1]
[null,"TIPO_ACTIVIDADES_CAMBIO_CLIMATICO",31,"Evaluar el uso de combustibles alternativos para el sector transporte.",1]
[null,"TIPO_ACTIVIDADES_CAMBIO_CLIMATICO",32,"Diseñar e implementar estrategias que promuevan el uso de combustibles producidos en condiciones sociales y ambientales integrales.",1]
[null,"TIPO_ACTIVIDADES_CAMBIO_CLIMATICO",33,"Utilizar energías renovables no convencionales (solar, eólica, geotermia, biomasa, biogás y marina) para generación de energía eléctrica, calefacción, bombeo, u otros).",1]
[null,"TIPO_ACTIVIDADES_CAMBIO_CLIMATICO",34,"Calentamiento solar de agua y otras aplicaciones térmicas de la energía solar en todos los sectores.",1]
[null,"TIPO_ACTIVIDADES_CAMBIO_CLIMATICO",35,"Aplicaciones térmicas de bioenergía producida de forma sostenible en todos los sectores.",1]
[null,"TIPO_ACTIVIDADES_CAMBIO_CLIMATICO",36,"Implementar sistemas de almacenamiento (batería, almacenamiento mecánico, bombeado) que faciliten la integración o producción de energías renovables.",1]
[null,"TIPO_ACTIVIDADES_CAMBIO_CLIMATICO",37,"Construir, mantener y optimizar sistemas de transmisión y distribución para aprovechamiento de fuentes renovables de energía. ",1]
[null,"TIPO_ACTIVIDADES_CAMBIO_CLIMATICO",38,"Construir redes inteligentes o mini red (smart grid/mini grid).",1]
[null,"TIPO_ACTIVIDADES_CAMBIO_CLIMATICO",39,"Instalar sistemas de generación distribuida con fuentes renovables.",1]
[null,"TIPO_ACTIVIDADES_CAMBIO_CLIMATICO",40,"Utilizar tecnología que promueva la eficiencia energética en procesos industriales.",1]
[null,"TIPO_ACTIVIDADES_CAMBIO_CLIMATICO",41,"Optimizar e incrementar la utilización de tecnologías eficientes en edificaciones (edificios) públicos, industriales, comerciales, residenciales existentes.",1]
[null,"TIPO_ACTIVIDADES_CAMBIO_CLIMATICO",42,"Utilizar tecnología que promueva la eficiencia energética en nuevas edificaciones comerciales, públicas, industriales o residenciales.",1]
[null,"TIPO_ACTIVIDADES_CAMBIO_CLIMATICO",43,"Mejorar la eficiencia energética en el alumbrado público, telegestión y otros servicios públicos.",1]
[null,"TIPO_ACTIVIDADES_CAMBIO_CLIMATICO",44,"Diseñar Sistemas de Gestión de la Energía (SGEn), principalmente para usuarios de alto consumo de energía.",1]
[null,"TIPO_ACTIVIDADES_CAMBIO_CLIMATICO",45,"Promover eficiencia energética o el uso de tecnologías de bajas emisiones en la generación, transmisión y distribución de energía eléctrica.",1]
[null,"TIPO_ACTIVIDADES_CAMBIO_CLIMATICO",46,"Reducción de la pérdida de calor en los servicios públicos y/o aumento de la recuperación del calor residual.",1]
[null,"TIPO_ACTIVIDADES_CAMBIO_CLIMATICO",47,"Retirar y modernizar de manera temprana las centrales eléctricas ineficientes o altamente contaminantes.",1]
[null,"TIPO_ACTIVIDADES_CAMBIO_CLIMATICO",48,"Promover la eficiencia energética de los vehículos y retrofit. (por ejemplo: modernización de la flota vehicular, fortalecimiento de normas para importación de vehículos usados y nuevos). ",1]
[null,"TIPO_ACTIVIDADES_CAMBIO_CLIMATICO",49,"Desarrollar arreglos institucionales que permitan fomentar e implementar proyectos de energía renovable y de eficiencia energética.",1]
[null,"TIPO_ACTIVIDADES_CAMBIO_CLIMATICO",50,"Apoyar y promover la investigación y desarrollo tecnológico y de capital humano en fuentes renovables o eficiencia energética.",1]
[null,"TIPO_ACTIVIDADES_CAMBIO_CLIMATICO",51,"Expedir reglamentos técnicos y normatividad relacionados con energía renovable y eficiencia energética.",1]
[null,"TIPO_ACTIVIDADES_CAMBIO_CLIMATICO",52,"Auditorías energéticas de usuarios finales de energía, incluidas industrias, edificios y sistemas de transporte.",1]
[null,"TIPO_ACTIVIDADES_CAMBIO_CLIMATICO",53,"Fomentar incentivos económicos y fiscales para el aprovechamiento de energía renovable y eficiencia energética.",1]
[null,"TIPO_ACTIVIDADES_CAMBIO_CLIMATICO",54,"Implementar normas para el mejoramiento en la calidad de los combustibles fósiles.",1]
[null,"TIPO_ACTIVIDADES_CAMBIO_CLIMATICO",55,"Conversión de la central eléctrica existente basada en combustibles fósiles a combustibles y tecnologías limpias.",1]
[null,"TIPO_ACTIVIDADES_CAMBIO_CLIMATICO",56,"Reducir el uso de combustibles fósiles para generación eléctrica.",1]
[null,"TIPO_ACTIVIDADES_CAMBIO_CLIMATICO",57,"Diseñar e implementar planes de desarrollo urbano con enfoque de desarrollo rural bajo en emisiones de GEI y resilientes al clima.",1]
[null,"TIPO_ACTIVIDADES_CAMBIO_CLIMATICO",58,"Facilitar la implementación de propuestas, planes y políticas de planeación urbana en la GAM.",1]
[null,"TIPO_ACTIVIDADES_CAMBIO_CLIMATICO",59,"Integrar criterios de mitigación y adaptación de cambio climático en la planificación territorial, el ordenamiento territorial y la política sectorial y nacional.",1]
[null,"TIPO_ACTIVIDADES_CAMBIO_CLIMATICO",60,"Implementar planes de ordenamiento territorial en todos los cantones costeros que contemplen cambio climático.",1]
[null,"TIPO_ACTIVIDADES_CAMBIO_CLIMATICO",61,"Incluir criterios y lineamientos de adaptación al cambio climático en los instrumentos de planificación sectorial, regional y ordenamiento territorial, marino y costero a distintas escalas.",1]
[null,"TIPO_ACTIVIDADES_CAMBIO_CLIMATICO",62,"Gestionar territorios rurales, urbanos y costeros para facilitar la protección de la biodiversidad, el incremento y mantenimiento de la cobertura forestal y servicios ecosistémicos a partir de soluciones basadas en la naturaleza.",1]
[null,"TIPO_ACTIVIDADES_CAMBIO_CLIMATICO",63,"Formular e implementar planes de mitigación y/o adaptación en los territorios.",1]
[null,"TIPO_ACTIVIDADES_CAMBIO_CLIMATICO",64,"Construir infraestructura y desarrollar nuevos sistemas productivos con consideración de criterios de cambio climático.",1]
[null,"TIPO_ACTIVIDADES_CAMBIO_CLIMATICO",65,"Incorporar la gestión integral del riesgo en la planeación y programación del desarrollo y ordenamiento del territorio.",1]
[null,"TIPO_ACTIVIDADES_CAMBIO_CLIMATICO",66,"Reducir cambios de uso de suelo que generen presión y pérdida sobre los ecosistemas.",1]
[null,"TIPO_ACTIVIDADES_CAMBIO_CLIMATICO",67,"Diseño e implementación de estrategias asociadas al Desarrollo Orientado al Transporte (DOT).",1]
[null,"TIPO_ACTIVIDADES_CAMBIO_CLIMATICO",68,"Ejecutar programas de densificación de ciudades.",1]
[null,"TIPO_ACTIVIDADES_CAMBIO_CLIMATICO",69,"Planear zonas urbanas bajas en emisiones de GEI y resilientes al clima.",1]
[null,"TIPO_ACTIVIDADES_CAMBIO_CLIMATICO",70,"Diseñar e implementar estrategias que fomenten las zonas verdades urbanas.",1]
[null,"TIPO_ACTIVIDADES_CAMBIO_CLIMATICO",71,"Incorporar criterios, normas y estándares de construcción sostenible (iluminación, aire acondicionado y calentamiento) para nuevas construcciones y para renovación de infraestructura existente.",1]
[null,"TIPO_ACTIVIDADES_CAMBIO_CLIMATICO",72,"Desarrollo de edificaciones comerciales, residenciales e institucionales bajo estándares de alta eficiencia, sistemas y tecnologías bajas en emisiones y resilientes.",1]
[null,"TIPO_ACTIVIDADES_CAMBIO_CLIMATICO",73,"Usar mejores técnicas y materiales de diseño y construcción arquitectónico sustentable (ej. energía renovable o sistemas de captación de agua de lluvia).",1]
[null,"TIPO_ACTIVIDADES_CAMBIO_CLIMATICO",74,"Implementar una estrategia nacional para la construcción y uso de infraestructura verde en los asentamientos humanos.",1]
[null,"TIPO_ACTIVIDADES_CAMBIO_CLIMATICO",75,"Controlar la expansión urbana fuera de los polígonos de crecimiento.",1]
[null,"TIPO_ACTIVIDADES_CAMBIO_CLIMATICO",76,"Fomentar el uso de tecnología ahorradora de consumo de agua y energía, así como para el pago de los servicios para la conservación de las viviendas.",1]
[null,"TIPO_ACTIVIDADES_CAMBIO_CLIMATICO",77,"Construir de viviendas con enfoque de adaptación y resiliente (construcciones palafíticas, casas flotantes y aterradas).",1]
[null,"TIPO_ACTIVIDADES_CAMBIO_CLIMATICO",78,"Mejorar los servicios básicos de las viviendas en zonas de rezago social y pobreza extrema.",1]
[null,"TIPO_ACTIVIDADES_CAMBIO_CLIMATICO",79,"Establecer mecanismos reguladores para el sector inmobiliario que asegure estudios de riesgo y medidas de adaptación al cambio climático, considerando el bienestar social y los ecosistemas.",1]
[null,"TIPO_ACTIVIDADES_CAMBIO_CLIMATICO",80,"Realizar un monitoreo de vulnerabilidad de infraestructura.",1]
[null,"TIPO_ACTIVIDADES_CAMBIO_CLIMATICO",81,"Planificar y rediseñar infraestructura compatible con el clima.",1]
[null,"TIPO_ACTIVIDADES_CAMBIO_CLIMATICO",82,"Asegurar la resiliencia en carreteras/caminos costeros.",1]
[null,"TIPO_ACTIVIDADES_CAMBIO_CLIMATICO",83,"Asegurar la resiliencia de vivienda rural en zonas marino- costeras.",1]
[null,"TIPO_ACTIVIDADES_CAMBIO_CLIMATICO",84,"Sentar lineamientos claros para diferenciar entre obras grises y obras verdes.",1]
[null,"TIPO_ACTIVIDADES_CAMBIO_CLIMATICO",85,"Emitir reglamentos de construcción con visión de cambio climático.",1]
[null,"TIPO_ACTIVIDADES_CAMBIO_CLIMATICO",86,"Realizar acciones de infraestructura social que beneficien a las localidades que presenten mayores niveles de rezago social y pobreza extrema.",1]
[null,"TIPO_ACTIVIDADES_CAMBIO_CLIMATICO",87,"Desplegar infraestructura resiliente (verde, vasos de tormenta, pasos de fauna).",1]
[null,"TIPO_ACTIVIDADES_CAMBIO_CLIMATICO",88,"Utilizar tecnologías de información y sistemas geoespaciales, así como entidades de información y estadística para la construcción de infraestructura.",1]
[null,"TIPO_ACTIVIDADES_CAMBIO_CLIMATICO",89,"Desarrollar modelos de negocio de diseño integral \"cuna a tumba\" (o \"cradle-to-grave\") para productos, sus insumos, su embalaje, y sus usos. ",1]
[null,"TIPO_ACTIVIDADES_CAMBIO_CLIMATICO",90,"Adoptar tecnologías y procesos productivos que permitan reducir emisiones de GEI (Por ejemplo, en la producción de cemento, aluminio, cal, plásticos, químicos, fertilizantes). ",1]
[null,"TIPO_ACTIVIDADES_CAMBIO_CLIMATICO",91,"Reducir emisiones fugitivas de metano en instalaciones industriales de gas y/o petróleo. ",1]
[null,"TIPO_ACTIVIDADES_CAMBIO_CLIMATICO",92,"Mejorar la gestión integral de residuos sólidos (recolección, separación, reutilización, reciclaje y disposición final) e implementación de tecnologías para reducir emisiones de GEI.",1]
[null,"TIPO_ACTIVIDADES_CAMBIO_CLIMATICO",93,"Implementar tecnologías de captura y uso de metano en rellenos sanitarios y/o plantas de tratamiento de aguas residuales.",1]
[null,"TIPO_ACTIVIDADES_CAMBIO_CLIMATICO",94,"Aprovechar residuos orgánicos.",1]
[null,"TIPO_ACTIVIDADES_CAMBIO_CLIMATICO",95,"Reducir residuos en actividades productivas (RAO: residuos agrícolas orgánicos) e industriales (modelos de economía circular).",1]
[null,"TIPO_ACTIVIDADES_CAMBIO_CLIMATICO",96,"Optimizar la logística de transporte de residuos.",1]
[null,"TIPO_ACTIVIDADES_CAMBIO_CLIMATICO",97,"Crear demanda y fortalecimiento de mercado de residuos valorizables.",1]
[null,"TIPO_ACTIVIDADES_CAMBIO_CLIMATICO",98,"Recolectar y transportar residuos sólidos a través de vehículos eficientes y cero emisiones.",1]
[null,"TIPO_ACTIVIDADES_CAMBIO_CLIMATICO",99,"Incorporar mejores prácticas productivas para reducir emisiones en subsectores prioritarios (café?, banano, ganadería, can?a de azúcar, piña, arroz) (Ej. Selección y rotación de cultivos, manejo adecuado de fertilizantes). ",1]
[null,"TIPO_ACTIVIDADES_CAMBIO_CLIMATICO",100,"Aplicar métodos y tecnologías más avanzadas para agricultura sostenible, resiliente y baja en emisiones ",1]
[null,"TIPO_ACTIVIDADES_CAMBIO_CLIMATICO",101,"Incorporar pronósticos climáticos en la toma de decisiones relacionado con sistemas agropecuarios. ",1]
[null,"TIPO_ACTIVIDADES_CAMBIO_CLIMATICO",102,"Sustituir fertilizantes nitrogenados por orgánicos, biológicos o de liberación lenta. ",1]
[null,"TIPO_ACTIVIDADES_CAMBIO_CLIMATICO",103,"Manejar de manera integral plagas y enfermedades en cultivos ante eventos climáticos extremos.  ",1]
[null,"TIPO_ACTIVIDADES_CAMBIO_CLIMATICO",104,"Usar los residuos de cosecha para la generación de energía. ",1]
[null,"TIPO_ACTIVIDADES_CAMBIO_CLIMATICO",105,"Reducir el consumo de combustibles fósiles para la generación de energía en la tracción (por ejemplo, la labranza eficiente), el riego y otros procesos agrícolas. ",1]
[null,"TIPO_ACTIVIDADES_CAMBIO_CLIMATICO",106,"Promover utilización de estructuras de drenaje y manejo de labranza. ",1]
[null,"TIPO_ACTIVIDADES_CAMBIO_CLIMATICO",107,"Mejorar y promover el sistema de seguros de cosechas. ",1]
[null,"TIPO_ACTIVIDADES_CAMBIO_CLIMATICO",108,"Incluir áreas de agricultura urbana. ",1]
[null,"TIPO_ACTIVIDADES_CAMBIO_CLIMATICO",109,"Gestión y aprovechamiento sustentable del agua en prácticas agrícolas. ",1]
[null,"TIPO_ACTIVIDADES_CAMBIO_CLIMATICO",110,"Recuperación y conservación de suelos degradados por actividades agropecuarias. ",1]
[null,"TIPO_ACTIVIDADES_CAMBIO_CLIMATICO",111,"Reducción de la degradación de los suelos agrarios. ",1]
[null,"TIPO_ACTIVIDADES_CAMBIO_CLIMATICO",112,"Usar sistemas de riego de precisión, y prácticas agrícolas con enfoques ecosistémicos para conservar el agua.",1]
[null,"TIPO_ACTIVIDADES_CAMBIO_CLIMATICO",113,"Eficiencia en la utilización de recursos en procesos agrícolas y cadenas de suministro. ",1]
[null,"TIPO_ACTIVIDADES_CAMBIO_CLIMATICO",114,"Realizar una alineación de actividades agrícolas con tema de cuenca y actividades de uso eficiente de recurso hídrico. ",1]
[null,"TIPO_ACTIVIDADES_CAMBIO_CLIMATICO",115,"Implementar proyectos de ganadería que reducen metano u otros gases de efecto invernadero y adaptan la producción ganadera a los efectos del cambio climático, a través de promover técnicas y metodologías de fertilización que reduzcan emisiones de GEI, aumentar el secuestro de CO2 en las fincas, promover pastoreo racional, promover cercas vivas, y mejorar la planificación y gestión de la finca y de la salud de los animales. ",1]
[null,"TIPO_ACTIVIDADES_CAMBIO_CLIMATICO",116,"Aprovechar el estiércol y otros residuos sólidos a través de biodigestores para generación de electricidad, biogás domiciliario y biofertilizantes. ",1]
[null,"TIPO_ACTIVIDADES_CAMBIO_CLIMATICO",117,"Consolidar corredores biológicos. ",1]
[null,"TIPO_ACTIVIDADES_CAMBIO_CLIMATICO",118,"Incrementar áreas verdes para recreación en la GAM mediante mejora de la conectividad entre áreas protegidas y la consolidación de corredores biológicos y ribereños interurbanos. ",1]
[null,"TIPO_ACTIVIDADES_CAMBIO_CLIMATICO",119,"Implementar refugios bioclimáticos, restauración y reducción de pérdida y/o deterioro de ecosistemas. ",1]
[null,"TIPO_ACTIVIDADES_CAMBIO_CLIMATICO",120,"Consolidar y gestar infraestructura natural (bosque, humedales y otros ecosistemas), manejo de paisajes sostenibles inclusivos). ",1]
[null,"TIPO_ACTIVIDADES_CAMBIO_CLIMATICO",121,"Implementar programas de conservación para evitar la pérdida de especies por cambios en la temperatura. ",1]
[null,"TIPO_ACTIVIDADES_CAMBIO_CLIMATICO",122,"Implementar proyectos de conservación de ecosistemas con la finalidad de reducir las emisiones de GEI causadas por la degradación de estos. ",1]
[null,"TIPO_ACTIVIDADES_CAMBIO_CLIMATICO",123,"Implementar mecanismos relacionados a pagos por servicios ambientales. ",1]
[null,"TIPO_ACTIVIDADES_CAMBIO_CLIMATICO",124,"Fortalecer la generación y la valoración de bienes y servicios provenientes de los ecosistemas. ",1]
[null,"TIPO_ACTIVIDADES_CAMBIO_CLIMATICO",125,"Implementar un Programa regional de monitoreo de biodiversidad con la finalidad de identificar y controlar los impactos del cambio climático. ",1]
[null,"TIPO_ACTIVIDADES_CAMBIO_CLIMATICO",126,"Promover la inclusión de criterios y prioridades de conservación en la formulación de políticas, planes, programas, obras y proyectos relacionados con infraestructura. ",1]
[null,"TIPO_ACTIVIDADES_CAMBIO_CLIMATICO",127,"Desarrollar instrumentos de gestión y diseño de estrategias que busquen sinergias entre la mitigación y la adaptación. ",1]
[null,"TIPO_ACTIVIDADES_CAMBIO_CLIMATICO",128,"Impulsar prácticas de silvicultura sustentable. ",1]
[null,"TIPO_ACTIVIDADES_CAMBIO_CLIMATICO",129,"Sustituir especies exóticas en parque urbanos y promover polinizadores naturales. ",1]
[null,"TIPO_ACTIVIDADES_CAMBIO_CLIMATICO",130,"Reducir al mínimo el uso de agroquímicos y pesticidas, y de ser posible sustituirlos por biopesticidas.",1]
[null,"TIPO_ACTIVIDADES_CAMBIO_CLIMATICO",131,"Implementar prácticas de adaptación basada en ecosistemas. ",1]
[null,"TIPO_ACTIVIDADES_CAMBIO_CLIMATICO",132,"Implementar medidas de control y vigilancia forestal (manejo de fuego y control de incendios). ",1]
[null,"TIPO_ACTIVIDADES_CAMBIO_CLIMATICO",133,"Realizar una gestión sostenible de bosques (Reducción, restauración y prevención de la deforestación o degradación de ecosistemas forestales). ",1]
[null,"TIPO_ACTIVIDADES_CAMBIO_CLIMATICO",134,"Implementar la Estrategia Nacional REDD+. ",1]
[null,"TIPO_ACTIVIDADES_CAMBIO_CLIMATICO",135,"Crear sinergias entre prácticas de adaptación y de reducción de emisiones por deforestación evitada. ",1]
[null,"TIPO_ACTIVIDADES_CAMBIO_CLIMATICO",136,"Integrar a las comunidades indígenas en proyectos forestales (REDD, Plan de Desarrollo Forestal en los Territorios Indígenas). ",1]
[null,"TIPO_ACTIVIDADES_CAMBIO_CLIMATICO",137,"Regular el sector forestal (Tenencia de la tierra y derechos de carbono). ",1]
[null,"TIPO_ACTIVIDADES_CAMBIO_CLIMATICO",138,"Implementar un Sistema de Información sobre Salvaguardas (SIS). ",1]
[null,"TIPO_ACTIVIDADES_CAMBIO_CLIMATICO",139,"Implementar y dar seguimiento del Marco de Gestión Ambiental y Social (MGAS). ",1]
[null,"TIPO_ACTIVIDADES_CAMBIO_CLIMATICO",140,"Repoblación forestal (plantaciones) y agrosilvicultura en tierras no forestales. ",1]
[null,"TIPO_ACTIVIDADES_CAMBIO_CLIMATICO",141,"Implementar un sistema de certificación de productos libres de deforestación. ",1]
[null,"TIPO_ACTIVIDADES_CAMBIO_CLIMATICO",142,"Mejorar y fortalecer acueductos comunitarios.",1]
[null,"TIPO_ACTIVIDADES_CAMBIO_CLIMATICO",143,"Proteger fuentes, nacientes y aguas subterráneas.",1]
[null,"TIPO_ACTIVIDADES_CAMBIO_CLIMATICO",144,"Planificar adecuadamente el uso del recurso hídrico.",1]
[null,"TIPO_ACTIVIDADES_CAMBIO_CLIMATICO",145,"Aumentar la inversión y mejorar la infraestructura natural e hídrica, aplicando tecnologías de eficiencia hídrica. ",1]
[null,"TIPO_ACTIVIDADES_CAMBIO_CLIMATICO",146,"Monitorear impactos e incentivar investigación para reducir vulnerabilidad e identificar acciones de adaptación en sector hídrico.",1]
[null,"TIPO_ACTIVIDADES_CAMBIO_CLIMATICO",147,"Promover alianzas público - privadas para calidad y cantidad de agua.",1]
[null,"TIPO_ACTIVIDADES_CAMBIO_CLIMATICO",148,"Asegurar que las proyecciones y valoraciones de cantidad y calidad de agua contemplan impactos esperados de cambio climático.",1]
[null,"TIPO_ACTIVIDADES_CAMBIO_CLIMATICO",149,"Realizar inversiones en tecnologías de calidad y cantidad de agua.",1]
[null,"TIPO_ACTIVIDADES_CAMBIO_CLIMATICO",150,"Implementar técnicas de cosecha de agua.",1]
[null,"TIPO_ACTIVIDADES_CAMBIO_CLIMATICO",151,"Realizar un manejo adecuado de emisiones de CH4 en embalses y plantas de tratamiento. ",1]
[null,"TIPO_ACTIVIDADES_CAMBIO_CLIMATICO",152,"Instalación de equipos domésticos de recolección de agua de lluvia y almacenamiento. ",1]
[null,"TIPO_ACTIVIDADES_CAMBIO_CLIMATICO",153,"Realizar un manejo integral de cuencas (tanto en zonas altas, como medias y bajas).",1]
[null,"TIPO_ACTIVIDADES_CAMBIO_CLIMATICO",154,"Aumentar cobertura, mantenimiento y sostenibilidad de los sistemas de alcantarillado sanitario y pluvial.",1]
[null,"TIPO_ACTIVIDADES_CAMBIO_CLIMATICO",155,"Disminuir la vulnerabilidad ante eventos extremos y enfermedades infecciosas.",1]
[null,"TIPO_ACTIVIDADES_CAMBIO_CLIMATICO",156,"Brindar educación y sensibilización de la población sobre enfermedades relacionadas a los efectos del cambio climático.",1]
[null,"TIPO_ACTIVIDADES_CAMBIO_CLIMATICO",157,"Fomentar prácticas preventivas para enfermedades cuya propagación esté relacionada al cambio climático.",1]
[null,"TIPO_ACTIVIDADES_CAMBIO_CLIMATICO",158,"Trasladar competencias a centros de atención primaria de salud para las enfermedades asociadas a cambio climático.",1]
[null,"TIPO_ACTIVIDADES_CAMBIO_CLIMATICO",159,"Adecuar los servicios de salud a las necesidades demográficas, epidemiológicas y culturales de los grupos en situación de vulnerabilidad.",1]
[null,"TIPO_ACTIVIDADES_CAMBIO_CLIMATICO",160,"Construir capacidad instalada eficiente para brindar servicios de salud para atender enfermedades con mayor incidencia en escenarios de cambio climático.",1]
[null,"TIPO_ACTIVIDADES_CAMBIO_CLIMATICO",161,"Fortalecer la vigilancia de enfermedades sensibles al clima.",1]
[null,"TIPO_ACTIVIDADES_CAMBIO_CLIMATICO",162,"Integrar factores de riesgo en las prácticas empresariales y procesos de planificación turística.",1]
[null,"TIPO_ACTIVIDADES_CAMBIO_CLIMATICO",163,"Adecuar el sector y destinos turísticos ante los efectos del cambio climático y nuevas condiciones, gestión de riesgos.",1]
[null,"TIPO_ACTIVIDADES_CAMBIO_CLIMATICO",164,"Proteger el bienestar de visitantes e imagen de los destinos turísticos. ",1]
[null,"TIPO_ACTIVIDADES_CAMBIO_CLIMATICO",165,"Consolidar sistema de alerta temprana (Identificación, seguimiento y monitoreo de amenazas hidrometeorológicas para alertas tempranas).",1]
[null,"TIPO_ACTIVIDADES_CAMBIO_CLIMATICO",166,"Diseñar e implementar planes de gestión de riesgo de desastres asociados a cambio climático (Incorporar la variable de riesgo a desastres en el desarrollo social.).",1]
[null,"TIPO_ACTIVIDADES_CAMBIO_CLIMATICO",167,"Crear infraestructura resiliente (protección de la infraestructura pública, mediante la adecuada valoración del riesgo y la adopción de mecanismos de protección asegurando la robustez de obras de infraestructura y otras líneas vitales.).",1]
[null,"TIPO_ACTIVIDADES_CAMBIO_CLIMATICO",168,"Desarrollar investigación científica, recolección sistemática de datos y análisis actual y prospectivo de información sobre impactos, pérdidas y daños por amenazas hidrometeorológicas.",1]
[null,"TIPO_ACTIVIDADES_CAMBIO_CLIMATICO",169,"Asegurar la resiliencia a nivel comunal, considerando escenarios de cambio climático.",1]
[null,"TIPO_ACTIVIDADES_CAMBIO_CLIMATICO",170,"Establecer normas y lineamiento técnicos para la resiliencia de los sectores productivos que habiliten una producción sostenible y climáticamente inteligente y garanticen la seguridad alimentaria y nutricional y la sostenibilidad de los recursos en un contexto de cambio climático.",1]
[null,"TIPO_ACTIVIDADES_CAMBIO_CLIMATICO",171,"Conocimiento y difusión de información sobre riesgos climáticos.",1]
[null,"TIPO_ACTIVIDADES_CAMBIO_CLIMATICO",172,"Construir infraestructuras resistentes como, por ejemplo, un sistema de protección para represas.",1]
[null,"TIPO_ACTIVIDADES_CAMBIO_CLIMATICO",173,"Promover la incidencia de los actores sociales y económicos en la gestión del riesgo, con particular énfasis en las comunidades vulnerables y en la actividad privada.",1]
[null,"TIPO_ACTIVIDADES_CAMBIO_CLIMATICO",174,"Incorporar criterios de adaptación y reducción de la vulnerabilidad actual en los procesos de reconstrucción y recuperación post-desastre.",1]
[null,"TIPO_ACTIVIDADES_CAMBIO_CLIMATICO",175,"Implementar el Programa nacional de monitoreo de las vulnerabilidades que tienen los sistemas de infraestructura ante los fenómenos de inundaciones, sequías, deslizamientos e incremento del nivel del mar que podrían agravarse con el cambio climático.",1]
[null,"TIPO_ACTIVIDADES_CAMBIO_CLIMATICO",176,"Generar conocimiento sobre gestión del riesgo y estudios de vulnerabilidad y adaptabilidad al cambio climático.",1]
[null,"TIPO_ACTIVIDADES_CAMBIO_CLIMATICO",177,"Implementar mecanismos de apoyo y de financiamiento de transferencia y de riesgo asociado a eventos hidro climáticos de infraestructura pública (seguros, bonos, instrumentos económicos). ",1]
[null,"TIPO_ACTIVIDADES_CAMBIO_CLIMATICO",178,"Establecer programas de apoyo permanente a través de créditos y garantías para zonas vulnerables, áreas productivas e infraestructura afectadas por desastres naturales.",1]
[null,"TIPO_ACTIVIDADES_CAMBIO_CLIMATICO",179,"Diseñar e implementar planes de recuperación y reconstrucción post desastre con consideraciones de cambio climático. ",1]
[null,"TIPO_ACTIVIDADES_CAMBIO_CLIMATICO",180,"Desarrollar e incrementar personas con formación y conocimiento sobre gestión del riesgo de desastres.",1]
[null,"TIPO_ACTIVIDADES_CAMBIO_CLIMATICO",181,"Rescatar y aplicar prácticas ancestrales.",1]
[null,"TIPO_ACTIVIDADES_CAMBIO_CLIMATICO",182,"Readecuar, reubicar y diversificar prácticas productivas más vulnerables. ",1]
[null,"TIPO_ACTIVIDADES_CAMBIO_CLIMATICO",183,"Implementar prácticas de pesca sostenible.",1]
[null,"TIPO_ACTIVIDADES_CAMBIO_CLIMATICO",184,"Realizar un monitoreo de variables oceanográficas y pesqueras.",1]
[null,"TIPO_ACTIVIDADES_CAMBIO_CLIMATICO",185,"Revisar los períodos de veda y mayor control a los barcos pesqueros.",1]
[null,"TIPO_ACTIVIDADES_CAMBIO_CLIMATICO",186,"Crear reservas marinas.",1]
[null,"TIPO_ACTIVIDADES_CAMBIO_CLIMATICO",187,"Reconvertir actividades productivas sostenibles.",1]
[null,"TIPO_ACTIVIDADES_CAMBIO_CLIMATICO",188,"Implementar la NAMA carbono azul.",1]
[null,"TIPO_ACTIVIDADES_CAMBIO_CLIMATICO",189,"Contar con arreglos legales e institucionales para la mitigación y adaptación.",1]
[null,"TIPO_ACTIVIDADES_CAMBIO_CLIMATICO",190,"Contar con mecanismos de participación ciudadana y mejorar la coordinación interinstitucional para discutir planes, normas y/o estrategias relacionadas a cambio climático.",1]
[null,"TIPO_ACTIVIDADES_CAMBIO_CLIMATICO",191,"Diseñar e implementar Programas de Gestión Ambiental Institucional (PGAI).",1]
[null,"TIPO_ACTIVIDADES_CAMBIO_CLIMATICO",192,"Integrar y promover la conectividad \"vertical\" entre zonas costeras y cuenca arriba.",1]
[null,"TIPO_ACTIVIDADES_CAMBIO_CLIMATICO",193,"Realizar una zonificación marina.",1]
[null,"TIPO_ACTIVIDADES_CAMBIO_CLIMATICO",194,"Fortalecer las capacidades del sector público y privado para comprender la importancia del combatir el cambio climático e implementar acciones de mitigación y/o adaptación.",1]
[null,"TIPO_ACTIVIDADES_CAMBIO_CLIMATICO",195,"Desarrollar investigación relacionada con la adaptación al cambio climático, incluyendo la observación, pronóstico y modelos meteorológico e hidrológico; evaluaciones sobre vulnerabilidad e impacto, indicadores a nivel salud, entre otros.",1]
[null,"TIPO_ACTIVIDADES_CAMBIO_CLIMATICO",196,"Implementar estrategias de sensibilización, comunicación y difusión sobre la temática del cambio climático.",1]
[null,"TIPO_ACTIVIDADES_CAMBIO_CLIMATICO",197,"Evaluar los impactos del cambio climático, la vulnerabilidad y la adaptación en sectores y regiones específicas.",1]
[null,"TIPO_ACTIVIDADES_CAMBIO_CLIMATICO",198,"Incluir información sobre el cambio climático en los planes de estudio en todos los niveles de educación formal, informal y no formal.",1]
[null,"TIPO_ACTIVIDADES_CAMBIO_CLIMATICO",199,"Promover la formación de profesionales con conocimientos en el tema de cambio climático.",1]
[null,"TIPO_ACTIVIDADES_CAMBIO_CLIMATICO",200,"Desarrollar investigaciones en temas de cambio climático de relevancia para el país (evaluaciones de vulnerabilidad, establecimiento de líneas base, cuantificación y análisis de costes, etc.).",1]
[null,"TIPO_ACTIVIDADES_CAMBIO_CLIMATICO",201,"Diseñar e implementar mecanismos de financiamiento e instrumentos que permitan el desarrollo bajo en carbono y resiliente al clima (Innovación, inversión, eco-competitividad y resiliencia de la economía ante el cambio climático -esquemas de certificación ambiental y de incentivos a la producción adaptada al cambio climático).",1]
[null,"TIPO_ACTIVIDADES_CAMBIO_CLIMATICO",202,"Implementar incentivos económicos para la mitigación de GEI en diversos sectores.",1]
[null,"TIPO_ACTIVIDADES_CAMBIO_CLIMATICO",203,"Mejorar la competitividad de los mecanismos de financiamiento para el desarrollo bajo en carbono y resiliente al clima en relación con otras actividades.",1]
[null,"TIPO_ACTIVIDADES_CAMBIO_CLIMATICO",204,"Crear condiciones para dar mayor y mejor acceso al mercado para productos agropecuarios de productores que aplican tecnologías bajas en emisiones.",1]
[null,"TIPO_ACTIVIDADES_CAMBIO_CLIMATICO",205,"Implementar sistemas de monitoreo, reporte y verificación de emisiones de GEI.",1]
[null,"TIPO_AMBITO_CAMBIO_CLIMATICO",0,"No Aplica.",1]
[null,"TIPO_AMBITO_CAMBIO_CLIMATICO",1,"Mitigación.",1]
[null,"TIPO_AMBITO_CAMBIO_CLIMATICO",2,"Adaptación.",1]
[null,"TIPO_AMBITO_CAMBIO_CLIMATICO",3,"Ambos.",1]
[null,"TIPO_FUENTE_FINANCIAMIENTO_CAMBIO_CLIMATICO",0,"No Aplica (Recursos Propios).",1]
[null,"TIPO_FUENTE_FINANCIAMIENTO_CAMBIO_CLIMATICO",1,"Fideicomiso Nacional para el Desarrollo (FINADE).",1]
[null,"TIPO_FUENTE_FINANCIAMIENTO_CAMBIO_CLIMATICO",2,"Fondo de Financiamiento para el Desarrollo (FOFIDE).",1]
[null,"TIPO_FUENTE_FINANCIAMIENTO_CAMBIO_CLIMATICO",3,"Fondo de Garantías del Fondo especial para el desarrollo de las micros, pequeñas y medianas empresas (FODEMIPYME).",1]
[null,"TIPO_FUENTE_FINANCIAMIENTO_CAMBIO_CLIMATICO",4,"Fondo Nacional de Financiamiento Forestal (FONAFIFO).",1]
[null,"TIPO_FUENTE_FINANCIAMIENTO_CAMBIO_CLIMATICO",5,"Recursos de bancos públicos nacionales.",1]
[null,"TIPO_FUENTE_FINANCIAMIENTO_CAMBIO_CLIMATICO",6,"Fondo de Crédito para el Desarrollo (FCD).",1]
[null,"TIPO_FUENTE_FINANCIAMIENTO_CAMBIO_CLIMATICO",7,"Recursos de entidades financieras privadas nacionales.",1]
[null,"TIPO_FUENTE_FINANCIAMIENTO_CAMBIO_CLIMATICO",8,"Fondos Banco Mundial (BM).",1]
[null,"TIPO_FUENTE_FINANCIAMIENTO_CAMBIO_CLIMATICO",9,"Fondos de Inversión Climático (CIF) - administrados por BM.",1]
[null,"TIPO_FUENTE_FINANCIAMIENTO_CAMBIO_CLIMATICO",10,"Corporación Financiera Internacional (IFC).",1]
[null,"TIPO_FUENTE_FINANCIAMIENTO_CAMBIO_CLIMATICO",11,"Fondos Banco Interamericano de Desarrollo (BID).",1]
[null,"TIPO_FUENTE_FINANCIAMIENTO_CAMBIO_CLIMATICO",12,"Fondo de Múltiples Donantes para la Biodiversidad y servicios ecosistémicos Sostenible y el Cambio Climático.",1]
[null,"TIPO_FUENTE_FINANCIAMIENTO_CAMBIO_CLIMATICO",13,"BID Invest.",1]
[null,"TIPO_FUENTE_FINANCIAMIENTO_CAMBIO_CLIMATICO",14,"BID Lab (ex FOMIN).",1]
[null,"TIPO_FUENTE_FINANCIAMIENTO_CAMBIO_CLIMATICO",15,"Banco de Desarrollo de América Latina (CAF).",1]
[null,"TIPO_FUENTE_FINANCIAMIENTO_CAMBIO_CLIMATICO",16,"Banco Centroamericano de Integración Económica (BCIE).",1]
[null,"TIPO_FUENTE_FINANCIAMIENTO_CAMBIO_CLIMATICO",17,"Fondo Verde del Clima (FVC).",1]
[null,"TIPO_FUENTE_FINANCIAMIENTO_CAMBIO_CLIMATICO",18,"Fondo de Adaptación (FA).",1]
[null,"TIPO_FUENTE_FINANCIAMIENTO_CAMBIO_CLIMATICO",19,"Fondo Mundial para el Medio Ambiente (GEF).",1]
[null,"TIPO_FUENTE_FINANCIAMIENTO_CAMBIO_CLIMATICO",20,"NAMA Facility.",1]
[null,"TIPO_FUENTE_FINANCIAMIENTO_CAMBIO_CLIMATICO",21,"Programa de Naciones Unidas para el Desarrollo (PNUD).",1]
[null,"TIPO_FUENTE_FINANCIAMIENTO_CAMBIO_CLIMATICO",22,"Programa de Naciones Unidas para el Medio Ambiente (PNUMA).",1]
[null,"TIPO_FUENTE_FINANCIAMIENTO_CAMBIO_CLIMATICO",23,"Organización de las Naciones Unidas para la Alimentación y la Agricultura (FAO).",1]
[null,"TIPO_FUENTE_FINANCIAMIENTO_CAMBIO_CLIMATICO",24,"Programa REDD Naciones Unidas.",1]
[null,"TIPO_FUENTE_FINANCIAMIENTO_CAMBIO_CLIMATICO",25,"Carbon Forest Partnership.",1]
[null,"TIPO_FUENTE_FINANCIAMIENTO_CAMBIO_CLIMATICO",26,"NDC Partnership.",1]
[null,"TIPO_FUENTE_FINANCIAMIENTO_CAMBIO_CLIMATICO",27,"Comisión Centroamericana de Ambiente y Desarrollo (CCAD).",1]
[null,"TIPO_FUENTE_FINANCIAMIENTO_CAMBIO_CLIMATICO",28,"Fondo Regional para Tecnología en la Agricultura (FONTAGRO).",1]
[null,"TIPO_FUENTE_FINANCIAMIENTO_CAMBIO_CLIMATICO",29,"Unión Europea - Facilidad de Inversión para América Latina (LAIF).",1]
[null,"TIPO_FUENTE_FINANCIAMIENTO_CAMBIO_CLIMATICO",30,"Unión Europea - Euroclima.",1]
[null,"TIPO_FUENTE_FINANCIAMIENTO_CAMBIO_CLIMATICO",31,"Alemania - Agencia Alemana para la Cooperación Técnica Internacional (GIZ).",1]
[null,"TIPO_FUENTE_FINANCIAMIENTO_CAMBIO_CLIMATICO",32,"Alemania - Banco federal de Reconstrucción y Fomento (KfW).",1]
[null,"TIPO_FUENTE_FINANCIAMIENTO_CAMBIO_CLIMATICO",33,"Alemania - Iniciativa Climática Internacional (IKI).",1]
[null,"TIPO_FUENTE_FINANCIAMIENTO_CAMBIO_CLIMATICO",34,"Alemania - Ministerio Federal de Medio Ambiente, Conservación de la Naturaleza, Construcción y Seguridad Nuclear Alemán (BMUB).",1]
[null,"TIPO_FUENTE_FINANCIAMIENTO_CAMBIO_CLIMATICO",35,"Alemania - Ministerio Federal de Cooperación Económica y Desarrollo (BMZ).",1]
[null,"TIPO_FUENTE_FINANCIAMIENTO_CAMBIO_CLIMATICO",36,"Canadá - Agencia Canadiense para la Cooperación Internacional.",1]
[null,"TIPO_FUENTE_FINANCIAMIENTO_CAMBIO_CLIMATICO",37,"Estados Unidos - Agencia de Cooperación de Estados Unidos para el Desarrollo (USAID).",1]
[null,"TIPO_FUENTE_FINANCIAMIENTO_CAMBIO_CLIMATICO",38,"España - Agencia Española de Cooperación Internacional para el Desarrollo (AECID).",1]
[null,"TIPO_FUENTE_FINANCIAMIENTO_CAMBIO_CLIMATICO",39,"España - TRIODOS Bank.",1]
[null,"TIPO_FUENTE_FINANCIAMIENTO_CAMBIO_CLIMATICO",40,"Suiza - Agencia Suiza de Cooperación al Desarrollo (SDC).",1]
[null,"TIPO_FUENTE_FINANCIAMIENTO_CAMBIO_CLIMATICO",41,"Reino Unido - Ayuda Reino Unido (UK Aid).",1]
[null,"TIPO_FUENTE_FINANCIAMIENTO_CAMBIO_CLIMATICO",42,"Reino Unido - Departamento para el Desarrollo Internacional de Reino Unido (DFID).",1]
[null,"TIPO_FUENTE_FINANCIAMIENTO_CAMBIO_CLIMATICO",43,"Japón - Agencia de Cooperación de Japón (JICA).",1]
[null,"TIPO_FUENTE_FINANCIAMIENTO_CAMBIO_CLIMATICO",44,"Noruega - Agencia Noruega de Cooperación al Desarrollo (NORAD).",1]
[null,"TIPO_FUENTE_FINANCIAMIENTO_CAMBIO_CLIMATICO",45,"Holanda - Ministerio de Relaciones Exteriores holandés (DGIS).",1]
[null,"TIPO_FUENTE_FINANCIAMIENTO_CAMBIO_CLIMATICO",46,"Holanda - Compañía Holandesa de Desarrollo Financiero (FMO).",1]
[null,"TIPO_FUENTE_FINANCIAMIENTO_CAMBIO_CLIMATICO",47,"Francia - PROPARCO.",1]
[null,"TIPO_FUENTE_FINANCIAMIENTO_CAMBIO_CLIMATICO",48,"México - Agencia Mexicana de Cooperación Internacional para el Desarrollo (AMEXCID).",1]
[null,"TIPO_FUENTE_FINANCIAMIENTO",1," Nacional Público:",0]
[null,"TIPO_FUENTE_FINANCIAMIENTO","1.1","Fondos Nacionales.",1]
[null,"TIPO_FUENTE_FINANCIAMIENTO","1.2","Recursos de bancos públicos nacionales.",1]
[null,"TIPO_FUENTE_FINANCIAMIENTO",2," Nacional Privado:",0]
[null,"TIPO_FUENTE_FINANCIAMIENTO","2.1","Recursos de la banca privada, canalizados al SBD.",1]
[null,"TIPO_FUENTE_FINANCIAMIENTO","2.2","Recursos de entidades financieras privadas nacionales.",1]
[null,"TIPO_FUENTE_FINANCIAMIENTO",3,"Multilateral Internacional:",0]
[null,"TIPO_FUENTE_FINANCIAMIENTO","3.1","Bancos Multilaterales de Desarrollo (MDBs).",1]
[null,"TIPO_FUENTE_FINANCIAMIENTO","3.2","Fondos dentro de la Convención Marco de Naciones Unidas sobre Cambio Climático (CMNUCC).",1]
[null,"TIPO_FUENTE_FINANCIAMIENTO","3.3","Entidades fuera de la Convención Marco de Naciones Unidas sobre Cambio Climático (CMNUCC).",1]
[null,"TIPO_FUENTE_FINANCIAMIENTO","3.4","Fondos regionales.",1]
[null,"TIPO_FUENTE_FINANCIAMIENTO",4,"Bilateral Internacional:",0]
[null,"TIPO_FUENTE_FINANCIAMIENTO","4.1","Norte-Sur (de países desarrollados a países en desarrollo).",1]
[null,"TIPO_FUENTE_FINANCIAMIENTO","4.2","Sur-Sur (cooperación entre países en desarrollo).",1]
[null,"TIPO_MODALIDAD_FUENTE_FINANCIAMIENTO",0,"No Aplica.",0]
[null,"TIPO_MODALIDAD_FUENTE_FINANCIAMIENTO",1,"Reembolsable.",1]
[null,"TIPO_MODALIDAD_FUENTE_FINANCIAMIENTO",2,"No Reembolsable.",0]
[null,"TIPO_MODALIDAD_FUENTE_FINANCIAMIENTO",3,"Asistencia Técnica.",0]
[null,"TIPO_MITIGADOR_RIESGO",1,"Hipotecas sobre Terrenos",1]
[null,"TIPO_MITIGADOR_RIESGO",2,"Hipotecas sobre Edificaciones",1]
[null,"TIPO_MITIGADOR_RIESGO",3,"Hipotecas sobre residencias habitadas por el deudor (ponderación del 50%)",1]
[null,"TIPO_MITIGADOR_RIESGO",4,"Cédulas hipotecarias sobre terrenos",1]
[null,"TIPO_MITIGADOR_RIESGO",5,"Cédulas hipotecarias sobre edificaciones",1]
[null,"TIPO_MITIGADOR_RIESGO",6,"Cédulas hipotecarias sobre residencias habitadas por el deudor (ponderación del 50%)",1]
[null,"TIPO_MITIGADOR_RIESGO",7,"Prenda sobre bienes muebles e hipotecas sobre maquinaria fijada permanentemente al terreno (excepto instrumentos financieros)",1]
[null,"TIPO_MITIGADOR_RIESGO",8,"Pignoración sobre bienes muebles, excepto instrumentos financieros.",1]
[null,"TIPO_MITIGADOR_RIESGO",9,"Bonos de prenda emitidos por Almacenes Generales de Depósito",1]
[null,"TIPO_MITIGADOR_RIESGO",10,"Depósitos o instrumentos financieros que respaldan operaciones back to back",1]
[null,"TIPO_MITIGADOR_RIESGO",11,"Instrumentos de deuda inscritos en una bolsa de valores autorizada o emitido por el BCCR o el Gobierno de Costa Rica",1]
[null,"TIPO_MITIGADOR_RIESGO",12,"Instrumentos de deuda de instituciones supervisadas por la SUGEF sin calificación pública.",1]
[null,"TIPO_MITIGADOR_RIESGO",13,"Instrumento de capital inscrito en una bolsa de valores autorizada",1]
[null,"TIPO_MITIGADOR_RIESGO",14,"Participaciones en fondos de inversión abiertos inscritos en la plaza correspondiente",1]
[null,"TIPO_MITIGADOR_RIESGO",15,"Participaciones en fondos de inversión cerrados inscritos en una bolsa de valores autorizada",1]
[null,"TIPO_MITIGADOR_RIESGO",16,"Operaciones Crediticias recibidas en garantía",1]
[null,"TIPO_MITIGADOR_RIESGO",17,"Fianzas emitidas por personas físicas.",1]
[null,"TIPO_MITIGADOR_RIESGO",18,"Fianzas y avales de entidades del Sector Público",1]
[null,"TIPO_MITIGADOR_RIESGO",19,"Fianzas y avales de entidades del Sector Privado",1]
[null,"TIPO_MITIGADOR_RIESGO",20,"Documentos que amparan una carta de crédito de importación confirmada e irrevocable.",1]
[null,"TIPO_MITIGADOR_RIESGO",21,"Carta Crédito Stand-By ",1]
[null,"TIPO_MITIGADOR_RIESGO",22,"Facturas cedidas cuyo obligado está calificado en Categoría de riesgo A1 que establece el Reglamento de Crédito",1]
[null,"TIPO_MITIGADOR_RIESGO",23,"Facturas cedidas cuyo obligado está calificado en comportamiento de pago histórico como Nivel 1.",1]
[null,"TIPO_MITIGADOR_RIESGO",24,"Fideicomiso de garantías",1]
[null,"TIPO_MITIGADOR_RIESGO",25,"Bien fideicometido que corresponde a residencia habitada por el deudor (ponderación del 50%)",1]
[null,"TIPO_MITIGADOR_RIESGO",26,"Bien fideicometido",1]
[null,"TIPO_MITIGADOR_RIESGO",27,"Carta de crédito de exportación ",1]
[null,"TIPO_MITIGADOR_RIESGO",28,"Facturas cedidas cuyo obligado está calificado en Categoría de riesgo A2 que establece el Reglamento de Crédito",1]
[null,"TIPO_MITIGADOR_RIESGO",29,"Avales Otorgados por FINADE y por FODEMIPYME",0]
[null,"TIPO_MITIGADOR_RIESGO",30,"Avales Otorgados por el Fondo de Garantías del Fondo especial para el desarrollo de las micros, pequeñas y medianas empresas (FODEMIPYME), Ley 8262.",1]
[null,"TIPO_MITIGADOR_RIESGO",31,"Avales Otorgados por el Fondo de Avales y Garantías del Fondo Nacional de Desarrollo (FONADE). Ley 9274.",1]
[null,"TIPO_MITIGADOR_RIESGO",32,"Bienes y derechos incluidos en la “Ley de Garantías Mobiliarias”, Ley 9246: Créditos cedidos, correspondientes a deudores del SBD calificados en Categoría de riesgo 1.",1]
[null,"TIPO_MITIGADOR_RIESGO",33,"Bienes y derechos incluidos en la “Ley de Garantías Mobiliarias”, Ley 9246:  Cuentas por cobrar cedidas, tales como facturas.",1]
[null,"TIPO_MITIGADOR_RIESGO",34,"Bienes y derechos incluidos en la “Ley de Garantías Mobiliarias”, Ley 9246:  Créditos documentarios",1]
[null,"TIPO_MITIGADOR_RIESGO",35,"Bienes y derechos incluidos en la “Ley de Garantías Mobiliarias”, Ley 9246:  Títulos representativos de mercaderías",1]
[null,"TIPO_MITIGADOR_RIESGO",36,"Bienes y derechos incluidos en la “Ley de Garantías Mobiliarias”, Ley 9246:Bienes muebles desafectados",1]
[null,"TIPO_MITIGADOR_RIESGO",37,"Bienes y derechos incluidos en la “Ley de Garantías Mobiliarias”, Ley 9246:  Otros bienes y derechos, independientemente de su naturaleza y condición de desplazamiento.",1]
[null,"TIPO_MITIGADOR_RIESGO",38,"Avales Otorgados por  Fideicomiso de Garantías del IMAS (FIDEIMAS). ",1]
[null,"TIPO_MITIGADOR_RIESGO",39,"Factura con su respectiva cesión con recurso a favor de la entidad. Las facturas del Sector Público con vencimiento no mayor a los 6 meses con su respectiva cesión con recurso a favor de la entidad. ",1]
[null,"TIPO_MITIGADOR_RIESGO",40,"Factura emitida por una persona jurídica del sector privado con respectiva cesión con recurso a favor de la entidad. ",1]
[null,"TIPO_MITIGADOR_RIESGO",41,"Instrumentos de capital no inscritos en una bolsa de valores.",1]
[null,"TIPO_DOCUMENTO_LEGAL",1,"hipoteca 1 grado",1]
[null,"TIPO_DOCUMENTO_LEGAL",2,"hipoteca 2 grado",1]
[null,"TIPO_DOCUMENTO_LEGAL",3,"hipoteca 3 grado",1]
[null,"TIPO_DOCUMENTO_LEGAL",4,"hipoteca con un grado mayor al tercero",1]
[null,"TIPO_DOCUMENTO_LEGAL",5,"cedulas hipotecarias 1 grado",1]
[null,"TIPO_DOCUMENTO_LEGAL",6,"cedulas hipotecarias 2 grado",1]
[null,"TIPO_DOCUMENTO_LEGAL",7,"cedulas hipotecarias 3 grado",1]
[null,"TIPO_DOCUMENTO_LEGAL",8,"cedulas hipotecarias con un grado mayor al tercero",1]
[null,"TIPO_DOCUMENTO_LEGAL",9,"contrato o certificado de prenda 1 grado",1]
[null,"TIPO_DOCUMENTO_LEGAL",10,"contrato o certificado de prenda 2 grado",1]
[null,"TIPO_DOCUMENTO_LEGAL",11,"contrato o certificado de prenda 3 grado",1]
[null,"TIPO_DOCUMENTO_LEGAL",12,"contrato o certificado de prenda con un grado mayor al tercero ",1]
[null,"TIPO_DOCUMENTO_LEGAL",13,"cedula prendaria 1 grado (emitidas exclusivamente por las centrales de valores)",1]
[null,"TIPO_DOCUMENTO_LEGAL",14,"cedula prendaria 2 grado (emitidas exclusivamente por las centrales de valores)",1]
[null,"TIPO_DOCUMENTO_LEGAL",15,"cedula prendaria 3 grado (emitidas exclusivamente por las centrales de valores)",1]
[null,"TIPO_DOCUMENTO_LEGAL",16,"cedula prendaria con un grado mayor al tercero (emitidas exclusivamente por las centrales de valores)",1]
[null,"TIPO_DOCUMENTO_LEGAL",17,"bono/vale de prenda 1 grado (emitidos por almacenes generales de depósito) ",1]
[null,"TIPO_DOCUMENTO_LEGAL",18,"bono/vale de prenda 2 grado (emitidos por almacenes generales de depósito)",1]
[null,"TIPO_DOCUMENTO_LEGAL",19,"bono/vale de prenda 3 grado (emitidos por almacenes generales de depósito)",1]
[null,"TIPO_DOCUMENTO_LEGAL",20,"bono/vale de prenda con un grado mayor al tercero (emitidos por almacenes generales de depósito)",1]
[null,"TIPO_DOCUMENTO_LEGAL",21,"endoso de títulos valores (incluye certificados de inversión y  depósitos a plazo)",1]
[null,"TIPO_DOCUMENTO_LEGAL",22,"endoso de títulos valores (incluye conocimientos de embarque, cartas de porte y otros) ",1]
[null,"TIPO_DOCUMENTO_LEGAL",23,"Fideicomiso de Garantía – Fideicomisario Primario",1]
[null,"TIPO_DOCUMENTO_LEGAL",24,"Fideicomiso de Garantía – Fideicomisario Secundario",1]
[null,"TIPO_DOCUMENTO_LEGAL",25,"Fideicomiso de Garantía – Fideicomisario Tercero",1]
[null,"TIPO_DOCUMENTO_LEGAL",26,"Fideicomiso de Garantía – Fideicomisario con un grado de prioridad  menor al tercero ",1]
[null,"TIPO_DOCUMENTO_LEGAL",27,"Operaciones crediticias recibidas en garantía",1]
[null,"TIPO_DOCUMENTO_LEGAL",28,"Contratos de Pignoración S/Bienes Muebles",1]
[null,"TIPO_DOCUMENTO_LEGAL",29,"Fianzas y avales",1]
[null,"TIPO_DOCUMENTO_LEGAL",30,"Cartas de crédito ",1]
[null,"TIPO_DOCUMENTO_LEGAL",31,"Facturas cedidas",1]
[null,"TIPO_DOCUMENTO_LEGAL",32,"Contrato de Garantía Mobiliaria",1]
[null,"TIPO_GRADO_GRAVAMENES",1,"1 GRADO",1]
[null,"TIPO_GRADO_GRAVAMENES",2,"2 GRADO",1]
[null,"TIPO_GRADO_GRAVAMENES",3,"3 GRADO",0]
[null,"TIPO_GRADO_GRAVAMENES",4,"GRADO MAYOR AL TERCERO",0]
[null,"TIPO_DEPENDENCIA",1,"OFICINA CENTRAL",1]
[null,"TIPO_DEPENDENCIA",2,"DIRECCIONES REGIONALES",1]
[null,"TIPO_DEPENDENCIA",3,"SUCURSAL",1]
[null,"TIPO_DEPENDENCIA",4,"AGENCIA",1]
[null,"TIPO_DEPENDENCIA",5,"CAJA AUXILIAR",1]
[null,"TIPO_DEPENDENCIA",6,"EXTENCION DE CAJA",1]
[null,"TIPO_DEPENDENCIA",7,"OFICINA",1]
[null,"TIPO_DEPENDENCIA",8,"ALMACEN GENERAL DEPOSITO FISCAL",1]
[null,"TIPO_DEPENDENCIA",9,"OFICINA EXTRANJERA (Sucursal, agencia, u oficina de representación)",1]
[null,"TIPO_DEPENDENCIA",10,"AGENTE DE SERVICIO (Corresponsal Financiero)  ",1]
[null,"TIPO_CUOTA",1,"Principal",1]
[null,"TIPO_CUOTA",2,"Productos por cobrar",1]
[null,"TIPO_INDICADOR_GENERADOR_DIVISAS_SBD",0,"Aplica otra normativa.",1,"Cuando el deudor solo presente operaciones que le aplica la normativas SUGEF 1-05, se debe indicar el código “0”."]
[null,"TIPO_INDICADOR_GENERADOR_DIVISAS_SBD",1,"Es generador",1,"Lineamientos Generales” del Acuerdo SUGEF 15-16 “Reglamento sobre gestión y evaluación del riesgo de crédito para el Sistema de Banca para el Desarrollo, en su capítulo:\nVII. Definición de Deudores Generadores y No Generadores de Moneda Extranjera"]
[null,"TIPO_INDICADOR_GENERADOR_DIVISAS_SBD",2,"Es No generador de bajo riesgo",1,"Lineamientos Generales” del Acuerdo SUGEF 15-16 “Reglamento sobre gestión y evaluación del riesgo de crédito para el Sistema de Banca para el Desarrollo, en su capítulo:\nVII. Definición de Deudores Generadores y No Generadores de Moneda Extranjera"]
[null,"TIPO_INDICADOR_GENERADOR_DIVISAS_SBD",3,"Es No generador de alto riesgo",1,"Lineamientos Generales” del Acuerdo SUGEF 15-16 “Reglamento sobre gestión y evaluación del riesgo de crédito para el Sistema de Banca para el Desarrollo, en su capítulo:\nVII. Definición de Deudores Generadores y No Generadores de Moneda Extranjera"]
[null,"TIPO_INDICADOR_GENERADOR_DIVISAS_SBD",4,"Deudor con  todas sus operaciones en moneda nacional",1,"Los deudores que no tienen una operación crediticia denominada en moneda extranjera en la entidad no deben clasificarse. Para efectos de este capítulo VI la Unidad de Desarrollo no se considera moneda extranjera. "]
[null,"TIPO_INDICADOR_GENERADOR_DIVISAS_SBD",5,"Deudor excepción por operaciones contingentes",1,"Para efectos de la clasificación de los deudores según su exposición al riesgo cambiario debe observarse lo siguiente: \n1. Se excluyen del análisis la garantía, el aval y la carta de crédito. \nDeudores a los que les aplica la excepción inciso B.1 del apartado VII de los Lineamientos Generales del Acuerdo SUGEF 15-16.\nPor lo tanto, este Código corresponde a los deudores cuya totalidad de operaciones son “TipoOperación”  7. (la garantía de participación, el aval y la carta de crédito) "]
[null,"TIPO_MOTIVO_OPERACION_ESPECIAL",0,"No Aplica",1,"No Aplica"]
[null,"TIPO_MOTIVO_OPERACION_ESPECIAL",1,"Modificada 2 veces en los últimos 24 meses.",1,"En los últimos 24 meses, en dos oportunidades, al menos una de las operaciones del deudor a sido objeto de intervención por parte de la entidad financiera."]
[null,"TIPO_MOTIVO_OPERACION_ESPECIAL",2,"Modificad 3 o más veces en los últimos 24 meses.",1,"En los últimos 24 meses, en tres o más  oportunidades, al menos una de las operaciones del deudor a sido objeto de intervención por parte de la entidad financiera."]
[null,"TIPO_MOTIVO_OPERACION_ESPECIAL",3,"Salida de deudor de clasificación por Operación Especial. Conforme a lo establecido en el Artículo 24.",1,"Salida de deudor de clasificación por Operación Especial. Conforme a lo establecido en el Artículo 24."]
[null,"TIPO_PROVINCIA",1,"SAN JOSE",1]
[null,"TIPO_PROVINCIA",2,"ALAJUELA",1]
[null,"TIPO_PROVINCIA",3,"CARTAGO",1]
[null,"TIPO_PROVINCIA",4,"HEREDIA",1]
[null,"TIPO_PROVINCIA",5,"GUANACASTE",1]
[null,"TIPO_PROVINCIA",6,"PUNTARENAS",1]
[null,"TIPO_PROVINCIA",7,"LIMON",1]
[null,"TIPO_CANTON","1.1","CENTRAL",1]
[null,"TIPO_CANTON","1.2","ESCAZU",1]
[null,"TIPO_CANTON","1.3","DESAMPARADOS",1]
[null,"TIPO_CANTON","1.4","PURISCAL",1]
[null,"TIPO_CANTON","1.5","TARRAZU",1]
[null,"TIPO_CANTON","1.6","ASERRI",1]
[null,"TIPO_CANTON","1.7","MORA",1]
[null,"TIPO_CANTON","1.8","GOICOECHEA",1]
[null,"TIPO_CANTON","1.9","SANTA ANA",1]
[null,"TIPO_CANTON","1.10","ALAJUELITA",1]
[null,"TIPO_CANTON","1.11","CORONADO",1]
[null,"TIPO_CANTON","1.12","ACOSTA",1]
[null,"TIPO_CANTON","1.13","TIBAS",1]
[null,"TIPO_CANTON","1.14","MORAVIA",1]
[null,"TIPO_CANTON","1.15","MONTES DE OCA",1]
[null,"TIPO_CANTON","1.16","TURRUBARES",1]
[null,"TIPO_CANTON","1.17","DOTA",1]
[null,"TIPO_CANTON","1.18","CURRIDABAT",1]
[null,"TIPO_CANTON","1.19","PEREZ ZELEDON",1]
[null,"TIPO_CANTON","1.20","LEON CORTES",1]
[null,"TIPO_CANTON","2.1","CENTRAL",1]
[null,"TIPO_CANTON","2.2","SAN RAMON",1]
[null,"TIPO_CANTON","2.3","GRECIA",1]
[null,"TIPO_CANTON","2.4","SAN MATEO",1]
[null,"TIPO_CANTON","2.5","ATENAS",1]
[null,"TIPO_CANTON","2.6","NARANJO",1]
[null,"TIPO_CANTON","2.7","PALMARES",1]
[null,"TIPO_CANTON","2.8","POAS",1]
[null,"TIPO_CANTON","2.9","OROTINA",1]
[null,"TIPO_CANTON","2.10","SAN CARLOS",1]
[null,"TIPO_CANTON","2.11","ZARCERO",1]
[null,"TIPO_CANTON","2.12","SARCHI",1]
[null,"TIPO_CANTON","2.13","UPALA",1]
[null,"TIPO_CANTON","2.14","LOS CHILES",1]
[null,"TIPO_CANTON","2.15","GUATUSO",1]
[null,"TIPO_CANTON","2.16","RÍO CUARTO",1]
[null,"TIPO_CANTON","3.1","CENTRAL",1]
[null,"TIPO_CANTON","3.2","PARAISO",1]
[null,"TIPO_CANTON","3.3","LA UNION",1]
[null,"TIPO_CANTON","3.4","JIMENEZ",1]
[null,"TIPO_CANTON","3.5","TURRIALBA",1]
[null,"TIPO_CANTON","3.6","ALVARADO",1]
[null,"TIPO_CANTON","3.7","OREAMUNO",1]
[null,"TIPO_CANTON","3.8","EL GUARCO",1]
[null,"TIPO_CANTON","4.1","CENTRAL",1]
[null,"TIPO_CANTON","4.2","BARVA",1]
[null,"TIPO_CANTON","4.3","SANTO DOMINGO",1]
[null,"TIPO_CANTON","4.4","SANTA BARBARA",1]
[null,"TIPO_CANTON","4.5","SAN RAFAEL",1]
[null,"TIPO_CANTON","4.6","SAN ISIDRO",1]
[null,"TIPO_CANTON","4.7","BELEN",1]
[null,"TIPO_CANTON","4.8","FLORES",1]
[null,"TIPO_CANTON","4.9","SAN PABLO",1]
[null,"TIPO_CANTON","4.10","SARAPIQUI",1]
[null,"TIPO_CANTON","5.1","LIBERIA",1]
[null,"TIPO_CANTON","5.2","NICOYA",1]
[null,"TIPO_CANTON","5.3","SANTA CRUZ",1]
[null,"TIPO_CANTON","5.4","BAGACES",1]
[null,"TIPO_CANTON","5.5","CARRILLO",1]
[null,"TIPO_CANTON","5.6","CAÑAS",1]
[null,"TIPO_CANTON","5.7","ABANGARES",1]
[null,"TIPO_CANTON","5.8","TILARAN",1]
[null,"TIPO_CANTON","5.9","NANDAYURE",1]
[null,"TIPO_CANTON","5.10","LA CRUZ",1]
[null,"TIPO_CANTON","5.11","HOJANCHA",1]
[null,"TIPO_CANTON","6.1","CENTRAL",1]
[null,"TIPO_CANTON","6.2","ESPARZA",1]
[null,"TIPO_CANTON","6.3","BUENOS AIRES",1]
[null,"TIPO_CANTON","6.4","MONTES DE ORO",1]
[null,"TIPO_CANTON","6.5","OSA",1]
[null,"TIPO_CANTON","6.6","QUEPOS",1]
[null,"TIPO_CANTON","6.7","GOLFITO",1]
[null,"TIPO_CANTON","6.8","COTO BRUS",1]
[null,"TIPO_CANTON","6.9","PARRITA",1]
[null,"TIPO_CANTON","6.10","CORREDORES",1]
[null,"TIPO_CANTON","6.11","GARABITO",1]
[null,"TIPO_CANTON","7.1","CENTRAL",1]
[null,"TIPO_CANTON","7.2","POCOCI",1]
[null,"TIPO_CANTON","7.3","SIQUIRRES",1]
[null,"TIPO_CANTON","7.4","TALAMANCA",1]
[null,"TIPO_CANTON","7.5","MATINA",1]
[null,"TIPO_CANTON","7.6","GUACIMO",1]
[null,"TIPO_DISTRITO","1.1.1","CARMEN","1"]
[null,"TIPO_DISTRITO","2.1.1","ALAJUELA","1"]
[null,"TIPO_DISTRITO","3.1.1","ORIENTAL","1"]
[null,"TIPO_DISTRITO","4.1.1","HEREDIA","1"]
[null,"TIPO_DISTRITO","5.1.1","LIBERIA","1"]
[null,"TIPO_DISTRITO","6.1.1","PUNTARENAS","1"]
[null,"TIPO_DISTRITO","7.1.1","LIMON","1"]
[null,"TIPO_DISTRITO","1.2.1","ESCAZU","1"]
[null,"TIPO_DISTRITO","2.2.1","SAN RAMON","1"]
[null,"TIPO_DISTRITO","3.2.1","PARAISO","1"]
[null,"TIPO_DISTRITO","4.2.1","BARVA","1"]
[null,"TIPO_DISTRITO","5.2.1","NICOYA","1"]
[null,"TIPO_DISTRITO","6.2.1","ESPIRITU SANTO","1"]
[null,"TIPO_DISTRITO","7.2.1","GUAPILES","1"]
[null,"TIPO_DISTRITO","1.3.1","DESAMPARADOS","1"]
[null,"TIPO_DISTRITO","2.3.1","GRECIA","1"]
[null,"TIPO_DISTRITO","3.3.1","TRES RIOS","1"]
[null,"TIPO_DISTRITO","4.3.1","SANTO DOMINGO","1"]
[null,"TIPO_DISTRITO","5.3.1","SANTA CRUZ","1"]
[null,"TIPO_DISTRITO","6.3.1","BUENOS AIRES","1"]
[null,"TIPO_DISTRITO","7.3.1","SIQUIRRES","1"]
[null,"TIPO_DISTRITO","1.4.1","SANTIAGO","1"]
[null,"TIPO_DISTRITO","2.4.1","SAN MATEO","1"]
[null,"TIPO_DISTRITO","3.4.1","JUAN VIÑAS","1"]
[null,"TIPO_DISTRITO","4.4.1","SANTA BARBARA","1"]
[null,"TIPO_DISTRITO","5.4.1","BAGACES","1"]
[null,"TIPO_DISTRITO","6.4.1","MIRAMAR","1"]
[null,"TIPO_DISTRITO","7.4.1","BRATSI","1"]
[null,"TIPO_DISTRITO","1.5.1","SAN MARCOS","1"]
[null,"TIPO_DISTRITO","2.5.1","ATENAS","1"]
[null,"TIPO_DISTRITO","3.5.1","TURRIALBA","1"]
[null,"TIPO_DISTRITO","4.5.1","SAN RAFAEL","1"]
[null,"TIPO_DISTRITO","5.5.1","FILADELFIA","1"]
[null,"TIPO_DISTRITO","6.5.1","PUERTO CORTES","1"]
[null,"TIPO_DISTRITO","7.5.1","MATINA","1"]
[null,"TIPO_DISTRITO","1.6.1","ASERRI","1"]
[null,"TIPO_DISTRITO","2.6.1","NARANJO","1"]
[null,"TIPO_DISTRITO","3.6.1","PACAYAS","1"]
[null,"TIPO_DISTRITO","4.6.1","SAN ISIDRO","1"]
[null,"TIPO_DISTRITO","5.6.1","CAÑAS","1"]
[null,"TIPO_DISTRITO","6.6.1","QUEPOS","1"]
[null,"TIPO_DISTRITO","7.6.1","GUACIMO","1"]
[null,"TIPO_DISTRITO","1.7.1","COLON","1"]
[null,"TIPO_DISTRITO","2.7.1","PALMARES","1"]
[null,"TIPO_DISTRITO","3.7.1","SAN RAFAEL","1"]
[null,"TIPO_DISTRITO","4.7.1","SAN ANTONIO","1"]
[null,"TIPO_DISTRITO","5.7.1","LAS JUNTAS","1"]
[null,"TIPO_DISTRITO","6.7.1","GOLFITO","1"]
[null,"TIPO_DISTRITO","1.8.1","GUADALUPE","1"]
[null,"TIPO_DISTRITO","2.8.1","SAN PEDRO","1"]
[null,"TIPO_DISTRITO","3.8.1","EL TEJAR","1"]
[null,"TIPO_DISTRITO","4.8.1","SAN JOAQUIN","1"]
[null,"TIPO_DISTRITO","5.8.1","TILARAN","1"]
[null,"TIPO_DISTRITO","6.8.1","SAN VITO","1"]
[null,"TIPO_DISTRITO","1.9.1","SANTA ANA","1"]
[null,"TIPO_DISTRITO","2.9.1","OROTINA","1"]
[null,"TIPO_DISTRITO","4.9.1","SAN PABLO","1"]
[null,"TIPO_DISTRITO","5.9.1","CARMONA","1"]
[null,"TIPO_DISTRITO","6.9.1","PARRITA","1"]
[null,"TIPO_DISTRITO","1.10.1","ALAJUELITA","1"]
[null,"TIPO_DISTRITO","2.10.1","QUESADA","1"]
[null,"TIPO_DISTRITO","4.10.1","PUERTO VIEJO","1"]
[null,"TIPO_DISTRITO","5.10.1","LA CRUZ","1"]
[null,"TIPO_DISTRITO","6.10.1","CORREDOR","1"]
[null,"TIPO_DISTRITO","1.11.1","SAN ISIDRO","1"]
[null,"TIPO_DISTRITO","2.11.1","ZARCERO","1"]
[null,"TIPO_DISTRITO","5.11.1","HOJANCHA","1"]
[null,"TIPO_DISTRITO","6.11.1","JACO","1"]
[null,"TIPO_DISTRITO","1.12.1","SAN IGNACIO","1"]
[null,"TIPO_DISTRITO","2.12.1","SARCHI NORTE","1"]
[null,"TIPO_DISTRITO","1.13.1","SAN JUAN","1"]
[null,"TIPO_DISTRITO","2.13.1","UPALA","1"]
[null,"TIPO_DISTRITO","1.14.1","SAN VICENTE","1"]
[null,"TIPO_DISTRITO","2.14.1","LOS CHILES","1"]
[null,"TIPO_DISTRITO","1.15.1","SAN PEDRO","1"]
[null,"TIPO_DISTRITO","2.15.1","SAN RAFAEL","1"]
[null,"TIPO_DISTRITO","1.16.1","SAN PABLO","1"]
[null,"TIPO_DISTRITO","2.16.1","RIO CUARTO","1"]
[null,"TIPO_DISTRITO","1.17.1","SANTA MARIA","1"]
[null,"TIPO_DISTRITO","1.18.1","CURRIDABAT","1"]
[null,"TIPO_DISTRITO","1.19.1","SAN ISIDRO DE EL GENERAL","1"]
[null,"TIPO_DISTRITO","1.20.1","SAN PABLO","1"]
[null,"TIPO_DISTRITO","1.1.2","MERCED","1"]
[null,"TIPO_DISTRITO","2.1.2","SAN JOSE","1"]
[null,"TIPO_DISTRITO","3.1.2","OCCIDENTAL","1"]
[null,"TIPO_DISTRITO","4.1.2","MERCEDES","1"]
[null,"TIPO_DISTRITO","5.1.2","CAÑAS DULCES","1"]
[null,"TIPO_DISTRITO","6.1.2","PITAHAYA","1"]
[null,"TIPO_DISTRITO","7.1.2","VALLE LA ESTRELLA","1"]
[null,"TIPO_DISTRITO","1.2.2","SAN ANTONIO","1"]
[null,"TIPO_DISTRITO","2.2.2","SANTIAGO","1"]
[null,"TIPO_DISTRITO","3.2.2","SANTIAGO","1"]
[null,"TIPO_DISTRITO","4.2.2","SAN PEDRO","1"]
[null,"TIPO_DISTRITO","5.2.2","MANSION","1"]
[null,"TIPO_DISTRITO","6.2.2","SAN JUAN GRANDE","1"]
[null,"TIPO_DISTRITO","7.2.2","JIMENEZ","1"]
[null,"TIPO_DISTRITO","1.3.2","SAN MIGUEL","1"]
[null,"TIPO_DISTRITO","2.3.2","SAN ISIDRO","1"]
[null,"TIPO_DISTRITO","3.3.2","SAN DIEGO","1"]
[null,"TIPO_DISTRITO","4.3.2","SAN VICENTE","1"]
[null,"TIPO_DISTRITO","5.3.2","BOLSON","1"]
[null,"TIPO_DISTRITO","6.3.2","VOLCAN","1"]
[null,"TIPO_DISTRITO","7.3.2","PACUARITO","1"]
[null,"TIPO_DISTRITO","1.4.2","MERCEDES SUR","1"]
[null,"TIPO_DISTRITO","2.4.2","DESMONTE","1"]
[null,"TIPO_DISTRITO","3.4.2","TUCURRIQUE","1"]
[null,"TIPO_DISTRITO","4.4.2","SAN PEDRO","1"]
[null,"TIPO_DISTRITO","5.4.2","LA FORTUNA","1"]
[null,"TIPO_DISTRITO","6.4.2","LA UNION","1"]
[null,"TIPO_DISTRITO","7.4.2","SIXAOLA","1"]
[null,"TIPO_DISTRITO","1.5.2","SAN LORENZO","1"]
[null,"TIPO_DISTRITO","2.5.2","JESUS","1"]
[null,"TIPO_DISTRITO","3.5.2","LA SUIZA","1"]
[null,"TIPO_DISTRITO","4.5.2","SAN JOSECITO","1"]
[null,"TIPO_DISTRITO","5.5.2","PALMIRA","1"]
[null,"TIPO_DISTRITO","6.5.2","PALMAR","1"]
[null,"TIPO_DISTRITO","7.5.2","BATAN","1"]
[null,"TIPO_DISTRITO","1.6.2","TARBACA","1"]
[null,"TIPO_DISTRITO","2.6.2","SAN MIGUEL","1"]
[null,"TIPO_DISTRITO","3.6.2","CERVANTES","1"]
[null,"TIPO_DISTRITO","4.6.2","SAN JOSE","1"]
[null,"TIPO_DISTRITO","5.6.2","PALMIRA","1"]
[null,"TIPO_DISTRITO","6.6.2","SAVEGRE","1"]
[null,"TIPO_DISTRITO","7.6.2","MERCEDES","1"]
[null,"TIPO_DISTRITO","1.7.2","GUAYABO","1"]
[null,"TIPO_DISTRITO","2.7.2","ZARAGOZA","1"]
[null,"TIPO_DISTRITO","3.7.2","COT","1"]
[null,"TIPO_DISTRITO","4.7.2","LA RIBERA","1"]
[null,"TIPO_DISTRITO","5.7.2","SIERRA","1"]
[null,"TIPO_DISTRITO","6.7.2","PUERTO JIMENEZ","1"]
[null,"TIPO_DISTRITO","1.8.2","SAN FRANCISCO","1"]
[null,"TIPO_DISTRITO","2.8.2","SAN JUAN","1"]
[null,"TIPO_DISTRITO","3.8.2","SAN ISIDRO","1"]
[null,"TIPO_DISTRITO","4.8.2","BARRANTES","1"]
[null,"TIPO_DISTRITO","5.8.2","QUEBRADA GRANDE","1"]
[null,"TIPO_DISTRITO","6.8.2","SABALITO","1"]
[null,"TIPO_DISTRITO","1.9.2","SALITRAL","1"]
[null,"TIPO_DISTRITO","2.9.2","EL MASTATE","1"]
[null,"TIPO_DISTRITO","4.9.2","RINCON DE SABANILLA","1"]
[null,"TIPO_DISTRITO","5.9.2","SANTA RITA","1"]
[null,"TIPO_DISTRITO","1.10.2","SAN JOSECITO","1"]
[null,"TIPO_DISTRITO","2.10.2","FLORENCIA","1"]
[null,"TIPO_DISTRITO","4.10.2","LA VIRGEN","1"]
[null,"TIPO_DISTRITO","5.10.2","SANTA CECILIA","1"]
[null,"TIPO_DISTRITO","6.10.2","LA CUESTA","1"]
[null,"TIPO_DISTRITO","1.11.2","SAN RAFAEL","1"]
[null,"TIPO_DISTRITO","2.11.2","LAGUNA","1"]
[null,"TIPO_DISTRITO","5.11.2","MONTE ROMO","1"]
[null,"TIPO_DISTRITO","6.11.2","TÁRCOLES","1"]
[null,"TIPO_DISTRITO","1.12.2","GUAITIL","1"]
[null,"TIPO_DISTRITO","2.12.2","SARCHI SUR","1"]
[null,"TIPO_DISTRITO","1.13.2","CINCO ESQUINAS","1"]
[null,"TIPO_DISTRITO","2.13.2","AGUAS CLARAS","1"]
[null,"TIPO_DISTRITO","1.14.2","SAN JERONIMO","1"]
[null,"TIPO_DISTRITO","2.14.2","CAÑO NEGRO","1"]
[null,"TIPO_DISTRITO","1.15.2","SABANILLA","1"]
[null,"TIPO_DISTRITO","2.15.2","BUENAVISTA","1"]
[null,"TIPO_DISTRITO","1.16.2","SAN PEDRO","1"]
[null,"TIPO_DISTRITO","2.16.2","SANTA RITA","1"]
[null,"TIPO_DISTRITO","1.17.2","JARDIN","1"]
[null,"TIPO_DISTRITO","1.18.2","GRANADILLA","1"]
[null,"TIPO_DISTRITO","1.19.2","EL GENERAL","1"]
[null,"TIPO_DISTRITO","1.20.2","SAN ANDRES","1"]
[null,"TIPO_DISTRITO","1.1.3","HOSPITAL","1"]
[null,"TIPO_DISTRITO","2.1.3","CARRIZAL","1"]
[null,"TIPO_DISTRITO","3.1.3","CARMEN","1"]
[null,"TIPO_DISTRITO","4.1.3","SAN FRANCISCO","1"]
[null,"TIPO_DISTRITO","5.1.3","MAYORGA","1"]
[null,"TIPO_DISTRITO","6.1.3","CHOMES","1"]
[null,"TIPO_DISTRITO","7.1.3","RIO BLANCO","1"]
[null,"TIPO_DISTRITO","1.2.3","SAN RAFAEL","1"]
[null,"TIPO_DISTRITO","2.2.3","SAN JUAN","1"]
[null,"TIPO_DISTRITO","3.2.3","OROSI","1"]
[null,"TIPO_DISTRITO","4.2.3","SAN PABLO","1"]
[null,"TIPO_DISTRITO","5.2.3","SAN ANTONIO","1"]
[null,"TIPO_DISTRITO","6.2.3","MACACONA","1"]
[null,"TIPO_DISTRITO","7.2.3","RITA","1"]
[null,"TIPO_DISTRITO","1.3.3","SAN JUAN DE DIOS","1"]
[null,"TIPO_DISTRITO","2.3.3","SAN JOSE","1"]
[null,"TIPO_DISTRITO","3.3.3","SAN JUAN","1"]
[null,"TIPO_DISTRITO","4.3.3","SAN MIGUEL","1"]
[null,"TIPO_DISTRITO","5.3.3","VEINTISIETE DE ABRIL","1"]
[null,"TIPO_DISTRITO","6.3.3","POTRERO GRANDE","1"]
[null,"TIPO_DISTRITO","7.3.3","FLORIDA","1"]
[null,"TIPO_DISTRITO","1.4.3","BARBACOAS","1"]
[null,"TIPO_DISTRITO","2.4.3","JESUS MARIA","1"]
[null,"TIPO_DISTRITO","3.4.3","PEJIBAYE","1"]
[null,"TIPO_DISTRITO","4.4.3","SAN JUAN","1"]
[null,"TIPO_DISTRITO","5.4.3","MOGOTE","1"]
[null,"TIPO_DISTRITO","6.4.3","SAN ISIDRO","1"]
[null,"TIPO_DISTRITO","7.4.3","CAHUITA","1"]
[null,"TIPO_DISTRITO","1.5.3","SAN CARLOS","1"]
[null,"TIPO_DISTRITO","2.5.3","MERCEDES","1"]
[null,"TIPO_DISTRITO","3.5.3","PERALTA","1"]
[null,"TIPO_DISTRITO","4.5.3","SANTIAGO","1"]
[null,"TIPO_DISTRITO","5.5.3","SARDINAL","1"]
[null,"TIPO_DISTRITO","6.5.3","SIERPE","1"]
[null,"TIPO_DISTRITO","7.5.3","CARRANDI","1"]
[null,"TIPO_DISTRITO","1.6.3","VUELTA DE JORCO","1"]
[null,"TIPO_DISTRITO","2.6.3","SAN JOSE","1"]
[null,"TIPO_DISTRITO","3.6.3","CAPELLADES","1"]
[null,"TIPO_DISTRITO","4.6.3","CONCEPCION","1"]
[null,"TIPO_DISTRITO","5.6.3","SAN MIGUEL","1"]
[null,"TIPO_DISTRITO","6.6.3","NARANJITO","1"]
[null,"TIPO_DISTRITO","7.6.3","POCORA","1"]
[null,"TIPO_DISTRITO","1.7.3","TABARCIA","1"]
[null,"TIPO_DISTRITO","2.7.3","BUENOS AIRES","1"]
[null,"TIPO_DISTRITO","3.7.3","POTRERO CERRADO","1"]
[null,"TIPO_DISTRITO","4.7.3","LA ASUNCION","1"]
[null,"TIPO_DISTRITO","5.7.3","SAN JUAN","1"]
[null,"TIPO_DISTRITO","6.7.3","GUAYCARA","1"]
[null,"TIPO_DISTRITO","1.8.3","CALLE BLANCOS","1"]
[null,"TIPO_DISTRITO","2.8.3","SAN RAFAEL","1"]
[null,"TIPO_DISTRITO","3.8.3","TOBOSI","1"]
[null,"TIPO_DISTRITO","4.8.3","LLORENTE","1"]
[null,"TIPO_DISTRITO","5.8.3","TRONADORA","1"]
[null,"TIPO_DISTRITO","6.8.3","AGUABUENA","1"]
[null,"TIPO_DISTRITO","1.9.3","POZOS","1"]
[null,"TIPO_DISTRITO","2.9.3","HACIENDA VIEJA","1"]
[null,"TIPO_DISTRITO","5.9.3","ZAPOTAL","1"]
[null,"TIPO_DISTRITO","1.10.3","SAN ANTONIO","1"]
[null,"TIPO_DISTRITO","2.10.3","BUENAVISTA","1"]
[null,"TIPO_DISTRITO","4.10.3","LAS HORQUETAS","1"]
[null,"TIPO_DISTRITO","5.10.3","LA GARITA","1"]
[null,"TIPO_DISTRITO","6.10.3","CANOAS","1"]
[null,"TIPO_DISTRITO","1.11.3","DULCE NOMBRE DE JESUS","1"]
[null,"TIPO_DISTRITO","2.11.3","TAPESCO","1"]
[null,"TIPO_DISTRITO","5.11.3","PUERTO CARRILLO","1"]
[null,"TIPO_DISTRITO","1.12.3","PALMICHAL","1"]
[null,"TIPO_DISTRITO","2.12.3","TORO AMARILLO","1"]
[null,"TIPO_DISTRITO","1.13.3","ANSELMO LLORENTE","1"]
[null,"TIPO_DISTRITO","2.13.3","SAN JOSE o PIZOTE","1"]
[null,"TIPO_DISTRITO","1.14.3","LA TRINIDAD","1"]
[null,"TIPO_DISTRITO","2.14.3","EL AMPARO","1"]
[null,"TIPO_DISTRITO","1.15.3","MERCEDES","1"]
[null,"TIPO_DISTRITO","2.15.3","COTE","1"]
[null,"TIPO_DISTRITO","1.16.3","SAN JUAN DE MATA","1"]
[null,"TIPO_DISTRITO","2.16.3","SANTA ISABEL","1"]
[null,"TIPO_DISTRITO","1.17.3","COPEY","1"]
[null,"TIPO_DISTRITO","1.18.3","SANCHEZ","1"]
[null,"TIPO_DISTRITO","1.19.3","DANIEL FLORES","1"]
[null,"TIPO_DISTRITO","1.20.3","LLANO BONITO","1"]
[null,"TIPO_DISTRITO","1.1.4","CATEDRAL","1"]
[null,"TIPO_DISTRITO","2.1.4","SAN ANTONIO","1"]
[null,"TIPO_DISTRITO","3.1.4","SAN NICOLAS","1"]
[null,"TIPO_DISTRITO","4.1.4","ULLOA","1"]
[null,"TIPO_DISTRITO","5.1.4","NACASCOLO","1"]
[null,"TIPO_DISTRITO","6.1.4","LEPANTO","1"]
[null,"TIPO_DISTRITO","7.1.4","MATAMA","1"]
[null,"TIPO_DISTRITO","1.2.4","GUACHIPELIN","0"]
[null,"TIPO_DISTRITO","2.2.4","PIEDADES NORTE","1"]
[null,"TIPO_DISTRITO","3.2.4","CACHI","1"]
[null,"TIPO_DISTRITO","4.2.4","SAN ROQUE","1"]
[null,"TIPO_DISTRITO","5.2.4","QUEBRADA HONDA","1"]
[null,"TIPO_DISTRITO","6.2.4","SAN RAFAEL","1"]
[null,"TIPO_DISTRITO","7.2.4","ROXANA","1"]
[null,"TIPO_DISTRITO","1.3.4","SAN RAFAEL ARRIBA","1"]
[null,"TIPO_DISTRITO","2.3.4","SAN ROQUE","1"]
[null,"TIPO_DISTRITO","3.3.4","SAN RAFAEL","1"]
[null,"TIPO_DISTRITO","4.3.4","PARACITO","1"]
[null,"TIPO_DISTRITO","5.3.4","TEMPATE","1"]
[null,"TIPO_DISTRITO","6.3.4","BORUCA","1"]
[null,"TIPO_DISTRITO","7.3.4","GERMANIA","1"]
[null,"TIPO_DISTRITO","1.4.4","GRIFO ALTO","1"]
[null,"TIPO_DISTRITO","2.4.4","LABRADOR","1"]
[null,"TIPO_DISTRITO","4.4.4","JESUS","1"]
[null,"TIPO_DISTRITO","5.4.4","RIO NARANJO","1"]
[null,"TIPO_DISTRITO","7.4.4","TELIRE","1"]
[null,"TIPO_DISTRITO","2.5.4","SAN ISIDRO","1"]
[null,"TIPO_DISTRITO","3.5.4","SANTA CRUZ","1"]
[null,"TIPO_DISTRITO","4.5.4","ANGELES","1"]
[null,"TIPO_DISTRITO","5.5.4","BELEN","1"]
[null,"TIPO_DISTRITO","6.5.4","BAHIA BALLENA","1"]
[null,"TIPO_DISTRITO","1.6.4","SAN GABRIEL","1"]
[null,"TIPO_DISTRITO","2.6.4","CIRRI SUR","1"]
[null,"TIPO_DISTRITO","4.6.4","SAN FRANCISCO","1"]
[null,"TIPO_DISTRITO","5.6.4","BEBEDERO","1"]
[null,"TIPO_DISTRITO","7.6.4","RIO JIMENEZ","1"]
[null,"TIPO_DISTRITO","1.7.4","PIEDRAS NEGRAS","1"]
[null,"TIPO_DISTRITO","2.7.4","SANTIAGO","1"]
[null,"TIPO_DISTRITO","3.7.4","CIPRESES","1"]
[null,"TIPO_DISTRITO","5.7.4","COLORADO","1"]
[null,"TIPO_DISTRITO","6.7.4","PAVÓN","1"]
[null,"TIPO_DISTRITO","1.8.4","MATA DE PLATANO","1"]
[null,"TIPO_DISTRITO","2.8.4","CARRILLOS","1"]
[null,"TIPO_DISTRITO","3.8.4","PATIO DE AGUA","1"]
[null,"TIPO_DISTRITO","5.8.4","SANTA ROSA","1"]
[null,"TIPO_DISTRITO","6.8.4","LIMONCITO","1"]
[null,"TIPO_DISTRITO","1.9.4","URUCA","1"]
[null,"TIPO_DISTRITO","2.9.4","COYOLAR","1"]
[null,"TIPO_DISTRITO","5.9.4","SAN PABLO","1"]
[null,"TIPO_DISTRITO","1.10.4","CONCEPCION","1"]
[null,"TIPO_DISTRITO","2.10.4","AGUAS ZARCAS","1"]
[null,"TIPO_DISTRITO","4.10.4","LLANURAS DE GASPAR","1"]
[null,"TIPO_DISTRITO","5.10.4","SANTA ELENA","1"]
[null,"TIPO_DISTRITO","6.10.4","LAUREL","1"]
[null,"TIPO_DISTRITO","1.11.4","PATALILLO","1"]
[null,"TIPO_DISTRITO","2.11.4","GUADALUPE","1"]
[null,"TIPO_DISTRITO","5.11.4","HUACAS","1"]
[null,"TIPO_DISTRITO","1.12.4","CANGREJAL","1"]
[null,"TIPO_DISTRITO","2.12.4","SAN PEDRO","1"]
[null,"TIPO_DISTRITO","1.13.4","LEON XIII","1"]
[null,"TIPO_DISTRITO","2.13.4","BIJAGUA","1"]
[null,"TIPO_DISTRITO","2.14.4","SAN JORGE","1"]
[null,"TIPO_DISTRITO","1.15.4","SAN RAFAEL","1"]
[null,"TIPO_DISTRITO","2.15.4","KATIRA","1"]
[null,"TIPO_DISTRITO","1.16.4","SAN LUIS","1"]
[null,"TIPO_DISTRITO","1.18.4","TIRRASES","1"]
[null,"TIPO_DISTRITO","1.19.4","RIVAS","1"]
[null,"TIPO_DISTRITO","1.20.4","SAN ISIDRO","1"]
[null,"TIPO_DISTRITO","1.1.5","ZAPOTE","1"]
[null,"TIPO_DISTRITO","2.1.5","GUACIMA","1"]
[null,"TIPO_DISTRITO","3.1.5","AGUACALIENTE o SAN FRANCISCO","1"]
[null,"TIPO_DISTRITO","4.1.5","VARABLANCA","1"]
[null,"TIPO_DISTRITO","5.1.5","CURUBANDE","1"]
[null,"TIPO_DISTRITO","6.1.5","PAQUERA","1"]
[null,"TIPO_DISTRITO","2.2.5","PIEDADES SUR","1"]
[null,"TIPO_DISTRITO","3.2.5","LLANOS DE SANTA LUCIA","1"]
[null,"TIPO_DISTRITO","4.2.5","SANTA LUCIA","1"]
[null,"TIPO_DISTRITO","5.2.5","SAMARA","1"]
[null,"TIPO_DISTRITO","6.2.5","SAN JERONIMO","1"]
[null,"TIPO_DISTRITO","7.2.5","CARIARI","1"]
[null,"TIPO_DISTRITO","1.3.5","SAN ANTONIO","1"]
[null,"TIPO_DISTRITO","2.3.5","TACARES","1"]
[null,"TIPO_DISTRITO","3.3.5","CONCEPCION","1"]
[null,"TIPO_DISTRITO","4.3.5","SANTO TOMAS","1"]
[null,"TIPO_DISTRITO","5.3.5","CARTAGENA","1"]
[null,"TIPO_DISTRITO","6.3.5","PILAS","1"]
[null,"TIPO_DISTRITO","7.3.5","EL CAIRO","1"]
[null,"TIPO_DISTRITO","1.4.5","SAN RAFAEL","1"]
[null,"TIPO_DISTRITO","4.4.5","SANTO DOMINGO","1"]
[null,"TIPO_DISTRITO","2.5.5","CONCEPCION","1"]
[null,"TIPO_DISTRITO","3.5.5","SANTA TERESITA","1"]
[null,"TIPO_DISTRITO","4.5.5","CONCEPCION","1"]
[null,"TIPO_DISTRITO","6.5.5","PIEDRAS BLANCAS","1"]
[null,"TIPO_DISTRITO","1.6.5","LEGUA","1"]
[null,"TIPO_DISTRITO","2.6.5","SAN JERONIMO","1"]
[null,"TIPO_DISTRITO","5.6.5","POROSAL","1"]
[null,"TIPO_DISTRITO","7.6.5","DUACARI","1"]
[null,"TIPO_DISTRITO","1.7.5","PICAGRES","1"]
[null,"TIPO_DISTRITO","2.7.5","CANDELARIA","1"]
[null,"TIPO_DISTRITO","3.7.5","SANTA ROSA","1"]
[null,"TIPO_DISTRITO","1.8.5","IPIS","1"]
[null,"TIPO_DISTRITO","2.8.5","SABANA REDONDA","1"]
[null,"TIPO_DISTRITO","5.8.5","LIBANO","1"]
[null,"TIPO_DISTRITO","6.8.5","PITTIER","1"]
[null,"TIPO_DISTRITO","1.9.5","PIEDADES","1"]
[null,"TIPO_DISTRITO","2.9.5","LA CEIBA","1"]
[null,"TIPO_DISTRITO","5.9.5","PORVENIR","1"]
[null,"TIPO_DISTRITO","1.10.5","SAN FELIPE","1"]
[null,"TIPO_DISTRITO","2.10.5","VENECIA","1"]
[null,"TIPO_DISTRITO","4.10.5","CUREÑA","1"]
[null,"TIPO_DISTRITO","1.11.5","CASCAJAL","1"]
[null,"TIPO_DISTRITO","2.11.5","PALMIRA","1"]
[null,"TIPO_DISTRITO","5.11.5","MATAMBÚ","1"]
[null,"TIPO_DISTRITO","1.12.5","SABANILLAS","1"]
[null,"TIPO_DISTRITO","2.12.5","RODRIGUEZ","1"]
[null,"TIPO_DISTRITO","1.13.5","COLIMA","1"]
[null,"TIPO_DISTRITO","2.13.5","DELICIAS","1"]
[null,"TIPO_DISTRITO","1.16.5","CARARA","1"]
[null,"TIPO_DISTRITO","1.19.5","SAN PEDRO","1"]
[null,"TIPO_DISTRITO","1.20.5","SANTA CRUZ","1"]
[null,"TIPO_DISTRITO","1.1.6","SAN FRANCISCO DE DOS RIOS","1"]
[null,"TIPO_DISTRITO","2.1.6","SAN ISIDRO","1"]
[null,"TIPO_DISTRITO","3.1.6","GUADALUPE o ARENILLA","1"]
[null,"TIPO_DISTRITO","6.1.6","MANZANILLO","1"]
[null,"TIPO_DISTRITO","2.2.6","SAN RAFAEL","1"]
[null,"TIPO_DISTRITO","4.2.6","SAN JOSE DE LA MONTAÑA","1"]
[null,"TIPO_DISTRITO","5.2.6","NOSARA","1"]
[null,"TIPO_DISTRITO","6.2.6","CALDERA","1"]
[null,"TIPO_DISTRITO","7.2.6","COLORADO","1"]
[null,"TIPO_DISTRITO","1.3.6","FRAILES","1"]
[null,"TIPO_DISTRITO","2.3.6","RIO CUARTO","0"]
[null,"TIPO_DISTRITO","3.3.6","DULCE NOMBRE","1"]
[null,"TIPO_DISTRITO","4.3.6","SANTA ROSA","1"]
[null,"TIPO_DISTRITO","5.3.6","CUAJINIQUIL","1"]
[null,"TIPO_DISTRITO","6.3.6","COLINAS","1"]
[null,"TIPO_DISTRITO","7.3.6","ALEGRIA","1"]
[null,"TIPO_DISTRITO","1.4.6","CANDELARITA","1"]
[null,"TIPO_DISTRITO","4.4.6","PURABÁ","1"]
[null,"TIPO_DISTRITO","2.5.6","SAN JOSE","1"]
[null,"TIPO_DISTRITO","3.5.6","PAVONES","1"]
[null,"TIPO_DISTRITO","6.5.6","BAHIA DRAKE","1"]
[null,"TIPO_DISTRITO","1.6.6","MONTERREY","1"]
[null,"TIPO_DISTRITO","2.6.6","SAN JUAN","1"]
[null,"TIPO_DISTRITO","1.7.6","JARIS","1"]
[null,"TIPO_DISTRITO","2.7.6","ESQUIPULAS","1"]
[null,"TIPO_DISTRITO","1.8.6","RANCHO REDONDO","1"]
[null,"TIPO_DISTRITO","5.8.6","TIERRAS MORENAS","1"]
[null,"TIPO_DISTRITO","6.8.6","GUTIERREZ BRAUN","1"]
[null,"TIPO_DISTRITO","1.9.6","BRASIL","1"]
[null,"TIPO_DISTRITO","5.9.6","BEJUCO","1"]
[null,"TIPO_DISTRITO","2.10.6","PITAL","1"]
[null,"TIPO_DISTRITO","2.11.6","ZAPOTE","1"]
[null,"TIPO_DISTRITO","2.13.6","DOS RIOS","1"]
[null,"TIPO_DISTRITO","1.19.6","PLATANARES","1"]
[null,"TIPO_DISTRITO","1.20.6","SAN ANTONIO","1"]
[null,"TIPO_DISTRITO","1.1.7","URUCA","1"]
[null,"TIPO_DISTRITO","2.1.7","SABANILLA","1"]
[null,"TIPO_DISTRITO","3.1.7","CORRALILLO","1"]
[null,"TIPO_DISTRITO","6.1.7","GUACIMAL","1"]
[null,"TIPO_DISTRITO","2.2.7","SAN ISIDRO","1"]
[null,"TIPO_DISTRITO","5.2.7","BELEN DE NOSARITA","1"]
[null,"TIPO_DISTRITO","7.2.7","LA COLONIA","1"]
[null,"TIPO_DISTRITO","1.3.7","PATARRA","1"]
[null,"TIPO_DISTRITO","2.3.7","PUENTE DE PIEDRA","1"]
[null,"TIPO_DISTRITO","3.3.7","SAN RAMON","1"]
[null,"TIPO_DISTRITO","4.3.7","TURES","1"]
[null,"TIPO_DISTRITO","5.3.7","DIRIA","1"]
[null,"TIPO_DISTRITO","6.3.7","CHÁNGUENA","1"]
[null,"TIPO_DISTRITO","7.3.7","REVENTAZON","1"]
[null,"TIPO_DISTRITO","1.4.7","DESAMPARADITOS","1"]
[null,"TIPO_DISTRITO","2.5.7","SANTA EULALIA","1"]
[null,"TIPO_DISTRITO","3.5.7","TUIS","1"]
[null,"TIPO_DISTRITO","1.6.7","SALITRILLOS","1"]
[null,"TIPO_DISTRITO","2.6.7","ROSARIO","1"]
[null,"TIPO_DISTRITO","1.7.7","QUITIRRISI","1"]
[null,"TIPO_DISTRITO","2.7.7","LA GRANJA","1"]
[null,"TIPO_DISTRITO","1.8.7","PURRAL","1"]
[null,"TIPO_DISTRITO","5.8.7","ARENAL","1"]
[null,"TIPO_DISTRITO","2.10.7","LA FORTUNA","1"]
[null,"TIPO_DISTRITO","2.11.7","BRISAS","1"]
[null,"TIPO_DISTRITO","2.13.7","YOLILLAL","1"]
[null,"TIPO_DISTRITO","1.19.7","PEJIBAYE","1"]
[null,"TIPO_DISTRITO","1.1.8","MATA REDONDA","1"]
[null,"TIPO_DISTRITO","2.1.8","SAN RAFAEL","1"]
[null,"TIPO_DISTRITO","3.1.8","TIERRA BLANCA","1"]
[null,"TIPO_DISTRITO","6.1.8","BARRANCA","1"]
[null,"TIPO_DISTRITO","2.2.8","ANGELES","1"]
[null,"TIPO_DISTRITO","1.3.8","SAN CRISTOBAL","1"]
[null,"TIPO_DISTRITO","2.3.8","BOLIVAR","1"]
[null,"TIPO_DISTRITO","3.3.8","RIO AZUL","1"]
[null,"TIPO_DISTRITO","4.3.8","PARA","1"]
[null,"TIPO_DISTRITO","5.3.8","CABO VELAS","1"]
[null,"TIPO_DISTRITO","6.3.8","BIOLLEY","1"]
[null,"TIPO_DISTRITO","1.4.8","SAN ANTONIO","1"]
[null,"TIPO_DISTRITO","2.5.8","ESCOBAL","1"]
[null,"TIPO_DISTRITO","3.5.8","TAYUTIC","1"]
[null,"TIPO_DISTRITO","2.6.8","PALMITOS","1"]
[null,"TIPO_DISTRITO","2.10.8","LA TIGRA","1"]
[null,"TIPO_DISTRITO","2.13.8","CANALETE","1"]
[null,"TIPO_DISTRITO","1.19.8","CAJON","1"]
[null,"TIPO_DISTRITO","1.1.9","PAVAS","1"]
[null,"TIPO_DISTRITO","2.1.9","RIO SEGUNDO","1"]
[null,"TIPO_DISTRITO","3.1.9","DULCE NOMBRE","1"]
[null,"TIPO_DISTRITO","6.1.9","MONTE VERDE","1"]
[null,"TIPO_DISTRITO","2.2.9","ALFARO","1"]
[null,"TIPO_DISTRITO","1.3.9","ROSARIO","1"]
[null,"TIPO_DISTRITO","5.3.9","TAMARINDO","1"]
[null,"TIPO_DISTRITO","6.3.9","BRUNKA","1"]
[null,"TIPO_DISTRITO","1.4.9","CHIRES","1"]
[null,"TIPO_DISTRITO","3.5.9","SANTA ROSA","1"]
[null,"TIPO_DISTRITO","2.10.9","LA PALMERA","1"]
[null,"TIPO_DISTRITO","1.19.9","BARU","1"]
[null,"TIPO_DISTRITO","1.1.10","HATILLO","1"]
[null,"TIPO_DISTRITO","2.1.10","DESAMPARADOS","1"]
[null,"TIPO_DISTRITO","3.1.10","LLANO GRANDE","1"]
[null,"TIPO_DISTRITO","6.1.10","COBANO","1"]
[null,"TIPO_DISTRITO","2.2.10","VOLIO","1"]
[null,"TIPO_DISTRITO","1.3.10","DAMAS","1"]
[null,"TIPO_DISTRITO","3.5.10","TRES EQUIS","1"]
[null,"TIPO_DISTRITO","2.10.10","VENADO","1"]
[null,"TIPO_DISTRITO","1.19.10","RIO NUEVO","1"]
[null,"TIPO_DISTRITO","1.1.11","SAN SEBASTIAN","1"]
[null,"TIPO_DISTRITO","2.1.11","TURRUCARES","1"]
[null,"TIPO_DISTRITO","3.1.11","QUEBRADILLA","1"]
[null,"TIPO_DISTRITO","6.1.11","CHACARITA","1"]
[null,"TIPO_DISTRITO","2.2.11","CONCEPCION","1"]
[null,"TIPO_DISTRITO","1.3.11","SAN RAFAEL ABAJO","1"]
[null,"TIPO_DISTRITO","3.5.11","LA  ISABEL","1"]
[null,"TIPO_DISTRITO","2.10.11","CUTRIS","1"]
[null,"TIPO_DISTRITO","1.19.11","PARAMO","1"]
[null,"TIPO_DISTRITO","1.1.12","PRUEBA","0"]
[null,"TIPO_DISTRITO","2.1.12","TAMBOR","1"]
[null,"TIPO_DISTRITO","6.1.12","CHIRA","1"]
[null,"TIPO_DISTRITO","2.2.12","ZAPOTAL","1"]
[null,"TIPO_DISTRITO","1.3.12","GRAVILIAS","1"]
[null,"TIPO_DISTRITO","3.5.12","CHIRRIPO","1"]
[null,"TIPO_DISTRITO","2.10.12","MONTERREY","1"]
[null,"TIPO_DISTRITO","1.19.12","LA AMISTAD","1"]
[null,"TIPO_DISTRITO","2.1.13","GARITA","1"]
[null,"TIPO_DISTRITO","6.1.13","ACAPULCO","1"]
[null,"TIPO_DISTRITO","2.2.13","PEÑAS BLANCAS","1"]
[null,"TIPO_DISTRITO","1.3.13","LOS GUIDOS","1"]
[null,"TIPO_DISTRITO","2.10.13","POCOSOL","1"]
[null,"TIPO_DISTRITO","2.1.14","SARAPIQUI","1"]
[null,"TIPO_DISTRITO","6.1.14","EL ROBLE","1"]
[null,"TIPO_DISTRITO","2.2.14","SAN LORENZO","1"]
[null,"TIPO_DISTRITO","6.1.15","ARANCIBIA","1"]
[null,"TIPO_DISTRITO","6.1.16","ISLA DEL COCO","1"]
[null,"TIPO_CARTERA",0,"Consumo (excepto vehículos y tarjetas).  Se debe utilizar solo para personas físicas",1]
[null,"TIPO_CARTERA",1,"Vehículos.  Se debe utilizar solo para personas físicas",1]
[null,"TIPO_CARTERA",2,"Tarjeta de crédito.",1]
[null,"TIPO_CARTERA",3,"Vivienda residencial  Se debe utilizar solo para personas físicas",1]
[null,"TIPO_CARTERA",4,"Micro y Pequeña Empresa",1,"Para efectos del uso de los códigos 4, 5 y 6 se utilizará la definición que establece el Ministerio de Economía e Industria y Comercio."]
[null,"TIPO_CARTERA",5,"Mediana Empresa",1,"Para efectos del uso de los códigos 4, 5 y 6 se utilizará la definición que establece el Ministerio de Economía e Industria y Comercio."]
[null,"TIPO_CARTERA",6,"Gran Empresa (Corporativo)",1,"Para efectos del uso de los códigos 4, 5 y 6 se utilizará la definición que establece el Ministerio de Economía e Industria y Comercio."]
[null,"TIPO_CARTERA",7,"Gobierno Central",1]
[null,"TIPO_CARTERA",8,"Artículo 167 Ley 7052 (Cuota Refinanciada) 2)",1,"LEY No. 7052  LEY DEL SISTEMA FINANCIERO NACIONAL PARA LA VIVIENDA\nArtículo 167.- Las entidades autorizadas podrán otorgar sus créditos mediante sistemas de pago, en los cuales la cuota se ajuste con base en la variación de los salarios mínimos. Esas cuotas pueden ser menores al mínimo necesario para cubrir intereses y amortización -cuota refinanciada- y las diferencias en descubierto se acumularán en el saldo del crédito en forma de capitalización, sin que por ello se pueda aplicar el artículo 505 del Código de Comercio. En todo caso, el monto de la cuota así fijada será aplicable primero a cubrir intereses, y si queda algo será aplicado a amortizar la deuda. Similar tratamiento podrá aplicarse a créditos ya establecidos. Los entes autorizados podrán utilizar sistemas mediante otros parámetros fijados por la Junta Directiva del Banco. (Reformado por Ley No. 7558 del 3 de noviembre de 1995)"]
[null,"TIPO_CARTERA",9,"Microcrédito SBD",1]
[null,"TIPO_CARTERA",10,"Banca Segundo Piso SBD",1]
[null,"TIPO_CARTERA",11,"Banca Desarrollo SBD",1]
[null,"TIPO_POLIZA",1,"PERSONALES - INDIVIDUALES ","1"]
[null,"TIPO_POLIZA",2,"PERSONALES - COLECTIVAS ","1"]
[null,"TIPO_POLIZA",3,"GENERALES","1"]
[null,"TIPO_POLIZA",4,"OTRO TIPO DE PÓLIZAS","1"]
[null,"TIPO_CLASIFICACION_INSTRUMENTO",0,"Instrumento negociable en Bolsa Nacional de Valores excepto las participaciones de los Fondos de Inversión",1]
[null,"TIPO_CLASIFICACION_INSTRUMENTO",1,"Instrumento negociable en Otras Bolsas excepto las participaciones de los Fondos de Inversión",1]
[null,"TIPO_CLASIFICACION_INSTRUMENTO",2,"Participaciones en Fondos de Inversión no Negociables en Bolsa Nacional de Valores u otras bolsas",1]
[null,"TIPO_CLASIFICACION_INSTRUMENTO",3,"Participaciones en Fondos de Inversión negociables en Bolsa Nacional de Valores u otras bolsas",1]
[null,"TIPO_CLASIFICACION_INSTRUMENTO",4,"Instrumentos de deuda/capital no Negociables en bolsa excepto participaciones en los Fondos de Inversión",1]
[null,"TIPO_CLASIFICACION_INSTRUMENTO",5,"Cuentas de depósito a la vista en entidades financieras nacionales y del extranjero",1]
[null,"TIPO_CLASIFICACION_INSTRUMENTO",6,"Operaciones de compra con pacto de reventa",1]
[null,"TIPO_CLASIFICACION_INSTRUMENTO",7,"ACCIONES EMITIDAS POR LA ENTIDAD FINANCIERA",1]
[null,"TIPO_CLASIFICACION_INSTRUMENTO",8,"INVERSION EN ACCIONES DE OTRAS EMPRESAS",1]

{"sheet":"TIPO_MONEDA","index":9,"n_rows":184,"n_cols":7,"rows_kept":184,"cut":false,"hidden":true,"merged":[]}
["C TIPO MONEDA","NOMBRE TIPO MONEDA","ES NACIONAL","ES ACTIVO","ALIAS","CODIGO ISO","DESCRIPCION COMPLETA"]
[1,"colón","N","1","1","CRC","Colón de Costa Rica"]
[2,"dolar estadounidense","E","1","2","USD","Dólar Americano"]
[3,"Euro","E","1","3","ECU","Moneda Única Europea (EURO)"]
[4,"unidades de desarrollo","N","1","4","UDS","Unidades de Desarrollo (propuesto)"]
[5,"afgani","E","1","5","AFA","Afgani"]
[6,"lek","E","1","6","ALL","Lek Albanés"]
[7,"kwanza","E","1","7","AOK","Kwanza Angolés"]
[8,"dólar del Caribe Oriental","E","1","8","XCD","Dólar de Caribe Oriental"]
[9,"florín de las Antillas Neerlandesas","E","1","9","ANG","Florín de las Antillas Holandesas"]
[10,"rial (o riyal) saudí","E","1","10","SAR","Riyal de Arabia Saudí"]
[11,"dinar argelino","E","1","11","DZD","Dinar de Argelia"]
[12,"peso argentino","E","1","12","ARS","Peso Argentino"]
[13,"dram","E","1","13","AMD","Dram Armenio"]
[14,"florín de Aruba","E","1","14","AWG","Guilder de Aruba"]
[15,"dólar australiano","E","1","15","AUD","Dólar Australiano"]
[16,"manat azerí","E","1","16","AZM","Manat de Azerbaijan"]
[17,"dólar de las bahamas","E","1","17","BSD","Dólar de Bahamas"]
[18,"dinar bahriní","E","1","18","BHD","Dinar de Bahrein"]
[19,"taka","E","1","19","BDT","Taka de Bangladesh"]
[20,"dólar de Barbados","E","1","20","BBD","Dólar de Barbados"]
[21,"dólar de Belice","E","1","21","BZD","Dólar de Belice"]
[22,"franco","E","1","22","BEF","Franco Belga"]
[23,"dólar de Bermudas","E","1","23","BMD","Dólar de Bermudas"]
[24,"rublo bielorruso","E","1","24","BYR","Rublo de Bielorrusia"]
[25,"kyat - Myanmar","E","1","25","MMK","Kyat de Myanmar (Birmania)"]
[26,"boliviano","E","1","26","BOB","Boliviano de Bolivia"]
[27,"marco bosnio","E","1","27","BAD","Dinar de Bosnia-Herzogovinia"]
[28,"pula","E","1","28","BWP","Pula de Botswana"]
[29,"real","E","1","29","BRL","Real de Brasil"]
[30,"dólar de Brunéi","E","1","30","BND","Dólar de Brunei"]
[31,"dólar singapurense","E","1","31","SGD","Dólar de Singapur"]
[32,"lev","E","1","32","BGL","Lev Búlgaro"]
[33,"franco","E","1","33","FRF","Franco Francés"]
[34,"franco de Burundi","E","1","34","BIF","Franco de Burundi"]
[35,"ngultrum - Bután","E","1","35","BTN","Ngultrum de Bután"]
[36,"rupia india","E","1","36","INR","Rupia India"]
[37,"escudo de Cabo Verde","E","1","37","CVE","Escudo de Cabo Verde"]
[38,"riel","E","1","38","KHR","Riel de Camboya"]
[39,"franco","E","1","39","LUF","Franco de Luxemburgo"]
[40,"dólar canadiense","E","1","40","CAD","Dólar Canadiense"]
[42,"corona checa","E","1","42","CZK","Corona Checa"]
[43,"peso chileno","E","1","43","CLP","Peso Chileno"]
[44,"yuan renminbi","E","1","44","RMB","Remnminbi Yuan de China"]
[45,"libra chipriota","E","1","45","CYP","Libra de Chipre"]
[46,"shequel","E","1","46","ILS","Scheckel Israelí"]
[47,"peso colombiano","E","1","47","COP","Peso de Colombia"]
[48,"franco comorano","E","1","48","KMF","Franco de Comoros"]
[49,"franco","E","0","49","49","Franco"]
[50,"won norcoreano","E","1","50","KPW","Won de Corea del Norte"]
[51,"won surcoreano","E","1","51","KRW","Won de Corea del Sur"]
[52,"franco","E","1","52","XAF","Franco de Gabón"]
[53,"kuna - Croacia","E","1","53","HRD","Dinar de Croacia"]
[54,"peso cubano","E","1","54","CUP","Peso Cubano"]
[55,"corona danesa","E","1","55","DKK","Corona Danesa"]
[56,"libra egipcia","E","1","56","EGP","Libra Egipcia"]
[58,"dirham","E","1","58","AED","Dirham de los Emiratos Árabes Unidos"]
[59,"nakfa - Eritrea","E","1","59","ERN","Nakfa eritreo"]
[60,"corona eslovaca","E","1","60","SKK","Corona Eslovaca"]
[61,"tólar","E","1","61","SIT","Tólar de Eslovenia"]
[62,"corona estonia","E","1","62","EEK","Corona de Estonia"]
[63,"birr","E","1","63","ETB","Birr de Etiopía"]
[64,"dólares de las islas Fiji","E","1","64","FJD","Dólar de Fiji"]
[65,"peso filipino","E","1","65","PHP","Peso Filipino"]
[66,"franco","E","1","66","XOF","Franco de Benin (C.f.A.)"]
[67,"dalasi","E","1","67","GMD","Dalasi de Gambia"]
[68,"lari - Georgia","E","1","68","GEK","Kupon de Georgia"]
[69,"cedi","E","1","69","GHC","Cedi de Ghana"]
[70,"libra de Gibraltar","E","1","70","GIP","Libra de Gibraltar"]
[71,"quetzal","E","1","71","GTQ","Quetzal de Guatemala"]
[72,"franco guineo","E","1","72","GNF","Franco de Guinea"]
[73,"franco","E","0","73","73","Franco"]
[74,"franco","E","0","74","74","Franco"]
[75,"dólar de Guayana","E","1","75","GYD","Dólar Guayanés"]
[76,"gourdegurda","E","1","76","HTG","Gourde de Haití"]
[77,"lempira","E","1","77","HNL","Lempira de Honduras"]
[78,"dólar deHongKong","E","1","78","HKD","Dólar de Hong Kong"]
[79,"forint","E","1","79","HUF","Forint húngaro"]
[80,"rupia india","E","1","80","80","Franco"]
[81,"rupia indonesia","E","1","81","IDR","Rupia Indonesia"]
[82,"rial iraní","E","1","82","IRR","Rial Iraní"]
[83,"dinar iraquí","E","1","83","IQD","Dinar Iraquí"]
[84,"corona islandesa","E","1","84","ISK","Corona Islandesa"]
[85,"dólar de la isla Caimán","E","1","85","KYD","Dólar de las Caimán"]
[86,"dólar neozelandés","E","1","86","NZD","Dólar de Nueva Zelanda"]
[87,"libra esterlina","E","1","87","GBP","Libra Británica"]
[88,"dólar de las Islas Salomón","E","1","88","SBD","Dólar de las Islas Salomón"]
[89,"shequel (plural sheqalim)","E","1","89","89","Franco"]
[90,"dólar de Jamaica","E","1","90","JMD","Dólar de Jamaica"]
[91,"yen","E","1","91","JPY","Yen Japonés"]
[92,"dinar jordano","E","1","92","JOD","Dinar de Jordania"]
[93,"tenge","E","1","93","KZT","Tenge de Kazakhstán"]
[94,"chelín keniano","E","1","94","KES","Chelín de Kenya"]
[95,"som","E","1","95","KIS","Som de Kirghizstan"]
[96,"dinar kuwaití","E","1","96","KWD","Dinar de Kuwait"]
[97,"kip","E","1","97","LAK","Kip de Letonia"]
[98,"loti (plural maloti)","E","1","98","LSL","Loti de Lesotho"]
[99,"lats (plural lati)","E","1","99","LVL","Lat Latonia"]
[100,"libra libanesa","E","1","100","LBP","Libra Libanesa"]
[101,"dólar liberiano","E","1","101","LRD","Dólar de Liberia"]
[102,"dinar libio","E","1","102","LYD","Dinar Libio"]
[103,"franco suizo","E","1","103","CHF","Franco Suizo"]
[104,"litas (plural litai)","E","1","104","LTL","Lita de Lituania"]
[105,"pataca","E","1","105","MOP","Pataca de Macao"]
[106,"denar","E","1","106","MKD","Denar macedonio"]
[107,"franco malgache - Madagascar","E","1","107","MGF","Franco Malgache - Madagascar"]
[108,"ringgit","E","1","108","MYR","Ringgit de Malasia"]
[109,"kwacha de Malaui","E","1","109","MWK","Kwacha de Malawi"]
[110,"rupia de Maldivas (o rufiyaa)","E","1","110","MVR","Rupia de Maldivas"]
[111,"franco","E","0","111","111","Franco"]
[112,"lira maltesa","E","1","112","MTL","Lira de Malta"]
[113,"dirham marroquí","E","1","113","MAD","Dirham Marroquí"]
[114,"rupia mauriciana","E","1","114","MUR","Rupia de \"Mauritius\""]
[115,"ouguiya","E","1","115","MRO","Ouguiya de Mauritania"]
[116,"peso mexicano","E","1","116","MXN","Nuevo Peso Mexicano"]
[117,"leu moldavo (plural lei)","E","1","117","MDL","Lei de Moldavia"]
[118,"tugrik","E","1","118","MNT","Tugrik de Mongolia"]
[119,"metical","E","1","119","MZM","Metical de Mozambique"]
[120,"rand sudafricanodólar de Nambia","E","1","120","ZAR","Rand de Sur África"]
[121,"rupia nepalesa","E","1","121","NPR","Rupia de Nepal"]
[122,"córdoba","E","1","122","NIO","Córdoba de Nicaragua"]
[123,"franco","E","0","123","123","Franco"]
[124,"naira","E","1","124","NGN","Naira de Nigeria"]
[125,"corona noruega","E","1","125","NOK","Corona Noruega"]
[126,"corona noruega","E","0","126","126","Corona Noruega"]
[127,"franco","E","1","127","127","rial omaní"]
[128,"rial omaní","E","1","128","OMR","Rial de Omán"]
[129,"rupia paquistaní","E","1","129","PKR","Rupia de Pakistán"]
[130,"balboa","E","1","130","PAB","Balboa de Panamá"]
[131,"kina","E","1","131","PGK","Kina de Papua Nueva Guinea"]
[132,"guaraní","E","1","132","PYG","Guaraní de Paraguay"]
[133,"nuevo sol","E","1","133","PEN","Nuevo Sol de Perú"]
[134,"franco","E","0","134","134","Franco"]
[135,"zloty","E","1","135","PLN","Zloty de Polonia"]
[136,"rial (o riyal) de Qatar","E","1","136","QAR","Riyal de Qatar"]
[137,"franco","E","0","137","137","Franco"]
[138,"franco congoleño","E","1","138","CDF","Franco Congoleño"]
[139,"peso dominicano","E","1","139","DOP","Peso Dominicano"]
[140,"franco ruandés","E","1","140","RWF","Franco de Rwanda"]
[141,"leu rumano (plura lei)","E","1","141","ROL","Lei de Rumania"]
[142,"rublo ruso","E","1","142","RUR","Rublo ruso"]
[143,"dirham marroqui","E","1","143","143","dirham marroqui"]
[144,"tala","E","1","144","WST","Tala de Samoa"]
[145,"dobra","E","1","145","STD","Sao Tome / Príncipe Dobra"]
[146,"franco","E","0","146","146","Franco"]
[147,"Serbia-/dinar","E","1","147","CSD","Dinar Serbio"]
[148,"Montenegro/ euro","E","1","148","YUM","Montenegro/ euro"]
[149,"rupia de Seychelles","E","1","149","SCR","Rupias de Seychelles"]
[150,"leone","E","1","150","SLL","Sierra León"]
[151,"libra siria","E","1","151","SYP","libra de Siria"]
[152,"chelín somalí","E","1","152","SOS","Chellín de Somalia"]
[153,"rupia de Sri Lanka","E","1","153","LKR","Rupia de Sri Lanka"]
[154,"lilangeni (plural emalengeni)","E","1","154","SZL","Lilangeni de Swaziland"]
[155,"libra sudanesa","E","1","155","SDP","Libra de Sudán"]
[156,"corona sueca","E","1","156","SEK","Corona Sueca"]
[157,"rand","E","1","157","157","rand"]
[158,"florín surinamés","E","1","158","SRG","Guilder de Surinam"]
[159,"baht","E","1","159","THB","Baht de Tailandia"]
[160,"nuevo dólar de Taiwán","E","1","160","TWD","Dólar de Nuevo Taiwán"]
[161,"chelín tanzano","E","1","161","TZS","Chellín de Tanzania"]
[162,"somoni","E","1","162","TJS","Somoni de Tadyikistán"]
[163,"franco","E","0","163","163","Franco"]
[164,"pa'anga","E","1","164","TOP","Pa'anga de Tonga"]
[165,"dólar de Trinidad y Tobago","E","1","165","TTD","Dólar de Trinidad y Tobago"]
[166,"dinar tunecino","E","1","166","TND","Dinar de Tunícia"]
[167,"manat turcomano","E","1","167","TMM","Manat de Turkmenistán"]
[168,"lira turca","E","1","168","TRL","Lira de Turquía"]
[169,"jrivnia - ucrania","E","1","169","UAH","Jrivnia de Ucrania"]
[170,"chelín ugandés","E","1","170","UGS","Chellín de Uganda"]
[171,"peso uruguayo","E","1","171","UYP","Nuevo Peso de Uruguay"]
[172,"sum","E","1","172","UZS","Sum de Uzbekistán"]
[173,"vatu","E","1","173","VUV","Vatu de Vanuatu"]
[174,"bolívar","E","1","174","VEB","Bolívar de Venezuela"]
[175,"dong","E","1","175","VND","Viet Nam Dong"]
[176,"franco","E","0","176","176","Franco"]
[177,"rial yemení","E","1","177","YER","Ryal de Yemen"]
[178,"franco de Yibuti","E","1","178","DJF","Franco de Djibouti"]
[179,"dinar yugoslavo","E","1","179","YUD","Nuevo dinar yugoslavo"]
[180,"Kwacha zambiano","E","1","180","ZMK","Kwacha de Zambia"]
[181,"dólar de Zimbabue","E","1","181","ZWD","Dólar de Zimbawe"]
[204,"colones contratados en UDES","N","1","204","CRC","colones contratados en UDES"]
[901,"Marco Alemán","E","1","901","DE","Marco Alemán"]
[998,"NACIONAL","S","0","998","N","Nacional"]
[999,"EXTRANJERA","N","0","999","E","Extranjera"]

{"sheet":"TIPO_COLATERAL_REAL","index":10,"n_rows":9,"n_cols":5,"rows_kept":9,"cut":false,"hidden":true,"merged":[[1,1,1,4]]}
[]
[null,"Nombre de la tabla: Tipo_Colateral_Real"]
[]
[null,"Código","TIPO DE COLATERAL","PORCENTAJE DE RECUPERACIÓN ","factor_descuento   1/*"]
[null,1,"Alhajas y joyas ","90% ","0.05 "]
[null,2,"Inmuebles (Terreno y edificaciones) ","70% ","0.15 "]
[null,3,"Vehículos particulares ","60% ","0.30 "]
[null,4,"Maquinaria y equipo ","50% ","0.30 "]
[null,5,"Otros ","40% ","0.40 "]

{"sheet":"TIPO_COLATERAL_FINANCIERO","index":11,"n_rows":16,"n_cols":8,"rows_kept":16,"cut":false,"hidden":true,"merged":[[1,1,1,7],[3,3,3,7],[5,1,6,1],[5,3,6,3]]}
[]
[null,"Nombre de la tabla: Tipo_Colateral_Financiero"]
[]
[null,null,null,"Clasificación del instrumento"]
[null,null,null,1,2,3,4,5]
[null,"Código","Colateral  Financiero ","Factor Único ","Categoría 3 O mejor ","Categoría 4 ","Categoría 5 ","Categoría 6 "]
[null,null,"y otros derechos de cobro",null,"(AAA A BBB-) ","(BB+ A BB-) ","(B+ A B-) ","(CCC O PEOR) "]
[null,1,"\nEfectivo.  Depósito en la misma entidad.\n","0% ","- ","- ","- ","- "]
[null,2,"\nInstrumento de deuda. (Inscrito) \n","- ","15% ","20% ","25% ","100% "]
[null,3,"\nInstrumento de deuda  (GOCR, BCCR) \n","- ","15% ","20% ","25% ","100% "]
[null,4,"\nInstrumento de deuda. (Entidad supervisada por la SUGEF sin calificación pública otorgada por una agencia calificadora) \n","30% ","- ","- ","- ","- "]
[null,5,"\nInstrumento de capital debidamente inscrito en una bolsa de valores autorizada. \n","- ","30% ","40% ","50% ","100% "]
[null,6,"\nParticipación en un fondo de inversión abierto debidamente inscrito en la plaza correspondiente. \n","- ","30% ","40% ","50% ","100% "]
[null,7,"\nParticipación en un fondo de inversión cerrado debidamente inscrito en una bolsa de valores autorizada. \n","- ","30% ","40% ","50% ","100% "]
[null,8,"\nFactura con su respectiva cesión con recurso a favor de la entidad \n","40% "]
[null,9,"\nInstrumento de capital no inscrito en una bolsa de valores \n","50% "]

{"sheet":"EQUIV_CALIF_AGENCIA_CALIFICADOR","index":12,"n_rows":45,"n_cols":5,"rows_kept":45,"cut":false,"hidden":true,"merged":[[37,2,37,4],[3,1,4,4],[8,2,9,2],[8,3,9,3],[8,4,9,4],[11,2,11,4],[28,2,29,2],[28,4,29,4]]}
[]
[]
["INDICE"]
["IR A TABLAS","Equivalencia Calificaciones Agencias Calificadoras"]
[]
[]
[null,"Calificaciones De Largo Plazo: "]
[]
[null,"EMPRESA","STANDARD & POOR’S INTERNACIONAL","MOODY ’S INTERNACIONAL","FITCH INTERNACIONAL"]
[null,"CALIFICADORA"]
[null,"CÓDIGO DE EMPRESA CALIFICADORA",0,1,2]
[null,"CATEGORÍA DE RIESGO","CATEGORÍA DE LA CALIFICACIÓN"]
[null,0,"AAA","Aaa","AAA"]
[null,1,"AA+","Aa1","AA+"]
[null,1,"AA","Aa2","AA"]
[null,1,"AA-","Aa3","AA-"]
[null,2,"A+","A1","A+"]
[null,2,"A","A2","A"]
[null,2,"A-","A3","A-"]
[null,3,"BBB+","Baa1","BBB+"]
[null,3,"BBB","Baa2","BBB"]
[null,3,"BBB-","Baa3","BBB-"]
[null,4,"BB+","Ba1","BB+"]
[null,4,"BB","Ba2","BB"]
[null,4,"BB-","Ba3","BB-"]
[null,5,"B+","B1","B+"]
[null,5,"B","B2","B"]
[null,5,"B-","B3","B-"]
[null,6,"CCC (+ -) CC","Caa (1, 2, 3) ","CCC (+ -) CC"]
[null,6,null,"Ca (1, 2, 3)"]
[null,6,"C","C","C"]
[null,6,"D",null,"DDD; DD y D"]
[]
[null,"Calificaciones De Corto Plazo: "]
[]
[null,null,"STANDARD & POOR’S INTERNACIONAL","MOODY ’S INTERNACIONAL","FITCH INTERNACIONAL"]
[null,"CÓDIGO DE EMPRESA CALIFICADORA",50,51,52]
[null,"CATEGORÍA DE RIESGO","CATEGORÍA DE LA CALIFICACIÓN"]
[null,1,"A1+",null,"  F1+"]
[null,2,"A1","P1","F1"]
[null,3,"A2","P2","F2"]
[null,4,"A3","P3","F3"]
[null,5,"B ",null,"B"]
[null,6,"C",null,"C"]
[null,6,"D",null,"D"]

{"sheet":"01_Generalidades_Estructura","index":13,"n_rows":66,"n_cols":2,"rows_kept":66,"cut":false,"hidden":false,"merged":[]}
["INDICE"]
["OBSERVACIONES"]
[null,"BLOQUE DE DATOS"]
[]
[null,"ARCHIVO DE INFORMACIÓN DE LA CLASE GARANTIAS"]
[]
[null,"CLASE DE DATOS DE LA INFORMACIÓN DE GARANTÍAS VERSIÓN 2.0"]
[]
[null,"GENERALIDADES."]
[]
[null,"Esta clase de datos contiene los valores necesarios para realizar la carga completa de la información de diferentes tipos de garantías: fiduciarias, reales, valores, cartas de crédito, documentos que amparan las cartas de crédito de importación y documentos cedidos, Garantías Mobiliarias y Pólizas."]
[]
[null,"El registro de los bienes dados en garantía debe hacerse de manera individualizada."]
[]
[null,"Los archivos de esta clase de datos serán remitidos según los tipos de garantías que tiene la entidad.  Por tanto, se puede remitir de uno a más archivos en esta clase de datos"]
[]
[null,"Las entidades financieras deben reportar la información de las distintas garantías que se utilicen en las diferentes modalidades de operaciones que realicen y que se ajusten a los archivos de esta Clase de Datos."]
[]
[null,"La entades deber remitir mensualmente la carga completa de todos los  archivos de las garantías que cada entidad posee y que se ajusten a los archivos de esta Clase de Datos. Se debe reportar todas aquellas garantías que estén asociadas a una operación crediticia que estén o podrían estar siendo utilizadas como mitigadoras de riesgo en el período de remisión de la información de conformidad con lo indicado en la Circular Externa SUGEF 1399-2015 del 26 de mayo 2015 en lo que aplique."]
[]
[null,"OTRAS CONSIDERACIONES:"]
[]
[null,"1. Para los efectos el Centro de Información Crediticia (CIC) debe reportarse la información de la totalidad de los fiadores sean estos  mitigadores o no."]
[]
[null,"2. Reportar las acciones emitidas por la entidad y que a la vez son recibidas en garantía de sus operaciones crediticias directas e indirectas con personas deudoras, sean estas físicas o jurídicas, en el archivo de Garantías Valores."]
[]
[null,"DEPENDENCIA DE DATOS"]
[]
[null,"Esta clase de datos tiene dependencia de datos, por lo que para su ingreso debe existir la carga exitosa de:"]
[null,"1. Registro y Control "]
[null,"2. Contable Financiero"]
[]
[null,"En caso de monedas extranjeras, se ajustarán a las cotizaciones  informadas por el Banco Central de Costa Rica, utilizándose el tipo de cambio de venta 1/ de referencia, al último día natural de cada mes en adelante “Tipo de Cambio de Referencia”."]
[]
[null,"En caso de Unidades de Desarrollo, se ajustarán al valor en colones, informado por el Banco Central de Costa Rica, al último día natural de cada mes."]
[]
[null,"El corte de la información remitida en esta clase de datos debe corresponder al último día natural del mes del envío."]
[]
[null," 1/  A partir del 01 de enero de 2020, se utilizará el Tipo de Cambio de Venta, de acuerdo la modificación del artículo 12 del Acuerdo CONASSIF 6-18 - Reglamento de Información Financiera.  (anterior Acuerdo SUGEF 30-18).  "]
[]
[null,"ESTRUCTURA  GENERAL DEL ARCHIVO SICVECA"]
[]
[null,"<?xml version=”2.0” encoding=”UTF-8”?>"]
[null,"<ArchivoSICVECA>"]
[null,"<Encabezado>"]
[null,"<ClaseDato />"]
[null,"<VersionClaseDato />"]
[null,"<Archivo />"]
[null,"<VersionArchivo />"]
[null,"<Periodo />"]
[null,"<IdEntidad />"]
[null,"<TipoCarga />"]
[null,"<TipoMoneda />"]
[null,"</Encabezado>"]
[null,"<Datos>"]
[null,"..........."]
[null,"..........."]
[null,"</Datos>   "]
[null,"</ArchivoSICVECA>"]
[]
[null,"LOS ARCHIVOS DE ENVÍO PARA EL SICVECA EN FORMATO XML ESTÁN BASADOS EN DOS BLOQUES PRINCIPALES:"]
[]
[null,"1. Bloque de Encabezado: es una sección genérica, que debe enviarse en cada archivo de información solicitada por la SUGEF."]
[null,"2. Bloque de Datos: es la sección donde se definen los datos propios de la información que la SUGEF solicita."]
[]
[null,"Para algunos de los tags de datos existen datos predeterminados o que sus valores son equivalentes a una tabla; para esto en la descripción del tag se indica el valor o los valores del campo haciendo referencia al documento de descripción de las tablas “Tablas utilizadas en la documentación de datos de envío”."]

{"sheet":"01_Generalidades_Campos","index":14,"n_rows":13,"n_cols":8,"rows_kept":13,"cut":false,"hidden":false,"merged":[[2,1,2,7]]}
[]
[]
[null,"CAMPOS DEL ARCHIVO DE INFORMACIÓN DE LA CLASE GARANTIAS"]
[]
[null,"NOMBRE  DEL TAG","TIPO DATO","TAMAÑO FORMATO","ESTADO","OBLIGATORIO","DESCRIPCIÓN","TABLA CATALOGO ASOCIADA"]
[null,"ClaseDato","Numérico","1 a 5 ","Activo","SI","\nCódigo interno de carga para la clase de datos. \n---------------------------------------------------\n Referirse a la tabla: Clase_Dato\n","Clase Dato"]
[null,"VersionClaseDato","Numérico","1 a 10 enteros\n2 decimales","Activo","SI","\nNúmero de versión de la Clase de Datos, en un inicio esta versión debe venir como 1.0\n"]
[null,"Archivo","Numérico","1 a 15","Activo","SI","\nCódigo interno de carga del archivo o bloque. \n---------------------------------------------------\nReferirse a la tabla: Archivo.\n","Archivo"]
[null,"VersionArchivo","Numérico","1 a 10 enteros\n2 decimales","Activo","SI","\nNúmero de versión del archivo, en un inicio esta versión debe venir como 1.0\n"]
[null,"Periodo","Fecha","dd/mm/yyyy","Activo","SI","\nCódigo del periodo, es la fecha que corresponde al periodo que cumple la carga del archivo\n"]
[null,"IdEntidad","Texto","1 a 30 ","Activo","SI","\nIdentificador de la entidad que envía los datos, corresponde al  número de cédula jurídica. \n"]
[null,"TipoCarga","Numérico","1 a 2","Activo","SI","\nDefine si la carga es nueva, una prórroga,  un reenvío o un cambio. \n----------------------------------------------------\nReferirse a la tabla: Tipo_carga_clase_dato \n","Tipo Carga Clase Dato "]
[null,"TipoMoneda","Numérico","1 a 6","Activo","SI","\nTipo de moneda del reporte. \n----------------------------------------------------\nReferirse a la tabla: Tipo_Moneda.\n","Tipo Moneda"]

{"sheet":"01_Generalidades_Validaciones","index":15,"n_rows":20,"n_cols":4,"rows_kept":20,"cut":false,"hidden":false,"merged":[]}
[]
[]
[null,"VALIDACIONES GENERALES PARA EL ARCHIVO DE LA CLASE DE DATOS DE GARANTIAS.","Código del archivo","Número \nValidación NEC (T.I)"]
[]
[null,"Validaciones De Encabezado."]
[null,"1. Verificar que el “Id_Entidad” corresponda a una Entidad de la tabla de Entidades en la base de datos de la SUGEF."]
[null,"2. Verificar que los tipos de moneda correspondan a la tabla “Tipo_Moneda” de la base de datos de la SUGEF."]
[null,"3. Verificar que el campo “TipoMoneda” del encabezado del reporte venga únicamente en colones."]
[null,"Esta validación implica que todos los montos de los archivos deben venir colonizados con las excepciones que se indiquen en algunos de los campos. El tipo de cambio de referencia que se debe utilizar en la colonización de los montos es el tipo de cambio de venta de referencia del Banco Central de Costa Rica, al último día natural de cada mes en adelante \"Tipo de Cambio de Referencia\"."]
[null,"4. Verificar que el campo”ClaseDato” corresponda a la tabla “Clase_Dato”."]
[null,"5. Verificar que el campo “Archivo” corresponda en la tabla de Archivos."]
[null,"6. Verificar que el campo “TipoCarga” corresponda en la tabla Tipo_carga_clase_dato."]
[]
[null,"Validaciones Generales."]
[null,"1. El campo “Registro” debe ser consecutivo empezando por el número uno en cada archivo."]
[null,"2. Tipo de Dato: este elemento describe si el campo debe ser numérico, alfanumérico o fecha.\na. Cuando el tipo de dato es numérico, el campo debe venir numérico.,\nb. Cuando el tipo de dato es fecha, el campo debe contener una fecha con la siguiente estructura:  dd/mm/yyyy.,\nc. Cuando el campo tenga relación con cifras numéricas relacionadas con montos, estas deben tener como separación el punto en los decimales únicamente., \nd. Cuando el tipo de dato es texto, el campo puede contener una mezcla de números y letras. ,\n e. Cuando se trate de nombre y apellidos de personas físicas y razón social no debe llevar tildes ni caracteres como /, |, \\, #, o % para indicar una letra Ñ. Y además, no debe contener los caracteres: “.”(punto),  ni “”” (doble comilla).  \nf. La restricción para la “Ñ” aplica únicamente para los campos “Nombre” “Apellidos” y “RazonSocial”."]
[null,"3. Tamaño-formato: este elemento indica el tamaño del campo.,\na. Cuando se indica un rango como por ejemplo “1 a 5”, significa que el campo puede tener desde un caracter hasta cinco caracteres.,\nb. Cuando se indica un rango como por ejemplo “0 a 20”, significa que el campo puede tener de cero caracteres a 20 caracteres.,\nc. Cuando se indica un rango como por ejemplo “1 a 10 números enteros más dos decimales”, significa que el campo puede tener desde un caracter hasta diez números enteros con dos decimales.  , \nd. La separación de decimales es punto."]
[null,"4. Estado: este elemento indica si el campo es activo o inactivo.,\na. Cuando se indica “Activo”, significa que el campo debe ser reportado por las entidades financieras en caso de que aplique.,\nb. Cuando se indica “Inactivo” significa que el campo no debe ser reportado por las entidades financieras."]
[null,"5. Descripción: Este elemento indica la descripción del campo, en algunos casos indica los códigos que deben utilizarse en el campo y en otros casos indica la tabla de referencia que aplica para ese campo., \na. Cuando se indica en la descripción los códigos a utilizar, el campo debe contener alguno de esos códigos según corresponda.  ,\n b. Cuando se hace referencia a una tabla, el campo debe contener los códigos que tiene la tabla. Las tablas se encuentran en los archivos: “TablasDocumentacionXML_Primera Parte.doc” y  “TablasDocumentacionXML_Segunda Parte.doc”."]
[null,"6. Obligatorio: Este elemento indica si el campo debe venir obligatoriamente o no.  , \na. Cuando el elemento indica “SI”, significa que el campo debe ser reportado por la entidad.,\nb. Cuando el elemento indica “NO”, esto no necesariamente implica que no deba enviarse el valor correspondiente, ya que en algunos casos, el campo debe ser reportado según se indique en las validaciones."]

{"sheet":"5201_Polizas_Estructura","index":16,"n_rows":29,"n_cols":2,"rows_kept":29,"cut":false,"hidden":false,"merged":[]}
[]
[]
[null,"BLOQUE DE DATOS"]
[]
[null,"ARCHIVO PARA INFORMACIÓN DEL ARCHIVO PÓLIZAS"]
[]
[null,"El archivo de Pólizas permite reportar la información referente a las pólizas suscritas a favor de la entidad como parte de las garantías reportadas por la entidad. El formato de envío para esta información se encuentra en el archivo: NEC2024_Garantias_Polizas.xml [5201], estado Activo."]
[]
[null,"METODOLOGÍA DE USO DEL ARCHIVO PÓLIZAS"]
[]
[null,"El uso de este archivo es permanente para los periodos en los cuales la entidad reporte pólizas que respaldan las garantías y tiene dependencia del envío del XML de Garantías y aplica a partir de enero 2024."]
[]
[null,"ESTRUCTURA DEL ARCHIVO POLIZAS"]
[]
[null,"Registro id=\"\" accion=\"\"> "]
[null,"<IdGarantia/> "]
[null,"<TipoGarantia/> "]
[null,"<TipoBienGarantia/> "]
[null,"<TipoPoliza/> "]
[null,"<MontoPoliza/> "]
[null,"<FechaVencimientoPoliza/> "]
[null,"<IndicadorCoberturasPoliza /> "]
[null," <TipoPersonaBeneficiario/> "]
[null," <IdBeneficiario/> "]
[null,"</Registro> "]
[]
[null,"CAMPO LLAVE DEL ARCHIVO PÓLIZAS"]
[]
[null,"El campo llave del archivo de pólizas es: IdGarantia, TipoGarantia,TipoBienGarantia, TipoPoliza, FechaVencimientoPoliza."]

{"sheet":"5201_Polizas Descripcion","index":17,"n_rows":15,"n_cols":8,"rows_kept":15,"cut":false,"hidden":false,"merged":[[2,1,2,7]]}
[]
[]
[null,"CAMPOS DEL ARCHIVO DE INFORMACIÓN DE LA CLASE INFORMACIÓN DE POLIZAS"]
[]
[null,"NOMBRE DEL TAG","TIPO DATO","TAMAÑO FORMATO","ESTADO","OBLIGATORIO","DESCRIPCIÓN","TABLA CATALOGO ASOCIADA"]
[null,"Registro ",null,null,null,null,"\nBloque donde se incluyen los datos.  El atributo “id” es obligatorio e indica un consecutivo numérico de registros de envío.  El atributo “acción” debe tener alguno de los siguientes valores: “insertar” (si es un registro nuevo), “modificar” (si es un cambio) o “eliminar” (sí se desea eliminar) \n"]
[null,"IdGarantia ","Texto","1 a 25","Activo","SI","\nCódigo referente a la nomenclatura utilizada por el Registro Nacional u otro organismo similar en el extranjero cuando exista.    Tales como:  el número de finca, número de placa, matrícula de buques \n"]
[null,"TipoGarantia ","Numérico","1 a 5","Activo","SI","\nCódigo del tipo de garantía que garantiza la operación. \n--------------------------------------------------\nReferirse a la tabla: Tipo_Garantia \n","TIPO_GARANTIA"]
[null,"TipoBienGarantia ","Numérico","1 a 5","Activo","SI","\nCódigo del tipo de bien recibido en garantía. \n--------------------------------------------------\nReferirse a la tabla: Tipo_Bien  \n","TIPO_BIEN"]
[null,"TipoPoliza ","Numérico","1 a 2","Activo","SI","\nTipo de póliza utilizado para garantizar la cobertura del bien.\n--------------------------------------------------\nReferirse a la tabla: Tipo_Poliza\n","TIPO_POLIZA"]
[null,"MontoPoliza ","Numérico","1 a 20 enteros \n2 decimales","Activo","SI","\nMonto asegurado del bien a favor de la Entidad \n"]
[null,"FechaVencimientoPoliza","Fecha","dd/mm/yyyy","Activo","SI","\nFecha de vencimiento (incluye su periodo de gracia) de la póliza de seguro. \n"]
[null,"IndicadorCoberturasPoliza ","Texto",1,"Activo","SI","\nIndicador de si la póliza del bien dado en garantía incluye todas las coberturas según la naturaleza para asegurar su recuperación en caso de siniestro.  \n\nLos valores son:\n\n       S:    sí tiene todas las coberturas. \n       N:  no tiene todas las coberturas. \n"]
[null,"TipoPersonaBeneficiario ","Numérico","1 a 2","Activo","SI","\nCódigo de tipo de persona referido en el campo “IdBeneficiario”, y éste solo solo puede ser: 1 ó 2 ó 3 ó 4 ó 5 ó 6 ó 13.\n--------------------------------------------------\nReferirse a la tabla: Tipo_Persona\n","TIPO_PERSONA"]
[null,"IdBeneficiario ","Texto","1 a 30","Activo","SI","\nCorresponde a la identificación de la persona beneficiaria de la póliza. \n\nSi existe acreedor se debe indicar la cédula de la entidad financiera y si no existe se debe indicar el beneficiario. \n"]

{"sheet":"5201_Polizas Validaciones","index":18,"n_rows":16,"n_cols":7,"rows_kept":16,"cut":false,"hidden":false,"merged":[[2,2,2,6]]}
[]
[]
[null,null,"VALIDACIONES PARA ARCHIVO DE LA INFORMACIÓN  DE POLIZAS"]
[]
["Numeración en publicación  anterior","APARTADO","#","Descripción de la validación","N# 1.16","# T.I","Cambio realizado"]
[1,null,1,"\nEl \"IdGarantia\" de este archivo, debe existir en el campo \"IdGarantiaReal\" y  tener una \"S\" en el campo \"IndicadorPolizaGarantiaReal\" del Archivo Garantías Reales.\n"]
[2,null,2,"El campo \"MontoPoliza\" No deben permitir datos negativos."," ",null,"NUEVA"]
[3,null,3,"No es permitido remitir datos para periodos anteriores a Enero 2024"," ",null,"NUEVA"]
[4,null,4,"El campo \"TipoGarantia\" debe existir en la tabla \"TIPO_GARANTIA\" y debe estar activo.'"," ",null,"NUEVA"]
[5,null,5,"El campo \"TipoBienGarantia\" debe existir en la tabla \"TIPO_BIEN\" y debe estar activo."," ",null,"NUEVA"]
[6,null,6,"El campo \"TipoPoliza\" debe existir en la tabla \"TIPO_POLIZA\" y debe estar activo.'"," ",null,"NUEVA"]
[7,null,7,"La combinación de los siguientes campos: IdGarantia, TipoGarantia, TipoBienGarantia, TipoPoliza y FechaVencimientoPoliza no deben repetirse.\nINACTIVA"," ",null,"MODIFICADA"]
[]
[8," ",8,"Los campos “TipoPersonaBeneficiario” y “IdBeneficiario” deben corresponder con el padrón de personas de la SUGEF.\n",null,null,"NUEVA"]
["Integridad","Implícita en la Definición del Campo XML","09.","No es permitido indicar espacios en blanco al inicio o al final del campo: \"IdGarantia\" del Archivo: \"NEC2024_GARANTIAS_POLIZAS\".\n\n",null,null,"NUEVA"]
["Integridad","Implícita en la Definición del Campo XML","10.","No es permitido indicar espacios en blanco al inicio o al final del campo: \"IdBeneficiario\" del Archivo: \"NEC2024_GARANTIAS_POLIZAS\".\n\n"]

{"sheet":"5202_Cartas Credito_Estructura","index":19,"n_rows":31,"n_cols":2,"rows_kept":31,"cut":false,"hidden":false,"merged":[]}
[]
[]
[null,"BLOQUE DE DATOS"]
[]
[null,"ARCHIVO DE LA INFORMACIÓN DEL ARCHIVO GARANTÍAS CARTAS DE CRÉDITO"]
[]
[null,"Este archivo contiene los valores necesarios para realizar la carga de la información de las garantías de cartas de crédito stand by mitigadoras de riesgo, que las entidades financieras deben identificar cuando otorgan operaciones crediticias directas e indirectas con personas deudoras sean estas físicas o jurídicas."]
[]
[null,"El registro de este tipo de garantías debe hacerse de manera individualizada."]
[]
[null,"El formato de envío para esta información se encuentra en el archivo: NEC2024_GarantiasCartasCredito.xml [5202], estado Activo."]
[]
[null,"ESTRUCTURA DEL ARCHIVO GARANTÍAS CARTAS DE CRÉDITO"]
[]
[null,"<Registro id=\"\" accion=\"\">"]
[null,"<IdGarantiaCartaCredito/>"]
[null,"<TipoMitigadorCartaCredito/>"]
[null,"<FechaConstitucion/>"]
[null,"<FechaVencimiento/>"]
[null,"<TipoPersona/>"]
[null,"<IdEntidadCartaCredito/>"]
[null,"<ValorNominalGarantia/>"]
[null,"<TipoMonedaValorNominal/>"]
[null,"<TipoAsignacionCalificacion/>"]
[null,"<CodigoCalificacionCategoria/>"]
[null,"<Factor_Y/>"]
[null,"</Registro>"]
[]
[null,"EL CAMPO LLAVE DEL ARCHIVO GARANTÍAS CARTAS DE CRÉDITO"]
[]
[null,"El campo llave del archivo de garantías valores es: IdGarantiaCartaCredito."]

{"sheet":"5202_Cartas Credito_Descripcion","index":20,"n_rows":17,"n_cols":8,"rows_kept":17,"cut":false,"hidden":false,"merged":[[2,1,2,7]]}
[]
[]
[null,"CAMPOS DEL ARCHIVO DE INFORMACIÓN DE LA CLASE GARANTIAS CARTAS DE CRÉDITO "]
[]
[null,"NOMBRE DEL TAG","TIPO DATO","TAMAÑO FORMATO","ESTADO","OBLIGATORIO","DESCRIPCIÓN","TABLA CATALOGO ASOCIADA"]
[null,"Registro",null,null,null,null,"\nBloque donde se incluyen los datos.  El atributo “id” es obligatorio e indica un consecutivo numérico de registros de envío.  El atributo “accion”  debe tener alguno de los siguientes valores: “insertar” (si es un registro nuevo), “modificar” (si es un cambio) o “eliminar” (sí se desea eliminar)\n"]
[null," IdGarantiaCartaCredito","Texto","1 a 25","Activo","SI","\nCódigo que corresponde al número de la Carta de Crédito. \n"]
[null,"TipoMitigadorCartaCredito","Numérico","1 a 2","Activo","SI","\nCódigo del tipo del mitigador dado en garantía.  Se debe utilizar el código 21.\n----------------------------------------------------------------------------------\nReferirse a la tabla: Tipo_Mitigador_Riesgo\n"]
[null,"FechaConstitucion","Fecha","dd/mm/yyyy","Activo","SI","\nFecha de constitución de la Carta Crédito\nCorresponde a la fecha de emisión del instrumento indicado en el documento. \n"]
[null,"FechaVencimiento","Fecha","dd/mm/yyyy","Activo","NO","\nFecha de vencimiento de la carta de crédito que responde como garantía.\n"]
[null,"TipoPersona","Numérico","1 a 2","Activo","SI","\nCódigo del tipo de persona reportado en el campo “IdEntidadCartaCredito” y éste solo solo puede ser: 1 ó 2 ó 3 ó 4 ó 5 ó 6 ó 13.\n--------------------------------------------------\nReferirse a la tabla Tipo_Persona\n","TIPO PERSONA"]
[null,"IdEntidadCartaCredito","Texto","1 a 30","Activo","SI","\nCódigo de identificación de la entidad financiera que emite la carta de crédito Stand By o la carta de crédito de exportación.\nSi se trata de una entidad financiera nacional, se debe indicar la cédula jurídica.\nSi el código del campo “TipoPersona” es 4 ó 6 se debe utilizar el código ABA (entidad de USA), código SWIFT (cualquier otro país).\nValorar agregar el código 6 Empresa extranjera no financiera\n"]
[null,"ValorNominalGarantia","Numérico","1 a 20\n2 decimales","Activo","SI","\nValor facial de la garantía consignado en el documento legal mediante el cual se formalizó la operación de crédito.  El tipo de moneda debe ser la indicada en el documento.\n"]
[null,"TipoMonedaValorNominal","Numérico","1 a 6","Activo","SI","\nCódigo de tipo de moneda del valor nominal indicado en el documento legal de la garantía.\n--------------------------------------------------\nReferirse a la tabla: Tipo_Moneda \n","TIPO MONEDA"]
[null,"TipoAsignacionCalificacion","Numérico",1,"Activo","SI","\nCódigo del tipo de a quien se asigna la calificación.\n--------------------------------------------------\nReferirse a la tabla:  Tipo_Asignacion_Calificacion\n","TIPO ASIGNACION CALIFICACION"]
[null,"CodigoCalificacionCategoria","Numérico","0 a 2","Activo","SI","Corresponde al Código Calificación emitida por Agencia Calificadora Internacional ó a la Categoría de Riesgo, ó\nsegún criterios para Empresarial 1.  \nDe acuerdo con lo indicado en el inciso c), artículo 21 del Acuerdo CONASSIF 14-21.","Tabla Carta de Crédito Stand-by emitida por entidad financiera internacional ó Tabla Carta de Crédito Stand-by emitida por entidad financiera supervisada por SUGEF"]
[null,"Factor_Y","Numérico","1 a 3 enteros \n2 decimales","Activo","SI","Corresponde al porcentaje indicado en la tabla Carta de Crédito Stand-by emitida por entidad financiera internacional ó Carta de Crédito Stand-by emitida por entidad financiera supervisada por SUGEF.\nDe acuerdo con lo indicado en el inciso c), artículo 21 del Acuerdo CONASSIF 14-21.","Tabla Carta de Crédito Stand-by emitida por entidad financiera internacional ó Carta de Crédito Stand-by emitida por entidad financiera supervisada por SUGEF"]

{"sheet":"5202_Cartas Credito_Validac ","index":21,"n_rows":19,"n_cols":7,"rows_kept":19,"cut":false,"hidden":false,"merged":[[2,2,2,6]]}
[]
[]
[null,null,"VALIDACIONES PARA ARCHIVO DE INFORMACIÓN DE GARANTÍAS CARTAS DE CRÉDITO "]
[]
["Numeración en publicación  anterior","APARTADO","# Validación","Descripción de la validación","N# 1.6","# T.I","Cambio realizado"]
[1,null,1,"\nLos campos “TipoPersona” y “IdEntidadCartaCredito” deben corresponder con el padrón de personas de la SUGEF.\n",2]
[2,null,2,"\nLos valores del campo “TipoPersona” deben corresponder con los códigos indicados en la Tabla “Tipo_Persona”\n",3]
[3,null,3,"El campo “TipoAsignacionCalificacion” sólo puede contener el  valor 2 y los  “CodigoCalificacionRiesgo”, “CodigoEmpresaCalificadora” y “CategoriaCalificacion” deben corresponder con los valores de la tabla \"Equivalencia_Calificaciones_Agencias_Calificadoras\" y estos valores deben estar activos.\nInactiva",4]
[5,null,4,"\nEl campo \"ValorNominalGarantía \" No deben permitir datos negativos.\n",5]
[92,null,5,"El campo TipoMonedaValorNominal debe existir en la tabla TIPO_MONEDA."]
[93,null,6,"El valor del campo TipoAsignacionCalificacion debe existir en la tabla TIPO_ASIGNACION_CALIFICACION."]
[94,null,7,"El campo “IdGarantiaCartaCredito” no debe repetirse."]
[8,null,8," No es permitido remitir datos para periodos anteriores a Enero 2024."]
[9,null,9,"El campo TipoMitigadorCartaCredito solo puede tener el valor 21.",null,null,"nueva"]
[10,null,10,"Cuando el valor del campo TipoMitigadorCartaCredito es 21 y el TipoPersona del IdEntidadCartaCredito es igual a 4, los campos CodigoCalificacionCategoria y Factor_Y deben corresponder con los de la tabla Carta de Crédito Stand-by emitida por entidad financiera internacional.",null,null,"nueva"]
[11,null,11,"Cuando el valor del campo TipoMitigadorCartaCredito es 21 y el IdEntidadCartaCredito y TipoPersona corresponde a una entidad Financiera Supervisada por la SUGEF, los campos CodigoCalificacionCategoria y Factor_Y deben corresponder con los de la tabla Carta de Crédito Stand-by emitida por entidad financiera supervisada por SUGEF.",null,null,"nueva"]
[]
["Integridad","Implícita en la Definición del Campo XML",12,"No es permitido indicar espacios en blanco al inicio o al final del campo: \"IdGarantiaCartaCredito\" del Archivo: \"NEC2024_GARANTIAS_CARTAS_CREDITO\".\n",null,null,"nueva"]
["Integridad","Implícita en la Definición del Campo XML","13.","No es permitido indicar espacios en blanco al inicio o al final del campo: \"IdEntidadCartaCredito\" del Archivo: \"NEC2024_GARANTIAS_CARTAS_CREDITO\"."]

{"sheet":"5203_Cedidas_Estructura","index":22,"n_rows":29,"n_cols":2,"rows_kept":29,"cut":false,"hidden":false,"merged":[]}
[]
[]
[null,"BLOQUE DE DATOS"]
[]
[null,"ARCHIVO PARA LA INFORMACIÓN DEL ARCHIVO GARANTÍAS FACTURAS CEDIDAS"]
[]
[null,"Este archivo contiene los valores necesarios para realizar la carga de la información de las garantías de  Facturas Cedidas mitigadoras de riesgo que las entidades financieras deben identificar cuando otorgan operaciones crediticias directas e indirectas con personas deudoras sean estas físicas o jurídicas"]
[]
[null,"El registro de este tipo de garantías debe hacerse de manera individualizada. "]
[]
[null,"El formato de envío para esta información se encuentra en el archivo físico: NEC2024_GarantiasFacturasCedidas.xml [5203], estado Activo."]
[]
[null,"ESTRUCTURA DEL ARCHIVO GARANTÍAS FACTURAS CEDIDAS"]
[]
[null,"<Registro id=\"\" accion=\"\">"]
[null,"<IdGarantiaFacturaCedida/>"]
[null,"<FechaConstitucion/>"]
[null,"<FechaVencimiento/>"]
[null,"<TipoPersona/>"]
[null,"<IdObligado/>"]
[null,"<ValorNominalGarantia/>"]
[null,"<TipoMonedaValorNominal/>"]
[null,"<PorcentajeAjusteRc/>"]
[null,"</Registro"]
[]
[]
[null,"EL CAMPO LLAVE DEL ARCHIVO GARANTÍAS FACTURAS CEDIDAS"]
[]
[null,"El campo llave del archivo Garantías Facturas Cedidas es:  IdGarantiaFacturaCedida."]

{"sheet":"5203_Cedidas_Descripcion","index":23,"n_rows":14,"n_cols":8,"rows_kept":14,"cut":false,"hidden":false,"merged":[[2,1,2,7]]}
[]
[]
[null,"CAMPOS DEL ARCHIVO DE INFORMACIÓN DE LA CLASE GARANTIAS FACTURAS CEDIDAS"]
[]
[null,"NOMBRE DEL TAG","TIPO DATO","TAMAÑO FORMATO","ESTADO","OBLIGATORIO","DESCRIPCIÓN","TABLA CATALOGO ASOCIADA"]
[null,"Registro",null,null,null,null,"\nBloque donde se incluyen los datos.  El atributo “id” es obligatorio e indica un consecutivo numérico de registros de envío.  El atributo “accion”  debe tener alguno de los siguientes valores: “insertar” (si es un registro nuevo), “modificar” (si es un cambio) o “eliminar” (sí se desea eliminar)\n"]
[null,"IdGarantiaFacturaCedida ","Texto","1 a 25","Activo","SI","\nCódigo que corresponde al número de la factura.\n"]
[null,"FechaConstitucion","Fecha","dd/mm/yyyy","Activo","SI","\nFecha de constitución de la factura cedida como garantía. No necesariamente debe coincidir con la fecha de emisión de la factura cedida.\n"]
[null,"FechaVencimiento","Fecha","dd/mm/yyyy","Activo","NO","\nFecha de vencimiento de la factura cedida como garantía.\n"]
[null,"TipoPersona","Numérico","1 a 2","Activo","SI","\nCódigo de tipo de persona del campo IdObligado, y éste solo solo puede ser: 1 ó 2 ó 3 ó 4 ó 5 ó 6 ó 13.\n--------------------------------------------------\nReferirse a la tabla Tipo_Persona\n","TIPO PERSONA"]
[null,"IdObligado","Texto","1 a 30","Activo","SI","\nCorresponde a la identificación de la persona obligada a pagar el documento cedido en una cesión con recurso\n"]
[null,"ValorNominalGarantia ","Numérico","1 a 20 enteros\n 2 decimales","Activo","SI","\nValor facial de la garantía consignado en el documento legal mediante el cual se formalizó la operación de crédito. El tipo de moneda debe ser indicado en el documento.    "]
[null,"TipoMonedaValorNominal","Numérico","1 a 6","Activo","SI","\nCódigo de tipo de moneda del valor nominal indicado en el documento legal de la garantía.\n--------------------------------------------------\nReferirse a la tabla: Tipo_Moneda \n","TIPO MONEDA"]
[null,"PorcentajeAjusteRc","Numérico","1 a 3 enteros\n2 decimales","Activo","SI","\nDebe indicarse el  porcentaje de ajuste \"factor único\"  que le coresponda al código 8 \" Factura con su respectiva cesión con recurso a favor de la entidad \" de la Tabla   Tipo_Colateral_Financiero.\nSe exceptuan las garantías de las operaciones realizadas bajo la Ley 9274 y su Reglamento (Acuerdo SUGEF 15-16),  estas deben ser reportadas con el valor \"0\" en este campo.\n","TIPO COLATERAL FINANCIERO"]

{"sheet":"5203_Cedidas_Validaciones","index":24,"n_rows":13,"n_cols":7,"rows_kept":13,"cut":false,"hidden":false,"merged":[[2,2,2,6]]}
[]
[]
[null,null,"VALIDACIONES PARA ARCHIVO DE INFORMACIÓN DE GARANTÍAS FACTURAS CEDIDAS"]
[]
["Numeración en publicación  anterior","APARTADO","# Validación","Descripción de la validación","N# 1.6","# T.I","Cambio realizado"]
[1,null,1,"\nLos campos “TipoPersona” y “IdObligado” deben corresponder con el padrón de personas de la SUGEF.\n",2]
[2,null,2,"El valor del campo \"PorcentajeAjusteRc\" debe ser 40% ó, 0% cuando la garantía corresponde a una operación realizadas bajo la Ley 9274 y su Reglamento (Acuerdo SUGEF 15-16)."]
[3,null,3,"  No es permitido remitir datos para periodos anteriores a Enero 2024"]
[4,null,4,"El campo \"TipoMonedaValorNominal\" debe existir en la tabla \"TIPO_MONEDA\""]
[]
["05.",null,"05.","El campo “IdGarantiaFacturaCedida” no debe repetirse\n\n"]
["Integridad","Implícita en la Definición del Campo XML","06.","No es permitido indicar espacios en blanco al inicio o al final del campo: \"IdGarantiaFacturaCedida \" del Archivo: \"NEC2024_GARANTIAS_FACTURAS_CEDIDAS\".\n"]
["Integridad","Implícita en la Definición del Campo XML","07.","No es permitido indicar espacios en blanco al inicio o al final del campo: \"IdObligado\" del Archivo: \"NEC2024_GARANTIAS_FACTURAS_CEDIDAS\".\n"]

{"sheet":"5204_Fiduciarias_Estructura","index":25,"n_rows":31,"n_cols":2,"rows_kept":31,"cut":false,"hidden":false,"merged":[]}
[]
[]
[null,"BLOQUE DE DATOS"]
[]
[null,"ARCHIVO GARANTÍAS FIDUCIARIAS O AVALES"]
[]
[null,"Este archivo contiene los valores necesarios para realizar la carga de la información de las garantías fiduciarias mitigadoras o no, de riesgo, que las entidades financieras deben identificar cuando otorgan operaciones crediticias directas e indirectas con personas deudoras, sean estas físicas o jurídicas."]
[]
[null,"El registro de este tipo de garantías debe hacerse de manera individualizada. "]
[]
[null,"La entidad financiera debe remitir la totalidad de las garantías fiduciaras en forma mensual sean mitigadoras o no, ya que su uso es permanente en los informes del Centro de Información Crediticia (CIC)."]
[]
[null,"El formato de envío para esta información se encuentra en el archivo físico: NEC2024_GarantiasFiduciarias [5204], estado: Activo."]
[]
[null,"ESTRUCTURA DEL ARCHIVO GARANTÍAS FIDUCIARIAS O AVALES"]
[]
[null,"<Registro id=\"\" accion=\"\">"]
[null,"     <IdGarantiaFiduciaria/>"]
[null,"     <TipoPersona/>   "]
[null,"     <IdFiador/>"]
[null,"     <SalarioNetoFiador/>"]
[null,"     <FechaVerificacionAsalariado/>"]
[null,"     <MontoAvalado/>"]
[null,"     <PorcentajeMitigacionFondo/>"]
[null,"     <PorcentajeEstimacionMinimoFondo/>"]
[null,"</Registro"]
[]
[]
[null,"CAMPO LLAVE DEL ARCHIVO GARANTÍAS FIDUCIARIAS O AVALES"]
[]
[null,"El campo llave del archivo de Garantías Fiduciarias es:  IdGarantiaFiduciaria."]

{"sheet":"5204_Fiduciarias_Descripcion","index":26,"n_rows":14,"n_cols":8,"rows_kept":14,"cut":false,"hidden":false,"merged":[[2,1,2,7]]}
[]
[]
[null,"CAMPOS DEL ARCHIVO DE INFORMACIÓN DE LA CLASE GARANTIAS FIDUCIARIAS O AVALES."]
[]
[null,"NOMBRE DEL TAG","TIPO DATO","TAMAÑO FORMATO","ESTADO","OBLIGATORIO","DESCRIPCIÓN","TABLA CATALOGO ASOCIADA"]
[null,"Registro",null,null,null,null,"\nBloque donde se incluyen los datos.  El atributo “id” es obligatorio e indica un consecutivo numérico de registros de envío.  El atributo “accion”  debe tener alguno de los siguientes valores: “insertar” (si es un registro nuevo), “modificar” (si es un cambio) o “eliminar” (sí se desea eliminar)\n"]
[null,"IdGarantiaFiduciaria","Texto","1 a 25","Activo","SI","\nCódigo que se indica en el campo “IdFiador” referente al número de identificación del fiador o del avalista que respalda  la operación de crédito. \n"]
[null,"TipoPersona","Numérico","1 a 2 enteros","Activo","SI","\nCódigo del tipo de persona indicado en el campo IdFiador y éste solo solo puede ser: 1 ó 2 ó 3 ó 4 ó 5 ó 6 ó 13.\n-------------------------------------------------------------------------------\nReferirse a la tabla: Tipo_Persona.\n","TIPO PERSONA"]
[null,"IdFiador","Texto","1 a 30","Activo","SI","\nNúmero de identificación del fiador o del avalista que respalda  la operación de crédito.\n\nEn el caso de los avales otorgados por:\n1-FONDO NACIONAL PARA EL DESARROLLO (FONADE) utilizar la identificación del Fideicomiso: 3110665868.  \n2-FODEMIPYME: Indicar  (4000042152)\n3-FIDEICOMISO IMAS BNCR BCAC 32-04 identificación: 3110677626\n"]
[null,"SalarioNetoFiador","Numérico","1-20 enteros\n2 decimales","Activo","NO","\nMonto del salario neto de cargas sociales del fiador.\n"]
[null,"FechaVerificacionAsalariado","Fecha","dd/mm/yyyy","Activo","NO","\nFecha en la que se realizó la última verificación del estado de asalariado del fiador.   Esta fecha corresponde también a la fecha en que se actualizó la información del campo “SalarioNetoFiador”.\n"]
[null,"MontoAvalado","Numérico","1-20 enteros\n2 decimales","Activo","NO","\nDebe indicarse la sumatoria de todas los montos avalados de las facilidades crediticias otorgadas por la entidad amparados al fondo de garantía que corresponda."]
[null,"PorcentajeMitigacionFondo","Numérico","1-3 enteros\n2 decimales","Activo","NO","\nCorresponde al porcentaje de mitigación  de cobertura de cada fondo \"M\". Debe de considerarse lo que se establece en el inciso b. del artículo 21 del Acuerdo CONASSIF 14-21 - Reglamento de Estimaciones Crediticias , en lo que corresponde  a esta variable de la fórmula. \n"]
[null,"PorcentajeEstimacionMinimoFondo","Numérico","1-3 enteros\n2 decimales","Activo","NO","\nDebe indicarse el \"Porcentaje de Estimación mínimo\" que corresponda de acuerdo al Nivel de apalancamiento del Fondo.  Referir a lo establecido en la Nota 1 del apartado 7.2 de la Sección 7 del Anexo 3, Metodología Estándar, del Reglamento sobre gestión y evaluación del Riesgo de Crédito para el Sistema de Banca para el Desarrollo, Acuerdo 15-16.\n"]

{"sheet":"5204_Fiduciarias_Validaciones","index":27,"n_rows":16,"n_cols":8,"rows_kept":16,"cut":false,"hidden":false,"merged":[[2,2,2,6]]}
[]
[]
[null,null,"VALIDACIONES PARA ARCHIVO DE INFORMACIÓN DE GARANTÍAS FIDUCIARIAS O AVALES"]
[]
["Numeración en publicación  anterior","APARTADO","# Validación","Descripción de la validación","N# 1.6","# T.I","Cambio realizado","Anterior validaciónm"]
[1,null,1,"\nLos campos “TipoPersona” y “\"IdFiador\"” deben corresponder con el padrón de personas de la SUGEF, excepto cuando el \"IdFiador\" corresponde a FODEMIPYME (4000042152 ). Los valores del campo “TipoPersona” deben corresponder con los códigos indicados en la Tabla “Tipo_Persona”.\n",2,null,"NUEVA","\nLos campos “TipoPersona” y “\"IdFiador\"” deben corresponder con el padrón de personas de la SUGEF, excepto cuando el \"IdFiador\" corresponde a FODEMIPYME. Los valores del campo “TipoPersona” deben corresponder con los códigos indicados en la Tabla “Tipo_Persona”."]
[5,null,2,"\nLa combinación de los campos “TipoPersona” y “\"IdFiador\"” no se deben repetir.\n",6,9]
[6,null,3,"\nEl campo “IdGarantiaFiduciaria” debe ser igual al campo “\"IdFiador\"”.\n",7,11]
[12,null,4,"Cuando el \"IdFiador\" es 3007782679 (FONADE) o 4000042152 \"FODEMIPYME\", los campos \"PorcentajeMitigacionFondo\" y \"PorcentajeEstimacionMinimoFondo\" deben ser mayor a cero.\n\nINACTIVADA",null,null,"NUEVA","\nCuando el \"IdFiador\" es 3007782679 (FONADE) o 4000042152 \"FODEMIPYME\", los campos \"PorcentajeMitigacionFondo\" y \"PorcentajeEstimacionMinimoFondo\" deben ser mayor a cero.\n"]
[13,null,5,"\nEl valor del dato que se indique en el campo \"PorcentajeMitigacionFondo\" y \"PorcentajeEstimacionMinimoFondo\", no debe ser mayor a 100%.\n"," "]
[14,null,6,"\nEl campo \"SalarioNetoFiador\" No deben permitir datos negativos."]
[15,null,7,"No es permitido remitir datos para periodos anteriores a Enero 2024."]
[]
["08. "," ","08. ","El campo “IdGarantiaFiduciaria” no debe repetirse.\n"]
["Integridad","Implícita en la Definición del Campo XML","09.","No es permitido indicar espacios en blanco al inicio o al final del campo: \"IdGarantiaFiduciaria\" del Archivo: \"NEC2024_GARANTIAS_FIDUCIARIAS\".\n"]
["Integridad","Implícita en la Definición del Campo XML","10.","Validación # 10: No es permitido indicar espacios en blanco al inicio o al final del campo: \"IdFiador\" del Archivo: \"NEC2024_GARANTIAS_FIDUCIARIAS\".\n"]

{"sheet":"5205_Reales_Estructura","index":28,"n_rows":37,"n_cols":2,"rows_kept":37,"cut":false,"hidden":false,"merged":[]}
[]
[]
[null,"BLOQUE DE DATOS"]
[]
[null,"ARCHIVO DE LA INFORMACIÓN DE GARANTÍAS REALES"]
[]
[null,"Este archivo contiene los valores necesarios para realizar la carga de la información de las garantías reales mitigadoras de riesgo que las entidades financieras deben identificar cuando otorgan operaciones crediticias directas e indirectas con personas deudoras sean estas físicas o jurídicas."]
[]
[null,"El registro de este tipo de garantías debe hacerse de manera individualizada. "]
[]
[null,"El formato de envío para esta información se encuentra en el archivo físico: NEC2024_GarantiasReales.xml [5205] estado Activo."]
[]
[null,"ESTRUCTURA DEL ARCHIVO"]
[]
[null,"<Registro id=\"\" accion=\"\">"]
[null,"     <IdGarantiaReal/>"]
[null,"     <TipoBienGarantiaReal/>"]
[null,"     <MontoUltimaTasacionTerreno/>"]
[null,"     <MontoUltimaTasacionNoTerreno/>"]
[null,"     <FechaUltimaTasacionGarantia/>"]
[null,"     <FechaUltimoSeguimientoGarantia/>"]
[null,"     <TipoMonedaTasacion/>"]
[null,"     <FechaConstruccion/>"]
[null,"     <TipoPersonaTasador/>"]
[null,"     <IdTasador/>"]
[null,"     <TipoPersonaEmpresaTasadora/>"]
[null,"     <IdEmpresaTasadora/>"]
[null,"      <IndicadorPolizaGarantiaReal />"]
[null,"     <TipoColateralReal/>"]
[null,"     <PorcentajeRecuperacionColateralReal />"]
[null,"     <Tiempo/>"]
[null,"     <PorcentajeFactorDescuentoTiempo/>"]
[null,"</Registro>"]
[]
[null,"CAMPOS LLAVE DEL ARCHIVO DE GARANTÍAS REALES"]
[]
[null,"El campo llave del archivo de Garantías Reales es: IdGarantiaReal"]

{"sheet":"5205_Reales_Estructura (nueva)","index":29,"n_rows":49,"n_cols":2,"rows_kept":49,"cut":false,"hidden":true,"merged":[]}
[]
[]
[null,"BLOQUE DE DATOS"]
[]
[null,"ARCHIVO DE LA INFORMACIÓN DE GARANTÍAS REALES"]
[]
[null,"Este archivo contiene los valores necesarios para realizar la carga de la información de las garantías reales mitigadoras de riesgo que las entidades financieras deben identificar cuando otorgan operaciones crediticias directas e indirectas con personas deudoras sean estas físicas o jurídicas."]
[]
[null,"El registro de este tipo de garantías debe hacerse de manera individualizada. "]
[]
[null,"El formato de envío para esta información se encuentra en el archivo físico: NEC2024_GarantiasReales.xml [5205] estado Activo."]
[]
[null,"ESTRUCTURA DEL ARCHIVO"]
[]
[null,"<Registro id=\"\" accion=\"\">"]
[null,"     <IdGarantiaReal/>"]
[null,"     <TipoBienGarantiaReal/>"]
[null,"     <MontoUltimaTasacionTerreno/>"]
[null,"     <MontoUltimaTasacionNoTerreno/>"]
[null,"     <FechaUltimaTasacionGarantia/>"]
[null,"     <FechaUltimoSeguimientoGarantia/>"]
[null,"     <TipoMonedaTasacion/>"]
[null,"     <FechaConstruccion/>"]
[null,"<CodigoPaisGarantiaReal/>"]
[null,"<CodigoProvinciaGarantiaReal/>"]
[null,"<CodigoCantonGarantiaReal/>"]
[null,"<CodigoDistritoGarantiaReal/>"]
[null,"<CodigoLatitudGarantiaReal/>"]
[null,"<CodigoLongitudGarantiaReal/>"]
[null,"     <TipoPersonaTasador/>"]
[null,"     <IdTasador/>"]
[null,"     <TipoPersonaEmpresaTasadora/>"]
[null,"     <IdEmpresaTasadora/>"]
[null,"      <IndicadorPolizaGarantiaReal />"]
[null,"     <TipoColateralReal/>"]
[null,"     <PorcentajeRecuperacionColateralReal />"]
[null,"     <Tiempo/>"]
[null,"     <PorcentajeFactorDescuentoTiempo/>"]
[null,"</Registro>"]
[]
[null,"CAMPOS LLAVE DEL ARCHIVO DE GARANTÍAS REALES"]
[]
[null,"El campo llave del archivo de Garantías Reales es: IdGarantiaReal"]
[]
[]
[20,"\nCuando el campo “CodigoPaisGarantiaReal” indica el código de Costa Rica, deben reportarse los campos “CodigoProvinciaGarantiaReal”, “CodigoCantonGarantiaReal”, “CodigoProvinciaGarantiaRealo” y “CodigoCantonGarantiaReal”.\n"]
[21,"Cuando el campo \"CodigoPaisDestinoCredito\" tenga el valor \"CR\",  el código que se indique en los campos \"CodigoProvinciaGarantiaReal\", \"CodigoCantonGarantiaReal\" y \"CodigoDistritoGarantiaReal\" deben existir  en las tablas  PROVINCIA, CANTON, DISTRITO, respectivamente y estar activos."]
[22,"\nCuando el campo “CodigoPaisGarantiaReal” sea diferente al código de Costa Rica No deben reportarse los campos “CodigoProvinciaGarantiaReal”, “CodigoCantonGarantiaReal” y \"CodigoDistritoGarantiaReal\". \n"]
[23,"\nCuando alguno de los campos “CodigoProvinciaGarantiaRealo”, “CodigoCantonGarantiaRealo” y \"CodigoDistritoGarantiaReal\" reporte valor el campo “CodigoPaisGarantiaReal” debe ser Costa Rica. \n"]

{"sheet":"5205_Reales_Descripcion","index":30,"n_rows":23,"n_cols":8,"rows_kept":23,"cut":false,"hidden":false,"merged":[[2,1,2,7]]}
[]
[]
[null,"CAMPOS DEL ARCHIVO DE INFORMACIÓN DE LA CLASE GARANTIAS REALES"]
[]
[null,"NOMBRE DEL TAG","TIPO DATO","TAMAÑO FORMATO","ESTADO","OBLIGATORIO","DESCRIPCIÓN","TABLA CATALOGO ASOCIADA"]
[null,"Registro",null,null,null,null,"\nBloque donde se incluyen los datos.  El atributo “id” es obligatorio e indica un consecutivo numérico de registros de envío.  El atributo “accion”  debe tener alguno de los siguientes valores: “insertar” (si es un registro nuevo), “modificar” (si es un cambio) o “eliminar” (sí se desea eliminar)\n"]
[null,"IdGarantiaReal","Texto","1 a 25","Activo","SI","\nCódigo referente a la nomenclatura utilizada por el Registro Nacional u otro organismo similar en el extranjero cuando exista [el número de finca, número de placa, matrícula de buques, etc].  El formato cuando tiene nomenclatura utilizada por el Registro Nacional se explica mediante los siguientes ejemplos:\nBienes Inmuebles.\nFinca:  1123456  (terreno situado en la provincia de San José) Donde 1 es el codigo de la provincia [del 1 al 7] y 123456 es el codigo del bien asignado en el registro publico.\n1/Los codigos de las provincias y de las clases de bien se encuentran en la pagina web del Registro Nacional.\n2/La identificacion de las placas de los automoviles deben contener seis caracteres numericos o alfanumericos por lo que en caso que la placa contenga menos caracteres se debe completar con ceros a la izquierda.\nBienes Muebles\nVehículo: TC000123 (placa de un Taxi de Cartago)\nVehiculo: TC000123 Donde TC codigo clase de bien segun registro publico y 000123 numero de placa.\nEn el caso de carros particulares, no existe un código clase del bien, por lo tanto se registraría solo el número de placa sea este numérico o alfanumérico .  Cuando el automóvil es nuevo y aún no existe placa temporal se debe reportar el VIN (17 dígitos).\nBuque: GPC001234  (placa del bueque)\nBuque: GPC001234 Donde GPC codigo clase de bien segun registro publico y 001234 numero de placa.\nCuando no exista nomenclatura del Registro Nacional u otro organismo similar en el extranjero, se debe reportar el código que asigna la entidad financiera a cada bien, conjunto de bienes o valor recibido en garantía.Los bienes sujetos a inscripción en el Registro Nacional deben reportarse en forma separada.\n"]
[null,"TipoBienGarantiaReal","Numérico","1 a 5","Activo","SI","\nCódigo del tipo de bien recibido en garantía\n--------------------------------------------------\nReferirse a la tabla: Tipo_Bien\n","TIPO_BIEN"]
[null,"MontoUltimaTasacionTerreno","Numérico","1 a 20 enteros 2 decimales","Activo","SI","\nMonto de la última tasación que corresponde únicamente al valor del terreno dado en garantía.\n\nEl Monto debe venir colonizado al tipo de cambio de referencia de la fecha de realización del avalúo.\n"]
[null,"MontoUltimaTasaciónNoTerreno","Numérico","1 a 20 enteros 2 decimales","Activo","SI","\nMonto de la última tasación realizada cuando la garantía está conformada por un bien mueble o inmueble.  \n\nCuando se trate de equipo de cómputo, en este campo debe indicarse el valor original del equipo.\n\nEl Monto debe venir colonizado al tipo de cambio de referencia de la fecha de realización del avalúo y debe excluir el valor del terreno cuando corresponda.\n"]
[null,"FechaUltimaTasacionGarantia","Fecha","dd/mm/yyyy","Activo","SI","\nFecha consignada en informe escrito firmado por el profesional responsable, en la que se realizó la última tasación del bien. \n\nDe acuerdo con lo indicado en el artículo 12 del  Decreto Ejecutivo Nº 35298-MOPT Aranceles por servicios de peritaje y avalúos del Colegio Federado de Ingenieros y Arquitectos (CFIA) de Costa Rica Publicado en el Diario Oficial  La Gaceta Nº 116 del 17 de junio de 2009. \n"]
[null,"FechaUltimoSeguimientoGarantia","Fecha","dd/mm/yyyy","Activo","SI","\nSe debe indicar la fecha en que se realizó el último seguimiento y control del estado de la garantía.\n\nCuando no existe seguimiento y control de la garantía se debe indicar la fecha del último avalúo.\n"]
[null,"TipoMonedaTasacion","Numérico","1 a 6 ","Activo","SI","\nCódigo del tipo de moneda en la cual se realizó el avalúo del bien.\n------------------------------------------------------\nReferirse a la tabla: Tipo_Moneda\n","TIPO MONEDA"]
[null,"FechaConstruccion","Fecha","dd/mm/yyyy","Activo","NO","\nSe debe indicar la fecha de construcción de la edificación.\n\nEn el caso de bienes muebles se debe indicar el año de fabricación.\n"]
[null,"TipoPersonaTasador","Numérico","1 a 2","Activo","SI","\nCódigo de tipo de persona referido en el campo “IdTasador”, y éste solo solo puede ser: 1 ó 2 ó 3 ó 4 ó 5 ó 6 ó 13.\n------------------------------------------------------\nReferirse a la tabla Tipo_Persona\n","TIPO PERSONA"]
[null,"IdTasador","Texto","1 a 30","Activo","SI","\nCorresponde a la identificación de la persona que realiza la tasación independientemente si labora en una persona jurídica.\n"]
[null,"TipoPersonaEmpresaTasadora","Numérico","1 a 2","Activo","NO","\nCódigo de tipo de persona referido en el campo “IdEmpresaTasadora”, y éste solo solo puede ser: 1 ó 2 ó 3 ó 4 ó 5 ó 6 ó 13.\n------------------------------------------------------\nReferirse a la tabla Tipo_Persona\n","TIPO PERSONA"]
[null,"IdEmpresaTasadora","Texto","1 a 30","Activo","NO","\nCorresponde a la identificación de la persona jurídica que realiza la tasación \n"]
[null,"IndicadorPolizaGarantiaReal","Texto",1,"Activo","SI","\nIndicador de si el bien dado en garantía en la operación de crédito tiene póliza de seguro a favor de la entidad financiera.  \n------------------------------------------------------\nLos posibles valores son ‘S’ si consta, o ‘N’ no consta.\n"]
[null,"TipoColateralReal","Numérico","1 a 2","Activo","SI","\nCódigo del tipo del colateal real.   Responde lo indicado en inciso a. del art. 19 del Reglamenbto de Estimaciones Crediticias.\nSe exeptuan las garantías de las operaciones realizadas bajo la Ley 9274 y su Reglamento (Acuerdo SUGEF 15-16),  estas deben ser reportadas con el valor \"0\" en este campo.\n------------------------------------------------------\nReferirse a la tabla: Tipo_Colateral_Real\n","TIPO COLATERAL REAL"]
[null,"PorcentajeRecuperacionColateralReal","Numérico","1 a 3 enteros 2 decimales","Activo","SI","\nDebe indicarse el Porcentaje de Recuperación de acuerdo al código indicado en el campo Tipo Colateral Real.\nSe exeptuan las garantías de las operaciones realizadas bajo la Ley 9274 y su Reglamento (Acuerdo SUGEF 15-16),  estas deben ser reportadas con el valor \"0\" en este campo.\n\n--------------------------------------------------\nReferirse a la tabla: Tipo_Colateral_Real\n","TIPO COLATERAL REAL"]
[null,"Tiempo","Numérico","1 a 2 enteros 2 decimales","Activo","SI","\nEl Tiempo es medido en años, entre la fecha de la última valorización o tasación disponible y la fecha de corte.   \nLa fórmula de cálculo es la diferencia de fechas en días dividido entre 30 y luego entre 12 y se redondea a dos.   El valor mínimo debe ser 1 (uno).\nSe exceptúan las garantías de las operaciones realizadas bajo la Ley 9274 y su Reglamento (Acuerdo SUGEF 15-16),  estas deben ser reportadas con el valor \"1\" en este campo.\n"]
[null,"PorcentajeFactorDescuentoTiempo","Numérico","1 a 3 enteros 2 decimales","Activo","SI","\nDebe indicarse el porcentaje que le corresponda de acuerdo al código indicado en el campo factor descuento tiempo desde ultima valorizacion colateral real.\nSe exeptuan las garantías de las operaciones realizadas bajo la Ley 9274 y su Reglamento (Acuerdo SUGEF 15-16),  estas deben ser reportadas con el valor \"0\" en este campo.\n\n--------------------------------------------------\nRefierase a la tabla: Tipo Colateral Real\n","TIPO COLATERAL REAL"]

{"sheet":"5205_Reales_Descripcion (nueva)","index":31,"n_rows":29,"n_cols":8,"rows_kept":29,"cut":false,"hidden":true,"merged":[[2,1,2,7]]}
[]
[]
[null,"CAMPOS DEL ARCHIVO DE INFORMACIÓN DE LA CLASE GARANTIAS REALES"]
[]
[null,"NOMBRE DEL TAG","TIPO DATO","TAMAÑO FORMATO","ESTADO","OBLIGATORIO","DESCRIPCIÓN","TABLA CATALOGO ASOCIADA"]
[null,"Registro",null,null,null,null,"\nBloque donde se incluyen los datos.  El atributo “id” es obligatorio e indica un consecutivo numérico de registros de envío.  El atributo “accion”  debe tener alguno de los siguientes valores: “insertar” (si es un registro nuevo), “modificar” (si es un cambio) o “eliminar” (sí se desea eliminar)\n"]
[null,"IdGarantiaReal","Texto","1 a 25","Activo","SI","\nCódigo referente a la nomenclatura utilizada por el Registro Nacional u otro organismo similar en el extranjero cuando exista [el número de finca, número de placa, matrícula de buques, etc].  El formato cuando tiene nomenclatura utilizada por el Registro Nacional se explica mediante los siguientes ejemplos:\nBienes Inmuebles.\nFinca:  1123456  (terreno situado en la provincia de San José) Donde 1 es el codigo de la provincia [del 1 al 7] y 123456 es el codigo del bien asignado en el registro publico.\n1/Los codigos de las provincias y de las clases de bien se encuentran en la pagina web del Registro Nacional.\n2/La identificacion de las placas de los automoviles deben contener seis caracteres numericos o alfanumericos por lo que en caso que la placa contenga menos caracteres se debe completar con ceros a la izquierda.\nBienes Muebles\nVehículo: TC000123 (placa de un Taxi de Cartago)\nVehiculo: TC000123 Donde TC codigo clase de bien segun registro publico y 000123 numero de placa.\nEn el caso de carros particulares, no existe un código clase del bien, por lo tanto se registraría solo el número de placa sea este numérico o alfanumérico .  Cuando el automóvil es nuevo y aún no existe placa temporal se debe reportar el VIN (17 dígitos).\nBuque: GPC001234  (placa del bueque)\nBuque: GPC001234 Donde GPC codigo clase de bien segun registro publico y 001234 numero de placa.\nCuando no exista nomenclatura del Registro Nacional u otro organismo similar en el extranjero, se debe reportar el código que asigna la entidad financiera a cada bien, conjunto de bienes o valor recibido en garantía.Los bienes sujetos a inscripción en el Registro Nacional deben reportarse en forma separada.\n"]
[null,"TipoBienGarantiaReal","Numérico","1 a 5","Activo","SI","\nCódigo del tipo de bien recibido en garantía\n--------------------------------------------------\nReferirse a la tabla: Tipo_Bien\n","TIPO_BIEN"]
[null,"MontoUltimaTasacionTerreno","Numérico","1 a 20 enteros 2 decimales","Activo","SI","\nMonto de la última tasación que corresponde únicamente al valor del terreno dado en garantía.\n\nEl Monto debe venir colonizado al tipo de cambio de referencia de la fecha de realización del avalúo.\n"]
[null,"MontoUltimaTasaciónNoTerreno","Numérico","1 a 20 enteros 2 decimales","Activo","SI","\nMonto de la última tasación realizada cuando la garantía está conformada por un bien mueble o inmueble.  \n\nCuando se trate de equipo de cómputo, en este campo debe indicarse el valor original del equipo.\n\nEl Monto debe venir colonizado al tipo de cambio de referencia de la fecha de realización del avalúo y debe excluir el valor del terreno cuando corresponda.\n"]
[null,"FechaUltimaTasacionGarantia","Fecha","dd/mm/yyyy","Activo","SI","\nFecha consignada en informe escrito firmado por el profesional responsable, en la que se realizó la última tasación del bien. \n\nDe acuerdo con lo indicado en el artículo 12 del  Decreto Ejecutivo Nº 35298-MOPT Aranceles por servicios de peritaje y avalúos del Colegio Federado de Ingenieros y Arquitectos (CFIA) de Costa Rica Publicado en el Diario Oficial  La Gaceta Nº 116 del 17 de junio de 2009. \n"]
[null,"FechaUltimoSeguimientoGarantia","Fecha","dd/mm/yyyy","Activo","SI","\nSe debe indicar la fecha en que se realizó el último seguimiento y control del estado de la garantía.\n\nCuando no existe seguimiento y control de la garantía se debe indicar la fecha del último avalúo.\n"]
[null,"TipoMonedaTasacion","Numérico","1 a 6 ","Activo","SI","\nCódigo del tipo de moneda en la cual se realizó el avalúo del bien.\n------------------------------------------------------\nReferirse a la tabla: Tipo_Moneda\n","TIPO MONEDA"]
[null,"FechaConstruccion","Fecha","dd/mm/yyyy","Activo","NO","\nSe debe indicar la fecha de construcción de la edificación.\n\nEn el caso de bienes muebles se debe indicar el año de fabricación.\n"]
[null,"<CodigoPaisGarantiaReal/>","Texto","0 a 4","Activo","SI","\nCódigo del País de la garantía real.\n-----------------------------------------------------------------\nUtilizar los códigos ISO 3166-2 \n"]
[null,"<CodigoProvinciaGarantiaReal/>","Numérico","0 a 2","Activo","NO","\nCódigo de la provincia de la garantía real.\n-----------------------------------------------------------------\nReferirse a la tabla: Provincia\n"]
[null,"<CodigoCantonGarantiaReal/>","Numérico","0 a 2","Activo","NO","\nCódigo del cantón de la garantía real.\n-----------------------------------------------------------------\nReferirse a la tabla: Canton\n"]
[null,"<CodigoDistritoGarantiaReal/>","Numérico","0 a 4","Activo","NO","\nCódigo del distrito de la garantía real\n\n-----------------------------------------------------------------\nReferirse a la tabla: Distrito\n"]
[null,"<LatitudGarantiaReal/>","Texto",7,"Activo","NO","Se debe de indicar la coordenada de la latitud de la garantía real.\nCómo ejemplo la coordenada de la latitud para Costa Rica es 09°55´57N¨."]
[null,"<LongitudGarantiaReal/>","Texto",7,"Activo","NO","Se debe de indicar la coordenada de la longitud de la garantía real.\nCómo ejemplo la coordenada de la longitud para Costa Rica es 84°04´46O¨"]
[null,"TipoPersonaTasador","Numérico","1 a 2","Activo","SI","\nCódigo de tipo de persona referido en el campo “IdTasador”, y éste solo solo puede ser: 1 ó 2 ó 3 ó 4 ó 5 ó 6 ó 13.\n------------------------------------------------------\nReferirse a la tabla Tipo_Persona\n","TIPO PERSONA"]
[null,"IdTasador","Texto","1 a 30","Activo","SI","\nCorresponde a la identificación de la persona que realiza la tasación independientemente si labora en una persona jurídica.\n"]
[null,"TipoPersonaEmpresaTasadora","Numérico","1 a 2","Activo","NO","\nCódigo de tipo de persona referido en el campo “IdEmpresaTasadora”, y éste solo solo puede ser: 1 ó 2 ó 3 ó 4 ó 5 ó 6 ó 13.\n------------------------------------------------------\nReferirse a la tabla Tipo_Persona\n","TIPO PERSONA"]
[null,"IdEmpresaTasadora","Texto","1 a 30","Activo","NO","\nCorresponde a la identificación de la persona jurídica que realiza la tasación \n"]
[null,"IndicadorPolizaGarantiaReal","Texto",1,"Activo","SI","\nIndicador de si el bien dado en garantía en la operación de crédito tiene póliza de seguro a favor de la entidad financiera.  \n------------------------------------------------------\nLos posibles valores son ‘S’ si consta, o ‘N’ no consta.\n"]
[null,"TipoColateralReal","Numérico","1 a 2","Activo","SI","\nCódigo del tipo del colateal real.   Responde lo indicado en inciso a. del art. 19 del Reglamenbto de Estimaciones Crediticias.\nSe exeptuan las garantías de las operaciones realizadas bajo la Ley 9274 y su Reglamento (Acuerdo SUGEF 15-16),  estas deben ser reportadas con el valor \"0\" en este campo.\n------------------------------------------------------\nReferirse a la tabla: Tipo_Colateral_Real\n","TIPO COLATERAL REAL"]
[null,"PorcentajeRecuperacionColateralReal","Numérico","1 a 3 enteros 2 decimales","Activo","SI","\nDebe indicarse el Porcentaje de Recuperación de acuerdo al código indicado en el campo Tipo Colateral Real.\nSe exeptuan las garantías de las operaciones realizadas bajo la Ley 9274 y su Reglamento (Acuerdo SUGEF 15-16),  estas deben ser reportadas con el valor \"0\" en este campo.\n\n--------------------------------------------------\nReferirse a la tabla: Tipo_Colateral_Real\n","TIPO COLATERAL REAL"]
[null,"Tiempo","Numérico","1 a 2 enteros 2 decimales","Activo","SI","\nEl Tiempo es medido en años, entre la fecha de la última valorización o tasación disponible y la fecha de corte.   El valor mínimo debe ser 1 (uno).\nSe exeptuan las garantías de las operaciones realizadas bajo la Ley 9274 y su Reglamento (Acuerdo SUGEF 15-16),  estas deben ser reportadas con el valor \"1\" en este campo.\n"]
[null,"PorcentajeFactorDescuentoTiempo","Numérico","1 a 3 enteros 2 decimales","Activo","SI","\nDebe indicarse el porcentaje que le corresponda de acuerdo al código indicado en el campo factor descuento tiempo desde ultima valorizacion colateral real.\nSe exeptuan las garantías de las operaciones realizadas bajo la Ley 9274 y su Reglamento (Acuerdo SUGEF 15-16),  estas deben ser reportadas con el valor \"0\" en este campo.\n\n--------------------------------------------------\nRefierase a la tabla: Tipo Colateral Real\n","TIPO COLATERAL REAL"]

{"sheet":"5205_Reales_Validaciones","index":32,"n_rows":28,"n_cols":8,"rows_kept":28,"cut":false,"hidden":false,"merged":[[2,2,2,5]]}
[]
[]
[null,null,"VALIDACIONES PARA ARCHIVO DE INFORMACIÓN DE DE GARANTÍAS REALES"]
[]
["Numeración en publicación  anterior","APARTADO","# Validación","Descripción de la validación","N# 1.6","# T.I"]
[1,null,1,"\nLos campos “TipoPersonaTasador”, “IdTasador”, “TipoPersonaEmpresaTasadora”, “IdEmpresaTasadora”, deben corresponder con el padrón de personas de la SUGEF.\n",2,5]
[2,null,2,"\nCuando el campo “TipoBienGarantiaReal” tiene el valor “1 Terreno”, el campo “MontoUltimaTasacionTerreno” debe ser mayor que cero.\n",5,13]
[3,null,3,"\nCuando el campo “TipoBienGarantiaReal” tiene uno de los valores 2, 3 ó 5,  debe reportarse el campo “FechaConstruccion”.\n",6,14]
[4,null,4,"\nCuando el dato del campo “TipoBienGarantiaReal” corresponda a los códigos del 3 al 14 el dato del campo  “MontoUltimaTasacionNoTerreno”  debe ser mayor que cero.\n",12,27]
[5,null,5,"\nCuando el dato del campo “TipoBienGarantiaReal ” corresponda a  los códigos del 3 al 14 el dato del campo  “MontoUltimaTasacionTerreno” debe ser cero. \n",13,28]
[6,null,6,"\nCuando el campo “TipoBienGarantiaReal” del archivo Garantías Reales tiene el valor 1 [Terreno], el campo “MontoUltimaTasacionNoTerreno” debe ser  cero. \n",14,30]
[7,null,7,"\nEl dato “FechaUltimoSeguimientoGarantia” No debe ser posterior al último día del corte de la información.\n",15,31]
[8,null,8,"\nEl dato “FechaUltimaTasacionGarantia” No debe ser posterior al último día del corte de la información.\n",16,32]
[9,null,9,"\nEl valor que se registre en los campos   “PorcentajeRecuperacionColateralReal” y \n“PorcentajeFactorDescuentoTiempo”, debe corresponder al valor establecido en la Tabla Tipo_Colateral_Real de acuerdo al código indicado en el campo  “TipoColateralReal”.\n","NUEVA","NUEVA"]
[10,null,10,"Cuando el TipoColateralReal es  diferente de \"0\", el dato del campo \"Tiempo\" debe ser igual a la diferencia, entre el último día de la fecha corte y el valor del campo  “FechaUltimaTasacionGarantia”; el resultado deber ser expresado en años, siendo el valor mínimo 1.\n","NUEVA","NUEVA"]
[11,null,11,"\nCuando el campo \"IndicadorPolizaGarantiaReal\" indica \"S\", el IdGarantiaReal debe existir en el Archivo Pólizas.\n","NUEVA","NUEVA",null," "]
[12,null,12,"Los campos  \"MontoUltimaTasacionTerreno\" y \" MontoUltimaTasacionNoTerreno\" No deben permitir datos negativos.","NUEVA","NUEVA"]
[13,null,13,"El campo \"TipoColateralReal\" debe existir en la tabla \"TIPO_COLATERAL_REAL_NEC2024\" y debe estar activo.","NUEVA","NUEVA"]
[14,null,14,"El campo \"TipoMonedaTasacion\" debe existir en la tabla \"TIPO_MONEDA\" y debe estar activo.","NUEVA","NUEVA"]
[15,null,15,"El campo \"TipoBienGarantiaReal\" debe existir en la tabla \"TIPO_BIEN\" y debe estar activo.","NUEVA","NUEVA"]
[16,null,16,"El campo “IdGarantiaReal” no debe repetirse.","NUEVA","NUEVA"]
[17,null,17,"Los campos “TipoPersonaTasador” y “IdTasador”, deben corresponder con el padrón de personas de la SUGEF.\n","NUEVA","NUEVA"]
[18,null,18,"No es permitido remitir datos para periodos anteriores a Enero 2024","NUEVA","NUEVA"]
[19,null,19," Cuando el \"TipoColateralReal\" es  igual a \"0\" el valor del campo \"Tiempo\" debe ser UNO.","NUEVA","NUEVA"]
[]
["Integridad","Implícita en la Definición del Campo XML","20.","No es permitido indicar espacios en blanco al inicio o al final del campo: \"IdGarantiaReal\" del Archivo: \"NEC2024_GARANTIAS_REALES\".","NUEVA","NUEVA"]
["Integridad","Implícita en la Definición del Campo XML",21,"No es permitido indicar espacios en blanco al inicio o al final del campo: \"IdTasador\" del Archivo: \"NEC2024_GARANTIAS_REALES\".","NUEVA","NUEVA"]
["Integridad","Implícita en la Definición del Campo XML",22,"No es permitido indicar espacios en blanco al inicio o al final del campo: \"IdEmpresaTasadora\" del Archivo: \"NEC2024_GARANTIAS_REALES\".","NUEVA","NUEVA"]

{"sheet":"5206_Valores Estructura","index":33,"n_rows":43,"n_cols":2,"rows_kept":43,"cut":false,"hidden":false,"merged":[]}
[]
[]
[null,"BLOQUE DE DATOS"]
[]
[null,"ARCHIVO DE LA INFORMACIÓN DE GARANTÍAS VALORES"]
[]
[null,"Este archivo contiene los valores necesarios para realizar la carga de la información de las garantías de valores mitigadoras de riesgo. Adicionalmente, las entidades deben reportar las acciones emitidas por la entidad y que a la vez son recibidas en garantía de sus operaciones crediticias directas e indirectas con personas deudoras sean estas físicas o jurídicas."]
[]
[null,"El registro de este tipo de garantías debe hacerse de manera individualizada."]
[]
[null,"En el caso que se presente una fusión de entidades financieras o cambio en la razón social, los datos que se reportan en este archivo deben ser de la entidad prevaleciente o de la nueva razón social del emisor en el campo IdEmisor. Los datos que se han reportado históricamente y que aún estén vigentes, se deben actualizar modificando el nuevo “IdEmisor”, aplicando el procedimiento que se indica en la Metodología de Uso de los archivos."]
[]
[null,"El formato de envío para esta información se encuentra en el archivo físico: NEC2024_GarantiasValores.xml [5206], estado Activo."]
[]
[null,"ESTRUCTURA DEL ARCHIVO VALORES"]
[]
[null,"<Registro id=\"\" accion=\"\">"]
[null,"<IdGarantiaValor/>"]
[null,"<TipoClasificacionInstrumento/>"]
[null,"<TipoPersona/>"]
[null,"<IdEmisor/>"]
[null,"<IdInstrumento/>"]
[null,"<SerieInstrumento/>"]
[null,"<Premio/>"]
[null,"<CodigoISIN/>"]
[null,"<TipoAsignacionCalificacion/>"]
[null,"<CategoriaCalificacion/>"]
[null,"<CodigoCalificacionRiesgo/>"]
[null,"<CodigoEmpresaCalificadora />"]
[null,"<ValorFacial/>"]
[null,"<TipoMonedaValorFacial />"]
[null,"<ValorMercado/>"]
[null,"<TipoMonedaValorMercado/>"]
[null,"<FechaConstitucion/>"]
[null,"<FechaVencimiento/>"]
[null,"<TipoColateralfinanciero />"]
[null,"<CodigoCalificacionInstrumento  />  "]
[null,"<PorcentajeAjusteRc/>"]
[null,"</Registro>"]
[]
[null,"CAMPO LLAVE DEL ARCHIVO GARANTÍAS VALORES"]
[null," "]
[null,"El campo llave del archivo de garantías valores es: IdGarantiaValor."]

{"sheet":"5206_Valores_Descripcion","index":34,"n_rows":27,"n_cols":14,"rows_kept":27,"cut":false,"hidden":false,"merged":[[2,1,2,7]]}
[]
[]
[null,"CAMPOS DEL ARCHIVO DE INFORMACIÓN DE LA CLASE GARANTIAS VALORES"]
[]
[null,"NOMBRE DEL TAG","TIPO DATO","TAMAÑO FORMATO","ESTADO","OBLIGATORIO","DESCRIPCIÓN","TABLA CATALOGO ASOCIADA","Columna1"]
[null,"Registro",null,null,null,null,"\nBloque donde se incluyen los datos.  El atributo “id” es obligatorio e indica un consecutivo numérico de registros de envío.  El atributo “accion”  debe tener alguno de los siguientes valores: “insertar” (si es un registro nuevo), “modificar” (si es un cambio) o “eliminar” (sí se desea eliminar)\n"]
[null,"IdGarantiaValor","Texto","1 a 25","Activo","Sí","\nCódigo con el cual se identifica el instrumento:\n\n  a)   Cuando se trata de un instrumento cuyo campo “CodigoISIN” tiene un valor distinto de “NO” se debe \n         indicar lo mismo que en el campo “CodigoISIN”.\n  b)   Cuando se trata de un instrumento cuyo campo “CodigoISIN” tiene el valor “NO” se debe indicar el \n          código que utiliza la entidad para identificar al título o al depósito en cuenta de ahorro o corriente  \n"]
[null,"TipoClasificacionInstrumento","Numérico",1,"Activo","SI","\nCorresponde a la condición de negociable o no negociable en bolsa, Fondo de Inversión o Certificado de Inversión.\n--------------------------------------------------\nReferirse a la Tabla: Tipo_Clasificacion_Instrumento\n","TIPO_CLASIFICACION_INSTRUMENTO"]
[null,"TipoPersona","Numérico","1 a 2","Activo","NO","\nCódigo de tipo de persona reportado en el campo “IdEmisor” , y éste solo solo puede ser: 1 ó 2 ó 3 ó 4 ó 5 ó 6 ó 13.\n--------------------------------------------------\nReferirse a la tabla Tipo_Persona.\n","TIPO PERSONA"]
[null,"IdEmisor","Texto","0 a 30","Activo","NO","\nSi la clasificación del Instrumento es 0, 1, 2, 3 ó 4   indicar el Nemotécnico del Emisor. En el caso de Fondos de Inversión  Nacionales, indicar el Nemotécnico asignado a cada Fondo por la SUGEVAL. \nSi la clasificación del Instrumento es 5 y el emisor es una Entidad Financiera Nacional, se debe indicar la cédula jurídica y si es una Entidad Financiera extranjera se debe utilizar el código ABA (entidad de USA), código SWIFT (cualquier otro país).\nSi la clasificación del instrumento es 6 este campo debe venir vacío.\nSi la clasificación del Instrumento es 7 se debe indicar la cédula jurídica.\n"]
[null,"IdInstrumento","Texto","1 a 25","Activo","SI","\nSi la clasificación del Instrumento es 0, 1, 2, 3, 4 o 7 (cuando aplica) indicar el Nemotécnico del Instrumento y cumplir con lo siguiente:\na) Cuando la clasificación del instrumento es 0: se debe indicar el nemotécnico del instrumento asignado por la Bolsa Nacional de Valores de Costa Rica (BNV CR).\nb) Cuando la clasificación del instrumento es 1: si el título valor no está negociado en la BNV CR se debe indicar “VEX” (Valor extranjero).  Si posteriormente ese título pasa a ser negociado en la BNV CR se debe indicar el nemotécnico del instrumento que asignó esa bolsa. Si el título valor también se negocia en la BNV CR se debe indicar el nemotécnico del instrumento que asignó la BNV CR.\nc) Cuando la clasificación del Instrumento es 2: Utilizar el código del FONDO según la  SUGEVAL o del organismo homólogo si es extranjero.  Si posteriormente ese fondo pasa a ser negociado en la BNV CR se debe reportar el código que asigna esa bolsa. \nd) Cuando la clasificación del Instrumento es 3: Si el título es negociado en la BNV CR, utilizar el código que asigna esa bolsa. Si el título no es negociado en la BNV CR, utilizar el código según la  SUGEVAL o del organismo homólogo si es extranjero.   Si posteriormente ese fondo pasa a ser negociado en la BNV CR se debe reportar el código que asigna esa bolsa.\ne) Cuando la clasificación del Instrumento es 4: Si se trata de un certificado de depósito a plazo o un certificado de inversión se debe reportar “CDP-CI”. Si un bono no negociable se debe reportar “BONO”.\ng) Cuando la clasificación del instrumento es 6: se debe indicar el número de la identificación en la operación de recompra registrada en la Bolsa de Valores respectiva.\nh) Cuando la clasificación del instrumento es 7:  si el instrumento es negociado en la BNV CR, utilizar el código que asigna esa bolsa, de lo contrario reportar “ICNN”.  \n"]
[null,"SerieInstrumento","Texto","0 a 20","Activo","NO","\nNúmero de serie registrado en la Bolsa de Valores respectiva.\nEste valor debe corresponder en el padrón de emisores de la SUGEF.\n"]
[null,"Premio","Numérico","0 a 3 enteros \n6 decimales","Activo","NO","\nCorresponde a la prima (positiva o negativa) que el título valor devenga por encima o por debajo de la tasa de interés que sirve de referencia para el cálculo de los intereses del mismo, por ejemplo, la tasa básica. \nDebe expresarse en puntos porcentuales.\n"]
[null,"CodigoISIN","Texto","1 a 25","Activo","SI","\nCódigo ISIN del instrumento financiero dado en garantía, de conformidad con los estándares establecidos en el documento “Numeración para la Identificación Internacional de Documentos Valores (ISIN). \nEn caso de que el instrumento dado en garantía  por algún motivo especial no tuviera código ISIN, deberá consignarse la palabra “NO”.\n"]
[null,"TipoAsignacionCalificacion","Numérico",1,"Activo","SI","\nCódigo del tipo de a quien se asigna la calificación.\n--------------------------------------------------\nReferirse a la tabla:  Tipo_Asignacion_Calificacion\n","TIPO ASIGNACION CALIFICACION"]
[null,"CategoriaCalificacion","Numérico",1,"Activo","NO","\nCategoría de Calificación asignada a la garantia valor.según la tabla\n--------------------------------------------------\nRefiérase a la Tabla: Equivalencia_Calificaciones_Agencias_Calificadoras\n","EQUIVALENCIA CALIFICACIONES AGENCIAS CALIFICADORAS"]
[null,"CodigoCalificacionRiesgo ","Texto","0 a 30","Activo","NO","\nCalificación vigente del emisor o la emisión del instrumento(s) financiero(s) que está(n) en garantía. Se deben usar la nomeclatura de los códigos según los utilizados por la Agencia Calificadora que incluyan únicamente la calificación del riesgo de crédito.  Por lo tanto, los códigos de calificación que se reporten no deben incluir los caracteres que identifican: la calificadora, el tipo de instrumento y el riesgo de mercado.  Adicionalmente, los códigos no deben incluir las palabras “Nivel” o “Categoría”.\n--------------------------------------------------\nRefiérase a la Tabla: Equivalencia_Calificaciones_Agencias_Calificadoras\n","EQUIVALENCIA CALIFICACIONES AGENCIAS CALIFICADORAS"]
[null,"CodigoEmpresaCalificadora ","Numérico","0 a 2","Activo","NO","\nCódigo de la empresa que emite la calificación de riesgo del emisor o la emisión.\n--------------------------------------------------\nRefiérase a la Tabla: Equivalencia_Calificaciones_Agencias_Calificadoras \n","EQUIVALENCIA CALIFICACIONES AGENCIAS CALIFICADORAS"]
[null,"ValorFacial","Numérico","0 a 20 enteros \n2 decimales","Activo","NO","\nMonto que aparece consignado en el instrumento financiero o el monto del efectivo restringido como garantías para operaciones back to back, según contrato.\nEn el caso de acciones se debe indicar el monto que resulta de la multiplicación del valor facial unitario por la cantidad de de acciones.\nLos montos deben reportarse en la moneda original (no debe colonizarse). \nAplica para cuando el campo “TipoClasificacionInstrumento” indica uno de los códigos 0, 1, 4, 5, 6 ó 7.\n"]
[null,"TipoMonedaValorFacial","Numérico","0 a 6","Activo","NO","\nCódigo de tipo de moneda del valor facial del instrumento financiero.\nPara el caso de los montos del efectivo restringido como garantías para operaciones back to back, corresponde a la moneda de la cuenta de ahorros y/o corriente.\n--------------------------------------------------\nRefiérase a la Tabla: Tipo_Moneda \n","TIPO MONEDA"]
[null,"ValorMercado","Numérico","1 a 20 números enteros con 2 decimales","Activo","SI","\nSe considera valor de mercado lo siguiente:\n     1.  Es el precio al cual se negocia el instrumento en una bolsa de valores.\n     2.  El valor facial en caso de valores no negociables en bolsa \n     3.  El valor intrínseco de la participación en caso de fondos de inversión abiertos.\n     4.  En el caso de acciones o participaciones  se debe indicar  el monto que resulta de multiplicar la \n           cantidad de acciones o participaciones por su valor unitario de mercado.\n     5.  Cuando se trate de instrumentos que en el campo “TipoClasificacionInstrumento” tiene los códigos \n           5 ó 6, o bien, cuando ese mismo campo tiene el código 4 excepto cuando el campo “IdInstrumento” \n           indica “BONO”, se debe reportar el mismo monto que se indica en el campo “ValorFacial”.  \n\nTambién aplica cuando el emisor es la misma entidad.\nLos montos deben reportarse en la moneda original del valor (no debe colonizarse).\n"]
[null,"TipoMonedaValorMercado","Numérico","0 a 6","Activo","NO","\nCódigo de tipo de moneda del valor de mercado del instrumento financiero. Cuando la clasificación de instrumento es 5 se debe reportar el tipo de moneda indicado en el campo “TipoMonedaValorFacial”\n--------------------------------------------------\n Refiérase a la Tabla: Tipo_Moneda \n","TIPO MONEDA"]
[null,"FechaConstitucion","Fecha","dd/mm/yyyy","Activo","SI","\nFecha de constitución del valor. \nCorresponde a la fecha de emisión del instrumento indicado en el documento. \n"]
[null,"FechaVencimiento","Fecha","dd/mm/yyyy","Activo","NO","\nFecha de vencimiento del instrumento indicado en el documento.\nPara el caso de los montos del efectivo restringido como garantías para operaciones back to back, corresponde a la fecha de finalización del uso de los fondos indicada en el contrato de la operación crediticia.\nEs obligatorio excepto en el caso, acciones y participaciones.\n"]
[null,"TipoColateralFinanciero","Numérico","1 a 2","Activo","SI","\nCódigo del tipo del colateal financiero.   Corresponde a lo indicado en inciso b. del art. 19 del Acuerdo CONASSIF  14_21.\nSe exeptuan las garantías de las operaciones realizadas bajo la Ley 9274 y su Reglamento (Acuerdo SUGEF 15-16),  estas deben ser reportadas con el valor \"0\" en este campo.\n--------------------------------------------------\nReferirse a la tabla: Tipo_Colateral_Financiero\n","TIPO COLATERAL FINANCIERO",null,null,null,null,5,"Vertical"]
[null,"CodigoCalificacionInstrumento","Numérico","1 a 2","Activo","SI","\nCódigo de calificación del instrumento.   Corresponde a lo indicado en inciso b. del art. 19 del Acuerdo CONASSIF  14_21.\nSe exceptúan las garantías de las operaciones realizadas bajo la Ley 9274 y su Reglamento (Acuerdo SUGEF 15-16),  estas deben ser reportadas con el valor \"0\" en este campo.\n--------------------------------------------------\nReferirse a la tabla: Tipo_Colateral_Financiero\n","TIPO COLATERAL FINANCIERO",null,null,null,null,3,"Horizontal"]
[null,"PorcentajeAjusteRc","Numérico","1 a 3 enteros \n2 decimales","Activo","SI","\nDebe indicarse el porcentaje de ajuste que le corresponda de acuerdo al código indicado en el campo Colateral Financiero y la Calificación del Instrumento.\nSe exeptuan las garantías de las operaciones realizadas bajo la Ley 9274 y su Reglamento (Acuerdo SUGEF 15-16),  estas deben ser reportadas con el valor \"0\" en este campo.\n--------------------------------------------------\nRefierase a la Tabla: Tipo_Colateral_Financiero.\n","TIPO COLATERAL FINANCIERO","n",null,null,null,40]

{"sheet":"5206_Valores_Validaciones","index":35,"n_rows":37,"n_cols":7,"rows_kept":37,"cut":false,"hidden":false,"merged":[[2,2,2,6]]}
[]
[]
[null,null,"VALIDACIONES PARA ARCHIVO DE INFORMACIÓN DE GARANTÍAS VALORES"]
[]
["Numeración en publicación  anterior","APARTADO","# Validación","Descripción de la validación","N# 1.6","# T.I","Cambio realizado"]
[1,null,1,"\nCuando el campo “TipoClasificacionInstrumento” tiene uno de los códigos 5 ó 7 los campos “TipoPersona” y “IdEmisor” deben corresponder con el padrón de personas de la SUGEF. \n",2]
[2,null,2,"\nCuando el campo “TipoClasificacionInstrumento” tiene el código 5 el campo  “IdEmisor” debe corresponder con el campo “IdEntidad” del encabezado de este archivo.   \n",3]
[3,null,3,"\nLos valores del campo “TipoPersona” deben corresponder con los códigos indicados en la Tabla “Tipo_Persona” y permitir únicamente los códigos del 1 al 6.\n",5]
[4,null,4,"Cuando el campo “TipoAsignaciónCalificacion” tiene códigos diferentes a cero según la Tabla “Tipo_Asignacion_Calificacion” debe reportarse la información de los campos “CategoriaCalificación”, “CalificacionRiesgo” y  “CodigoEmpresaCalificadora”, los valores deben corresponder con los indicados en la tabla Equivalencia_Calificaciones_Agencias_Calificadoras y estar con estado activo.\n",6]
[5,null,5,"\nCuando el campo “TipoClasificacionInstrumento” indica uno de los códigos 0, 1, 4, 5, 6 ó 7 el campo “ValorFacial” debe ser mayor que cero.\n",7]
[6,null,6,"\nEl campo “TipoMonedaValorFacial” debe reportarse cuando el campo “ValorFacial” es mayor que cero.\n",8]
[7,null,7,"\nLos campos “TipoMonedaValorMercado” debe reportarse cuando el campo “ValorMercado”  es mayor que cero.\n",9]
[8,null,8,"\nCuando el campo “TipoClasificacionInstrumento” es diferente de 6 el campo “IdEmisor” debe reportarse. \n",10]
[9,null,9,"Cuando el campo “ClasificacionInstrumento” tiene alguno de los códigos del 0 al 3 , o bien, cuando ese mismo campo tiene el código 4 y el campo “IdInstrumento” indica “BONO”; excepto cuando en forma concurrente se da lo siguiente: a. el campo “TipoClasificacionInstrumento” es “0” b. el campo “Premio” tiene valor c. el campo “IdEmisor” corresponde a un emisor que en la columna “CodigoPais” del padrón de emisores indica “CR”. los siguientes campos deben coincidir con los padrones de emisores, emisiones e instrumentos de la SUGEF: a) “IdEmisor” b)“IdInstrumento” c) “SerieInstrumento” cuando exista. d) “CodigoISIN” e) “TipoMonedaValorFacial” f) “FechaVencimiento” cuando exista. g) “Premio” cuando exista.",11]
[10,null,10,"\nCuando se den las siguientes situaciones en forma concurrente:\na)   El campo “TipoClasificacionInstrumento” tiene el código 0; \nb)  El campo “Premio” tiene valor y a su vez el campo “IdInstrumento” no es “BPDC”\nc)   El campo “IdEmisor” corresponde a un emisor que en la columna “CodigoPais” del padrón de emisores indica “CR”.\nlos siguientes campos deben coincidir con los padrones de emisores, emisiones e instrumentos de la SUGEF:\na.       “IdEmisor”\nb.      “IdInstrumento”\nc.       “TipoMonedaValorFacial”\nd.      “Premio”\n",12]
[11,null,11,"\nCuando se den las siguientes situaciones en forma concurrente:  el campo “TipoClasificacionInstrumento” tiene el código 0 y el campo “IdInstrumento” indica “BPDC”; los siguientes campos deben coincidir con los padrones de emisores, emisiones e instrumentos de la SUGEF:\na.       “IdEmisor”\nb.      “IdInstrumento”\nc.       “TipoMonedaValorFacial” \nd.      “Premio”.   \ne.      “FechaVencimiento”.\n",13]
[12,null,12,"Cuando el campo “TipoClasificacionInstrumento” tiene el código 4 excepto cuando en el campo “IdInstrumento” se indica “BONO”  y el campo \"CodigoISIN\" indica \"NO\" los siguientes campos deben reportarse y coincidir con los padrones de emisores e instrumentos: \na.       “IdEmisor”\nb.      “IdInstrumento”\nc.       “TipoMonedaValorFacial”",14]
[13,null,13,"\nCuando el campo”TipoClasificacionInstrumento” es 4, el campo “IdInstrumento” debe contener unicamente los siguientes valores: “IDNN”, “ICNN”, “CDP-CI”, “ICP” o “BONO”.\n",16]
[14,null,14,"\nCuando el campo “TipoClasificacionInstrumento” es 5 ó 6, el campo “IdInstrumento” no debe reportar los siguientes códigos: “IDNN”, “ICNN”, “CDP-CI”, “ICP” o  “BONO”. \n",17]
[15,null,15,"\nCuando el campo “TipoClasificacionInstrumento” tiene los códigos 5 ó 6, o bien, cuando ese mismo campo tiene el código 4 excepto cuando en el campo “IdInstrumento” indica “BONO”; el campo “ValorMercado” debe ser igual al campo “ValorFacial”.\n",18]
[16,null,16,"\nCuando el campo “TipoClasificacionInstrumento” tiene los códigos 2 ó 3 el registro corresponde a un instrumento financiero que debe indicar “TPART” en la columna “TipoInstrumento” del padrón de instrumentos de la SUGEF.\n",19]
[17,null,17,"\nCuando el campo “TipoClasificacionInstrumento” tiene los códigos 0, 1, 4, 5 ó 6 el registro corresponde a un instrumento financiero que en la columna “TipoInstrumento” del padrón de instrumentos de la SUGEF no debe indicar “TPART”.\n\nINACTIVADA",20]
[18,null,18,"\nCuando el campo “TipoClasificacionInstrumento” es código 5 ó 6 el valor indicado en el campo “IdInstrumento” no debe estar contenido en el padrón de instrumentos.  \n\nINACTIVADA",21]
[19,null,19,"\nCuando el campo “CodigoISIN” tiene un valor distinto de “NO”, el campo “IdGarantiaValor” debe ser igual al campo “CodigoISIN”. \n",22]
[20,null,20,"\nEl dato del campo \"PorcentajeAjusteRc\" debe corresponde al valor indicado en la tabla \"TipoColateralFinanciero\";  según \"Colateral Financiero y otros derechos de cobro\" y \"CalificacionInstrumento\".\n",null,"NUEVA"]
[21,null,21,"Los campos  \"ValorFacial\"  y \" ValorMercado\" No deben permitir datos negativos.",null,"NUEVA"]
[22,null,22," No es permitido remitir datos para periodos anteriores a Enero 2024",null,"NUEVA"]
[23,null,23,"El campo \"TipoClasificacionInstrumento\" debe existir en la tabla \"Tipo_Clasificacion_Instrumento\"",null,"NUEVA"]
[24,null,24,"El campo \"TipoMonedaValorFacial\" debe existir en la tabla \"TIPO_MONEDA\"",null,"NUEVA"]
[25,null,25," El campo \"TipoMonedaValorMercado\" debe existir en la tabla \"TIPO_MONEDA\"",null,"NUEVA"]
[]
[26,null,26,"El campo “IdGarantiaValor” no debe repetirse.\n\n",null,"NUEVA"]
["27.",null,"27.","Cuando el campo \"TipoAsignaciónCalificación\" es 0 los campos \"CategoriaCalificación\", \"CodigoCalificacionRiesgo\" y  \"CodigoEmpresaCalificadora\" no deben registrarse.\n\n",null,"NUEVA"]
["Integridad","Implícita en la Definición del Campo XML","28.","No es permitido indicar espacios en blanco al inicio o al final del campo: \"IdGarantiaValor\" del Archivo: \"NEC2024_GARANTIAS_VALORES\".\n\n"]
["Integridad","Implícita en la Definición del Campo XML","29.","No es permitido indicar espacios en blanco al inicio o al final del campo: \"IdEmisor\" del Archivo: \"NEC2024_GARANTIAS_VALORES\".\n\n"]
["Integridad","Implícita en la Definición del Campo XML","30."," No es permitido indicar espacios en blanco al inicio o al final del campo: \"IdInstrumento\" del Archivo: \"NEC2024_GARANTIAS_VALORES\".\n\n"]
["31.",null,"31.","Validación # 31: El valor del campo \"TipoAsignacionCalificacion\" debe existir en la tabla \"TIPO_ASIGNACION_CALIFICACION\" y estar activo.\n\n",null,"NUEVA"]

{"sheet":"5206_Valores_Validaciones_nulo","index":36,"n_rows":30,"n_cols":6,"rows_kept":30,"cut":false,"hidden":true,"merged":[[2,1,2,5]]}
[]
[]
[null,"VALIDACIONES PARA ARCHIVO DE INFORMACIÓN DE GARANTÍAS VALORES"]
[]
["Numeración en publicación  anterior","# Validación","Descripción de la validación","N# 1.6","# T.I","Cambio realizado"]
[1,1,"\nCuando el campo “TipoClasificacionInstrumento” tiene uno de los códigos 5 ó 7 los campos “TipoPersona” y “IdEmisor” deben corresponder con el padrón de personas de la SUGEF. \n",2]
[2,2,"\nCuando el campo “TipoClasificacionInstrumento” tiene el código 5 el campo  “IdEmisor” debe corresponder con el campo “IdEntidad” del encabezado de este archivo.   \n",3]
[4,3,"\nLos valores del campo “TipoPersona” deben corresponder con los códigos indicados en la Tabla “Tipo_Persona” y permitir únicamente los códigos del 1 al 6.\n",5]
[5,4,"Cuando el campo “TipoAsignaciónCalificacion” tiene códigos diferentes a cero según la Tabla “Tipo_Asignacion_Calificacion” debe reportarse la información de los campos “CategoriaCalificación”, “CalificacionRiesgo” y “CodigoEmpresaCalificadora”, los valores deben corresponder con los indicados en la tabla Equivalencia_Calificaciones_Agencias_Calificadoras y estar con estado activo.\n",6]
[6,5,"\nCuando el campo “TipoClasificacionInstrumento” indica uno de los códigos 0, 1, 4, 5, 6 ó 7 el campo “ValorFacial” debe ser mayor que cero.\n",7]
[7,6,"\nEl campo “TipoMonedaValorFacial” debe reportarse cuando el campo “ValorFacial” es mayor que cero.\n",8]
[8,7,"\nLos campos “TipoMonedaValorMercado” debe reportarse cuando el campo “ValorMercado”  es mayor que cero.\n",9]
[9,8,"\nCuando el campo “TipoClasificacionInstrumento” es diferente de 6 el campo “IdEmisor” debe reportarse. \n",10]
[10,9,"\nCuando el campo “ClasificacionInstrumento” tiene alguno de los códigos del 0 al 3, o bien, cuando ese mismo campo tiene el código 4 y el campo “IdInstrumento” indica “BONO”; excepto cuando en forma concurrente se da lo siguiente:\na. el campo “TipoClasificacionInstrumento” es “0”\nb. el campo “Premio” tiene valor\nc. el campo “IdEmisor” corresponde a un emisor que en la columna “CodigoPais” del padrón de emisores indica “CR”.\nlos siguientes campos deben coincidir con los padrones de emisores, emisiones e instrumentos de la SUGEF:\n           i.   “IdEmisor”\n          ii.    “IdInstrumento”\n         iii.    “SerieInstrumento” cuando exista.\n          iv.      “CodigoISIN”\n          v.     “TipoMonedaValorFacial” \n          vi.      “FechaVencimiento” cuando exista.\n          vii.       “Premio” cuando exista.\n",11]
[11,10,"\nCuando se den las siguientes situaciones en forma concurrente:\na)   El campo “TipoClasificacionInstrumento” tiene el código 0; \nb)  El campo “Premio” tiene valor y a su vez el campo “IdInstrumento” no es “BPDC”\nc)   El campo “IdEmisor” corresponde a un emisor que en la columna “CodigoPais” del padrón de emisores indica “CR”.\nlos siguientes campos deben coincidir con los padrones de emisores, emisiones e instrumentos de la SUGEF:\na.       “IdEmisor”\nb.      “IdInstrumento”\nc.       “TipoMonedaValorFacial”\nd.      “Premio”\n",12]
[12,11,"\nCuando se den las siguientes situaciones en forma concurrente:  el campo “TipoClasificacionInstrumento” tiene el código 0 y el campo “IdInstrumento” indica “BPDC”; los siguientes campos deben coincidir con los padrones de emisores, emisiones e instrumentos de la SUGEF:\na.       “IdEmisor”\nb.      “IdInstrumento”\nc.       “TipoMonedaValorFacial” \nd.      “Premio”.   \ne.      “FechaVencimiento”.\n",13]
[13,12,"Cuando el campo “TipoClasificacionInstrumento” tiene el código 4 excepto cuando en el campo “IdInstrumento” se indica “BONO”  y el campo \"CodigoISIN\" indica \"NO\" los siguientes campos deben reportarse y coincidir con los padrones de emisores e instrumentos: \na.       “IdEmisor”\nb.      “IdInstrumento”\nc.       “TipoMonedaValorFacial”",14]
[15,13,"\nCuando el campo”TipoClasificacionInstrumento” es 4, el campo “IdInstrumento” debe contener unicamente los siguientes valores: “IDNN”, “ICNN”, “CDP-CI”, “ICP” o “BONO”.\n",16]
[16,14,"\nCuando el campo “TipoClasificacionInstrumento” es 5 ó 6, el campo “IdInstrumento” no debe reportar los siguientes códigos: “IDNN”, “ICNN”, “CDP-CI”, “ICP” o  “BONO”. \n",17]
[17,15,"\nCuando el campo “TipoClasificacionInstrumento” tiene los códigos 5 ó 6, o bien, cuando ese mismo campo tiene el código 4 excepto cuando en el campo “IdInstrumento” indica “BONO”; el campo “ValorMercado” debe ser igual al campo “ValorFacial”.\n",18]
[18,16,"\nCuando el campo “TipoClasificacionInstrumento” tiene los códigos 2 ó 3 el registro corresponde a un instrumento financiero que debe indicar “TPART” en la columna “TipoInstrumento” del padrón de instrumentos de la SUGEF.\n",19]
[19,17,"\nCuando el campo “TipoClasificacionInstrumento” tiene los códigos 0, 1, 4, 5 ó 6 el registro corresponde a un instrumento financiero que en la columna “TipoInstrumento” del padrón de instrumentos de la SUGEF no debe indicar “TPART”.\n",20]
[20,18,"\nCuando el campo “TipoClasificacionInstrumento” es código 5 ó 6 el valor indicado en el campo “IdInstrumento” no debe estar contenido en el padrón de instrumentos.  \n",21]
[21,19,"\nCuando el campo “CodigoISIN” tiene un valor distinto de “NO”, el campo “IdGarantiaValor” debe ser igual al campo “CodigoISIN”. \n",22]
[22,20,"\nEl dato del campo \"PorcentajeAjusteRc\" debe corresponde al valor indicado en la tabla \"TipoColateralFinanciero\";  según \"Colateral Financiero y otros derechos de cobro\" y \"CalificacionInstrumento\".\n",null,"NUEVA"]
[150,21,"Los campos  \"ValorFacial\"  y \" ValorMercado\" No deben permitir datos negativos.",null,"NUEVA"]
["Nueva",22," No es permitido remitir datos para periodos anteriores a Enero 2024",null,"NUEVA"]
["Nueva",23,"El campo \"TipoClasificacionInstrumento\" debe existir en la tabla \"Tipo_Clasificacion_Instrumento\"",null,"NUEVA"]
["Nueva",24,"El campo \"TipoMonedaValorFacial\" debe existir en la tabla \"TIPO_MONEDA\"",null,"NUEVA"]
["Nueva",25," El campo \"TipoMonedaValorMercado\" debe existir en la tabla \"TIPO_MONEDA\"",null,"NUEVA"]